Workbook

Sheet Результаты
B1: Командное первенство
B2: ЦПП ГИБДД ГУ МВД по Московской обл. | AE2: 5 июня 2011, 17:08
A3: id | B3: Команда | C3: палатка сумма | D3: палатка | E3: стрельба-пневматика сумма | F3: стрельба-пневматика | G3: стрельба-лук сумма | H3: стрельба-лук | I3: стрельба-АК сумма | J3: стрельба-АК | K3: сборка/разборка АК сумма | L3: сборка/разборка АК | M3: полоса военная сумма | N3: полоса военная | O3: полоса военная | P3: полоса Штурм сумма | Q3: полоса Штурм | R3: плавание сумма | S3: плавание | T3: подтягивание сумма | U3: подтягивание | V3: ролики сумма | W3: ролики | X3: ориентирование сумма | Y3: ориентирование | Z3: ПДД сумма | AA3: ПДД | AB3: эстафета сумма | AC3: эстафета | AD3: Сумма | AE3: Место
A4: 16 | B4: =LOOKUP([id],Команды[id],Команды[Коротко]) -> Тверь | C4: =SUMIF(палатка[team_id],[id],палатка[Сумма]) -> 00:01:51.750 | D4: 1 | E4: =SUMIF(стрельба_пневматика[team_id],Результаты[[#This Row],[id]],стрельба_пневматика[Очки]) -> 216 | F4: 2 | G4: =SUMIF(стрельба_лук[team_id],Результаты[[#This Row],[id]],стрельба_лук[результат]) -> 37 | H4: 11 | I4: =SUMIF(стрельба_АК[team_id],Результаты[[#This Row],[id]],стрельба_АК[Результат]) -> 67 | J4: 7 | K4: =SUMIF(сборка_разборка_АК[team_id],Результаты[[#This Row],[id]],сборка_разборка_АК[Сумма]) -> 00:01:05.300 | L4: 1 | M4: =SUMIF(полоса_воен[team_id],[id],полоса_воен[Время]) -> 00:01:17.950 | O4: 8 | P4: =SUMIF(полоса_Штурм[team_id],Результаты[[#This Row],[id]],полоса_Штурм[Время]) -> 00:01:23.320 | Q4: 4 | R4: =SUMIF(плавание[team_id],Результаты[[#This Row],[id]],плавание[Время]) -> 00:03:21.440 | S4: 12 | T4: =SUMIF(подтягивание[team_id],Результаты[[#This Row],[id]],подтягивание[результат]) -> 48 | U4: 3 | V4: =SUMIF(ролики[team_id],Результаты[[#This Row],[id]],ролики[Сумма]) -> 00:00:25.100 | W4: 2 | X4: =SUMIF(ориентирование[team_id],Результаты[[#This Row],[id]],ориентирование[Сумма]) -> 0.01150462963 | Y4: 1 | Z4: =SUMIF(ПДД[team_id],Результаты[[#This Row],[id]],ПДД[Сумма]) -> 00:18:23 | AA4: 11 | AB4: =SUMIF(Эстафета[team_id],Результаты[[#This Row],[id]],Эстафета[Сумма]) -> 00:04:51.980 | AC4: 6 | AD4: =[палатка]+[стрельба-пневматика]+[стрельба-лук]+[стрельба-АК]+[сборка/разборка АК]+[полоса военная]+[полоса Штурм]+[плавание]+[подтягивание]+[ролики]+[ПДД]+[эстафета] -> 68 | AE4: 1
A5: 22 | B5: =LOOKUP([id],Команды[id],Команды[Коротко]) -> Киров | C5: =SUMIF(палатка[team_id],[id],палатка[Сумма]) -> 00:03:37.120 | D5: 14 | E5: =SUMIF(стрельба_пневматика[team_id],Результаты[[#This Row],[id]],стрельба_пневматика[Очки]) -> 161 | F5: 8 | G5: =SUMIF(стрельба_лук[team_id],Результаты[[#This Row],[id]],стрельба_лук[результат]) -> 60 | H5: 4 | I5: =SUMIF(стрельба_АК[team_id],Результаты[[#This Row],[id]],стрельба_АК[Результат]) -> 77 | J5: 2 | K5: =SUMIF(сборка_разборка_АК[team_id],Результаты[[#This Row],[id]],сборка_разборка_АК[Сумма]) -> 00:02:23.030 | L5: 14 | M5: =SUMIF(полоса_воен[team_id],[id],полоса_воен[Время]) -> 00:01:14.620 | O5: 3 | P5: =SUMIF(полоса_Штурм[team_id],Результаты[[#This Row],[id]],полоса_Штурм[Время]) -> 00:01:35.920 | Q5: 11 | R5: =SUMIF(плавание[team_id],Результаты[[#This Row],[id]],плавание[Время]) -> 00:02:39.420 | S5: 3 | T5: =SUMIF(подтягивание[team_id],Результаты[[#This Row],[id]],подтягивание[результат]) -> 34 | U5: 10 | V5: =SUMIF(ролики[team_id],Результаты[[#This Row],[id]],ролики[Сумма]) -> 00:00:32.930 | W5: 6 | X5: =SUMIF(ориентирование[team_id],Результаты[[#This Row],[id]],ориентирование[Сумма]) -> 0.01423611111 | Y5: 9 | Z5: =SUMIF(ПДД[team_id],Результаты[[#This Row],[id]],ПДД[Сумма]) -> 00:13:43 | AA5: 11 | AB5: =SUMIF(Эстафета[team_id],Результаты[[#This Row],[id]],Эстафета[Сумма]) -> 00:05:02.820 | AC5: 12 | AD5: =[палатка]+[стрельба-пневматика]+[стрельба-лук]+[стрельба-АК]+[сборка/разборка АК]+[полоса военная]+[полоса Штурм]+[плавание]+[подтягивание]+[ролики]+[ПДД]+[эстафета] -> 98 | AE5: 2
A6: 20 | B6: =LOOKUP([id],Команды[id],Команды[Коротко]) -> Татарстан | C6: =SUMIF(палатка[team_id],[id],палатка[Сумма]) -> 00:03:59.440 | D6: 17 | E6: =SUMIF(стрельба_пневматика[team_id],Результаты[[#This Row],[id]],стрельба_пневматика[Очки]) -> 133 | F6: 15 | G6: =SUMIF(стрельба_лук[team_id],Результаты[[#This Row],[id]],стрельба_лук[результат]) -> 104 | H6: 1 | I6: =SUMIF(стрельба_АК[team_id],Результаты[[#This Row],[id]],стрельба_АК[Результат]) -> 25 | J6: 15 | K6: =SUMIF(сборка_разборка_АК[team_id],Результаты[[#This Row],[id]],сборка_разборка_АК[Сумма]) -> 00:02:50.950 | L6: 18 | M6: =SUMIF(полоса_воен[team_id],[id],полоса_воен[Время]) -> 00:01:16.270 | O6: 5 | P6: =SUMIF(полоса_Штурм[team_id],Результаты[[#This Row],[id]],полоса_Штурм[Время]) -> 00:01:20.630 | Q6: 3 | R6: =SUMIF(плавание[team_id],Результаты[[#This Row],[id]],плавание[Время]) -> 00:02:31.630 | S6: 2 | T6: =SUMIF(подтягивание[team_id],Результаты[[#This Row],[id]],подтягивание[результат]) -> 82 | U6: 1 | V6: =SUMIF(ролики[team_id],Результаты[[#This Row],[id]],ролики[Сумма]) -> 00:00:42.960 | W6: 18 | X6: =SUMIF(ориентирование[team_id],Результаты[[#This Row],[id]],ориентирование[Сумма]) -> 0.01284722222 | Y6: 4 | Z6: =SUMIF(ПДД[team_id],Результаты[[#This Row],[id]],ПДД[Сумма]) -> 00:08:05 | AA6: 11 | AB6: =SUMIF(Эстафета[team_id],Результаты[[#This Row],[id]],Эстафета[Сумма]) -> 00:04:40.750 | AC6: 2 | AD6: =[палатка]+[стрельба-пневматика]+[стрельба-лук]+[стрельба-АК]+[сборка/разборка АК]+[полоса военная]+[полоса Штурм]+[плавание]+[подтягивание]+[ролики]+[ПДД]+[эстафета] -> 108 | AE6: 3
A7: 17 | B7: =LOOKUP([id],Команды[id],Команды[Коротко]) -> Смоленск | C7: =SUMIF(палатка[team_id],[id],палатка[Сумма]) -> 00:03:08.540 | D7: 9 | E7: =SUMIF(стрельба_пневматика[team_id],Результаты[[#This Row],[id]],стрельба_пневматика[Очки]) -> 160 | F7: 9 | G7: =SUMIF(стрельба_лук[team_id],Результаты[[#This Row],[id]],стрельба_лук[результат]) -> 49 | H7: 8 | I7: =SUMIF(стрельба_АК[team_id],Результаты[[#This Row],[id]],стрельба_АК[Результат]) -> 15 | J7: 19 | K7: =SUMIF(сборка_разборка_АК[team_id],Результаты[[#This Row],[id]],сборка_разборка_АК[Сумма]) -> 00:01:32.390 | L7: 4 | M7: =SUMIF(полоса_воен[team_id],[id],полоса_воен[Время]) -> 00:01:17.340 | O7: 7 | P7: =SUMIF(полоса_Штурм[team_id],Результаты[[#This Row],[id]],полоса_Штурм[Время]) -> 00:01:11.210 | Q7: 1 | R7: =SUMIF(плавание[team_id],Результаты[[#This Row],[id]],плавание[Время]) -> 00:03:15.510 | S7: 11 | T7: =SUMIF(подтягивание[team_id],Результаты[[#This Row],[id]],подтягивание[результат]) -> 44 | U7: 5 | V7: =SUMIF(ролики[team_id],Результаты[[#This Row],[id]],ролики[Сумма]) -> 00:00:40.610 | W7: 16 | X7: =SUMIF(ориентирование[team_id],Результаты[[#This Row],[id]],ориентирование[Сумма]) -> 0.01378472222 | Y7: 6 | Z7: =SUMIF(ПДД[team_id],Результаты[[#This Row],[id]],ПДД[Сумма]) -> 00:15:15 | AA7: 11 | AB7: =SUMIF(Эстафета[team_id],Результаты[[#This Row],[id]],Эстафета[Сумма]) -> 00:04:55.520 | AC7: 9 | AD7: =[палатка]+[стрельба-пневматика]+[стрельба-лук]+[стрельба-АК]+[сборка/разборка АК]+[полоса военная]+[полоса Штурм]+[плавание]+[подтягивание]+[ролики]+[ПДД]+[эстафета] -> 109 | AE7: 4
A8: 9 | B8: =LOOKUP([id],Команды[id],Команды[Коротко]) -> Курск | C8: =SUMIF(палатка[team_id],[id],палатка[Сумма]) -> 00:04:15.410 | D8: 20 | E8: =SUMIF(стрельба_пневматика[team_id],Результаты[[#This Row],[id]],стрельба_пневматика[Очки]) -> 227 | F8: 1 | G8: =SUMIF(стрельба_лук[team_id],Результаты[[#This Row],[id]],стрельба_лук[результат]) -> 58 | H8: 5 | I8: =SUMIF(стрельба_АК[team_id],Результаты[[#This Row],[id]],стрельба_АК[Результат]) -> 31 | J8: 14 | K8: =SUMIF(сборка_разборка_АК[team_id],Результаты[[#This Row],[id]],сборка_разборка_АК[Сумма]) -> 00:04:00.040 | L8: 23 | M8: =SUMIF(полоса_воен[team_id],[id],полоса_воен[Время]) -> 00:01:18.810 | O8: 13 | P8: =SUMIF(полоса_Штурм[team_id],Результаты[[#This Row],[id]],полоса_Штурм[Время]) -> 00:01:19.550 | Q8: 2 | R8: =SUMIF(плавание[team_id],Результаты[[#This Row],[id]],плавание[Время]) -> 00:02:45.590 | S8: 4 | T8: =SUMIF(подтягивание[team_id],Результаты[[#This Row],[id]],подтягивание[результат]) -> 30 | U8: 15 | V8: =SUMIF(ролики[team_id],Результаты[[#This Row],[id]],ролики[Сумма]) -> 00:00:29.890 | W8: 3 | X8: =SUMIF(ориентирование[team_id],Результаты[[#This Row],[id]],ориентирование[Сумма]) -> 0.04203703704 | Y8: 25 | Z8: =SUMIF(ПДД[team_id],Результаты[[#This Row],[id]],ПДД[Сумма]) -> 00:10:17 | AA8: 4 | AB8: =SUMIF(Эстафета[team_id],Результаты[[#This Row],[id]],Эстафета[Сумма]) -> 00:04:53.010 | AC8: 7 | AD8: =[палатка]+[стрельба-пневматика]+[стрельба-лук]+[стрельба-АК]+[сборка/разборка АК]+[полоса военная]+[полоса Штурм]+[плавание]+[подтягивание]+[ролики]+[ПДД]+[эстафета] -> 111 | AE8: 5
A9: 3 | B9: =LOOKUP([id],Команды[id],Команды[Коротко]) -> Дмитров | C9: =SUMIF(палатка[team_id],[id],палатка[Сумма]) -> 00:03:37.210 | D9: 15 | E9: =SUMIF(стрельба_пневматика[team_id],Результаты[[#This Row],[id]],стрельба_пневматика[Очки]) -> 191 | F9: 7 | G9: =SUMIF(стрельба_лук[team_id],Результаты[[#This Row],[id]],стрельба_лук[результат]) -> 43 | H9: 10 | I9: =SUMIF(стрельба_АК[team_id],Результаты[[#This Row],[id]],стрельба_АК[Результат]) -> 68 | J9: 6 | K9: =SUMIF(сборка_разборка_АК[team_id],Результаты[[#This Row],[id]],сборка_разборка_АК[Сумма]) -> 00:01:53.910 | L9: 9 | M9: =SUMIF(полоса_воен[team_id],[id],полоса_воен[Время]) -> 00:01:26.780 | O9: 19 | P9: =SUMIF(полоса_Штурм[team_id],Результаты[[#This Row],[id]],полоса_Штурм[Время]) -> 00:01:30.550 | Q9: 7 | R9: =SUMIF(плавание[team_id],Результаты[[#This Row],[id]],плавание[Время]) -> 00:03:21.780 | S9: 13 | T9: =SUMIF(подтягивание[team_id],Результаты[[#This Row],[id]],подтягивание[результат]) -> 40 | U9: 6 | V9: =SUMIF(ролики[team_id],Результаты[[#This Row],[id]],ролики[Сумма]) -> 00:00:33.910 | W9: 7 | X9: =SUMIF(ориентирование[team_id],Результаты[[#This Row],[id]],ориентирование[Сумма]) -> 1.015706019 | Y9: 26 | Z9: =SUMIF(ПДД[team_id],Результаты[[#This Row],[id]],ПДД[Сумма]) -> 00:22:16 | AA9: 11 | AB9: =SUMIF(Эстафета[team_id],Результаты[[#This Row],[id]],Эстафета[Сумма]) -> 00:04:43.820 | AC9: 3 | AD9: =[палатка]+[стрельба-пневматика]+[стрельба-лук]+[стрельба-АК]+[сборка/разборка АК]+[полоса военная]+[полоса Штурм]+[плавание]+[подтягивание]+[ролики]+[ПДД]+[эстафета] -> 113 | AE9: 6
A10: 11 | B10: =LOOKUP([id],Команды[id],Команды[Коротко]) -> Москва | C10: =SUMIF(палатка[team_id],[id],палатка[Сумма]) -> 00:02:25.580 | D10: 2 | E10: =SUMIF(стрельба_пневматика[team_id],Результаты[[#This Row],[id]],стрельба_пневматика[Очки]) -> 150 | F10: 12 | G10: =SUMIF(стрельба_лук[team_id],Результаты[[#This Row],[id]],стрельба_лук[результат]) -> 14 | H10: 25 | I10: =SUMIF(стрельба_АК[team_id],Результаты[[#This Row],[id]],стрельба_АК[Результат]) -> 77 | J10: 3 | K10: =SUMIF(сборка_разборка_АК[team_id],Результаты[[#This Row],[id]],сборка_разборка_АК[Сумма]) -> 00:01:36.460 | L10: 6 | M10: =SUMIF(полоса_воен[team_id],[id],полоса_воен[Время]) -> 00:01:11.110 | O10: 1 | P10: =SUMIF(полоса_Штурм[team_id],Результаты[[#This Row],[id]],полоса_Штурм[Время]) -> 00:01:39.620 | Q10: 13 | R10: =SUMIF(плавание[team_id],Результаты[[#This Row],[id]],плавание[Время]) -> 00:02:58.310 | S10: 8 | T10: =SUMIF(подтягивание[team_id],Результаты[[#This Row],[id]],подтягивание[результат]) -> 25 | U10: 20 | V10: =SUMIF(ролики[team_id],Результаты[[#This Row],[id]],ролики[Сумма]) -> 00:00:33.960 | W10: 8 | X10: =SUMIF(ориентирование[team_id],Результаты[[#This Row],[id]],ориентирование[Сумма]) -> 0.01975694444 | Y10: 21 | Z10: =SUMIF(ПДД[team_id],Результаты[[#This Row],[id]],ПДД[Сумма]) -> 00:13:22 | AA10: 11 | AB10: =SUMIF(Эстафета[team_id],Результаты[[#This Row],[id]],Эстафета[Сумма]) -> 00:04:46.520 | AC10: 5 | AD10: =[палатка]+[стрельба-пневматика]+[стрельба-лук]+[стрельба-АК]+[сборка/разборка АК]+[полоса военная]+[полоса Штурм]+[плавание]+[подтягивание]+[ролики]+[ПДД]+[эстафета] -> 114 | AE10: 7
A11: 13 | B11: =LOOKUP([id],Команды[id],Команды[Коротко]) -> Владимир | C11: =SUMIF(палатка[team_id],[id],палатка[Сумма]) -> 00:02:43.720 | D11: 8 | E11: =SUMIF(стрельба_пневматика[team_id],Результаты[[#This Row],[id]],стрельба_пневматика[Очки]) -> 128 | F11: 18 | G11: =SUMIF(стрельба_лук[team_id],Результаты[[#This Row],[id]],стрельба_лук[результат]) -> 62 | H11: 3 | I11: =SUMIF(стрельба_АК[team_id],Результаты[[#This Row],[id]],стрельба_АК[Результат]) -> 14 | J11: 20 | K11: =SUMIF(сборка_разборка_АК[team_id],Результаты[[#This Row],[id]],сборка_разборка_АК[Сумма]) -> 00:01:36.940 | L11: 7 | M11: =SUMIF(полоса_воен[team_id],[id],полоса_воен[Время]) -> 00:01:14.700 | O11: 4 | P11: =SUMIF(полоса_Штурм[team_id],Результаты[[#This Row],[id]],полоса_Штурм[Время]) -> 00:01:52.560 | Q11: 18 | R11: =SUMIF(плавание[team_id],Результаты[[#This Row],[id]],плавание[Время]) -> 00:04:38.610 | S11: 15 | T11: =SUMIF(подтягивание[team_id],Результаты[[#This Row],[id]],подтягивание[результат]) -> 40 | U11: 7 | V11: =SUMIF(ролики[team_id],Результаты[[#This Row],[id]],ролики[Сумма]) -> 00:00:38.140 | W11: 11 | X11: =SUMIF(ориентирование[team_id],Результаты[[#This Row],[id]],ориентирование[Сумма]) -> 0.0181712963 | Y11: 19 | Z11: =SUMIF(ПДД[team_id],Результаты[[#This Row],[id]],ПДД[Сумма]) -> 00:16:21 | AA11: 11 | AB11: =SUMIF(Эстафета[team_id],Результаты[[#This Row],[id]],Эстафета[Сумма]) -> 00:04:23.370 | AC11: 1 | AD11: =[палатка]+[стрельба-пневматика]+[стрельба-лук]+[стрельба-АК]+[сборка/разборка АК]+[полоса военная]+[полоса Штурм]+[плавание]+[подтягивание]+[ролики]+[ПДД]+[эстафета] -> 123 | AE11: 8
A12: 15 | B12: =LOOKUP([id],Команды[id],Команды[Коротко]) -> Воронеж | C12: =SUMIF(палатка[team_id],[id],палатка[Сумма]) -> 00:04:05.970 | D12: 18 | E12: =SUMIF(стрельба_пневматика[team_id],Результаты[[#This Row],[id]],стрельба_пневматика[Очки]) -> 198 | F12: 6 | G12: =SUMIF(стрельба_лук[team_id],Результаты[[#This Row],[id]],стрельба_лук[результат]) -> 70 | H12: 2 | I12: =SUMIF(стрельба_АК[team_id],Результаты[[#This Row],[id]],стрельба_АК[Результат]) -> 7 | J12: 23 | K12: =SUMIF(сборка_разборка_АК[team_id],Результаты[[#This Row],[id]],сборка_разборка_АК[Сумма]) -> 00:01:19.250 | L12: 2 | M12: =SUMIF(полоса_воен[team_id],[id],полоса_воен[Время]) -> 00:01:22.990 | O12: 17 | P12: =SUMIF(полоса_Штурм[team_id],Результаты[[#This Row],[id]],полоса_Штурм[Время]) -> 00:01:27.650 | Q12: 6 | R12: =SUMIF(плавание[team_id],Результаты[[#This Row],[id]],плавание[Время]) -> 00:02:56.360 | S12: 7 | T12: =SUMIF(подтягивание[team_id],Результаты[[#This Row],[id]],подтягивание[результат]) -> 26 | U12: 19 | V12: =SUMIF(ролики[team_id],Результаты[[#This Row],[id]],ролики[Сумма]) -> 00:00:38.950 | W12: 13 | X12: =SUMIF(ориентирование[team_id],Результаты[[#This Row],[id]],ориентирование[Сумма]) -> 0.01854166667 | Y12: 20 | Z12: =SUMIF(ПДД[team_id],Результаты[[#This Row],[id]],ПДД[Сумма]) -> 00:06:51 | AA12: 3 | AB12: =SUMIF(Эстафета[team_id],Результаты[[#This Row],[id]],Эстафета[Сумма]) -> 00:04:58.400 | AC12: 10 | AD12: =[палатка]+[стрельба-пневматика]+[стрельба-лук]+[стрельба-АК]+[сборка/разборка АК]+[полоса военная]+[полоса Штурм]+[плавание]+[подтягивание]+[ролики]+[ПДД]+[эстафета] -> 126 | AE12: 9
A13: 19 | B13: =LOOKUP([id],Команды[id],Команды[Коротко]) -> Тамбов | C13: =SUMIF(палатка[team_id],[id],палатка[Сумма]) -> 00:03:17.210 | D13: 12 | E13: =SUMIF(стрельба_пневматика[team_id],Результаты[[#This Row],[id]],стрельба_пневматика[Очки]) -> 201 | F13: 5 | G13: =SUMIF(стрельба_лук[team_id],Результаты[[#This Row],[id]],стрельба_лук[результат]) -> 31 | H13: 14 | I13: =SUMIF(стрельба_АК[team_id],Результаты[[#This Row],[id]],стрельба_АК[Результат]) -> 49 | J13: 13 | K13: =SUMIF(сборка_разборка_АК[team_id],Результаты[[#This Row],[id]],сборка_разборка_АК[Сумма]) -> 00:03:04.150 | L13: 19 | M13: =SUMIF(полоса_воен[team_id],[id],полоса_воен[Время]) -> 00:01:16.830 | O13: 6 | P13: =SUMIF(полоса_Штурм[team_id],Результаты[[#This Row],[id]],полоса_Штурм[Время]) -> 00:01:34.450 | Q13: 9 | R13: =SUMIF(плавание[team_id],Результаты[[#This Row],[id]],плавание[Время]) -> 00:02:48.460 | S13: 5 | T13: =SUMIF(подтягивание[team_id],Результаты[[#This Row],[id]],подтягивание[результат]) -> 47 | U13: 4 | V13: =SUMIF(ролики[team_id],Результаты[[#This Row],[id]],ролики[Сумма]) -> 00:00:52.100 | W13: 25 | X13: =SUMIF(ориентирование[team_id],Результаты[[#This Row],[id]],ориентирование[Сумма]) -> 0.01194444444 | Y13: 2 | Z13: =SUMIF(ПДД[team_id],Результаты[[#This Row],[id]],ПДД[Сумма]) -> 00:18:08 | AA13: 11 | AB13: =SUMIF(Эстафета[team_id],Результаты[[#This Row],[id]],Эстафета[Сумма]) -> 00:05:05.340 | AC13: 14 | AD13: =[палатка]+[стрельба-пневматика]+[стрельба-лук]+[стрельба-АК]+[сборка/разборка АК]+[полоса военная]+[полоса Штурм]+[плавание]+[подтягивание]+[ролики]+[ПДД]+[эстафета] -> 137 | AE13: 10
A14: 26 | B14: =LOOKUP([id],Команды[id],Команды[Коротко]) -> Олимп, Шатура | C14: =SUMIF(палатка[team_id],[id],палатка[Сумма]) -> 00:02:26.750 | D14: 3 | E14: =SUMIF(стрельба_пневматика[team_id],Результаты[[#This Row],[id]],стрельба_пневматика[Очки]) -> 147 | F14: 13 | G14: =SUMIF(стрельба_лук[team_id],Результаты[[#This Row],[id]],стрельба_лук[результат]) -> 19 | H14: 23 | I14: =SUMIF(стрельба_АК[team_id],Результаты[[#This Row],[id]],стрельба_АК[Результат]) -> 64 | J14: 9 | K14: =SUMIF(сборка_разборка_АК[team_id],Результаты[[#This Row],[id]],сборка_разборка_АК[Сумма]) -> 00:02:28.720 | L14: 16 | M14: =SUMIF(полоса_воен[team_id],[id],полоса_воен[Время]) -> 00:01:18.430 | O14: 11 | P14: =SUMIF(полоса_Штурм[team_id],Результаты[[#This Row],[id]],полоса_Штурм[Время]) -> 00:01:26.330 | Q14: 5 | R14: =SUMIF(плавание[team_id],Результаты[[#This Row],[id]],плавание[Время]) -> 00:04:13.190 | S14: 14 | T14: =SUMIF(подтягивание[team_id],Результаты[[#This Row],[id]],подтягивание[результат]) -> 50 | U14: 2 | V14: =SUMIF(ролики[team_id],Результаты[[#This Row],[id]],ролики[Сумма]) -> 00:00:43.350 | W14: 20 | X14: =SUMIF(ориентирование[team_id],Результаты[[#This Row],[id]],ориентирование[Сумма]) -> 0.02334490741 | Y14: 23 | Z14: =SUMIF(ПДД[team_id],Результаты[[#This Row],[id]],ПДД[Сумма]) -> 00:20:45 | AA14: 11 | AB14: =SUMIF(Эстафета[team_id],Результаты[[#This Row],[id]],Эстафета[Сумма]) -> 00:05:06.070 | AC14: 15 | AD14: =[палатка]+[стрельба-пневматика]+[стрельба-лук]+[стрельба-АК]+[сборка/разборка АК]+[полоса военная]+[полоса Штурм]+[плавание]+[подтягивание]+[ролики]+[ПДД]+[эстафета] -> 142 | AE14: 11
A15: 21 | B15: =LOOKUP([id],Команды[id],Команды[Коротко]) -> Ступино | C15: =SUMIF(палатка[team_id],[id],палатка[Сумма]) -> 00:04:28.060 | D15: 21 | E15: =SUMIF(стрельба_пневматика[team_id],Результаты[[#This Row],[id]],стрельба_пневматика[Очки]) -> 208 | F15: 3 | G15: =SUMIF(стрельба_лук[team_id],Результаты[[#This Row],[id]],стрельба_лук[результат]) -> 17 | H15: 24 | I15: =SUMIF(стрельба_АК[team_id],Результаты[[#This Row],[id]],стрельба_АК[Результат]) -> 74 | J15: 4 | K15: =SUMIF(сборка_разборка_АК[team_id],Результаты[[#This Row],[id]],сборка_разборка_АК[Сумма]) -> 00:01:24.370 | L15: 3 | M15: =SUMIF(полоса_воен[team_id],[id],полоса_воен[Время]) -> 00:01:21.050 | O15: 15 | P15: =SUMIF(полоса_Штурм[team_id],Результаты[[#This Row],[id]],полоса_Штурм[Время]) -> 00:02:05.660 | Q15: 23 | R15: =SUMIF(плавание[team_id],Результаты[[#This Row],[id]],плавание[Время]) -> 00:02:51.750 | S15: 6 | T15: =SUMIF(подтягивание[team_id],Результаты[[#This Row],[id]],подтягивание[результат]) -> 34 | U15: 11 | V15: =SUMIF(ролики[team_id],Результаты[[#This Row],[id]],ролики[Сумма]) -> 00:00:43.860 | W15: 21 | X15: =SUMIF(ориентирование[team_id],Результаты[[#This Row],[id]],ориентирование[Сумма]) -> 0.01388888889 | Y15: 7 | Z15: =SUMIF(ПДД[team_id],Результаты[[#This Row],[id]],ПДД[Сумма]) -> 00:13:28 | AA15: 11 | AB15: =SUMIF(Эстафета[team_id],Результаты[[#This Row],[id]],Эстафета[Сумма]) -> 00:04:44.940 | AC15: 4 | AD15: =[палатка]+[стрельба-пневматика]+[стрельба-лук]+[стрельба-АК]+[сборка/разборка АК]+[полоса военная]+[полоса Штурм]+[плавание]+[подтягивание]+[ролики]+[ПДД]+[эстафета] -> 146 | AE15: 12
A16: 8 | B16: =LOOKUP([id],Команды[id],Команды[Коротко]) -> Руза | C16: =SUMIF(палатка[team_id],[id],палатка[Сумма]) -> 00:03:09.240 | D16: 10 | E16: =SUMIF(стрельба_пневматика[team_id],Результаты[[#This Row],[id]],стрельба_пневматика[Очки]) -> 132 | F16: 16 | G16: =SUMIF(стрельба_лук[team_id],Результаты[[#This Row],[id]],стрельба_лук[результат]) -> 33 | H16: 12 | I16: =SUMIF(стрельба_АК[team_id],Результаты[[#This Row],[id]],стрельба_АК[Результат]) -> 64 | J16: 10 | K16: =SUMIF(сборка_разборка_АК[team_id],Результаты[[#This Row],[id]],сборка_разборка_АК[Сумма]) -> 00:02:02.860 | L16: 11 | M16: =SUMIF(полоса_воен[team_id],[id],полоса_воен[Время]) -> 00:01:18.530 | O16: 12 | P16: =SUMIF(полоса_Штурм[team_id],Результаты[[#This Row],[id]],полоса_Штурм[Время]) -> 00:01:48.540 | Q16: 17 | R16: =SUMIF(плавание[team_id],Результаты[[#This Row],[id]],плавание[Время]) -> 00:02:30.520 | S16: 1 | T16: =SUMIF(подтягивание[team_id],Результаты[[#This Row],[id]],подтягивание[результат]) -> 29 | U16: 17 | V16: =SUMIF(ролики[team_id],Результаты[[#This Row],[id]],ролики[Сумма]) -> 00:00:38.940 | W16: 12 | X16: =SUMIF(ориентирование[team_id],Результаты[[#This Row],[id]],ориентирование[Сумма]) -> 0.01706018519 | Y16: 16 | Z16: =SUMIF(ПДД[team_id],Результаты[[#This Row],[id]],ПДД[Сумма]) -> 00:10:51 | AA16: 11 | AB16: =SUMIF(Эстафета[team_id],Результаты[[#This Row],[id]],Эстафета[Сумма]) -> 00:05:32.650 | AC16: 19 | AD16: =[палатка]+[стрельба-пневматика]+[стрельба-лук]+[стрельба-АК]+[сборка/разборка АК]+[полоса военная]+[полоса Штурм]+[плавание]+[подтягивание]+[ролики]+[ПДД]+[эстафета] -> 148 | AE16: 13
A17: 25 | B17: =LOOKUP([id],Команды[id],Команды[Коротко]) -> Ярославль | C17: =SUMIF(палатка[team_id],[id],палатка[Сумма]) -> 00:04:55.720 | D17: 23 | E17: =SUMIF(стрельба_пневматика[team_id],Результаты[[#This Row],[id]],стрельба_пневматика[Очки]) -> 207 | F17: 4 | G17: =SUMIF(стрельба_лук[team_id],Результаты[[#This Row],[id]],стрельба_лук[результат]) -> 44 | H17: 9 | I17: =SUMIF(стрельба_АК[team_id],Результаты[[#This Row],[id]],стрельба_АК[Результат]) -> 19 | J17: 18 | K17: =SUMIF(сборка_разборка_АК[team_id],Результаты[[#This Row],[id]],сборка_разборка_АК[Сумма]) -> 00:02:02.430 | L17: 10 | M17: =SUMIF(полоса_воен[team_id],[id],полоса_воен[Время]) -> 00:01:17.980 | O17: 9 | P17: =SUMIF(полоса_Штурм[team_id],Результаты[[#This Row],[id]],полоса_Штурм[Время]) -> 00:01:41.450 | Q17: 14 | R17: =SUMIF(плавание[team_id],Результаты[[#This Row],[id]],плавание[Время]) -> 00:05:02.150 | S17: 20 | T17: =SUMIF(подтягивание[team_id],Результаты[[#This Row],[id]],подтягивание[результат]) -> 35 | U17: 9 | V17: =SUMIF(ролики[team_id],Результаты[[#This Row],[id]],ролики[Сумма]) -> 00:00:43.030 | W17: 19 | X17: =SUMIF(ориентирование[team_id],Результаты[[#This Row],[id]],ориентирование[Сумма]) -> 0.02097222222 | Y17: 22 | Z17: =SUMIF(ПДД[team_id],Результаты[[#This Row],[id]],ПДД[Сумма]) -> 00:10:22 | AA17: 5 | AB17: =SUMIF(Эстафета[team_id],Результаты[[#This Row],[id]],Эстафета[Сумма]) -> 00:05:04.820 | AC17: 13 | AD17: =[палатка]+[стрельба-пневматика]+[стрельба-лук]+[стрельба-АК]+[сборка/разборка АК]+[полоса военная]+[полоса Штурм]+[плавание]+[подтягивание]+[ролики]+[ПДД]+[эстафета] -> 153 | AE17: 14
A18: 5 | B18: =LOOKUP([id],Команды[id],Команды[Коротко]) -> Краснодар | C18: =SUMIF(палатка[team_id],[id],палатка[Сумма]) -> 00:02:37.980 | D18: 7 | E18: =SUMIF(стрельба_пневматика[team_id],Результаты[[#This Row],[id]],стрельба_пневматика[Очки]) -> 111 | F18: 24 | G18: =SUMIF(стрельба_лук[team_id],Результаты[[#This Row],[id]],стрельба_лук[результат]) -> 27 | H18: 15 | I18: =SUMIF(стрельба_АК[team_id],Результаты[[#This Row],[id]],стрельба_АК[Результат]) -> 59 | J18: 11 | K18: =SUMIF(сборка_разборка_АК[team_id],Результаты[[#This Row],[id]],сборка_разборка_АК[Сумма]) -> 00:04:53.240 | L18: 25 | M18: =SUMIF(полоса_воен[team_id],[id],полоса_воен[Время]) -> 00:01:11.370 | O18: 2 | P18: =SUMIF(полоса_Штурм[team_id],Результаты[[#This Row],[id]],полоса_Штурм[Время]) -> 00:01:38.020 | Q18: 12 | R18: =SUMIF(плавание[team_id],Результаты[[#This Row],[id]],плавание[Время]) -> 00:04:45.970 | S18: 16 | T18: =SUMIF(подтягивание[team_id],Результаты[[#This Row],[id]],подтягивание[результат]) -> 39 | U18: 8 | V18: =SUMIF(ролики[team_id],Результаты[[#This Row],[id]],ролики[Сумма]) -> 00:00:36.020 | W18: 9 | X18: =SUMIF(ориентирование[team_id],Результаты[[#This Row],[id]],ориентирование[Сумма]) -> 0.01234953704 | Y18: 3 | Z18: =SUMIF(ПДД[team_id],Результаты[[#This Row],[id]],ПДД[Сумма]) -> 00:13:52 | AA18: 11 | AB18: =SUMIF(Эстафета[team_id],Результаты[[#This Row],[id]],Эстафета[Сумма]) -> 00:05:23.700 | AC18: 18 | AD18: =[палатка]+[стрельба-пневматика]+[стрельба-лук]+[стрельба-АК]+[сборка/разборка АК]+[полоса военная]+[полоса Штурм]+[плавание]+[подтягивание]+[ролики]+[ПДД]+[эстафета] -> 158 | AE18: 15
A19: 10 | B19: =LOOKUP([id],Команды[id],Команды[Коротко]) -> Кашира | C19: =SUMIF(палатка[team_id],[id],палатка[Сумма]) -> 00:02:32.410 | D19: 5 | E19: =SUMIF(стрельба_пневматика[team_id],Результаты[[#This Row],[id]],стрельба_пневматика[Очки]) -> 160 | F19: 10 | G19: =SUMIF(стрельба_лук[team_id],Результаты[[#This Row],[id]],стрельба_лук[результат]) -> 26 | H19: 17 | I19: =SUMIF(стрельба_АК[team_id],Результаты[[#This Row],[id]],стрельба_АК[Результат]) -> 0 | J19: 24 | K19: =SUMIF(сборка_разборка_АК[team_id],Результаты[[#This Row],[id]],сборка_разборка_АК[Сумма]) -> 00:02:13.900 | L19: 12 | M19: =SUMIF(полоса_воен[team_id],[id],полоса_воен[Время]) -> 00:01:27.910 | O19: 20 | P19: =SUMIF(полоса_Штурм[team_id],Результаты[[#This Row],[id]],полоса_Штурм[Время]) -> 00:02:06.210 | Q19: 24 | R19: =SUMIF(плавание[team_id],Результаты[[#This Row],[id]],плавание[Время]) -> 00:04:50.450 | S19: 17 | T19: =SUMIF(подтягивание[team_id],Результаты[[#This Row],[id]],подтягивание[результат]) -> 32 | U19: 12 | V19: =SUMIF(ролики[team_id],Результаты[[#This Row],[id]],ролики[Сумма]) -> 00:00:24.300 | W19: 1 | X19: =SUMIF(ориентирование[team_id],Результаты[[#This Row],[id]],ориентирование[Сумма]) -> 0.0143287037 | Y19: 10 | Z19: =SUMIF(ПДД[team_id],Результаты[[#This Row],[id]],ПДД[Сумма]) -> 00:09:28 | AA19: 11 | AB19: =SUMIF(Эстафета[team_id],Результаты[[#This Row],[id]],Эстафета[Сумма]) -> 00:04:54.670 | AC19: 8 | AD19: =[палатка]+[стрельба-пневматика]+[стрельба-лук]+[стрельба-АК]+[сборка/разборка АК]+[полоса военная]+[полоса Штурм]+[плавание]+[подтягивание]+[ролики]+[ПДД]+[эстафета] -> 161 | AE19: 16
A20: 12 | B20: =LOOKUP([id],Команды[id],Команды[Коротко]) -> Истра | C20: =SUMIF(палатка[team_id],[id],палатка[Сумма]) -> 00:02:37.440 | D20: 6 | E20: =SUMIF(стрельба_пневматика[team_id],Результаты[[#This Row],[id]],стрельба_пневматика[Очки]) -> 103 | F20: 25 | G20: =SUMIF(стрельба_лук[team_id],Результаты[[#This Row],[id]],стрельба_лук[результат]) -> 23 | H20: 20 | I20: =SUMIF(стрельба_АК[team_id],Результаты[[#This Row],[id]],стрельба_АК[Результат]) -> 24 | J20: 16 | K20: =SUMIF(сборка_разборка_АК[team_id],Результаты[[#This Row],[id]],сборка_разборка_АК[Сумма]) -> 00:01:42.430 | L20: 8 | M20: =SUMIF(полоса_воен[team_id],[id],полоса_воен[Время]) -> 00:01:34.510 | O20: 26 | P20: =SUMIF(полоса_Штурм[team_id],Результаты[[#This Row],[id]],полоса_Штурм[Время]) -> 00:01:32.730 | Q20: 8 | R20: =SUMIF(плавание[team_id],Результаты[[#This Row],[id]],плавание[Время]) -> 00:20:57.260 | S20: 26 | T20: =SUMIF(подтягивание[team_id],Результаты[[#This Row],[id]],подтягивание[результат]) -> 30 | U20: 14 | V20: =SUMIF(ролики[team_id],Результаты[[#This Row],[id]],ролики[Сумма]) -> 00:00:30.070 | W20: 4 | X20: =SUMIF(ориентирование[team_id],Результаты[[#This Row],[id]],ориентирование[Сумма]) -> 0.01319444444 | Y20: 5 | Z20: =SUMIF(ПДД[team_id],Результаты[[#This Row],[id]],ПДД[Сумма]) -> 00:17:51 | AA20: 11 | AB20: =SUMIF(Эстафета[team_id],Результаты[[#This Row],[id]],Эстафета[Сумма]) -> 00:05:00.190 | AC20: 11 | AD20: =[палатка]+[стрельба-пневматика]+[стрельба-лук]+[стрельба-АК]+[сборка/разборка АК]+[полоса военная]+[полоса Штурм]+[плавание]+[подтягивание]+[ролики]+[ПДД]+[эстафета] -> 175 | AE20: 17
A21: 27 | B21: =LOOKUP([id],Команды[id],Команды[Коротко]) -> ОМСН | C21: =SUMIF(палатка[team_id],[id],палатка[Сумма]) -> 00:05:12.820 | D21: 24 | E21: =SUMIF(стрельба_пневматика[team_id],Результаты[[#This Row],[id]],стрельба_пневматика[Очки]) -> 125 | F21: 20 | G21: =SUMIF(стрельба_лук[team_id],Результаты[[#This Row],[id]],стрельба_лук[результат]) -> 51 | H21: 7 | I21: =SUMIF(стрельба_АК[team_id],Результаты[[#This Row],[id]],стрельба_АК[Результат]) -> 78 | J21: 1 | K21: =SUMIF(сборка_разборка_АК[team_id],Результаты[[#This Row],[id]],сборка_разборка_АК[Сумма]) -> 00:02:18.170 | L21: 13 | M21: =SUMIF(полоса_воен[team_id],[id],полоса_воен[Время]) -> 00:01:29.460 | O21: 22 | P21: =SUMIF(полоса_Штурм[team_id],Результаты[[#This Row],[id]],полоса_Штурм[Время]) -> 00:02:36.630 | Q21: 26 | R21: =SUMIF(плавание[team_id],Результаты[[#This Row],[id]],плавание[Время]) -> 00:04:55.060 | S21: 19 | T21: =SUMIF(подтягивание[team_id],Результаты[[#This Row],[id]],подтягивание[результат]) -> 29 | U21: 18 | V21: =SUMIF(ролики[team_id],Результаты[[#This Row],[id]],ролики[Сумма]) -> 00:00:31.690 | W21: 5 | X21: =SUMIF(ориентирование[team_id],Результаты[[#This Row],[id]],ориентирование[Сумма]) -> 0.01516203704 | Y21: 14 | Z21: =SUMIF(ПДД[team_id],Результаты[[#This Row],[id]],ПДД[Сумма]) -> 00:09:33 | AA21: 11 | AB21: =SUMIF(Эстафета[team_id],Результаты[[#This Row],[id]],Эстафета[Сумма]) -> 00:05:18.010 | AC21: 17 | AD21: =[палатка]+[стрельба-пневматика]+[стрельба-лук]+[стрельба-АК]+[сборка/разборка АК]+[полоса военная]+[полоса Штурм]+[плавание]+[подтягивание]+[ролики]+[ПДД]+[эстафета] -> 183 | AE21: 18
A22: 6 | B22: =LOOKUP([id],Команды[id],Команды[Коротко]) -> Энергия, Шатура | C22: =SUMIF(палатка[team_id],[id],палатка[Сумма]) -> 00:03:58.440 | D22: 16 | E22: =SUMIF(стрельба_пневматика[team_id],Результаты[[#This Row],[id]],стрельба_пневматика[Очки]) -> 116 | F22: 22 | G22: =SUMIF(стрельба_лук[team_id],Результаты[[#This Row],[id]],стрельба_лук[результат]) -> 27 | H22: 16 | I22: =SUMIF(стрельба_АК[team_id],Результаты[[#This Row],[id]],стрельба_АК[Результат]) -> 70 | J22: 5 | K22: =SUMIF(сборка_разборка_АК[team_id],Результаты[[#This Row],[id]],сборка_разборка_АК[Сумма]) -> 00:03:19.810 | L22: 20 | M22: =SUMIF(полоса_воен[team_id],[id],полоса_воен[Время]) -> 00:01:18.390 | O22: 10 | P22: =SUMIF(полоса_Штурм[team_id],Результаты[[#This Row],[id]],полоса_Штурм[Время]) -> 00:01:47.480 | Q22: 16 | R22: =SUMIF(плавание[team_id],Результаты[[#This Row],[id]],плавание[Время]) -> 00:03:03.330 | S22: 9 | T22: =SUMIF(подтягивание[team_id],Результаты[[#This Row],[id]],подтягивание[результат]) -> 31 | U22: 13 | V22: =SUMIF(ролики[team_id],Результаты[[#This Row],[id]],ролики[Сумма]) -> 00:00:46.920 | W22: 24 | X22: =SUMIF(ориентирование[team_id],Результаты[[#This Row],[id]],ориентирование[Сумма]) -> 0.01501157407 | Y22: 13 | Z22: =SUMIF(ПДД[team_id],Результаты[[#This Row],[id]],ПДД[Сумма]) -> 00:19:18 | AA22: 11 | AB22: =SUMIF(Эстафета[team_id],Результаты[[#This Row],[id]],Эстафета[Сумма]) -> 00:06:17.090 | AC22: 23 | AD22: =[палатка]+[стрельба-пневматика]+[стрельба-лук]+[стрельба-АК]+[сборка/разборка АК]+[полоса военная]+[полоса Штурм]+[плавание]+[подтягивание]+[ролики]+[ПДД]+[эстафета] -> 185 | AE22: 19
A23: 2 | B23: =LOOKUP([id],Команды[id],Команды[Коротко]) -> Липецк | C23: =SUMIF(палатка[team_id],[id],палатка[Сумма]) -> 00:03:13.620 | D23: 11 | E23: =SUMIF(стрельба_пневматика[team_id],Результаты[[#This Row],[id]],стрельба_пневматика[Очки]) -> 85 | F23: 26 | G23: =SUMIF(стрельба_лук[team_id],Результаты[[#This Row],[id]],стрельба_лук[результат]) -> 32 | H23: 13 | I23: =SUMIF(стрельба_АК[team_id],Результаты[[#This Row],[id]],стрельба_АК[Результат]) -> 0 | J23: 26 | K23: =SUMIF(сборка_разборка_АК[team_id],Результаты[[#This Row],[id]],сборка_разборка_АК[Сумма]) -> 00:02:27.140 | L23: 15 | M23: =SUMIF(полоса_воен[team_id],[id],полоса_воен[Время]) -> 00:01:31.320 | O23: 24 | P23: =SUMIF(полоса_Штурм[team_id],Результаты[[#This Row],[id]],полоса_Штурм[Время]) -> 00:01:45.220 | Q23: 15 | R23: =SUMIF(плавание[team_id],Результаты[[#This Row],[id]],плавание[Время]) -> 00:03:09.480 | S23: 10 | T23: =SUMIF(подтягивание[team_id],Результаты[[#This Row],[id]],подтягивание[результат]) -> 29 | U23: 16 | V23: =SUMIF(ролики[team_id],Результаты[[#This Row],[id]],ролики[Сумма]) -> 00:00:41.160 | W23: 17 | X23: =SUMIF(ориентирование[team_id],Результаты[[#This Row],[id]],ориентирование[Сумма]) -> 0.01809027778 | Y23: 18 | Z23: =SUMIF(ПДД[team_id],Результаты[[#This Row],[id]],ПДД[Сумма]) -> 00:04:58 | AA23: 1 | AB23: =SUMIF(Эстафета[team_id],Результаты[[#This Row],[id]],Эстафета[Сумма]) -> 00:05:12.590 | AC23: 16 | AD23: =[палатка]+[стрельба-пневматика]+[стрельба-лук]+[стрельба-АК]+[сборка/разборка АК]+[полоса военная]+[полоса Штурм]+[плавание]+[подтягивание]+[ролики]+[ПДД]+[эстафета] -> 190 | AE23: 20
A24: 18 | B24: =LOOKUP([id],Команды[id],Команды[Коротко]) -> Одинцово | C24: =SUMIF(палатка[team_id],[id],палатка[Сумма]) -> 00:05:14.840 | D24: 25 | E24: =SUMIF(стрельба_пневматика[team_id],Результаты[[#This Row],[id]],стрельба_пневматика[Очки]) -> 154 | F24: 11 | G24: =SUMIF(стрельба_лук[team_id],Результаты[[#This Row],[id]],стрельба_лук[результат]) -> 55 | H24: 6 | I24: =SUMIF(стрельба_АК[team_id],Результаты[[#This Row],[id]],стрельба_АК[Результат]) -> 66 | J24: 8 | K24: =SUMIF(сборка_разборка_АК[team_id],Результаты[[#This Row],[id]],сборка_разборка_АК[Сумма]) -> 00:04:10.940 | L24: 24 | M24: =SUMIF(полоса_воен[team_id],[id],полоса_воен[Время]) -> 00:01:28.730 | O24: 21 | P24: =SUMIF(полоса_Штурм[team_id],Результаты[[#This Row],[id]],полоса_Штурм[Время]) -> 00:02:04.340 | Q24: 22 | R24: =SUMIF(плавание[team_id],Результаты[[#This Row],[id]],плавание[Время]) -> 00:05:53.360 | S24: 25 | T24: =SUMIF(подтягивание[team_id],Результаты[[#This Row],[id]],подтягивание[результат]) -> 22 | U24: 22 | V24: =SUMIF(ролики[team_id],Результаты[[#This Row],[id]],ролики[Сумма]) -> 00:00:37.430 | W24: 10 | X24: =SUMIF(ориентирование[team_id],Результаты[[#This Row],[id]],ориентирование[Сумма]) -> 0.02782407407 | Y24: 24 | Z24: =SUMIF(ПДД[team_id],Результаты[[#This Row],[id]],ПДД[Сумма]) -> 00:09:12 | AA24: 11 | AB24: =SUMIF(Эстафета[team_id],Результаты[[#This Row],[id]],Эстафета[Сумма]) -> 00:06:48.440 | AC24: 25 | AD24: =[палатка]+[стрельба-пневматика]+[стрельба-лук]+[стрельба-АК]+[сборка/разборка АК]+[полоса военная]+[полоса Штурм]+[плавание]+[подтягивание]+[ролики]+[ПДД]+[эстафета] -> 210 | AE24: 21
A25: 7 | B25: =LOOKUP([id],Команды[id],Команды[Коротко]) -> Клин | C25: =SUMIF(палатка[team_id],[id],палатка[Сумма]) -> 00:02:29.110 | D25: 4 | E25: =SUMIF(стрельба_пневматика[team_id],Результаты[[#This Row],[id]],стрельба_пневматика[Очки]) -> 130 | F25: 17 | G25: =SUMIF(стрельба_лук[team_id],Результаты[[#This Row],[id]],стрельба_лук[результат]) -> 26 | H25: 18 | I25: =SUMIF(стрельба_АК[team_id],Результаты[[#This Row],[id]],стрельба_АК[Результат]) -> 57 | J25: 12 | K25: =SUMIF(сборка_разборка_АК[team_id],Результаты[[#This Row],[id]],сборка_разборка_АК[Сумма]) -> 00:02:43.160 | L25: 17 | M25: =SUMIF(полоса_воен[team_id],[id],полоса_воен[Время]) -> 00:01:32.210 | O25: 25 | P25: =SUMIF(полоса_Штурм[team_id],Результаты[[#This Row],[id]],полоса_Штурм[Время]) -> 00:02:18.220 | Q25: 25 | R25: =SUMIF(плавание[team_id],Результаты[[#This Row],[id]],плавание[Время]) -> 00:05:24.150 | S25: 22 | T25: =SUMIF(подтягивание[team_id],Результаты[[#This Row],[id]],подтягивание[результат]) -> 13 | U25: 26 | V25: =SUMIF(ролики[team_id],Результаты[[#This Row],[id]],ролики[Сумма]) -> 00:00:39.300 | W25: 15 | X25: =SUMIF(ориентирование[team_id],Результаты[[#This Row],[id]],ориентирование[Сумма]) -> 0.01403935185 | Y25: 8 | Z25: =SUMIF(ПДД[team_id],Результаты[[#This Row],[id]],ПДД[Сумма]) -> 00:20:51 | AA25: 11 | AB25: =SUMIF(Эстафета[team_id],Результаты[[#This Row],[id]],Эстафета[Сумма]) -> 00:06:49.030 | AC25: 26 | AD25: =[палатка]+[стрельба-пневматика]+[стрельба-лук]+[стрельба-АК]+[сборка/разборка АК]+[полоса военная]+[полоса Штурм]+[плавание]+[подтягивание]+[ролики]+[ПДД]+[эстафета] -> 218 | AE25: 22
A26: 1 | B26: =LOOKUP([id],Команды[id],Команды[Коротко]) -> ОМОН | C26: =SUMIF(палатка[team_id],[id],палатка[Сумма]) -> 00:03:23.820 | D26: 13 | E26: =SUMIF(стрельба_пневматика[team_id],Результаты[[#This Row],[id]],стрельба_пневматика[Очки]) -> 147 | F26: 14 | G26: =SUMIF(стрельба_лук[team_id],Результаты[[#This Row],[id]],стрельба_лук[результат]) -> 25 | H26: 19 | I26: =SUMIF(стрельба_АК[team_id],Результаты[[#This Row],[id]],стрельба_АК[Результат]) -> 21 | J26: 17 | K26: =SUMIF(сборка_разборка_АК[team_id],Результаты[[#This Row],[id]],сборка_разборка_АК[Сумма]) -> 00:03:39.460 | L26: 22 | M26: =SUMIF(полоса_воен[team_id],[id],полоса_воен[Время]) -> 00:01:30.150 | O26: 23 | P26: =SUMIF(полоса_Штурм[team_id],Результаты[[#This Row],[id]],полоса_Штурм[Время]) -> 00:02:01.360 | Q26: 20 | R26: =SUMIF(плавание[team_id],Результаты[[#This Row],[id]],плавание[Время]) -> 00:04:54.380 | S26: 18 | T26: =SUMIF(подтягивание[team_id],Результаты[[#This Row],[id]],подтягивание[результат]) -> 19 | U26: 24 | V26: =SUMIF(ролики[team_id],Результаты[[#This Row],[id]],ролики[Сумма]) -> 00:00:43.980 | W26: 22 | X26: =SUMIF(ориентирование[team_id],Результаты[[#This Row],[id]],ориентирование[Сумма]) -> 0.01466435185 | Y26: 12 | Z26: =SUMIF(ПДД[team_id],Результаты[[#This Row],[id]],ПДД[Сумма]) -> 00:23:11 | AA26: 11 | AB26: =SUMIF(Эстафета[team_id],Результаты[[#This Row],[id]],Эстафета[Сумма]) -> 00:05:33.800 | AC26: 21 | AD26: =[палатка]+[стрельба-пневматика]+[стрельба-лук]+[стрельба-АК]+[сборка/разборка АК]+[полоса военная]+[полоса Штурм]+[плавание]+[подтягивание]+[ролики]+[ПДД]+[эстафета] -> 224 | AE26: 23
A27: 23 | B27: =LOOKUP([id],Команды[id],Команды[Коротко]) -> Иваново | C27: =SUMIF(палатка[team_id],[id],палатка[Сумма]) -> 00:05:55.520 | D27: 26 | E27: =SUMIF(стрельба_пневматика[team_id],Результаты[[#This Row],[id]],стрельба_пневматика[Очки]) -> 119 | F27: 21 | G27: =SUMIF(стрельба_лук[team_id],Результаты[[#This Row],[id]],стрельба_лук[результат]) -> 23 | H27: 21 | I27: =SUMIF(стрельба_АК[team_id],Результаты[[#This Row],[id]],стрельба_АК[Результат]) -> 8 | J27: 22 | K27: =SUMIF(сборка_разборка_АК[team_id],Результаты[[#This Row],[id]],сборка_разборка_АК[Сумма]) -> 00:01:36.170 | L27: 5 | M27: =SUMIF(полоса_воен[team_id],[id],полоса_воен[Время]) -> 00:01:24.920 | O27: 18 | P27: =SUMIF(полоса_Штурм[team_id],Результаты[[#This Row],[id]],полоса_Штурм[Время]) -> 00:01:53.750 | Q27: 19 | R27: =SUMIF(плавание[team_id],Результаты[[#This Row],[id]],плавание[Время]) -> 00:05:51.030 | S27: 24 | T27: =SUMIF(подтягивание[team_id],Результаты[[#This Row],[id]],подтягивание[результат]) -> 20 | U27: 23 | V27: =SUMIF(ролики[team_id],Результаты[[#This Row],[id]],ролики[Сумма]) -> 00:00:52.550 | W27: 26 | X27: =SUMIF(ориентирование[team_id],Результаты[[#This Row],[id]],ориентирование[Сумма]) -> 0.01434027778 | Y27: 11 | Z27: =SUMIF(ПДД[team_id],Результаты[[#This Row],[id]],ПДД[Сумма]) -> 00:05:36 | AA27: 2 | AB27: =SUMIF(Эстафета[team_id],Результаты[[#This Row],[id]],Эстафета[Сумма]) -> 00:05:47.220 | AC27: 22 | AD27: =[палатка]+[стрельба-пневматика]+[стрельба-лук]+[стрельба-АК]+[сборка/разборка АК]+[полоса военная]+[полоса Штурм]+[плавание]+[подтягивание]+[ролики]+[ПДД]+[эстафета] -> 229 | AE27: 24
A28: 14 | B28: =LOOKUP([id],Команды[id],Команды[Коротко]) -> Воскресенск | C28: =SUMIF(палатка[team_id],[id],палатка[Сумма]) -> 00:04:29.570 | D28: 22 | E28: =SUMIF(стрельба_пневматика[team_id],Результаты[[#This Row],[id]],стрельба_пневматика[Очки]) -> 127 | F28: 19 | G28: =SUMIF(стрельба_лук[team_id],Результаты[[#This Row],[id]],стрельба_лук[результат]) -> 20 | H28: 22 | I28: =SUMIF(стрельба_АК[team_id],Результаты[[#This Row],[id]],стрельба_АК[Результат]) -> 0 | J28: 25 | K28: =SUMIF(сборка_разборка_АК[team_id],Результаты[[#This Row],[id]],сборка_разборка_АК[Сумма]) -> 00:03:32.520 | L28: 21 | M28: =SUMIF(полоса_воен[team_id],[id],полоса_воен[Время]) -> 00:01:22.890 | O28: 16 | P28: =SUMIF(полоса_Штурм[team_id],Результаты[[#This Row],[id]],полоса_Штурм[Время]) -> 00:01:34.590 | Q28: 10 | R28: =SUMIF(плавание[team_id],Результаты[[#This Row],[id]],плавание[Время]) -> 00:05:06.790 | S28: 21 | T28: =SUMIF(подтягивание[team_id],Результаты[[#This Row],[id]],подтягивание[результат]) -> 24 | U28: 21 | V28: =SUMIF(ролики[team_id],Результаты[[#This Row],[id]],ролики[Сумма]) -> 00:00:44.820 | W28: 23 | X28: =SUMIF(ориентирование[team_id],Результаты[[#This Row],[id]],ориентирование[Сумма]) -> 0.01586805556 | Y28: 15 | Z28: =SUMIF(ПДД[team_id],Результаты[[#This Row],[id]],ПДД[Сумма]) -> 00:13:17 | AA28: 11 | AB28: =SUMIF(Эстафета[team_id],Результаты[[#This Row],[id]],Эстафета[Сумма]) -> 00:05:32.790 | AC28: 20 | AD28: =[палатка]+[стрельба-пневматика]+[стрельба-лук]+[стрельба-АК]+[сборка/разборка АК]+[полоса военная]+[полоса Штурм]+[плавание]+[подтягивание]+[ролики]+[ПДД]+[эстафета] -> 231 | AE28: 25
A29: 24 | B29: =LOOKUP([id],Команды[id],Команды[Коротко]) -> Пушкино | C29: =SUMIF(палатка[team_id],[id],палатка[Сумма]) -> 00:04:11.860 | D29: 19 | E29: =SUMIF(стрельба_пневматика[team_id],Результаты[[#This Row],[id]],стрельба_пневматика[Очки]) -> 115 | F29: 23 | G29: =SUMIF(стрельба_лук[team_id],Результаты[[#This Row],[id]],стрельба_лук[результат]) -> 13 | H29: 26 | I29: =SUMIF(стрельба_АК[team_id],Результаты[[#This Row],[id]],стрельба_АК[Результат]) -> 14 | J29: 21 | K29: =SUMIF(сборка_разборка_АК[team_id],Результаты[[#This Row],[id]],сборка_разборка_АК[Сумма]) -> 00:07:57.360 | L29: 26 | M29: =SUMIF(полоса_воен[team_id],[id],полоса_воен[Время]) -> 00:01:21.030 | O29: 14 | P29: =SUMIF(полоса_Штурм[team_id],Результаты[[#This Row],[id]],полоса_Штурм[Время]) -> 00:02:04.070 | Q29: 21 | R29: =SUMIF(плавание[team_id],Результаты[[#This Row],[id]],плавание[Время]) -> 00:05:45.770 | S29: 23 | T29: =SUMIF(подтягивание[team_id],Результаты[[#This Row],[id]],подтягивание[результат]) -> 18 | U29: 25 | V29: =SUMIF(ролики[team_id],Результаты[[#This Row],[id]],ролики[Сумма]) -> 00:00:39.240 | W29: 14 | X29: =SUMIF(ориентирование[team_id],Результаты[[#This Row],[id]],ориентирование[Сумма]) -> 0.01743055556 | Y29: 17 | Z29: =SUMIF(ПДД[team_id],Результаты[[#This Row],[id]],ПДД[Сумма]) -> 00:12:48 | AA29: 11 | AB29: =SUMIF(Эстафета[team_id],Результаты[[#This Row],[id]],Эстафета[Сумма]) -> 00:06:30.320 | AC29: 24 | AD29: =[палатка]+[стрельба-пневматика]+[стрельба-лук]+[стрельба-АК]+[сборка/разборка АК]+[полоса военная]+[полоса Штурм]+[плавание]+[подтягивание]+[ролики]+[ПДД]+[эстафета] -> 247 | AE29: 26
B32: Председатель оргкомитета /Громов А.Г./

Sheet Команды
B1: Команды
A2: id | B2: Команда | C2: Коротко | D2: Комментарий
A3: 1 | B3: ОМОН ГУВД по Московской области (г. Сергиев Посад) | C3: ОМОН | D3: зарегистрирован
A4: 2 | B4: Липецкая область | C4: Липецк | D4: зарегистрирован
A5: 3 | B5: Гимназия "Дмитров" Московской области | C5: Дмитров | D5: зарегистрирован
A6: 4 | B6: Клуб "Добрыня" ОДОН ВВ МВД России | C6: Добрыня | D6: не будет
A7: 5 | B7: Краснодарский край | C7: Краснодар | D7: зарегистрирован
A8: 6 | B8: Клуб "Энергия" Шатурского района Московской области | C8: Энергия, Шатура | D8: зарегистрирован
A9: 7 | B9: Клинский район Московской области | C9: Клин | D9: зарегистрирован
A10: 8 | B10: Рузский район Московской области | C10: Руза | D10: зарегистрирован
A11: 9 | B11: Курская область | C11: Курск | D11: зарегистрирован
A12: 10 | B12: Клуб "Патриот" Каширского района Московской области | C12: Кашира | D12: зарегистрирован
A13: 11 | B13: "Кадеты-Жуковцы" г.Москва | C13: Москва | D13: зарегистрирован
A14: 12 | B14: Клуб "Юные друзья милиции" Истринского района Московской области | C14: Истра | D14: зарегистрирован
A15: 13 | B15: Владимирская область | C15: Владимир | D15: зарегистрирован
A16: 14 | B16: Воскресенский район Московской области | C16: Воскресенск | D16: зарегистрирован
A17: 15 | B17: Воронежская область | C17: Воронеж | D17: зарегистрирован
A18: 16 | B18: Клуб "Сокол" Тверской области | C18: Тверь | D18: зарегистрирован
A19: 17 | B19: Смоленская область | C19: Смоленск | D19: зарегистрирован
A20: 18 | B20: Одинцовский район Московской области | C20: Одинцово | D20: зарегистрирован
A21: 19 | B21: Тамбовская область | C21: Тамбов | D21: зарегистрирован
A22: 20 | B22: Республика Татарстан | C22: Татарстан | D22: зарегистрирован
A23: 21 | B23: Ступинский район Московской области | C23: Ступино | D23: зарегистрирован
A24: 22 | B24: Кировская область | C24: Киров | D24: зарегистрирован
A25: 23 | B25: Ивановская область | C25: Иваново | D25: зарегистрирован
A26: 24 | B26: Пушкинский район Московской области | C26: Пушкино | D26: зарегистрирован
A27: 25 | B27: Ярославская область | C27: Ярославль | D27: зарегистрирован
A28: 26 | B28: Клуб "Олимп" Шатурского района Московской области | C28: Олимп, Шатура | D28: зарегистрирован
A29: 27 | B29: Военно-спортивный клуб ОМСН ГУВД по Московской области | C29: ОМСН | D29: зарегистрирован

Sheet Дети
A1: id | B1: team_id | C1: Команда | D1: ФИО | E1: пол | F1: Дата рождения | G1: Размер | H1: Рост | I1: стрельба-пневматика | J1: стрельба-лук | K1: стрельба-АК | L1: сборка/разборка АК | M1: полоса военная | N1: полоса Штурм | O1: плавание | P1: подтягивание | Q1: ролики | R1: ориентирование | S1: рисунок | T1: ПДД
A2: 2 | B2: 1 | C2: =LOOKUP([team_id],Команды[id],Команды[Коротко]) -> ОМОН | D2: Шеин Сергей Дмитриевич | E2: м | F2: 2000-05-29 | N2: 1
A3: 3 | B3: 1 | C3: =LOOKUP([team_id],Команды[id],Команды[Коротко]) -> ОМОН | D3: Дугин Федор Васильевич | E3: м | F3: 1998-02-18 | O3: 1
A4: 4 | B4: 1 | C4: =LOOKUP([team_id],Команды[id],Команды[Коротко]) -> ОМОН | D4: Юрасов Николай Сергеевич | E4: м | F4: 2000-05-29 | N4: 1 | Q4: 1
A5: 5 | B5: 1 | C5: =LOOKUP([team_id],Команды[id],Команды[Коротко]) -> ОМОН | D5: Заварихин Семен Александрович | E5: м | F5: 1997-12-16 | K5: 1 | L5: 1 | P5: 1 | R5: 1
A6: 6 | B6: 1 | C6: =LOOKUP([team_id],Команды[id],Команды[Коротко]) -> ОМОН | D6: Платонов Александр Александрович | E6: м | F6: 1999-01-05 | I6: 1
A7: 7 | B7: 1 | C7: =LOOKUP([team_id],Команды[id],Команды[Коротко]) -> ОМОН | D7: Великанов Александр Сергеевич | E7: м | F7: 1997-08-20 | J7: 1 | M7: 1
A8: 11 | B8: 1 | C8: =LOOKUP([team_id],Команды[id],Команды[Коротко]) -> ОМОН | D8: Архипов Сергей Алексеевич | E8: м | F8: 1999-06-17
A9: 12 | B9: 1 | C9: =LOOKUP([team_id],Команды[id],Команды[Коротко]) -> ОМОН | D9: Калашникова Анна Александровна | E9: д | F9: 1997-06-27 | G9: 42 | H9: 165
A10: 13 | B10: 1 | C10: =LOOKUP([team_id],Команды[id],Команды[Коротко]) -> ОМОН | D10: Шаронова Катя Александровна | E10: д | F10: 1999-05-03 | G10: 40 | H10: 155
A11: 14 | B11: 1 | C11: =LOOKUP([team_id],Команды[id],Команды[Коротко]) -> ОМОН | D11: Крашенинникова Анна Андреевна | E11: д | F11: 1997-11-03 | G11: 42 | H11: 160 | N11: 1 | T11: 1
A12: 15 | B12: 1 | C12: =LOOKUP([team_id],Команды[id],Команды[Коротко]) -> ОМОН | D12: Уварова Екатерина Андреевна | E12: д | F12: 1997-04-30 | G12: 42 | H12: 155 | N12: 1 | Q12: 1 | S12: 1
A13: 16 | B13: 1 | C13: =LOOKUP([team_id],Команды[id],Команды[Коротко]) -> ОМОН | D13: Копытова Варвара Андреевна | E13: д | F13: 2000-08-30 | I13: 1 | L13: 1
A14: 17 | B14: 1 | C14: =LOOKUP([team_id],Команды[id],Команды[Коротко]) -> ОМОН | D14: Зарх Елизавета Дмитриевна | E14: д | F14: 1997-11-08 | G14: 42 | H14: 160 | O14: 1 | R14: 1
A15: 18 | B15: 1 | C15: =LOOKUP([team_id],Команды[id],Команды[Коротко]) -> ОМОН | D15: Евтюхова Анастасия Евгеньевна | E15: д | F15: 1998-02-26 | G15: 40 | H15: 155 | J15: 1
A16: 19 | B16: 1 | C16: =LOOKUP([team_id],Команды[id],Команды[Коротко]) -> ОМОН | D16: Амплеев Кирилл Олегович | E16: м | F16: 1998-06-05 | M16: 1 | P16: 1
A17: 20 | B17: 1 | C17: =LOOKUP([team_id],Команды[id],Команды[Коротко]) -> ОМОН | D17: Новикова Александра Сергеевна | E17: д | F17: 2004-05-13 | G17: 38 | H17: 150
A18: 21 | B18: 2 | C18: =LOOKUP([team_id],Команды[id],Команды[Коротко]) -> Липецк | D18: Бибиков Вадим Викторович | E18: м | F18: 1997-05-20 | G18: 46 | H18: 180 | O18: 1
A19: 22 | B19: 2 | C19: =LOOKUP([team_id],Команды[id],Команды[Коротко]) -> Липецк | D19: Боганова Анастасия Александровна | E19: д | F19: 1998-05-21 | G19: 38 | H19: 170 | R19: 1
A20: 23 | B20: 2 | C20: =LOOKUP([team_id],Команды[id],Команды[Коротко]) -> Липецк | D20: Филлипова Марина Владимировна | E20: д | F20: 1998-05-07 | G20: 40 | H20: 160
A21: 24 | B21: 2 | C21: =LOOKUP([team_id],Команды[id],Команды[Коротко]) -> Липецк | D21: Матвиенко Даниил Николаевич | E21: м | F21: 1999-07-30 | G21: 38 | H21: 160 | K21: 1
A22: 25 | B22: 2 | C22: =LOOKUP([team_id],Команды[id],Команды[Коротко]) -> Липецк | D22: Кузин Александр Владимирович | E22: м | F22: 1998-06-21 | G22: 36 | H22: 145 | N22: 1
A23: 26 | B23: 2 | C23: =LOOKUP([team_id],Команды[id],Команды[Коротко]) -> Липецк | D23: Бабкина Людмила Алексеевна | E23: д | F23: 1997-10-27 | G23: 42 | H23: 165 | N23: 1 | O23: 1
A24: 27 | B24: 2 | C24: =LOOKUP([team_id],Команды[id],Команды[Коротко]) -> Липецк | D24: Филатов Павел Юрьевич | E24: м | F24: 1998-06-21 | G24: 38 | H24: 150 | L24: 1
A25: 28 | B25: 2 | C25: =LOOKUP([team_id],Команды[id],Команды[Коротко]) -> Липецк | D25: Шмыгалев Евгений Геннадьевич | E25: м | F25: 1998-05-03 | G25: 40 | H25: 165 | M25: 1 | P25: 1
A26: 29 | B26: 2 | C26: =LOOKUP([team_id],Команды[id],Команды[Коротко]) -> Липецк | D26: Ерохина Евгения Андреевна | E26: д | F26: 1997-01-15 | G26: 42 | H26: 165 | L26: 1
A27: 30 | B27: 2 | C27: =LOOKUP([team_id],Команды[id],Команды[Коротко]) -> Липецк | D27: Феклин Алексей Юрьевич | E27: м | F27: 1998-06-30 | G27: 38 | H27: 150 | M27: 1 | P27: 1
A28: 31 | B28: 2 | C28: =LOOKUP([team_id],Команды[id],Команды[Коротко]) -> Липецк | D28: Савин Иван Александрович | E28: м | F28: 1997-01-11 | G28: 46 | H28: 165 | T28: 1
A29: 32 | B29: 2 | C29: =LOOKUP([team_id],Команды[id],Команды[Коротко]) -> Липецк | D29: Алтухов Дмитрий Александрович | E29: м | F29: 1997-04-22 | G29: 38 | H29: 150 | I29: 1
A30: 33 | B30: 2 | C30: =LOOKUP([team_id],Команды[id],Команды[Коротко]) -> Липецк | D30: Исаев Максим Михайлович | E30: м | F30: 1997-07-20 | G30: 42 | H30: 155 | S30: 1
A31: 34 | B31: 2 | C31: =LOOKUP([team_id],Команды[id],Команды[Коротко]) -> Липецк | D31: Фролов Александр Евгеньевич | E31: м | F31: 2000-06-11 | J31: 1 | N31: 1
A32: 35 | B32: 2 | C32: =LOOKUP([team_id],Команды[id],Команды[Коротко]) -> Липецк | D32: Пашенцева Екатерина Сергеевна | E32: д | F32: 1998-01-30 | G32: 38 | H32: 155 | N32: 1
A33: 36 | B33: 2 | C33: =LOOKUP([team_id],Команды[id],Команды[Коротко]) -> Липецк | D33: Белицкая Анастасия Николаевна | E33: д | F33: 2000-02-20
A34: 37 | B34: 2 | C34: =LOOKUP([team_id],Команды[id],Команды[Коротко]) -> Липецк | D34: Нестерова Анастасия Сергеевна | E34: д | F34: 1997-04-17 | G34: 42 | H34: 160 | I34: 1
A35: 38 | B35: 2 | C35: =LOOKUP([team_id],Команды[id],Команды[Коротко]) -> Липецк | D35: Полякова Валерия Владимировна | E35: д | F35: 1999-07-12 | G35: 38 | H35: 155
A36: 39 | B36: 2 | C36: =LOOKUP([team_id],Команды[id],Команды[Коротко]) -> Липецк | D36: Королькова Валерия Викторовна | E36: д | F36: 1998-05-23 | G36: 46 | H36: 165 | J36: 1
A37: 40 | B37: 2 | C37: =LOOKUP([team_id],Команды[id],Команды[Коротко]) -> Липецк | D37: Руднева Софья Дмитриевна | E37: д | F37: 1998-12-30 | S37: 1
A38: 41 | B38: 3 | C38: =LOOKUP([team_id],Команды[id],Команды[Коротко]) -> Дмитров | D38: Тагасов Семен Павлович | E38: м | F38: 1997-04-17 | G38: 44 | H38: 175 | K38: 1 | L38: 1 | M38: 1
A39: 42 | B39: 3 | C39: =LOOKUP([team_id],Команды[id],Команды[Коротко]) -> Дмитров | D39: Севрюков Валерий Юрьевич | E39: м | F39: 1999-09-29 | N39: 1 | P39: 1
A40: 43 | B40: 3 | C40: =LOOKUP([team_id],Команды[id],Команды[Коротко]) -> Дмитров | D40: Сарафанов Михаил Алекссевич | E40: м | F40: 1997-11-12 | G40: 42 | H40: 160 | P40: 1
A41: 44 | B41: 3 | C41: =LOOKUP([team_id],Команды[id],Команды[Коротко]) -> Дмитров | D41: Платонов Александр Сергеевич | E41: м | F41: 2000-05-15 | O41: 1
A42: 45 | B42: 3 | C42: =LOOKUP([team_id],Команды[id],Команды[Коротко]) -> Дмитров | D42: Богомолова Ольга Юрьевна | E42: д | F42: 1998-07-06 | I42: 1
A43: 46 | B43: 3 | C43: =LOOKUP([team_id],Команды[id],Команды[Коротко]) -> Дмитров | D43: Елисеев Евгений Вячеславович | E43: м | F43: 1997-02-24 | G43: 44 | H43: 175 | I43: 1
A44: 47 | B44: 3 | C44: =LOOKUP([team_id],Команды[id],Команды[Коротко]) -> Дмитров | D44: Цигану Денис Николаевич | E44: м | F44: 1998-08-29 | G44: 42 | H44: 160
A45: 48 | B45: 3 | C45: =LOOKUP([team_id],Команды[id],Команды[Коротко]) -> Дмитров | D45: Исмаков Семен Сергеевич | E45: м | F45: 1999-06-12
A46: 49 | B46: 3 | C46: =LOOKUP([team_id],Команды[id],Команды[Коротко]) -> Дмитров | D46: Коновалов Александр Сергеевич | E46: м | F46: 1998-02-25 | G46: 44 | H46: 165 | M46: 1
A47: 50 | B47: 3 | C47: =LOOKUP([team_id],Команды[id],Команды[Коротко]) -> Дмитров | D47: Сехниашвили Василий Георгиевич | E47: м | F47: 1999-09-09 | M47: 1 | N47: 1
A48: 51 | B48: 3 | C48: =LOOKUP([team_id],Команды[id],Команды[Коротко]) -> Дмитров | D48: Кулакова Милена Германовна | E48: д | F48: 1998-10-19 | G48: 44 | H48: 160 | L48: 1 | Q48: 1 | T48: 1
A49: 52 | B49: 3 | C49: =LOOKUP([team_id],Команды[id],Команды[Коротко]) -> Дмитров | D49: Руженцева Дарья Дмитриевна | E49: д | F49: 1999-01-11 | G49: 42 | H49: 160 | J49: 1 | N49: 1
A50: 53 | B50: 3 | C50: =LOOKUP([team_id],Команды[id],Команды[Коротко]) -> Дмитров | D50: Коровайко Марита Дмитриевна | E50: д | F50: 1998-07-22 | G50: 42 | H50: 160 | N50: 1
A51: 54 | B51: 3 | C51: =LOOKUP([team_id],Команды[id],Команды[Коротко]) -> Дмитров | D51: Мансурова Татьяна Романовна | E51: д | F51: 1998-04-24 | G51: 44 | H51: 160 | M51: 1
A52: 55 | B52: 3 | C52: =LOOKUP([team_id],Команды[id],Команды[Коротко]) -> Дмитров | D52: Швецова Аида Дмитриевна | E52: д | F52: 1998-12-04 | G52: 44 | H52: 175 | S52: 1
A53: 56 | B53: 3 | C53: =LOOKUP([team_id],Команды[id],Команды[Коротко]) -> Дмитров | D53: Демидова Юлия Александровна | E53: д | F53: 1997-04-30 | G53: 46 | H53: 165
A54: 57 | B54: 3 | C54: =LOOKUP([team_id],Команды[id],Команды[Коротко]) -> Дмитров | D54: Мозалев Никита Павлович | E54: м | F54: 1998-08-18 | J54: 1
A55: 58 | B55: 3 | C55: =LOOKUP([team_id],Команды[id],Команды[Коротко]) -> Дмитров | D55: Капитонова Алена Алексеевна | E55: д | F55: 1998-06-11 | M55: 1
A56: 59 | B56: 3 | C56: =LOOKUP([team_id],Команды[id],Команды[Коротко]) -> Дмитров | D56: Коныжева Софья Константиновна | E56: д | F56: 1998-01-03 | G56: 42 | H56: 165 | M56: 1 | O56: 1 | R56: 1
A57: 60 | B57: 3 | C57: =LOOKUP([team_id],Команды[id],Команды[Коротко]) -> Дмитров | D57: Коныжева Дарья Константиновна | E57: д | F57: 1998-01-03 | G57: 42 | H57: 165
A58: 61 | B58: 4 | C58: =LOOKUP([team_id],Команды[id],Команды[Коротко]) -> Добрыня | D58: Джалалов Ибрагим Эльчин оглы | E58: м | F58: 1997-09-05 | G58: 46 | H58: 165 | I58: 0 | J58: 0 | K58: 0 | L58: 0 | M58: 1 | N58: 0 | O58: 0 | P58: 1 | Q58: 0 | R58: 0 | S58: 0 | T58: 0
A59: 62 | B59: 4 | C59: =LOOKUP([team_id],Команды[id],Команды[Коротко]) -> Добрыня | D59: Курочкин Андрей Николаевич | E59: м | F59: 1999-05-08 | G59: 42 | H59: 160 | I59: 0 | J59: 0 | K59: 0 | L59: 0 | M59: 1 | N59: 1 | O59: 0 | P59: 0 | Q59: 0 | R59: 0 | S59: 0 | T59: 0
A60: 63 | B60: 4 | C60: =LOOKUP([team_id],Команды[id],Команды[Коротко]) -> Добрыня | D60: Абдулов Насриддин Хайруддинович | E60: м | F60: 1997-10-18 | G60: 46 | H60: 160 | I60: 0 | J60: 1 | K60: 0 | L60: 0 | M60: 1 | N60: 0 | O60: 0 | P60: 0 | Q60: 0 | R60: 0 | S60: 0 | T60: 0
A61: 64 | B61: 4 | C61: =LOOKUP([team_id],Команды[id],Команды[Коротко]) -> Добрыня | D61: Урюпин Платон Олегович | E61: м | F61: 1999-04-13 | G61: 46 | H61: 160 | I61: 0 | J61: 0 | K61: 0 | L61: 0 | M61: 1 | N61: 0 | O61: 0 | P61: 0 | Q61: 0 | R61: 0 | S61: 0 | T61: 0
A62: 65 | B62: 4 | C62: =LOOKUP([team_id],Команды[id],Команды[Коротко]) -> Добрыня | D62: Чернега Михаил Юрьевич | E62: м | F62: 1997-05-16 | G62: 46 | H62: 165 | I62: 0 | J62: 0 | K62: 0 | L62: 0 | M62: 1 | N62: 0 | O62: 1 | P62: 0 | Q62: 0 | R62: 0 | S62: 0 | T62: 0
A63: 66 | B63: 4 | C63: =LOOKUP([team_id],Команды[id],Команды[Коротко]) -> Добрыня | D63: Навасардян Тигран Каренович | E63: м | F63: 1997-01-08 | G63: 48 | H63: 175 | I63: 1 | J63: 0 | K63: 0 | L63: 0 | M63: 1 | N63: 0 | O63: 0 | P63: 0 | Q63: 0 | R63: 0 | S63: 0 | T63: 0
A64: 67 | B64: 4 | C64: =LOOKUP([team_id],Команды[id],Команды[Коротко]) -> Добрыня | D64: Щербаков Никита Вадимович | E64: м | F64: 1998-08-18 | G64: 42 | H64: 165 | I64: 0 | J64: 0 | K64: 0 | L64: 0 | M64: 1 | N64: 0 | O64: 0 | P64: 0 | Q64: 0 | R64: 0 | S64: 0 | T64: 0
A65: 68 | B65: 4 | C65: =LOOKUP([team_id],Команды[id],Команды[Коротко]) -> Добрыня | D65: Кайчакаев Рашид Магомедрасулович | E65: м | F65: 1997-09-08 | G65: 46 | H65: 165 | I65: 0 | J65: 0 | K65: 1 | L65: 0 | M65: 1 | N65: 0 | O65: 0 | P65: 0 | Q65: 0 | R65: 0 | S65: 0 | T65: 0
A66: 69 | B66: 4 | C66: =LOOKUP([team_id],Команды[id],Команды[Коротко]) -> Добрыня | D66: Кожухов Данил Евгеньевич | E66: м | F66: 1997-01-10 | G66: 46 | H66: 175 | I66: 0 | J66: 0 | K66: 0 | L66: 0 | M66: 0 | N66: 1 | O66: 0 | P66: 0 | Q66: 0 | R66: 1 | S66: 0 | T66: 0
A67: 70 | B67: 4 | C67: =LOOKUP([team_id],Команды[id],Команды[Коротко]) -> Добрыня | D67: Левит Егор Сергеевич | E67: м | F67: 1997-09-17 | G67: 52 | H67: 180 | I67: 0 | J67: 0 | K67: 0 | L67: 1 | M67: 0 | N67: 0 | O67: 0 | P67: 0 | Q67: 0 | R67: 0 | S67: 0 | T67: 0
A68: 71 | B68: 4 | C68: =LOOKUP([team_id],Команды[id],Команды[Коротко]) -> Добрыня | D68: Ерёменко Анастасия Андреевна | E68: д | F68: 1997-02-06 | G68: 52 | H68: 165 | I68: 1 | J68: 0 | K68: 0 | L68: 0 | M68: 0 | N68: 0 | O68: 0 | P68: 0 | Q68: 0 | R68: 0 | S68: 0 | T68: 0
A69: 72 | B69: 4 | C69: =LOOKUP([team_id],Команды[id],Команды[Коротко]) -> Добрыня | D69: Ерёменко Дарья Андреевна | E69: д | F69: 1998-04-14 | G69: 46 | H69: 155 | I69: 0 | J69: 0 | K69: 0 | L69: 1 | M69: 0 | N69: 0 | O69: 0 | P69: 0 | Q69: 0 | R69: 0 | S69: 0 | T69: 0
A70: 73 | B70: 4 | C70: =LOOKUP([team_id],Команды[id],Команды[Коротко]) -> Добрыня | D70: Селивёрстова Елизавета Евгеньевна | E70: д | F70: 1997-06-06 | G70: 40 | H70: 155 | I70: 0 | J70: 0 | K70: 0 | L70: 0 | M70: 0 | N70: 0 | O70: 0 | P70: 0 | Q70: 0 | R70: 0 | S70: 1 | T70: 0
A71: 74 | B71: 4 | C71: =LOOKUP([team_id],Команды[id],Команды[Коротко]) -> Добрыня | D71: Глушакова Анна Алексеевна | E71: д | F71: 1997-02-12 | G71: 46 | H71: 165 | I71: 0 | J71: 0 | K71: 0 | L71: 0 | M71: 0 | N71: 0 | O71: 1 | P71: 0 | Q71: 0 | R71: 0 | S71: 0 | T71: 0
A72: 75 | B72: 4 | C72: =LOOKUP([team_id],Команды[id],Команды[Коротко]) -> Добрыня | D72: Корытник Юлия Сергеевна | E72: д | F72: 1999-01-12 | G72: 38 | H72: 160 | I72: 0 | J72: 0 | K72: 0 | L72: 0 | M72: 1 | N72: 0 | O72: 0 | P72: 0 | Q72: 0 | R72: 0 | S72: 0 | T72: 0
A73: 76 | B73: 4 | C73: =LOOKUP([team_id],Команды[id],Команды[Коротко]) -> Добрыня | D73: Мишина Кристина Сергеевна | E73: д | F73: 1997-09-28 | G73: 44 | H73: 160 | I73: 0 | J73: 0 | K73: 0 | L73: 0 | M73: 1 | N73: 0 | O73: 0 | P73: 0 | Q73: 0 | R73: 0 | S73: 0 | T73: 0
A74: 77 | B74: 4 | C74: =LOOKUP([team_id],Команды[id],Команды[Коротко]) -> Добрыня | D74: Айрапетян Маргарита Арменовна | E74: д | F74: 1997-12-18 | G74: 42 | H74: 155 | I74: 0 | J74: 0 | K74: 0 | L74: 0 | M74: 0 | N74: 0 | O74: 0 | P74: 0 | Q74: 1 | R74: 0 | S74: 0 | T74: 0
A75: 78 | B75: 4 | C75: =LOOKUP([team_id],Команды[id],Команды[Коротко]) -> Добрыня | D75: Митронова Екатерина Сергеевна | E75: д | F75: 1997-07-25 | G75: 44 | H75: 165 | I75: 0 | J75: 0 | K75: 0 | L75: 0 | M75: 0 | N75: 0 | O75: 0 | P75: 0 | Q75: 0 | R75: 0 | S75: 0 | T75: 1
A76: 79 | B76: 4 | C76: =LOOKUP([team_id],Команды[id],Команды[Коротко]) -> Добрыня | D76: Автухова Кристина Сергеевна | E76: д | F76: 1997-04-23 | G76: 46 | H76: 170 | I76: 0 | J76: 0 | K76: 0 | L76: 0 | M76: 0 | N76: 1 | O76: 0 | P76: 0 | Q76: 0 | R76: 0 | S76: 0 | T76: 0
A77: 80 | B77: 4 | C77: =LOOKUP([team_id],Команды[id],Команды[Коротко]) -> Добрыня | D77: Шершнева Елена Сергеевна | E77: д | F77: 1998-05-18 | G77: 42 | H77: 155 | I77: 0 | J77: 0 | K77: 0 | L77: 0 | M77: 1 | N77: 0 | O77: 0 | P77: 0 | Q77: 0 | R77: 0 | S77: 0 | T77: 0
A78: 81 | B78: 5 | C78: =LOOKUP([team_id],Команды[id],Команды[Коротко]) -> Краснодар | D78: Ханануев Аким Дмитриевич | E78: м | F78: 1997-06-13 | G78: 44 | H78: 165 | M78: 1 | N78: 1 | P78: 1
A79: 82 | B79: 5 | C79: =LOOKUP([team_id],Команды[id],Команды[Коротко]) -> Краснодар | D79: Сметанин Алекс Эдуардович | E79: м | F79: 1997-02-13 | G79: 42 | H79: 160 | I79: 1 | K79: 1 | L79: 1
A80: 83 | B80: 5 | C80: =LOOKUP([team_id],Команды[id],Команды[Коротко]) -> Краснодар | D80: Кисляков Александр Александрович | E80: м | F80: 1997-11-06 | G80: 42 | H80: 160 | Q80: 1
A81: 84 | B81: 5 | C81: =LOOKUP([team_id],Команды[id],Команды[Коротко]) -> Краснодар | D81: Галимов Юрий Андреевич | E81: м | F81: 1997-08-20 | G81: 38 | H81: 155 | R81: 1
A82: 85 | B82: 5 | C82: =LOOKUP([team_id],Команды[id],Команды[Коротко]) -> Краснодар | D82: Аукин Александр Владимирович | E82: м | F82: 1997-02-12 | G82: 36 | H82: 150
A83: 86 | B83: 5 | C83: =LOOKUP([team_id],Команды[id],Команды[Коротко]) -> Краснодар | D83: Постник Александр Вячеславович | E83: м | F83: 1999-03-23 | G83: 40 | H83: 155
A84: 87 | B84: 5 | C84: =LOOKUP([team_id],Команды[id],Команды[Коротко]) -> Краснодар | D84: Артюхова Екатерина Александровна | E84: д | F84: 1998-12-13
A85: 88 | B85: 5 | C85: =LOOKUP([team_id],Команды[id],Команды[Коротко]) -> Краснодар | D85: Черников Александр Владимирович | E85: м | F85: 1998-03-22 | G85: 38 | H85: 150 | P85: 1
A86: 89 | B86: 5 | C86: =LOOKUP([team_id],Команды[id],Команды[Коротко]) -> Краснодар | D86: Косенко Владимир Андреевич | E86: м | F86: 1998-11-15 | G86: 34 | H86: 145 | T86: 1
A87: 90 | B87: 5 | C87: =LOOKUP([team_id],Команды[id],Команды[Коротко]) -> Краснодар | D87: Андреев Евгений Валерьевич | E87: м | F87: 1998-10-07 | G87: 36 | H87: 150
A88: 91 | B88: 5 | C88: =LOOKUP([team_id],Команды[id],Команды[Коротко]) -> Краснодар | D88: Григорьева Вероника Александровна | E88: д | F88: 1998-04-13 | G88: 42 | H88: 155 | I88: 1 | J88: 1 | L88: 1 | N88: 1
A89: 92 | B89: 5 | C89: =LOOKUP([team_id],Команды[id],Команды[Коротко]) -> Краснодар | D89: Якименко Инна Юрьевна | E89: д | F89: 1997-06-22 | G89: 38 | H89: 155
A90: 93 | B90: 5 | C90: =LOOKUP([team_id],Команды[id],Команды[Коротко]) -> Краснодар | D90: Попова Дарья Юрьевна | E90: д | F90: 1997-06-25 | G90: 38 | H90: 155 | N90: 1 | Q90: 1
A91: 94 | B91: 5 | C91: =LOOKUP([team_id],Команды[id],Команды[Коротко]) -> Краснодар | D91: Конева Екатерина Сергеевна | E91: д | F91: 1998-12-28 | G91: 36 | H91: 145
A92: 95 | B92: 5 | C92: =LOOKUP([team_id],Команды[id],Команды[Коротко]) -> Краснодар | D92: Мельникова Екатерина Викторовна | E92: д | F92: 2001-01-30 | G92: 38 | H92: 150 | O92: 1
A93: 96 | B93: 5 | C93: =LOOKUP([team_id],Команды[id],Команды[Коротко]) -> Краснодар | D93: Петухова Надежда Владимировна | E93: д | F93: 1997-08-25 | G93: 38 | H93: 155
A94: 97 | B94: 5 | C94: =LOOKUP([team_id],Команды[id],Команды[Коротко]) -> Краснодар | D94: Адлер Александр Владимирович | E94: м | F94: 1997-04-04 | J94: 1 | M94: 1 | N94: 1
A95: 98 | B95: 5 | C95: =LOOKUP([team_id],Команды[id],Команды[Коротко]) -> Краснодар | D95: Рязанцева Елена Сергеевна | E95: д | F95: 1997-06-16 | S95: 1
A96: 99 | B96: 5 | C96: =LOOKUP([team_id],Команды[id],Команды[Коротко]) -> Краснодар | D96: Чернышева Алена Анатольевна | E96: д | F96: 1997-07-15 | G96: 38 | H96: 155
A97: 100 | B97: 5 | C97: =LOOKUP([team_id],Команды[id],Команды[Коротко]) -> Краснодар | D97: Коноваленко Софья Дмитриевна | E97: д | F97: 1997-11-14 | G97: 38 | H97: 155
A98: 101 | B98: 6 | C98: =LOOKUP([team_id],Команды[id],Команды[Коротко]) -> Энергия, Шатура
A99: 102 | B99: 6 | C99: =LOOKUP([team_id],Команды[id],Команды[Коротко]) -> Энергия, Шатура
A100: 103 | B100: 6 | C100: =LOOKUP([team_id],Команды[id],Команды[Коротко]) -> Энергия, Шатура | D100: Забабуркин Константин Юрьевич | E100: м | F100: 1997-09-28 | G100: 44 | H100: 165 | M100: 1 | P100: 1
A101: 104 | B101: 6 | C101: =LOOKUP([team_id],Команды[id],Команды[Коротко]) -> Энергия, Шатура | D101: Аристархов Георгий Алексеевич | E101: м | F101: 1997-04-14 | G101: 42 | H101: 155 | L101: 1 | O101: 1 | Q101: 1
A102: 105 | B102: 6 | C102: =LOOKUP([team_id],Команды[id],Команды[Коротко]) -> Энергия, Шатура | D102: Щепкин Валерий Витальевич | E102: м | F102: 1997-04-18 | G102: 46 | H102: 175 | M102: 1 | N102: 1 | P102: 1
A103: 106 | B103: 6 | C103: =LOOKUP([team_id],Команды[id],Команды[Коротко]) -> Энергия, Шатура | D103: Давыдов Георгий Витальевич | E103: м | F103: 1997-10-12 | G103: 48 | H103: 175 | J103: 1 | R103: 1 | T103: 1
A104: 107 | B104: 6 | C104: =LOOKUP([team_id],Команды[id],Команды[Коротко]) -> Энергия, Шатура | D104: Чадаев Дмитрий Вадимович | E104: м | F104: 1997-08-21 | G104: 46 | H104: 170 | N104: 1
A105: 108 | B105: 6 | C105: =LOOKUP([team_id],Команды[id],Команды[Коротко]) -> Энергия, Шатура | D105: Тремаскин Никита Александрович | E105: м | F105: 1999-07-15 | G105: 38 | H105: 150
A106: 109 | B106: 6 | C106: =LOOKUP([team_id],Команды[id],Команды[Коротко]) -> Энергия, Шатура
A107: 110 | B107: 6 | C107: =LOOKUP([team_id],Команды[id],Команды[Коротко]) -> Энергия, Шатура | D107: Лапшин Андрей Евгеньевич | E107: м | F107: 2000-12-22 | G107: 36 | H107: 140
A108: 111 | B108: 6 | C108: =LOOKUP([team_id],Команды[id],Команды[Коротко]) -> Энергия, Шатура | D108: Нестерова Валерия Евгеньевна | E108: д | F108: 1997-07-11 | G108: 42 | H108: 155 | N108: 1 | S108: 1
A109: 112 | B109: 6 | C109: =LOOKUP([team_id],Команды[id],Команды[Коротко]) -> Энергия, Шатура | D109: Баранова Юлия Игоревна | E109: д | F109: 1997-04-25 | G109: 46 | H109: 160
A110: 113 | B110: 6 | C110: =LOOKUP([team_id],Команды[id],Команды[Коротко]) -> Энергия, Шатура | D110: Мысина Дарья Сергеевна | E110: д | F110: 1997-05-17 | G110: 44 | H110: 160
A111: 114 | B111: 6 | C111: =LOOKUP([team_id],Команды[id],Команды[Коротко]) -> Энергия, Шатура | D111: Бурканова Юлия Владимировна | E111: д | F111: 1997-03-21 | G111: 46 | H111: 160 | I111: 1 | J111: 1 | K111: 1 | O111: 1
A112: 115 | B112: 6 | C112: =LOOKUP([team_id],Команды[id],Команды[Коротко]) -> Энергия, Шатура | D112: Горячева Виктория Евгеньевна | E112: д | F112: 1997-08-25 | G112: 40 | H112: 155
A113: 116 | B113: 6 | C113: =LOOKUP([team_id],Команды[id],Команды[Коротко]) -> Энергия, Шатура | D113: Ионова Светлана Олеговна | E113: д | F113: 1997-09-23 | G113: 38 | H113: 155 | L113: 1 | N113: 1
A114: 117 | B114: 6 | C114: =LOOKUP([team_id],Команды[id],Команды[Коротко]) -> Энергия, Шатура | D114: Нечаева Оксана Дмитриевна | E114: д | F114: 1997-08-13 | G114: 40 | H114: 155
A115: 118 | B115: 6 | C115: =LOOKUP([team_id],Команды[id],Команды[Коротко]) -> Энергия, Шатура | D115: Лосев Дмитрий Александрович | E115: м | F115: 1997-12-29
A116: 119 | B116: 6 | C116: =LOOKUP([team_id],Команды[id],Команды[Коротко]) -> Энергия, Шатура | D116: Морозова Вероника Павловна | E116: д | F116: 1997-10-16 | G116: 40 | H116: 165
A117: 120 | B117: 6 | C117: =LOOKUP([team_id],Команды[id],Команды[Коротко]) -> Энергия, Шатура | D117: Иванова Кристина Евгеньена | E117: д | F117: 1997-08-06 | G117: 44 | H117: 165
A118: 121 | B118: 7 | C118: =LOOKUP([team_id],Команды[id],Команды[Коротко]) -> Клин | D118: Сергеев Павел Вячеславович | E118: м | F118: 1998-01-17 | G118: 46 | H118: 160 | M118: 1 | O118: 1 | P118: 1
A119: 122 | B119: 7 | C119: =LOOKUP([team_id],Команды[id],Команды[Коротко]) -> Клин | D119: Кучин Артем Игоревич | E119: м | F119: 2000-01-25
A120: 123 | B120: 7 | C120: =LOOKUP([team_id],Команды[id],Команды[Коротко]) -> Клин | D120: Соколов Никита Сергеевич | E120: м | F120: 1998-10-10 | G120: 48 | H120: 175 | I120: 1 | M120: 1
A121: 124 | B121: 7 | C121: =LOOKUP([team_id],Команды[id],Команды[Коротко]) -> Клин | D121: Елькина Марина Анатольевна | E121: д | F121: 1998-01-08 | M121: 1
A122: 125 | B122: 7 | C122: =LOOKUP([team_id],Команды[id],Команды[Коротко]) -> Клин | D122: Данков Алексей Сергеевич | E122: м | F122: 1998-03-27 | G122: 42 | H122: 160 | J122: 1 | N122: 1
A123: 126 | B123: 7 | C123: =LOOKUP([team_id],Команды[id],Команды[Коротко]) -> Клин | D123: Леонов Антон Михайлович | E123: м | F123: 1997-09-19 | G123: 42 | H123: 155
A124: 127 | B124: 7 | C124: =LOOKUP([team_id],Команды[id],Команды[Коротко]) -> Клин | D124: Козлов Федор Дмитриевич | E124: м | F124: 1998-05-15 | G124: 44 | H124: 165 | K124: 1 | L124: 1 | Q124: 1
A125: 128 | B125: 7 | C125: =LOOKUP([team_id],Команды[id],Команды[Коротко]) -> Клин | D125: Долбиков Дмитрий Михайлович | E125: м | F125: 1997-08-22 | G125: 44 | H125: 165 | N125: 1
A126: 129 | B126: 7 | C126: =LOOKUP([team_id],Команды[id],Команды[Коротко]) -> Клин | D126: Быков Дмитрий Игорьевич | E126: м | F126: 1997-01-26 | G126: 48 | H126: 160 | P126: 1 | R126: 1
A127: 130 | B127: 7 | C127: =LOOKUP([team_id],Команды[id],Команды[Коротко]) -> Клин | D127: Бахвалова Анастасия Сергеевна | E127: д | F127: 1997-10-09
A128: 131 | B128: 7 | C128: =LOOKUP([team_id],Команды[id],Команды[Коротко]) -> Клин | D128: Мешкова Виктория Алексеевна | E128: д | F128: 1998-02-02 | G128: 44 | H128: 155 | N128: 1
A129: 132 | B129: 7 | C129: =LOOKUP([team_id],Команды[id],Команды[Коротко]) -> Клин | D129: Волкова Анна Сергеевна | E129: д | F129: 1997-04-21 | L129: 1 | O129: 1
A130: 133 | B130: 7 | C130: =LOOKUP([team_id],Команды[id],Команды[Коротко]) -> Клин | D130: Черникова Дарья Андреевна | E130: д | F130: 1997-07-28 | G130: 40 | H130: 155 | N130: 1
A131: 134 | B131: 7 | C131: =LOOKUP([team_id],Команды[id],Команды[Коротко]) -> Клин | D131: Апрятнина Анна Валентиновна | E131: д | F131: 1998-08-15 | G131: 46 | H131: 155
A132: 135 | B132: 7 | C132: =LOOKUP([team_id],Команды[id],Команды[Коротко]) -> Клин | D132: Крутов Илья Владимирович | E132: м | F132: 2003-01-03
A133: 137 | B133: 7 | C133: =LOOKUP([team_id],Команды[id],Команды[Коротко]) -> Клин | D133: Кучина Елена Игоревна | E133: д | F133: 2000-01-25
A134: 138 | B134: 7 | C134: =LOOKUP([team_id],Команды[id],Команды[Коротко]) -> Клин | D134: Пугач Екатерина Андреевна | E134: д | F134: 1997-05-12 | G134: 46 | H134: 160 | S134: 1
A135: 139 | B135: 7 | C135: =LOOKUP([team_id],Команды[id],Команды[Коротко]) -> Клин | D135: Дрегалина Алина Сергеевна | E135: д | F135: 1998-02-20 | G135: 46 | H135: 160 | J135: 1 | T135: 1
A136: 140 | B136: 7 | C136: =LOOKUP([team_id],Команды[id],Команды[Коротко]) -> Клин | D136: Снеткова Диана Дмитриевна | E136: д | F136: 1998-07-25 | G136: 42 | H136: 160 | I136: 1
A137: 141 | B137: 8 | C137: =LOOKUP([team_id],Команды[id],Команды[Коротко]) -> Руза | D137: Кузьмин Максим | E137: м | F137: 1997-09-12 | G137: 40 | H137: 160 | P137: 1
A138: 142 | B138: 8 | C138: =LOOKUP([team_id],Команды[id],Команды[Коротко]) -> Руза | D138: Губарев Андрей | E138: м | F138: 1999-02-18
A139: 143 | B139: 8 | C139: =LOOKUP([team_id],Команды[id],Команды[Коротко]) -> Руза | D139: Филимонов Александр | E139: м | F139: 1997-08-24 | G139: 38 | H139: 170 | P139: 1
A140: 144 | B140: 8 | C140: =LOOKUP([team_id],Команды[id],Команды[Коротко]) -> Руза | D140: Волнистов Сергей | E140: м | F140: 1997-03-20 | G140: 38 | H140: 150 | M140: 1
A141: 145 | B141: 8 | C141: =LOOKUP([team_id],Команды[id],Команды[Коротко]) -> Руза | D141: Сорокин Алексей | E141: м | F141: 1998-01-28 | G141: 38 | H141: 165 | I141: 1 | J141: 1 | T141: 1
A142: 146 | B142: 8 | C142: =LOOKUP([team_id],Команды[id],Команды[Коротко]) -> Руза | D142: Ганичев Николай | E142: м | F142: 1997-12-19 | G142: 42 | H142: 155
A143: 147 | B143: 8 | C143: =LOOKUP([team_id],Команды[id],Команды[Коротко]) -> Руза | D143: Ченкивский Андрей | E143: м | F143: 1997-11-06 | G143: 38 | H143: 155
A144: 148 | B144: 8 | C144: =LOOKUP([team_id],Команды[id],Команды[Коротко]) -> Руза | D144: Мирошниченко Юлия | E144: д | F144: 1998-08-28
A145: 149 | B145: 8 | C145: =LOOKUP([team_id],Команды[id],Команды[Коротко]) -> Руза | D145: Журавлев Никита | E145: м | F145: 1997-11-10 | G145: 42 | H145: 160
A146: 150 | B146: 8 | C146: =LOOKUP([team_id],Команды[id],Команды[Коротко]) -> Руза | D146: Кузнецов Виталий | E146: м | F146: 1998-02-05 | G146: 46 | H146: 165 | O146: 1
A147: 151 | B147: 8 | C147: =LOOKUP([team_id],Команды[id],Команды[Коротко]) -> Руза | D147: Ковач Валерия | E147: д | F147: 1998-04-05 | G147: 46 | H147: 165 | K147: 1
A148: 152 | B148: 8 | C148: =LOOKUP([team_id],Команды[id],Команды[Коротко]) -> Руза | D148: Сребный Андрей | E148: м | F148: 1998-11-27
A149: 153 | B149: 8 | C149: =LOOKUP([team_id],Команды[id],Команды[Коротко]) -> Руза | D149: Шабакаева Арина | E149: д | F149: 1997-07-05 | G149: 42 | H149: 165
A150: 154 | B150: 8 | C150: =LOOKUP([team_id],Команды[id],Команды[Коротко]) -> Руза | D150: Камышанова Юлия | E150: д | F150: 1998-12-02 | G150: 41 | H150: 155
A151: 155 | B151: 8 | C151: =LOOKUP([team_id],Команды[id],Команды[Коротко]) -> Руза | D151: Галатова Ангелина | E151: д | F151: 1999-07-05 | G151: 36 | H151: 145
A152: 156 | B152: 8 | C152: =LOOKUP([team_id],Команды[id],Команды[Коротко]) -> Руза | D152: Дмитроченко Светлана | E152: д | F152: 1997-05-07 | G152: 44 | H152: 165 | R152: 1
A153: 157 | B153: 8 | C153: =LOOKUP([team_id],Команды[id],Команды[Коротко]) -> Руза | D153: Воронка Татьяна | E153: д | F153: 1998-12-01 | G153: 48 | H153: 165
A154: 158 | B154: 8 | C154: =LOOKUP([team_id],Команды[id],Команды[Коротко]) -> Руза | D154: Гущина Екатерина | E154: д | F154: 1997-12-08 | G154: 41 | H154: 160 | S154: 1
A155: 159 | B155: 8 | C155: =LOOKUP([team_id],Команды[id],Команды[Коротко]) -> Руза | D155: Страпко Алина | E155: д | F155: 1998-08-30 | G155: 36 | H155: 165
A156: 160 | B156: 8 | C156: =LOOKUP([team_id],Команды[id],Команды[Коротко]) -> Руза | D156: Безбородова Дарья | E156: д | F156: 1997-09-18 | G156: 42 | H156: 170 | O156: 1
A157: 161 | B157: 9 | C157: =LOOKUP([team_id],Команды[id],Команды[Коротко]) -> Курск | D157: Власов Денис | E157: м | F157: 1997-10-03 | K157: 1
A158: 162 | B158: 9 | C158: =LOOKUP([team_id],Команды[id],Команды[Коротко]) -> Курск | D158: Вовченко Елена | E158: д | F158: 1997-04-29 | G158: 46 | H158: 160 | S158: 1
A159: 164 | B159: 9 | C159: =LOOKUP([team_id],Команды[id],Команды[Коротко]) -> Курск | D159: Башкатова Татьяна | E159: д | F159: 1997-09-20 | G159: 36 | H159: 140 | N159: 1
A160: 165 | B160: 9 | C160: =LOOKUP([team_id],Команды[id],Команды[Коротко]) -> Курск | D160: Гильмутдинова Диана | E160: д | F160: 1998-10-11 | G160: 36 | H160: 140 | N160: 1
A161: 166 | B161: 9 | C161: =LOOKUP([team_id],Команды[id],Команды[Коротко]) -> Курск | D161: Ефремова Анастасия | E161: д | F161: 1997-04-01 | T161: 1
A162: 167 | B162: 9 | C162: =LOOKUP([team_id],Команды[id],Команды[Коротко]) -> Курск | D162: Сташевская Татьяна | E162: д | F162: 1997-05-06 | G162: 44 | H162: 160 | L162: 1
A163: 168 | B163: 9 | C163: =LOOKUP([team_id],Команды[id],Команды[Коротко]) -> Курск | D163: Авдеева Анна | E163: д | F163: 1998-06-20 | R163: 1
A164: 170 | B164: 9 | C164: =LOOKUP([team_id],Команды[id],Команды[Коротко]) -> Курск | D164: Бочарова Елизавета | E164: д | F164: 1997-06-25 | I164: 1
A165: 171 | B165: 9 | C165: =LOOKUP([team_id],Команды[id],Команды[Коротко]) -> Курск | D165: Щербинин Денис | E165: м | F165: 1997-03-08 | G165: 46 | H165: 165 | M165: 1
A166: 172 | B166: 9 | C166: =LOOKUP([team_id],Команды[id],Команды[Коротко]) -> Курск | D166: Вертакова Анастасия | E166: д | F166: 1997-03-28 | O166: 1
A167: 173 | B167: 9 | C167: =LOOKUP([team_id],Команды[id],Команды[Коротко]) -> Курск | D167: Мосолов Валерий | E167: м | F167: 1997-06-10 | G167: 46 | H167: 165 | I167: 1
A168: 174 | B168: 9 | C168: =LOOKUP([team_id],Команды[id],Команды[Коротко]) -> Курск | D168: Агафонов Алексей | E168: м | F168: 1997-08-04 | N168: 1
A169: 175 | B169: 9 | C169: =LOOKUP([team_id],Команды[id],Команды[Коротко]) -> Курск | D169: Безугольников Михаил | E169: м | F169: 1997-04-07 | N169: 1
A170: 176 | B170: 9 | C170: =LOOKUP([team_id],Команды[id],Команды[Коротко]) -> Курск | D170: Старосельцев Александр | E170: м | F170: 1997-11-03 | G170: 46 | H170: 170 | Q170: 1
A171: 177 | B171: 9 | C171: =LOOKUP([team_id],Команды[id],Команды[Коротко]) -> Курск | D171: Дюкарев Игорь | E171: м | F171: 1997-06-25 | P171: 1
A172: 178 | B172: 9 | C172: =LOOKUP([team_id],Команды[id],Команды[Коротко]) -> Курск | D172: Стебленко Владислав | E172: м | F172: 1997-04-01 | O172: 1
A173: 179 | B173: 9 | C173: =LOOKUP([team_id],Команды[id],Команды[Коротко]) -> Курск | D173: Исаев Ахмед | E173: м | F173: 1997-01-22 | P173: 1
A174: 180 | B174: 9 | C174: =LOOKUP([team_id],Команды[id],Команды[Коротко]) -> Курск | D174: Силенин Александр | E174: м | F174: 1997-04-22 | N174: 1
A175: 181 | B175: 10 | C175: =LOOKUP([team_id],Команды[id],Команды[Коротко]) -> Кашира | D175: Агранат Алёна Александровна | E175: д | F175: 1998-06-19 | G175: 44 | H175: 165 | I175: 1
A176: 182 | B176: 10 | C176: =LOOKUP([team_id],Команды[id],Команды[Коротко]) -> Кашира | D176: Белянина Виктория Игоревна | E176: д | F176: 1998-05-26 | G176: 42 | H176: 160 | J176: 1
A177: 183 | B177: 10 | C177: =LOOKUP([team_id],Команды[id],Команды[Коротко]) -> Кашира | D177: Зенкина Мария Сергеевна | E177: д | F177: 1998-04-21 | G177: 44 | H177: 160 | S177: 1
A178: 184 | B178: 10 | C178: =LOOKUP([team_id],Команды[id],Команды[Коротко]) -> Кашира | D178: Леонгард Анна Анатольевна | E178: д | F178: 1998-08-13 | G178: 40 | H178: 150 | N178: 1
A179: 185 | B179: 10 | C179: =LOOKUP([team_id],Команды[id],Команды[Коротко]) -> Кашира | D179: Кочкина Ольга Вячеславовна | E179: д | F179: 1999-08-17 | G179: 38 | H179: 145 | Q179: 1
A180: 186 | B180: 10 | C180: =LOOKUP([team_id],Команды[id],Команды[Коротко]) -> Кашира | D180: Кузина Лидия Эдуардовна | E180: д | F180: 1998-11-21 | G180: 42 | H180: 150 | K180: 1
A181: 187 | B181: 10 | C181: =LOOKUP([team_id],Команды[id],Команды[Коротко]) -> Кашира | D181: Куликова Александра Сергеевна | E181: д | F181: 1998-07-14 | G181: 40 | H181: 155 | R181: 1
A182: 188 | B182: 10 | C182: =LOOKUP([team_id],Команды[id],Команды[Коротко]) -> Кашира | D182: Афанасьева Ольга Александровна | E182: д | F182: 1997-02-08 | G182: 46 | H182: 175 | L182: 1
A183: 189 | B183: 10 | C183: =LOOKUP([team_id],Команды[id],Команды[Коротко]) -> Кашира | D183: Ильина Александра Сергеевна | E183: д | F183: 1997-07-29 | G183: 44 | H183: 160 | O183: 1
A184: 190 | B184: 10 | C184: =LOOKUP([team_id],Команды[id],Команды[Коротко]) -> Кашира | D184: Сергеева Светлана Сергеевна | E184: д | F184: 1998-02-12 | G184: 42 | H184: 160 | N184: 1
A185: 191 | B185: 10 | C185: =LOOKUP([team_id],Команды[id],Команды[Коротко]) -> Кашира | D185: Федотов Александр Юрьевич | E185: м | F185: 1998-06-27 | G185: 44 | H185: 155 | I185: 1 | J185: 1
A186: 192 | B186: 10 | C186: =LOOKUP([team_id],Команды[id],Команды[Коротко]) -> Кашира | D186: Жариков Евгений Михайлович | E186: м | F186: 1998-01-16 | G186: 42 | H186: 155 | T186: 1
A187: 193 | B187: 10 | C187: =LOOKUP([team_id],Команды[id],Команды[Коротко]) -> Кашира | D187: Фомичёв Виктор Андреевич | E187: м | F187: 1997-10-11 | G187: 44 | H187: 160 | L187: 1
A188: 194 | B188: 10 | C188: =LOOKUP([team_id],Команды[id],Команды[Коротко]) -> Кашира | D188: Толкачёв Сергей Алексеевич | E188: м | F188: 1998-07-17 | G188: 42 | H188: 160 | M188: 1
A189: 195 | B189: 10 | C189: =LOOKUP([team_id],Команды[id],Команды[Коротко]) -> Кашира | D189: Пахомов Ярослав Николаевич | E189: м | F189: 1997-05-06 | G189: 42 | H189: 160 | P189: 1
A190: 196 | B190: 10 | C190: =LOOKUP([team_id],Команды[id],Команды[Коротко]) -> Кашира | D190: Гусев Сергей Евгеньевич | E190: м | F190: 1998-08-09 | G190: 46 | H190: 165 | N190: 1
A191: 197 | B191: 10 | C191: =LOOKUP([team_id],Команды[id],Команды[Коротко]) -> Кашира | D191: Денисов Илья Игоревич | E191: м | F191: 1998-12-03 | G191: 42 | H191: 155 | N191: 1
A192: 198 | B192: 10 | C192: =LOOKUP([team_id],Команды[id],Команды[Коротко]) -> Кашира | D192: Белехов Виталий Дмитриевич | E192: м | F192: 1997-09-20 | G192: 46 | H192: 170 | O192: 1
A193: 199 | B193: 10 | C193: =LOOKUP([team_id],Команды[id],Команды[Коротко]) -> Кашира | D193: Комаров Дмитрий Александрович | E193: м | F193: 1998-11-15 | G193: 46 | H193: 175 | P193: 1
A194: 200 | B194: 10 | C194: =LOOKUP([team_id],Команды[id],Команды[Коротко]) -> Кашира | D194: Леонов Михаил Михайлович | E194: м | F194: 1997-06-03 | M194: 1
A195: 201 | B195: 11 | C195: =LOOKUP([team_id],Команды[id],Команды[Коротко]) -> Москва | D195: Алипова Мария | E195: д | F195: 1997-12-21 | G195: 44 | H195: 160 | J195: 1
A196: 202 | B196: 11 | C196: =LOOKUP([team_id],Команды[id],Команды[Коротко]) -> Москва | D196: Васюченко Екатерина | E196: д | F196: 1997-04-16
A197: 203 | B197: 11 | C197: =LOOKUP([team_id],Команды[id],Команды[Коротко]) -> Москва | D197: Васюченко Елизавета | E197: д | F197: 1997-04-16
A198: 204 | B198: 11 | C198: =LOOKUP([team_id],Команды[id],Команды[Коротко]) -> Москва | D198: Буфеев Константин | E198: м | F198: 1998-09-03 | M198: 1
A199: 205 | B199: 11 | C199: =LOOKUP([team_id],Команды[id],Команды[Коротко]) -> Москва | D199: Гусев Даниил | E199: м | F199: 1998-01-08 | M199: 1 | P199: 1 | R199: 1
A200: 206 | B200: 11 | C200: =LOOKUP([team_id],Команды[id],Команды[Коротко]) -> Москва | D200: Васильев Семен | E200: м | F200: 1998-05-14
... 323 more rows

Sheet палатка
B1: Протокол №1 (палатка)
F2: 4 июня 2011, 16:06
A3: team_id | B3: Команда | C3: время | D3: штраф | E3: Сумма | F3: Место
A4: 16 | B4: =LOOKUP([team_id],Команды[id],Команды[Коротко]) -> Тверь | C4: 00:01:51.750 | E4: =палатка[[#This Row],[время]]+палатка[[#This Row],[штраф]] -> 00:01:51.750 | F4: 1
A5: 11 | B5: =LOOKUP([team_id],Команды[id],Команды[Коротко]) -> Москва | C5: 00:02:25.580 | E5: =палатка[[#This Row],[время]]+палатка[[#This Row],[штраф]] -> 00:02:25.580 | F5: 2
A6: 26 | B6: =LOOKUP([team_id],Команды[id],Команды[Коротко]) -> Олимп, Шатура | C6: 00:02:26.750 | E6: =палатка[[#This Row],[время]]+палатка[[#This Row],[штраф]] -> 00:02:26.750 | F6: 3
A7: 7 | B7: =LOOKUP([team_id],Команды[id],Команды[Коротко]) -> Клин | C7: 00:02:29.110 | E7: =палатка[[#This Row],[время]]+палатка[[#This Row],[штраф]] -> 00:02:29.110 | F7: 4
A8: 10 | B8: =LOOKUP([team_id],Команды[id],Команды[Коротко]) -> Кашира | C8: 00:02:32.410 | E8: =палатка[[#This Row],[время]]+палатка[[#This Row],[штраф]] -> 00:02:32.410 | F8: 5
A9: 12 | B9: =LOOKUP([team_id],Команды[id],Команды[Коротко]) -> Истра | C9: 00:02:37.440 | E9: =палатка[[#This Row],[время]]+палатка[[#This Row],[штраф]] -> 00:02:37.440 | F9: 6
A10: 5 | B10: =LOOKUP([team_id],Команды[id],Команды[Коротко]) -> Краснодар | C10: 00:02:37.980 | E10: =палатка[[#This Row],[время]]+палатка[[#This Row],[штраф]] -> 00:02:37.980 | F10: 7
A11: 13 | B11: =LOOKUP([team_id],Команды[id],Команды[Коротко]) -> Владимир | C11: 00:02:43.720 | E11: =палатка[[#This Row],[время]]+палатка[[#This Row],[штраф]] -> 00:02:43.720 | F11: 8
A12: 17 | B12: =LOOKUP([team_id],Команды[id],Команды[Коротко]) -> Смоленск | C12: 00:03:08.540 | E12: =палатка[[#This Row],[время]]+палатка[[#This Row],[штраф]] -> 00:03:08.540 | F12: 9
A13: 8 | B13: =LOOKUP([team_id],Команды[id],Команды[Коротко]) -> Руза | C13: 00:03:09.240 | E13: =палатка[[#This Row],[время]]+палатка[[#This Row],[штраф]] -> 00:03:09.240 | F13: 10
A14: 2 | B14: =LOOKUP([team_id],Команды[id],Команды[Коротко]) -> Липецк | C14: 00:03:13.620 | E14: =палатка[[#This Row],[время]]+палатка[[#This Row],[штраф]] -> 00:03:13.620 | F14: 11
A15: 19 | B15: =LOOKUP([team_id],Команды[id],Команды[Коротко]) -> Тамбов | C15: 00:03:17.210 | E15: =палатка[[#This Row],[время]]+палатка[[#This Row],[штраф]] -> 00:03:17.210 | F15: 12
A16: 1 | B16: =LOOKUP([team_id],Команды[id],Команды[Коротко]) -> ОМОН | C16: 00:03:23.820 | E16: =палатка[[#This Row],[время]]+палатка[[#This Row],[штраф]] -> 00:03:23.820 | F16: 13
A17: 22 | B17: =LOOKUP([team_id],Команды[id],Команды[Коротко]) -> Киров | C17: 00:03:37.120 | E17: =палатка[[#This Row],[время]]+палатка[[#This Row],[штраф]] -> 00:03:37.120 | F17: 14
A18: 3 | B18: =LOOKUP([team_id],Команды[id],Команды[Коротко]) -> Дмитров | C18: 00:03:37.210 | E18: =палатка[[#This Row],[время]]+палатка[[#This Row],[штраф]] -> 00:03:37.210 | F18: 15
A19: 6 | B19: =LOOKUP([team_id],Команды[id],Команды[Коротко]) -> Энергия, Шатура | C19: 00:03:58.440 | E19: =палатка[[#This Row],[время]]+палатка[[#This Row],[штраф]] -> 00:03:58.440 | F19: 16
A20: 20 | B20: =LOOKUP([team_id],Команды[id],Команды[Коротко]) -> Татарстан | C20: 00:03:59.440 | E20: =палатка[[#This Row],[время]]+палатка[[#This Row],[штраф]] -> 00:03:59.440 | F20: 17
A21: 15 | B21: =LOOKUP([team_id],Команды[id],Команды[Коротко]) -> Воронеж | C21: 00:04:05.970 | E21: =палатка[[#This Row],[время]]+палатка[[#This Row],[штраф]] -> 00:04:05.970 | F21: 18
A22: 24 | B22: =LOOKUP([team_id],Команды[id],Команды[Коротко]) -> Пушкино | C22: 00:04:11.860 | E22: =палатка[[#This Row],[время]]+палатка[[#This Row],[штраф]] -> 00:04:11.860 | F22: 19
A23: 9 | B23: =LOOKUP([team_id],Команды[id],Команды[Коротко]) -> Курск | C23: 00:04:15.410 | E23: =палатка[[#This Row],[время]]+палатка[[#This Row],[штраф]] -> 00:04:15.410 | F23: 20
A24: 21 | B24: =LOOKUP([team_id],Команды[id],Команды[Коротко]) -> Ступино | C24: 00:04:28.060 | E24: =палатка[[#This Row],[время]]+палатка[[#This Row],[штраф]] -> 00:04:28.060 | F24: 21
A25: 14 | B25: =LOOKUP([team_id],Команды[id],Команды[Коротко]) -> Воскресенск | C25: 00:04:29.570 | E25: =палатка[[#This Row],[время]]+палатка[[#This Row],[штраф]] -> 00:04:29.570 | F25: 22
A26: 25 | B26: =LOOKUP([team_id],Команды[id],Команды[Коротко]) -> Ярославль | C26: 00:04:55.720 | E26: =палатка[[#This Row],[время]]+палатка[[#This Row],[штраф]] -> 00:04:55.720 | F26: 23
A27: 27 | B27: =LOOKUP([team_id],Команды[id],Команды[Коротко]) -> ОМСН | C27: 00:05:12.820 | E27: =палатка[[#This Row],[время]]+палатка[[#This Row],[штраф]] -> 00:05:12.820 | F27: 24
A28: 18 | B28: =LOOKUP([team_id],Команды[id],Команды[Коротко]) -> Одинцово | C28: 00:05:14.840 | E28: =палатка[[#This Row],[время]]+палатка[[#This Row],[штраф]] -> 00:05:14.840 | F28: 25
A29: 23 | B29: =LOOKUP([team_id],Команды[id],Команды[Коротко]) -> Иваново | C29: 00:05:55.520 | E29: =палатка[[#This Row],[время]]+палатка[[#This Row],[штраф]] -> 00:05:55.520 | F29: 26
B32: Председатель оргкомитета /Громов А.Г./

Sheet газета
A1: Протокол №2 (стенгазета)
C2: 5 июня 2011, 19:33
A3: team_id | B3: Команда | C3: Место
A4: 7 | B4: =LOOKUP([team_id],Команды[id],Команды[Команда]) -> Клинский район Московской области | C4: 1
A5: 13 | B5: =LOOKUP([team_id],Команды[id],Команды[Команда]) -> Владимирская область | C5: 2
A6: 11 | B6: =LOOKUP([team_id],Команды[id],Команды[Команда]) -> "Кадеты-Жуковцы" г.Москва | C6: 3
A8: Председатель оргкомитета /Громов А.Г./
B9: Председатель оргкомитета /Громов А.Г./

Sheet визитка
B1: Протокол №3 (визитка)
K2: 4 июня 2011, 17:56
A3: team_id | B3: Команда | C3: 1 судья | D3: 2 судья | E3: 3 судья | F3: 4 судья | G3: 5 судья | H3: Время | I3: Штраф | J3: Сумма | K3: Место
A4: 12 | B4: =LOOKUP([team_id],Команды[id],Команды[Коротко]) -> Истра | C4: 10 | D4: 10 | E4: 10 | F4: 10 | G4: 10 | H4: 00:06:40 | J4: =SUM(визитка[[#This Row],[1 судья]:[5 судья]])-визитка[[#This Row],[Штраф]] -> 50 | K4: 1-2
A5: 25 | B5: =LOOKUP([team_id],Команды[id],Команды[Коротко]) -> Ярославль | C5: 10 | D5: 10 | E5: 10 | F5: 10 | G5: 10 | H5: 00:06:47 | J5: =SUM(визитка[[#This Row],[1 судья]:[5 судья]])-визитка[[#This Row],[Штраф]] -> 50 | K5: 1-2
A6: 13 | B6: =LOOKUP([team_id],Команды[id],Команды[Коротко]) -> Владимир | C6: 9 | D6: 9 | E6: 10 | F6: 10 | G6: 9 | H6: 00:05:40 | J6: =SUM(визитка[[#This Row],[1 судья]:[5 судья]])-визитка[[#This Row],[Штраф]] -> 47 | K6: 3
A7: 20 | B7: =LOOKUP([team_id],Команды[id],Команды[Коротко]) -> Татарстан | C7: 9 | D7: 9 | E7: 9 | F7: 10 | G7: 9 | H7: 00:07:00 | J7: =SUM(визитка[[#This Row],[1 судья]:[5 судья]])-визитка[[#This Row],[Штраф]] -> 46 | K7: 4
A8: 9 | B8: =LOOKUP([team_id],Команды[id],Команды[Коротко]) -> Курск | C8: 9 | D8: 9 | E8: 8 | F8: 8 | G8: 8 | H8: 00:05:37 | J8: =SUM(визитка[[#This Row],[1 судья]:[5 судья]])-визитка[[#This Row],[Штраф]] -> 42 | K8: 5
A9: 17 | B9: =LOOKUP([team_id],Команды[id],Команды[Коротко]) -> Смоленск | C9: 10 | D9: 10 | E9: 10 | F9: 10 | G9: 10 | H9: 00:08:59 | I9: 10 | J9: =SUM(визитка[[#This Row],[1 судья]:[5 судья]])-визитка[[#This Row],[Штраф]] -> 40 | K9: 6
A10: 5 | B10: =LOOKUP([team_id],Команды[id],Команды[Коротко]) -> Краснодар | C10: 9 | D10: 9 | E10: 8 | F10: 7 | G10: 7 | H10: 00:02:51 | J10: =SUM(визитка[[#This Row],[1 судья]:[5 судья]])-визитка[[#This Row],[Штраф]] -> 40 | K10: 7-8
A11: 8 | B11: =LOOKUP([team_id],Команды[id],Команды[Коротко]) -> Руза | C11: 9 | D11: 9 | E11: 7 | F11: 7 | G11: 8 | H11: 00:04:01 | J11: =SUM(визитка[[#This Row],[1 судья]:[5 судья]])-визитка[[#This Row],[Штраф]] -> 40 | K11: 7-8
A12: 2 | B12: =LOOKUP([team_id],Команды[id],Команды[Коротко]) -> Липецк | C12: 8 | D12: 8 | E12: 8 | F12: 8 | G12: 8 | H12: 00:05:21 | J12: =SUM(визитка[[#This Row],[1 судья]:[5 судья]])-визитка[[#This Row],[Штраф]] -> 40 | K12: 9
A13: 19 | B13: =LOOKUP([team_id],Команды[id],Команды[Коротко]) -> Тамбов | C13: 10 | D13: 10 | E13: 7 | F13: 6 | G13: 6 | H13: 00:04:10 | J13: =SUM(визитка[[#This Row],[1 судья]:[5 судья]])-визитка[[#This Row],[Штраф]] -> 39 | K13: 10
A14: 6 | B14: =LOOKUP([team_id],Команды[id],Команды[Коротко]) -> Энергия, Шатура | C14: 10 | D14: 8 | E14: 9 | F14: 8 | G14: 8 | H14: 00:07:49 | I14: 5 | J14: =SUM(визитка[[#This Row],[1 судья]:[5 судья]])-визитка[[#This Row],[Штраф]] -> 38 | K14: 11
A15: 22 | B15: =LOOKUP([team_id],Команды[id],Команды[Коротко]) -> Киров | C15: 9 | D15: 9 | E15: 8 | F15: 9 | G15: 8 | H15: 00:07:07 | I15: 5 | J15: =SUM(визитка[[#This Row],[1 судья]:[5 судья]])-визитка[[#This Row],[Штраф]] -> 38 | K15: 12
A16: 15 | B16: =LOOKUP([team_id],Команды[id],Команды[Коротко]) -> Воронеж | C16: 7 | D16: 9 | E16: 7 | F16: 7 | G16: 7 | H16: 00:06:32 | J16: =SUM(визитка[[#This Row],[1 судья]:[5 судья]])-визитка[[#This Row],[Штраф]] -> 37 | K16: 13
A17: 7 | B17: =LOOKUP([team_id],Команды[id],Команды[Коротко]) -> Клин | C17: 7 | D17: 7 | E17: 7 | F17: 8 | G17: 8 | H17: 00:02:24 | J17: =SUM(визитка[[#This Row],[1 судья]:[5 судья]])-визитка[[#This Row],[Штраф]] -> 37 | K17: 14
A18: 23 | B18: =LOOKUP([team_id],Команды[id],Команды[Коротко]) -> Иваново | C18: 8 | D18: 8 | E18: 7 | F18: 6 | G18: 7 | H18: 00:03:22 | J18: =SUM(визитка[[#This Row],[1 судья]:[5 судья]])-визитка[[#This Row],[Штраф]] -> 36 | K18: 15
A19: 11 | B19: =LOOKUP([team_id],Команды[id],Команды[Коротко]) -> Москва | C19: 7 | D19: 8 | E19: 7 | F19: 6 | G19: 6 | H19: 00:02:44 | J19: =SUM(визитка[[#This Row],[1 судья]:[5 судья]])-визитка[[#This Row],[Штраф]] -> 34 | K19: 16
A20: 3 | B20: =LOOKUP([team_id],Команды[id],Команды[Коротко]) -> Дмитров | C20: 8 | D20: 8 | E20: 7 | F20: 7 | G20: 7 | H20: 00:07:20 | I20: 5 | J20: =SUM(визитка[[#This Row],[1 судья]:[5 судья]])-визитка[[#This Row],[Штраф]] -> 32 | K20: 17
A21: 10 | B21: =LOOKUP([team_id],Команды[id],Команды[Коротко]) -> Кашира | C21: 9 | D21: 9 | E21: 10 | F21: 9 | G21: 9 | H21: 00:10:00 | I21: 15 | J21: =SUM(визитка[[#This Row],[1 судья]:[5 судья]])-визитка[[#This Row],[Штраф]] -> 31 | K21: 18
A22: 27 | B22: =LOOKUP([team_id],Команды[id],Команды[Коротко]) -> ОМСН | C22: 7 | D22: 6 | E22: 6 | F22: 5 | G22: 7 | H22: 00:05:53 | J22: =SUM(визитка[[#This Row],[1 судья]:[5 судья]])-визитка[[#This Row],[Штраф]] -> 31 | K22: 19
A23: 26 | B23: =LOOKUP([team_id],Команды[id],Команды[Коротко]) -> Олимп, Шатура | C23: 8 | D23: 8 | E23: 7 | F23: 5 | G23: 7 | H23: 00:07:48 | I23: 5 | J23: =SUM(визитка[[#This Row],[1 судья]:[5 судья]])-визитка[[#This Row],[Штраф]] -> 30 | K23: 20
A24: 16 | B24: =LOOKUP([team_id],Команды[id],Команды[Коротко]) -> Тверь | C24: 6 | D24: 7 | E24: 6 | F24: 5 | G24: 6 | H24: 00:02:26 | J24: =SUM(визитка[[#This Row],[1 судья]:[5 судья]])-визитка[[#This Row],[Штраф]] -> 30 | K24: 21-23
A25: 14 | B25: =LOOKUP([team_id],Команды[id],Команды[Коротко]) -> Воскресенск | C25: 6 | D25: 7 | E25: 6 | F25: 5 | G25: 6 | H25: 00:04:50 | J25: =SUM(визитка[[#This Row],[1 судья]:[5 судья]])-визитка[[#This Row],[Штраф]] -> 30 | K25: 21-23
A26: 18 | B26: =LOOKUP([team_id],Команды[id],Команды[Коротко]) -> Одинцово | C26: 6 | D26: 7 | E26: 6 | F26: 5 | G26: 6 | H26: 00:05:10 | J26: =SUM(визитка[[#This Row],[1 судья]:[5 судья]])-визитка[[#This Row],[Штраф]] -> 30 | K26: 21-23
A27: 1 | B27: =LOOKUP([team_id],Команды[id],Команды[Коротко]) -> ОМОН | C27: 6 | D27: 6 | E27: 6 | F27: 5 | G27: 6 | H27: 00:08:01 | I27: 10 | J27: =SUM(визитка[[#This Row],[1 судья]:[5 судья]])-визитка[[#This Row],[Штраф]] -> 19 | K27: 24
A28: 21 | B28: =LOOKUP([team_id],Команды[id],Команды[Коротко]) -> Ступино | C28: 9 | D28: 7 | E28: 7 | F28: 9 | G28: 9 | H28: 00:11:18 | I28: 25 | J28: =SUM(визитка[[#This Row],[1 судья]:[5 судья]])-визитка[[#This Row],[Штраф]] -> 16 | K28: 25
A29: 24 | B29: =LOOKUP([team_id],Команды[id],Команды[Коротко]) -> Пушкино | C29: 0 | D29: 0 | E29: 0 | F29: 0 | G29: 0 | H29: 00:00:00 | J29: =SUM(визитка[[#This Row],[1 судья]:[5 судья]])-визитка[[#This Row],[Штраф]] -> 0
B32: Председатель оргкомитета /Громов А.Г./

Sheet стрельба-пневматика
C1: Протокол №4 (стрельба-пневматика)
I2: 5 июня 2011, 15:16
A3: id | B3: team_id | C3: Команда | D3: ФИО | E3: пол | F3: Дата рождения | G3: оружие | H3: Очки | I3: Место
A4: 170 | B4: =LOOKUP([id],Дети[id],Дети[team_id]) -> 9 | C4: =LOOKUP([team_id],Команды[id],Команды[Коротко]) -> Курск | D4: =LOOKUP([id],Дети[id],Дети[ФИО]) -> Бочарова Елизавета | E4: =LOOKUP([id],Дети[id],Дети[пол]) -> д | F4: =LOOKUP([id],Дети[id],Дети[Дата рождения]) -> 1997-06-25 | G4: винтовка | H4: 81 | I4: 1
A5: 308 | B5: =LOOKUP([id],Дети[id],Дети[team_id]) -> 16 | C5: =LOOKUP([team_id],Команды[id],Команды[Коротко]) -> Тверь | D5: =LOOKUP([id],Дети[id],Дети[ФИО]) -> Золотова Вера Васильевна | E5: =LOOKUP([id],Дети[id],Дети[пол]) -> д | F5: =LOOKUP([id],Дети[id],Дети[Дата рождения]) -> 1997-06-15 | G5: винтовка | H5: 77 | I5: 2
A6: 151 | B6: =LOOKUP([id],Дети[id],Дети[team_id]) -> 8 | C6: =LOOKUP([team_id],Команды[id],Команды[Коротко]) -> Руза | D6: =LOOKUP([id],Дети[id],Дети[ФИО]) -> Ковач Валерия | E6: =LOOKUP([id],Дети[id],Дети[пол]) -> д | F6: =LOOKUP([id],Дети[id],Дети[Дата рождения]) -> 1998-04-05 | G6: винтовка | H6: 75 | I6: 3
A7: 420 | B7: =LOOKUP([id],Дети[id],Дети[team_id]) -> 21 | C7: =LOOKUP([team_id],Команды[id],Команды[Коротко]) -> Ступино | D7: =LOOKUP([id],Дети[id],Дети[ФИО]) -> Перегудова Татьяна Алексеевна | E7: =LOOKUP([id],Дети[id],Дети[пол]) -> д | F7: =LOOKUP([id],Дети[id],Дети[Дата рождения]) -> 1997-01-25 | G7: винтовка | H7: 73 | I7: 4
A8: 368 | B8: =LOOKUP([id],Дети[id],Дети[team_id]) -> 19 | C8: =LOOKUP([team_id],Команды[id],Команды[Коротко]) -> Тамбов | D8: =LOOKUP([id],Дети[id],Дети[ФИО]) -> Сафронова Дарья | E8: =LOOKUP([id],Дети[id],Дети[пол]) -> д | F8: =LOOKUP([id],Дети[id],Дети[Дата рождения]) -> 1997-11-27 | G8: винтовка | H8: 73 | I8: 5
A9: 501 | B9: =LOOKUP([id],Дети[id],Дети[team_id]) -> 26 | C9: =LOOKUP([team_id],Команды[id],Команды[Коротко]) -> Олимп, Шатура | D9: =LOOKUP([id],Дети[id],Дети[ФИО]) -> Косова Анастасия Андреевна | E9: =LOOKUP([id],Дети[id],Дети[пол]) -> д | F9: =LOOKUP([id],Дети[id],Дети[Дата рождения]) -> 1999-01-19 | G9: винтовка | H9: 71 | I9: 6
A10: 281 | B10: =LOOKUP([id],Дети[id],Дети[team_id]) -> 15 | C10: =LOOKUP([team_id],Команды[id],Команды[Коротко]) -> Воронеж | D10: =LOOKUP([id],Дети[id],Дети[ФИО]) -> Авраменко Юлия Александровна | E10: =LOOKUP([id],Дети[id],Дети[пол]) -> д | F10: =LOOKUP([id],Дети[id],Дети[Дата рождения]) -> 1997-06-18 | G10: винтовка | H10: 70 | I10: 7
A11: 45 | B11: =LOOKUP([id],Дети[id],Дети[team_id]) -> 3 | C11: =LOOKUP([team_id],Команды[id],Команды[Коротко]) -> Дмитров | D11: =LOOKUP([id],Дети[id],Дети[ФИО]) -> Богомолова Ольга Юрьевна | E11: =LOOKUP([id],Дети[id],Дети[пол]) -> д | F11: =LOOKUP([id],Дети[id],Дети[Дата рождения]) -> 1998-07-06 | G11: винтовка | H11: 69 | I11: 8
A12: 425 | B12: =LOOKUP([id],Дети[id],Дети[team_id]) -> 22 | C12: =LOOKUP([team_id],Команды[id],Команды[Коротко]) -> Киров | D12: =LOOKUP([id],Дети[id],Дети[ФИО]) -> Лыскова Валерия | E12: =LOOKUP([id],Дети[id],Дети[пол]) -> д | F12: =LOOKUP([id],Дети[id],Дети[Дата рождения]) -> 1999-07-09 | G12: винтовка | H12: 67 | I12: 9
A13: 496 | B13: =LOOKUP([id],Дети[id],Дети[team_id]) -> 25 | C13: =LOOKUP([team_id],Команды[id],Команды[Коротко]) -> Ярославль | D13: =LOOKUP([id],Дети[id],Дети[ФИО]) -> Серова Татьяна Валерьевна | E13: =LOOKUP([id],Дети[id],Дети[пол]) -> д | F13: =LOOKUP([id],Дети[id],Дети[Дата рождения]) -> 1997-10-07 | G13: винтовка | H13: 66 | I13: 10
A14: 540 | B14: =LOOKUP([id],Дети[id],Дети[team_id]) -> 27 | C14: =LOOKUP([team_id],Команды[id],Команды[Коротко]) -> ОМСН | D14: =LOOKUP([id],Дети[id],Дети[ФИО]) -> Целкова Валерия Дмитриевна | E14: =LOOKUP([id],Дети[id],Дети[пол]) -> д | F14: =LOOKUP([id],Дети[id],Дети[Дата рождения]) -> 1997-01-06 | G14: винтовка | H14: 64 | I14: 11
A15: 211 | B15: =LOOKUP([id],Дети[id],Дети[team_id]) -> 11 | C15: =LOOKUP([team_id],Команды[id],Команды[Коротко]) -> Москва | D15: =LOOKUP([id],Дети[id],Дети[ФИО]) -> Кожаева Екатерина | E15: =LOOKUP([id],Дети[id],Дети[пол]) -> д | F15: =LOOKUP([id],Дети[id],Дети[Дата рождения]) -> 1997-12-03 | G15: винтовка | H15: 63 | I15: 12
A16: 140 | B16: =LOOKUP([id],Дети[id],Дети[team_id]) -> 7 | C16: =LOOKUP([team_id],Команды[id],Команды[Коротко]) -> Клин | D16: =LOOKUP([id],Дети[id],Дети[ФИО]) -> Снеткова Диана Дмитриевна | E16: =LOOKUP([id],Дети[id],Дети[пол]) -> д | F16: =LOOKUP([id],Дети[id],Дети[Дата рождения]) -> 1998-07-25 | G16: винтовка | H16: 59 | I16: 13
A17: 442 | B17: =LOOKUP([id],Дети[id],Дети[team_id]) -> 23 | C17: =LOOKUP([team_id],Команды[id],Команды[Коротко]) -> Иваново | D17: =LOOKUP([id],Дети[id],Дети[ФИО]) -> Киселева Анастасия Андреевна | E17: =LOOKUP([id],Дети[id],Дети[пол]) -> д | F17: =LOOKUP([id],Дети[id],Дети[Дата рождения]) -> 1997-03-14 | G17: винтовка | H17: 57 | I17: 14
A18: 261 | B18: =LOOKUP([id],Дети[id],Дети[team_id]) -> 14 | C18: =LOOKUP([team_id],Команды[id],Команды[Коротко]) -> Воскресенск | D18: =LOOKUP([id],Дети[id],Дети[ФИО]) -> Рыбакова Юлия | E18: =LOOKUP([id],Дети[id],Дети[пол]) -> д | F18: =LOOKUP([id],Дети[id],Дети[Дата рождения]) -> 1998-09-11 | G18: винтовка | H18: 57 | I18: 15
A19: 181 | B19: =LOOKUP([id],Дети[id],Дети[team_id]) -> 10 | C19: =LOOKUP([team_id],Команды[id],Команды[Коротко]) -> Кашира | D19: =LOOKUP([id],Дети[id],Дети[ФИО]) -> Агранат Алёна Александровна | E19: =LOOKUP([id],Дети[id],Дети[пол]) -> д | F19: =LOOKUP([id],Дети[id],Дети[Дата рождения]) -> 1998-06-19 | G19: винтовка | H19: 48 | I19: 16
A20: 16 | B20: =LOOKUP([id],Дети[id],Дети[team_id]) -> 1 | C20: =LOOKUP([team_id],Команды[id],Команды[Коротко]) -> ОМОН | D20: =LOOKUP([id],Дети[id],Дети[ФИО]) -> Копытова Варвара Андреевна | E20: =LOOKUP([id],Дети[id],Дети[пол]) -> д | F20: =LOOKUP([id],Дети[id],Дети[Дата рождения]) -> 2000-08-30 | G20: винтовка | H20: 43 | I20: 17
A21: 339 | B21: =LOOKUP([id],Дети[id],Дети[team_id]) -> 17 | C21: =LOOKUP([team_id],Команды[id],Команды[Коротко]) -> Смоленск | D21: =LOOKUP([id],Дети[id],Дети[ФИО]) -> Шалабодина Ангелина Константиновна | E21: =LOOKUP([id],Дети[id],Дети[пол]) -> д | F21: =LOOKUP([id],Дети[id],Дети[Дата рождения]) -> 1999-06-15 | G21: винтовка | H21: 42 | I21: 18
A22: 471 | B22: =LOOKUP([id],Дети[id],Дети[team_id]) -> 24 | C22: =LOOKUP([team_id],Команды[id],Команды[Коротко]) -> Пушкино | D22: =LOOKUP([id],Дети[id],Дети[ФИО]) -> Юшкова Алина Александровна | E22: =LOOKUP([id],Дети[id],Дети[пол]) -> д | F22: =LOOKUP([id],Дети[id],Дети[Дата рождения]) -> 1997-02-26 | G22: винтовка | H22: 41 | I22: 19
A23: 258 | B23: =LOOKUP([id],Дети[id],Дети[team_id]) -> 13 | C23: =LOOKUP([team_id],Команды[id],Команды[Коротко]) -> Владимир | D23: =LOOKUP([id],Дети[id],Дети[ФИО]) -> Феофанова Алена Игоревна | E23: =LOOKUP([id],Дети[id],Дети[пол]) -> д | F23: =LOOKUP([id],Дети[id],Дети[Дата рождения]) -> 1997-05-26 | G23: винтовка | H23: 41 | I23: 20
A24: 355 | B24: =LOOKUP([id],Дети[id],Дети[team_id]) -> 18 | C24: =LOOKUP([team_id],Команды[id],Команды[Коротко]) -> Одинцово | D24: =LOOKUP([id],Дети[id],Дети[ФИО]) -> Зыкова Мария Антоновна | E24: =LOOKUP([id],Дети[id],Дети[пол]) -> д | F24: =LOOKUP([id],Дети[id],Дети[Дата рождения]) -> 1998-04-21 | G24: винтовка | H24: 36 | I24: 21
A25: 91 | B25: =LOOKUP([id],Дети[id],Дети[team_id]) -> 5 | C25: =LOOKUP([team_id],Команды[id],Команды[Коротко]) -> Краснодар | D25: =LOOKUP([id],Дети[id],Дети[ФИО]) -> Григорьева Вероника Александровна | E25: =LOOKUP([id],Дети[id],Дети[пол]) -> д | F25: =LOOKUP([id],Дети[id],Дети[Дата рождения]) -> 1998-04-13 | G25: винтовка | H25: 35 | I25: 22
A26: 237 | B26: =LOOKUP([id],Дети[id],Дети[team_id]) -> 12 | C26: =LOOKUP([team_id],Команды[id],Команды[Коротко]) -> Истра | D26: =LOOKUP([id],Дети[id],Дети[ФИО]) -> Петровская Евгения Владимирона | E26: =LOOKUP([id],Дети[id],Дети[пол]) -> д | F26: =LOOKUP([id],Дети[id],Дети[Дата рождения]) -> 1998-03-01 | G26: винтовка | H26: 29 | I26: 23
A27: 393 | B27: =LOOKUP([id],Дети[id],Дети[team_id]) -> 20 | C27: =LOOKUP([team_id],Команды[id],Команды[Коротко]) -> Татарстан | D27: =LOOKUP([id],Дети[id],Дети[ФИО]) -> Паранина Александра Владимировна | E27: =LOOKUP([id],Дети[id],Дети[пол]) -> д | F27: =LOOKUP([id],Дети[id],Дети[Дата рождения]) -> 1997-11-02 | G27: винтовка | H27: 19 | I27: 24
A28: 37 | B28: =LOOKUP([id],Дети[id],Дети[team_id]) -> 2 | C28: =LOOKUP([team_id],Команды[id],Команды[Коротко]) -> Липецк | D28: =LOOKUP([id],Дети[id],Дети[ФИО]) -> Нестерова Анастасия Сергеевна | E28: =LOOKUP([id],Дети[id],Дети[пол]) -> д | F28: =LOOKUP([id],Дети[id],Дети[Дата рождения]) -> 1997-04-17 | G28: винтовка | H28: 5 | I28: 25
A29: 114 | B29: =LOOKUP([id],Дети[id],Дети[team_id]) -> 6 | C29: =LOOKUP([team_id],Команды[id],Команды[Коротко]) -> Энергия, Шатура | D29: =LOOKUP([id],Дети[id],Дети[ФИО]) -> Бурканова Юлия Владимировна | E29: =LOOKUP([id],Дети[id],Дети[пол]) -> д | F29: =LOOKUP([id],Дети[id],Дети[Дата рождения]) -> 1997-03-21 | G29: винтовка | H29: 0 | I29: 26
A30: 173 | B30: =LOOKUP([id],Дети[id],Дети[team_id]) -> 9 | C30: =LOOKUP([team_id],Команды[id],Команды[Коротко]) -> Курск | D30: =LOOKUP([id],Дети[id],Дети[ФИО]) -> Мосолов Валерий | E30: =LOOKUP([id],Дети[id],Дети[пол]) -> м | F30: =LOOKUP([id],Дети[id],Дети[Дата рождения]) -> 1997-06-10 | G30: винтовка | H30: 84 | I30: 1
A31: 328 | B31: =LOOKUP([id],Дети[id],Дети[team_id]) -> 17 | C31: =LOOKUP([team_id],Команды[id],Команды[Коротко]) -> Смоленск | D31: =LOOKUP([id],Дети[id],Дети[ФИО]) -> Молокоедов Дмитрий Владимирович | E31: =LOOKUP([id],Дети[id],Дети[пол]) -> м | F31: =LOOKUP([id],Дети[id],Дети[Дата рождения]) -> 1998-07-11 | G31: винтовка | H31: 82 | I31: 2
A32: 371 | B32: =LOOKUP([id],Дети[id],Дети[team_id]) -> 19 | C32: =LOOKUP([team_id],Команды[id],Команды[Коротко]) -> Тамбов | D32: =LOOKUP([id],Дети[id],Дети[ФИО]) -> Куров Алексей | E32: =LOOKUP([id],Дети[id],Дети[пол]) -> м | F32: =LOOKUP([id],Дети[id],Дети[Дата рождения]) -> 1997-05-12 | G32: винтовка | H32: 76 | I32: 3
A33: 318 | B33: =LOOKUP([id],Дети[id],Дети[team_id]) -> 16 | C33: =LOOKUP([team_id],Команды[id],Команды[Коротко]) -> Тверь | D33: =LOOKUP([id],Дети[id],Дети[ФИО]) -> Владимиров Дмитрий Сергеевич | E33: =LOOKUP([id],Дети[id],Дети[пол]) -> м | F33: =LOOKUP([id],Дети[id],Дети[Дата рождения]) -> 1997-05-09 | G33: винтовка | H33: 76 | I33: 4
A34: 389 | B34: =LOOKUP([id],Дети[id],Дети[team_id]) -> 20 | C34: =LOOKUP([team_id],Команды[id],Команды[Коротко]) -> Татарстан | D34: =LOOKUP([id],Дети[id],Дети[ФИО]) -> Шакиров Наиль Алмазович | E34: =LOOKUP([id],Дети[id],Дети[пол]) -> м | F34: =LOOKUP([id],Дети[id],Дети[Дата рождения]) -> 1997-07-30 | G34: винтовка | H34: 74 | I34: 5
A35: 246 | B35: =LOOKUP([id],Дети[id],Дети[team_id]) -> 13 | C35: =LOOKUP([team_id],Команды[id],Команды[Коротко]) -> Владимир | D35: =LOOKUP([id],Дети[id],Дети[ФИО]) -> Бобринев Иван Алексеевич | E35: =LOOKUP([id],Дети[id],Дети[пол]) -> м | F35: =LOOKUP([id],Дети[id],Дети[Дата рождения]) -> 1998-01-14 | G35: винтовка | H35: 72 | I35: 6
A36: 483 | B36: =LOOKUP([id],Дети[id],Дети[team_id]) -> 25 | C36: =LOOKUP([team_id],Команды[id],Команды[Коротко]) -> Ярославль | D36: =LOOKUP([id],Дети[id],Дети[ФИО]) -> Фомичев Родион | E36: =LOOKUP([id],Дети[id],Дети[пол]) -> м | F36: =LOOKUP([id],Дети[id],Дети[Дата рождения]) -> 1997-12-01 | G36: винтовка | H36: 70 | I36: 7
A37: 347 | B37: =LOOKUP([id],Дети[id],Дети[team_id]) -> 18 | C37: =LOOKUP([team_id],Команды[id],Команды[Коротко]) -> Одинцово | D37: =LOOKUP([id],Дети[id],Дети[ФИО]) -> Тюряков Андрей Александрович | E37: =LOOKUP([id],Дети[id],Дети[пол]) -> м | F37: =LOOKUP([id],Дети[id],Дети[Дата рождения]) -> 1997-12-05 | G37: винтовка | H37: 69 | I37: 8
A38: 46 | B38: =LOOKUP([id],Дети[id],Дети[team_id]) -> 3 | C38: =LOOKUP([team_id],Команды[id],Команды[Коротко]) -> Дмитров | D38: =LOOKUP([id],Дети[id],Дети[ФИО]) -> Елисеев Евгений Вячеславович | E38: =LOOKUP([id],Дети[id],Дети[пол]) -> м | F38: =LOOKUP([id],Дети[id],Дети[Дата рождения]) -> 1997-02-24 | G38: винтовка | H38: 67 | I38: 9
A39: 407 | B39: =LOOKUP([id],Дети[id],Дети[team_id]) -> 21 | C39: =LOOKUP([team_id],Команды[id],Команды[Коротко]) -> Ступино | D39: =LOOKUP([id],Дети[id],Дети[ФИО]) -> Куклин Александр Николаевич | E39: =LOOKUP([id],Дети[id],Дети[пол]) -> м | F39: =LOOKUP([id],Дети[id],Дети[Дата рождения]) -> 1997-12-02 | G39: винтовка | H39: 63 | I39: 10
A40: 297 | B40: =LOOKUP([id],Дети[id],Дети[team_id]) -> 15 | C40: =LOOKUP([team_id],Команды[id],Команды[Коротко]) -> Воронеж | D40: =LOOKUP([id],Дети[id],Дети[ФИО]) -> Хамидов Всеволод Александрович | E40: =LOOKUP([id],Дети[id],Дети[пол]) -> м | F40: =LOOKUP([id],Дети[id],Дети[Дата рождения]) -> 1998-02-03 | G40: винтовка | H40: 62 | I40: 11
A41: 6 | B41: =LOOKUP([id],Дети[id],Дети[team_id]) -> 1 | C41: =LOOKUP([team_id],Команды[id],Команды[Коротко]) -> ОМОН | D41: =LOOKUP([id],Дети[id],Дети[ФИО]) -> Платонов Александр Александрович | E41: =LOOKUP([id],Дети[id],Дети[пол]) -> м | F41: =LOOKUP([id],Дети[id],Дети[Дата рождения]) -> 1999-01-05 | G41: винтовка | H41: 61 | I41: 12
A42: 431 | B42: =LOOKUP([id],Дети[id],Дети[team_id]) -> 22 | C42: =LOOKUP([team_id],Команды[id],Команды[Коротко]) -> Киров | D42: =LOOKUP([id],Дети[id],Дети[ФИО]) -> Бледных Виталий | E42: =LOOKUP([id],Дети[id],Дети[пол]) -> м | F42: =LOOKUP([id],Дети[id],Дети[Дата рождения]) -> 1997-06-23 | G42: винтовка | H42: 57 | I42: 13
A43: 524 | B43: =LOOKUP([id],Дети[id],Дети[team_id]) -> 27 | C43: =LOOKUP([team_id],Команды[id],Команды[Коротко]) -> ОМСН | D43: =LOOKUP([id],Дети[id],Дети[ФИО]) -> Тимашков Максим Михайлович | E43: =LOOKUP([id],Дети[id],Дети[пол]) -> м | F43: =LOOKUP([id],Дети[id],Дети[Дата рождения]) -> 1998-04-23 | G43: винтовка | H43: 56 | I43: 14
A44: 502 | B44: =LOOKUP([id],Дети[id],Дети[team_id]) -> 26 | C44: =LOOKUP([team_id],Команды[id],Команды[Коротко]) -> Олимп, Шатура | D44: =LOOKUP([id],Дети[id],Дети[ФИО]) -> Кудряшов Сергей Сергеевич | E44: =LOOKUP([id],Дети[id],Дети[пол]) -> м | F44: =LOOKUP([id],Дети[id],Дети[Дата рождения]) -> 2000-02-15 | G44: винтовка | H44: 56 | I44: 15
A45: 118 | B45: =LOOKUP([id],Дети[id],Дети[team_id]) -> 6 | C45: =LOOKUP([team_id],Команды[id],Команды[Коротко]) -> Энергия, Шатура | D45: =LOOKUP([id],Дети[id],Дети[ФИО]) -> Лосев Дмитрий Александрович | E45: =LOOKUP([id],Дети[id],Дети[пол]) -> м | F45: =LOOKUP([id],Дети[id],Дети[Дата рождения]) -> 1997-12-29 | G45: винтовка | H45: 55 | I45: 16
A46: 30 | B46: =LOOKUP([id],Дети[id],Дети[team_id]) -> 2 | C46: =LOOKUP([team_id],Команды[id],Команды[Коротко]) -> Липецк | D46: =LOOKUP([id],Дети[id],Дети[ФИО]) -> Феклин Алексей Юрьевич | E46: =LOOKUP([id],Дети[id],Дети[пол]) -> м | F46: =LOOKUP([id],Дети[id],Дети[Дата рождения]) -> 1998-06-30 | G46: винтовка | H46: 55 | I46: 17
A47: 220 | B47: =LOOKUP([id],Дети[id],Дети[team_id]) -> 11 | C47: =LOOKUP([team_id],Команды[id],Команды[Коротко]) -> Москва | D47: =LOOKUP([id],Дети[id],Дети[ФИО]) -> Шутков Алексей | E47: =LOOKUP([id],Дети[id],Дети[пол]) -> м | F47: =LOOKUP([id],Дети[id],Дети[Дата рождения]) -> 1998-06-16 | G47: винтовка | H47: 54 | I47: 18
A48: 82 | B48: =LOOKUP([id],Дети[id],Дети[team_id]) -> 5 | C48: =LOOKUP([team_id],Команды[id],Команды[Коротко]) -> Краснодар | D48: =LOOKUP([id],Дети[id],Дети[ФИО]) -> Сметанин Алекс Эдуардович | E48: =LOOKUP([id],Дети[id],Дети[пол]) -> м | F48: =LOOKUP([id],Дети[id],Дети[Дата рождения]) -> 1997-02-13 | G48: винтовка | H48: 49 | I48: 19
A49: 123 | B49: =LOOKUP([id],Дети[id],Дети[team_id]) -> 7 | C49: =LOOKUP([team_id],Команды[id],Команды[Коротко]) -> Клин | D49: =LOOKUP([id],Дети[id],Дети[ФИО]) -> Соколов Никита Сергеевич | E49: =LOOKUP([id],Дети[id],Дети[пол]) -> м | F49: =LOOKUP([id],Дети[id],Дети[Дата рождения]) -> 1998-10-10 | G49: винтовка | H49: 46 | I49: 20
A50: 232 | B50: =LOOKUP([id],Дети[id],Дети[team_id]) -> 12 | C50: =LOOKUP([team_id],Команды[id],Команды[Коротко]) -> Истра | D50: =LOOKUP([id],Дети[id],Дети[ФИО]) -> Трофимов Иван Александрович | E50: =LOOKUP([id],Дети[id],Дети[пол]) -> м | F50: =LOOKUP([id],Дети[id],Дети[Дата рождения]) -> 1998-10-15 | G50: винтовка | H50: 44 | I50: 21
A51: 191 | B51: =LOOKUP([id],Дети[id],Дети[team_id]) -> 10 | C51: =LOOKUP([team_id],Команды[id],Команды[Коротко]) -> Кашира | D51: =LOOKUP([id],Дети[id],Дети[ФИО]) -> Федотов Александр Юрьевич | E51: =LOOKUP([id],Дети[id],Дети[пол]) -> м | F51: =LOOKUP([id],Дети[id],Дети[Дата рождения]) -> 1998-06-27 | G51: винтовка | H51: 41 | I51: 22
A52: 476 | B52: =LOOKUP([id],Дети[id],Дети[team_id]) -> 24 | C52: =LOOKUP([team_id],Команды[id],Команды[Коротко]) -> Пушкино | D52: =LOOKUP([id],Дети[id],Дети[ФИО]) -> Вакарин Сергей Сергеевич | E52: =LOOKUP([id],Дети[id],Дети[пол]) -> м | F52: =LOOKUP([id],Дети[id],Дети[Дата рождения]) -> 1997-02-12 | G52: винтовка | H52: 32 | I52: 23
A53: 268 | B53: =LOOKUP([id],Дети[id],Дети[team_id]) -> 14 | C53: =LOOKUP([team_id],Команды[id],Команды[Коротко]) -> Воскресенск | D53: =LOOKUP([id],Дети[id],Дети[ФИО]) -> Курков Антон Эдуардович | E53: =LOOKUP([id],Дети[id],Дети[пол]) -> м | F53: =LOOKUP([id],Дети[id],Дети[Дата рождения]) -> 1998-04-17 | G53: винтовка | H53: 28 | I53: 24
A54: 146 | B54: =LOOKUP([id],Дети[id],Дети[team_id]) -> 8 | C54: =LOOKUP([team_id],Команды[id],Команды[Коротко]) -> Руза | D54: =LOOKUP([id],Дети[id],Дети[ФИО]) -> Ганичев Николай | E54: =LOOKUP([id],Дети[id],Дети[пол]) -> м | F54: =LOOKUP([id],Дети[id],Дети[Дата рождения]) -> 1997-12-19 | G54: винтовка | H54: 26 | I54: 25
A55: 455 | B55: =LOOKUP([id],Дети[id],Дети[team_id]) -> 23 | C55: =LOOKUP([team_id],Команды[id],Команды[Коротко]) -> Иваново | D55: =LOOKUP([id],Дети[id],Дети[ФИО]) -> Демичев Сергей Владимирович | E55: =LOOKUP([id],Дети[id],Дети[пол]) -> м | F55: =LOOKUP([id],Дети[id],Дети[Дата рождения]) -> 1997-09-01 | G55: винтовка | H55: 22 | I55: 26
A56: 420 | B56: =LOOKUP([id],Дети[id],Дети[team_id]) -> 21 | C56: =LOOKUP([team_id],Команды[id],Команды[Коротко]) -> Ступино | D56: =LOOKUP([id],Дети[id],Дети[ФИО]) -> Перегудова Татьяна Алексеевна | E56: =LOOKUP([id],Дети[id],Дети[пол]) -> д | F56: =LOOKUP([id],Дети[id],Дети[Дата рождения]) -> 1997-01-25 | G56: пистолет | H56: 39 | I56: 1
A57: 170 | B57: =LOOKUP([id],Дети[id],Дети[team_id]) -> 9 | C57: =LOOKUP([team_id],Команды[id],Команды[Коротко]) -> Курск | D57: =LOOKUP([id],Дети[id],Дети[ФИО]) -> Бочарова Елизавета | E57: =LOOKUP([id],Дети[id],Дети[пол]) -> д | F57: =LOOKUP([id],Дети[id],Дети[Дата рождения]) -> 1997-06-25 | G57: пистолет | H57: 38 | I57: 2
A58: 281 | B58: =LOOKUP([id],Дети[id],Дети[team_id]) -> 15 | C58: =LOOKUP([team_id],Команды[id],Команды[Коротко]) -> Воронеж | D58: =LOOKUP([id],Дети[id],Дети[ФИО]) -> Авраменко Юлия Александровна | E58: =LOOKUP([id],Дети[id],Дети[пол]) -> д | F58: =LOOKUP([id],Дети[id],Дети[Дата рождения]) -> 1997-06-18 | G58: пистолет | H58: 36 | I58: 3
A59: 308 | B59: =LOOKUP([id],Дети[id],Дети[team_id]) -> 16 | C59: =LOOKUP([team_id],Команды[id],Команды[Коротко]) -> Тверь | D59: =LOOKUP([id],Дети[id],Дети[ФИО]) -> Золотова Вера Васильевна | E59: =LOOKUP([id],Дети[id],Дети[пол]) -> д | F59: =LOOKUP([id],Дети[id],Дети[Дата рождения]) -> 1997-06-15 | G59: пистолет | H59: 33 | I59: 4
A60: 151 | B60: =LOOKUP([id],Дети[id],Дети[team_id]) -> 8 | C60: =LOOKUP([team_id],Команды[id],Команды[Коротко]) -> Руза | D60: =LOOKUP([id],Дети[id],Дети[ФИО]) -> Ковач Валерия | E60: =LOOKUP([id],Дети[id],Дети[пол]) -> д | F60: =LOOKUP([id],Дети[id],Дети[Дата рождения]) -> 1998-04-05 | G60: пистолет | H60: 30 | I60: 5
A61: 368 | B61: =LOOKUP([id],Дети[id],Дети[team_id]) -> 19 | C61: =LOOKUP([team_id],Команды[id],Команды[Коротко]) -> Тамбов | D61: =LOOKUP([id],Дети[id],Дети[ФИО]) -> Сафронова Дарья | E61: =LOOKUP([id],Дети[id],Дети[пол]) -> д | F61: =LOOKUP([id],Дети[id],Дети[Дата рождения]) -> 1997-11-27 | G61: пистолет | H61: 30 | I61: 6
A62: 211 | B62: =LOOKUP([id],Дети[id],Дети[team_id]) -> 11 | C62: =LOOKUP([team_id],Команды[id],Команды[Коротко]) -> Москва | D62: =LOOKUP([id],Дети[id],Дети[ФИО]) -> Кожаева Екатерина | E62: =LOOKUP([id],Дети[id],Дети[пол]) -> д | F62: =LOOKUP([id],Дети[id],Дети[Дата рождения]) -> 1997-12-03 | G62: пистолет | H62: 29 | I62: 7
A63: 442 | B63: =LOOKUP([id],Дети[id],Дети[team_id]) -> 23 | C63: =LOOKUP([team_id],Команды[id],Команды[Коротко]) -> Иваново | D63: =LOOKUP([id],Дети[id],Дети[ФИО]) -> Киселева Анастасия Андреевна | E63: =LOOKUP([id],Дети[id],Дети[пол]) -> д | F63: =LOOKUP([id],Дети[id],Дети[Дата рождения]) -> 1997-03-14 | G63: пистолет | H63: 29 | I63: 8
A64: 496 | B64: =LOOKUP([id],Дети[id],Дети[team_id]) -> 25 | C64: =LOOKUP([team_id],Команды[id],Команды[Коротко]) -> Ярославль | D64: =LOOKUP([id],Дети[id],Дети[ФИО]) -> Серова Татьяна Валерьевна | E64: =LOOKUP([id],Дети[id],Дети[пол]) -> д | F64: =LOOKUP([id],Дети[id],Дети[Дата рождения]) -> 1997-10-07 | G64: пистолет | H64: 28 | I64: 9
A65: 181 | B65: =LOOKUP([id],Дети[id],Дети[team_id]) -> 10 | C65: =LOOKUP([team_id],Команды[id],Команды[Коротко]) -> Кашира | D65: =LOOKUP([id],Дети[id],Дети[ФИО]) -> Агранат Алёна Александровна | E65: =LOOKUP([id],Дети[id],Дети[пол]) -> д | F65: =LOOKUP([id],Дети[id],Дети[Дата рождения]) -> 1998-06-19 | G65: пистолет | H65: 26 | I65: 10
A66: 393 | B66: =LOOKUP([id],Дети[id],Дети[team_id]) -> 20 | C66: =LOOKUP([team_id],Команды[id],Команды[Коротко]) -> Татарстан | D66: =LOOKUP([id],Дети[id],Дети[ФИО]) -> Паранина Александра Владимировна | E66: =LOOKUP([id],Дети[id],Дети[пол]) -> д | F66: =LOOKUP([id],Дети[id],Дети[Дата рождения]) -> 1997-11-02 | G66: пистолет | H66: 26 | I66: 11
A67: 16 | B67: =LOOKUP([id],Дети[id],Дети[team_id]) -> 1 | C67: =LOOKUP([team_id],Команды[id],Команды[Коротко]) -> ОМОН | D67: =LOOKUP([id],Дети[id],Дети[ФИО]) -> Копытова Варвара Андреевна | E67: =LOOKUP([id],Дети[id],Дети[пол]) -> д | F67: =LOOKUP([id],Дети[id],Дети[Дата рождения]) -> 2000-08-30 | G67: пистолет | H67: 21 | I67: 12
A68: 91 | B68: =LOOKUP([id],Дети[id],Дети[team_id]) -> 5 | C68: =LOOKUP([team_id],Команды[id],Команды[Коротко]) -> Краснодар | D68: =LOOKUP([id],Дети[id],Дети[ФИО]) -> Григорьева Вероника Александровна | E68: =LOOKUP([id],Дети[id],Дети[пол]) -> д | F68: =LOOKUP([id],Дети[id],Дети[Дата рождения]) -> 1998-04-13 | G68: пистолет | H68: 16 | I68: 13
A69: 421 | B69: =LOOKUP([id],Дети[id],Дети[team_id]) -> 22 | C69: =LOOKUP([team_id],Команды[id],Команды[Коротко]) -> Киров | D69: =LOOKUP([id],Дети[id],Дети[ФИО]) -> Безродных Елизавета | E69: =LOOKUP([id],Дети[id],Дети[пол]) -> д | F69: =LOOKUP([id],Дети[id],Дети[Дата рождения]) -> 1997-05-03 | G69: пистолет | H69: 13 | I69: 14
A70: 464 | B70: =LOOKUP([id],Дети[id],Дети[team_id]) -> 24 | C70: =LOOKUP([team_id],Команды[id],Команды[Коротко]) -> Пушкино | D70: =LOOKUP([id],Дети[id],Дети[ФИО]) -> Соколова Оксана Анатольевна | E70: =LOOKUP([id],Дети[id],Дети[пол]) -> д | F70: =LOOKUP([id],Дети[id],Дети[Дата рождения]) -> 1997-09-18 | G70: пистолет | H70: 11 | I70: 15
A71: 37 | B71: =LOOKUP([id],Дети[id],Дети[team_id]) -> 2 | C71: =LOOKUP([team_id],Команды[id],Команды[Коротко]) -> Липецк | D71: =LOOKUP([id],Дети[id],Дети[ФИО]) -> Нестерова Анастасия Сергеевна | E71: =LOOKUP([id],Дети[id],Дети[пол]) -> д | F71: =LOOKUP([id],Дети[id],Дети[Дата рождения]) -> 1997-04-17 | G71: пистолет | H71: 10 | I71: 16
A72: 339 | B72: =LOOKUP([id],Дети[id],Дети[team_id]) -> 17 | C72: =LOOKUP([team_id],Команды[id],Команды[Коротко]) -> Смоленск | D72: =LOOKUP([id],Дети[id],Дети[ФИО]) -> Шалабодина Ангелина Константиновна | E72: =LOOKUP([id],Дети[id],Дети[пол]) -> д | F72: =LOOKUP([id],Дети[id],Дети[Дата рождения]) -> 1999-06-15 | G72: пистолет | H72: 8 | I72: 17
A73: 501 | B73: =LOOKUP([id],Дети[id],Дети[team_id]) -> 26 | C73: =LOOKUP([team_id],Команды[id],Команды[Коротко]) -> Олимп, Шатура | D73: =LOOKUP([id],Дети[id],Дети[ФИО]) -> Косова Анастасия Андреевна | E73: =LOOKUP([id],Дети[id],Дети[пол]) -> д | F73: =LOOKUP([id],Дети[id],Дети[Дата рождения]) -> 1999-01-19 | G73: пистолет | H73: 6 | I73: 18
A74: 261 | B74: =LOOKUP([id],Дети[id],Дети[team_id]) -> 14 | C74: =LOOKUP([team_id],Команды[id],Команды[Коротко]) -> Воскресенск | D74: =LOOKUP([id],Дети[id],Дети[ФИО]) -> Рыбакова Юлия | E74: =LOOKUP([id],Дети[id],Дети[пол]) -> д | F74: =LOOKUP([id],Дети[id],Дети[Дата рождения]) -> 1998-09-11 | G74: пистолет | H74: 3 | I74: 19
A75: 140 | B75: =LOOKUP([id],Дети[id],Дети[team_id]) -> 7 | C75: =LOOKUP([team_id],Команды[id],Команды[Коротко]) -> Клин | D75: =LOOKUP([id],Дети[id],Дети[ФИО]) -> Снеткова Диана Дмитриевна | E75: =LOOKUP([id],Дети[id],Дети[пол]) -> д | F75: =LOOKUP([id],Дети[id],Дети[Дата рождения]) -> 1998-07-25 | G75: пистолет | H75: 2 | I75: 20
A76: 540 | B76: =LOOKUP([id],Дети[id],Дети[team_id]) -> 27 | C76: =LOOKUP([team_id],Команды[id],Команды[Коротко]) -> ОМСН | D76: =LOOKUP([id],Дети[id],Дети[ФИО]) -> Целкова Валерия Дмитриевна | E76: =LOOKUP([id],Дети[id],Дети[пол]) -> д | F76: =LOOKUP([id],Дети[id],Дети[Дата рождения]) -> 1997-01-06 | G76: пистолет | H76: 1 | I76: 21
A77: 254 | B77: =LOOKUP([id],Дети[id],Дети[team_id]) -> 13 | C77: =LOOKUP([team_id],Команды[id],Команды[Коротко]) -> Владимир | D77: =LOOKUP([id],Дети[id],Дети[ФИО]) -> Орлова Татьяна Сергеевна | E77: =LOOKUP([id],Дети[id],Дети[пол]) -> д | F77: =LOOKUP([id],Дети[id],Дети[Дата рождения]) -> 1997-12-09 | G77: пистолет | H77: 1 | I77: 22
A78: 346 | B78: =LOOKUP([id],Дети[id],Дети[team_id]) -> 18 | C78: =LOOKUP([team_id],Команды[id],Команды[Коротко]) -> Одинцово | D78: =LOOKUP([id],Дети[id],Дети[ФИО]) -> Жильцова Виктория Константиновна | E78: =LOOKUP([id],Дети[id],Дети[пол]) -> д | F78: =LOOKUP([id],Дети[id],Дети[Дата рождения]) -> 1999-07-06 | G78: пистолет | H78: 1 | I78: 23
A79: 114 | B79: =LOOKUP([id],Дети[id],Дети[team_id]) -> 6 | C79: =LOOKUP([team_id],Команды[id],Команды[Коротко]) -> Энергия, Шатура | D79: =LOOKUP([id],Дети[id],Дети[ФИО]) -> Бурканова Юлия Владимировна | E79: =LOOKUP([id],Дети[id],Дети[пол]) -> д | F79: =LOOKUP([id],Дети[id],Дети[Дата рождения]) -> 1997-03-21 | G79: пистолет | H79: 0 | I79: 24
A80: 45 | B80: =LOOKUP([id],Дети[id],Дети[team_id]) -> 3 | C80: =LOOKUP([team_id],Команды[id],Команды[Коротко]) -> Дмитров | D80: =LOOKUP([id],Дети[id],Дети[ФИО]) -> Богомолова Ольга Юрьевна | E80: =LOOKUP([id],Дети[id],Дети[пол]) -> д | F80: =LOOKUP([id],Дети[id],Дети[Дата рождения]) -> 1998-07-06 | G80: пистолет | H80: 0 | I80: 25
A81: 224 | B81: =LOOKUP([id],Дети[id],Дети[team_id]) -> 12 | C81: =LOOKUP([team_id],Команды[id],Команды[Коротко]) -> Истра | D81: =LOOKUP([id],Дети[id],Дети[ФИО]) -> Кузнецова Татьяна Алексеевна | E81: =LOOKUP([id],Дети[id],Дети[пол]) -> д | F81: =LOOKUP([id],Дети[id],Дети[Дата рождения]) -> 1997-02-16 | G81: пистолет | H81: 0 | I81: 26
A82: 118 | B82: =LOOKUP([id],Дети[id],Дети[team_id]) -> 6 | C82: =LOOKUP([team_id],Команды[id],Команды[Коротко]) -> Энергия, Шатура | D82: =LOOKUP([id],Дети[id],Дети[ФИО]) -> Лосев Дмитрий Александрович | E82: =LOOKUP([id],Дети[id],Дети[пол]) -> м | F82: =LOOKUP([id],Дети[id],Дети[Дата рождения]) -> 1997-12-29 | G82: пистолет | H82: 61 | I82: 1
A83: 46 | B83: =LOOKUP([id],Дети[id],Дети[team_id]) -> 3 | C83: =LOOKUP([team_id],Команды[id],Команды[Коротко]) -> Дмитров | D83: =LOOKUP([id],Дети[id],Дети[ФИО]) -> Елисеев Евгений Вячеславович | E83: =LOOKUP([id],Дети[id],Дети[пол]) -> м | F83: =LOOKUP([id],Дети[id],Дети[Дата рождения]) -> 1997-02-24 | G83: пистолет | H83: 55 | I83: 2
A84: 347 | B84: =LOOKUP([id],Дети[id],Дети[team_id]) -> 18 | C84: =LOOKUP([team_id],Команды[id],Команды[Коротко]) -> Одинцово | D84: =LOOKUP([id],Дети[id],Дети[ФИО]) -> Тюряков Андрей Александрович | E84: =LOOKUP([id],Дети[id],Дети[пол]) -> м | F84: =LOOKUP([id],Дети[id],Дети[Дата рождения]) -> 1997-12-05 | G84: пистолет | H84: 48 | I84: 3
A85: 191 | B85: =LOOKUP([id],Дети[id],Дети[team_id]) -> 10 | C85: =LOOKUP([team_id],Команды[id],Команды[Коротко]) -> Кашира | D85: =LOOKUP([id],Дети[id],Дети[ФИО]) -> Федотов Александр Юрьевич | E85: =LOOKUP([id],Дети[id],Дети[пол]) -> м | F85: =LOOKUP([id],Дети[id],Дети[Дата рождения]) -> 1998-06-27 | G85: пистолет | H85: 45 | I85: 4
A86: 483 | B86: =LOOKUP([id],Дети[id],Дети[team_id]) -> 25 | C86: =LOOKUP([team_id],Команды[id],Команды[Коротко]) -> Ярославль | D86: =LOOKUP([id],Дети[id],Дети[ФИО]) -> Фомичев Родион | E86: =LOOKUP([id],Дети[id],Дети[пол]) -> м | F86: =LOOKUP([id],Дети[id],Дети[Дата рождения]) -> 1997-12-01 | G86: пистолет | H86: 43 | I86: 5
A87: 268 | B87: =LOOKUP([id],Дети[id],Дети[team_id]) -> 14 | C87: =LOOKUP([team_id],Команды[id],Команды[Коротко]) -> Воскресенск | D87: =LOOKUP([id],Дети[id],Дети[ФИО]) -> Курков Антон Эдуардович | E87: =LOOKUP([id],Дети[id],Дети[пол]) -> м | F87: =LOOKUP([id],Дети[id],Дети[Дата рождения]) -> 1998-04-17 | G87: пистолет | H87: 39 | I87: 6
A88: 407 | B88: =LOOKUP([id],Дети[id],Дети[team_id]) -> 21 | C88: =LOOKUP([team_id],Команды[id],Команды[Коротко]) -> Ступино | D88: =LOOKUP([id],Дети[id],Дети[ФИО]) -> Куклин Александр Николаевич | E88: =LOOKUP([id],Дети[id],Дети[пол]) -> м | F88: =LOOKUP([id],Дети[id],Дети[Дата рождения]) -> 1997-12-02 | G88: пистолет | H88: 33 | I88: 7
A89: 474 | B89: =LOOKUP([id],Дети[id],Дети[team_id]) -> 24 | C89: =LOOKUP([team_id],Команды[id],Команды[Коротко]) -> Пушкино | D89: =LOOKUP([id],Дети[id],Дети[ФИО]) -> Козицкий Сергей Сергеевич | E89: =LOOKUP([id],Дети[id],Дети[пол]) -> м | F89: =LOOKUP([id],Дети[id],Дети[Дата рождения]) -> 1997-11-23 | G89: пистолет | H89: 31 | I89: 8
A90: 297 | B90: =LOOKUP([id],Дети[id],Дети[team_id]) -> 15 | C90: =LOOKUP([team_id],Команды[id],Команды[Коротко]) -> Воронеж | D90: =LOOKUP([id],Дети[id],Дети[ФИО]) -> Хамидов Всеволод Александрович | E90: =LOOKUP([id],Дети[id],Дети[пол]) -> м | F90: =LOOKUP([id],Дети[id],Дети[Дата рождения]) -> 1998-02-03 | G90: пистолет | H90: 30 | I90: 9
A91: 232 | B91: =LOOKUP([id],Дети[id],Дети[team_id]) -> 12 | C91: =LOOKUP([team_id],Команды[id],Команды[Коротко]) -> Истра | D91: =LOOKUP([id],Дети[id],Дети[ФИО]) -> Трофимов Иван Александрович | E91: =LOOKUP([id],Дети[id],Дети[пол]) -> м | F91: =LOOKUP([id],Дети[id],Дети[Дата рождения]) -> 1998-10-15 | G91: пистолет | H91: 30 | I91: 10
A92: 318 | B92: =LOOKUP([id],Дети[id],Дети[team_id]) -> 16 | C92: =LOOKUP([team_id],Команды[id],Команды[Коротко]) -> Тверь | D92: =LOOKUP([id],Дети[id],Дети[ФИО]) -> Владимиров Дмитрий Сергеевич | E92: =LOOKUP([id],Дети[id],Дети[пол]) -> м | F92: =LOOKUP([id],Дети[id],Дети[Дата рождения]) -> 1997-05-09 | G92: пистолет | H92: 30 | I92: 11
A93: 328 | B93: =LOOKUP([id],Дети[id],Дети[team_id]) -> 17 | C93: =LOOKUP([team_id],Команды[id],Команды[Коротко]) -> Смоленск | D93: =LOOKUP([id],Дети[id],Дети[ФИО]) -> Молокоедов Дмитрий Владимирович | E93: =LOOKUP([id],Дети[id],Дети[пол]) -> м | F93: =LOOKUP([id],Дети[id],Дети[Дата рождения]) -> 1998-07-11 | G93: пистолет | H93: 28 | I93: 12
A94: 173 | B94: =LOOKUP([id],Дети[id],Дети[team_id]) -> 9 | C94: =LOOKUP([team_id],Команды[id],Команды[Коротко]) -> Курск | D94: =LOOKUP([id],Дети[id],Дети[ФИО]) -> Мосолов Валерий | E94: =LOOKUP([id],Дети[id],Дети[пол]) -> м | F94: =LOOKUP([id],Дети[id],Дети[Дата рождения]) -> 1997-06-10 | G94: пистолет | H94: 24 | I94: 13
A95: 431 | B95: =LOOKUP([id],Дети[id],Дети[team_id]) -> 22 | C95: =LOOKUP([team_id],Команды[id],Команды[Коротко]) -> Киров | D95: =LOOKUP([id],Дети[id],Дети[ФИО]) -> Бледных Виталий | E95: =LOOKUP([id],Дети[id],Дети[пол]) -> м | F95: =LOOKUP([id],Дети[id],Дети[Дата рождения]) -> 1997-06-23 | G95: пистолет | H95: 24 | I95: 14
A96: 123 | B96: =LOOKUP([id],Дети[id],Дети[team_id]) -> 7 | C96: =LOOKUP([team_id],Команды[id],Команды[Коротко]) -> Клин | D96: =LOOKUP([id],Дети[id],Дети[ФИО]) -> Соколов Никита Сергеевич | E96: =LOOKUP([id],Дети[id],Дети[пол]) -> м | F96: =LOOKUP([id],Дети[id],Дети[Дата рождения]) -> 1998-10-10 | G96: пистолет | H96: 23 | I96: 15
A97: 6 | B97: =LOOKUP([id],Дети[id],Дети[team_id]) -> 1 | C97: =LOOKUP([team_id],Команды[id],Команды[Коротко]) -> ОМОН | D97: =LOOKUP([id],Дети[id],Дети[ФИО]) -> Платонов Александр Александрович | E97: =LOOKUP([id],Дети[id],Дети[пол]) -> м | F97: =LOOKUP([id],Дети[id],Дети[Дата рождения]) -> 1999-01-05 | G97: пистолет | H97: 22 | I97: 16
A98: 371 | B98: =LOOKUP([id],Дети[id],Дети[team_id]) -> 19 | C98: =LOOKUP([team_id],Команды[id],Команды[Коротко]) -> Тамбов | D98: =LOOKUP([id],Дети[id],Дети[ФИО]) -> Куров Алексей | E98: =LOOKUP([id],Дети[id],Дети[пол]) -> м | F98: =LOOKUP([id],Дети[id],Дети[Дата рождения]) -> 1997-05-12 | G98: пистолет | H98: 22 | I98: 17
A99: 30 | B99: =LOOKUP([id],Дети[id],Дети[team_id]) -> 2 | C99: =LOOKUP([team_id],Команды[id],Команды[Коротко]) -> Липецк | D99: =LOOKUP([id],Дети[id],Дети[ФИО]) -> Феклин Алексей Юрьевич | E99: =LOOKUP([id],Дети[id],Дети[пол]) -> м | F99: =LOOKUP([id],Дети[id],Дети[Дата рождения]) -> 1998-06-30 | G99: пистолет | H99: 15 | I99: 18
A100: 389 | B100: =LOOKUP([id],Дети[id],Дети[team_id]) -> 20 | C100: =LOOKUP([team_id],Команды[id],Команды[Коротко]) -> Татарстан | D100: =LOOKUP([id],Дети[id],Дети[ФИО]) -> Шакиров Наиль Алмазович | E100: =LOOKUP([id],Дети[id],Дети[пол]) -> м | F100: =LOOKUP([id],Дети[id],Дети[Дата рождения]) -> 1997-07-30 | G100: пистолет | H100: 14 | I100: 19
A101: 246 | B101: =LOOKUP([id],Дети[id],Дети[team_id]) -> 13 | C101: =LOOKUP([team_id],Команды[id],Команды[Коротко]) -> Владимир | D101: =LOOKUP([id],Дети[id],Дети[ФИО]) -> Бобринев Иван Алексеевич | E101: =LOOKUP([id],Дети[id],Дети[пол]) -> м | F101: =LOOKUP([id],Дети[id],Дети[Дата рождения]) -> 1998-01-14 | G101: пистолет | H101: 14 | I101: 20
A102: 518 | B102: =LOOKUP([id],Дети[id],Дети[team_id]) -> 26 | C102: =LOOKUP([team_id],Команды[id],Команды[Коротко]) -> Олимп, Шатура | D102: =LOOKUP([id],Дети[id],Дети[ФИО]) -> Краснов Владислав Александрович | E102: =LOOKUP([id],Дети[id],Дети[пол]) -> м | F102: =LOOKUP([id],Дети[id],Дети[Дата рождения]) -> 1997-08-09 | G102: пистолет | H102: 14 | I102: 21
A103: 444 | B103: =LOOKUP([id],Дети[id],Дети[team_id]) -> 23 | C103: =LOOKUP([team_id],Команды[id],Команды[Коротко]) -> Иваново | D103: =LOOKUP([id],Дети[id],Дети[ФИО]) -> Назаров Антон Владимирович | E103: =LOOKUP([id],Дети[id],Дети[пол]) -> м | F103: =LOOKUP([id],Дети[id],Дети[Дата рождения]) -> 1998-07-20 | G103: пистолет | H103: 11 | I103: 22
A104: 82 | B104: =LOOKUP([id],Дети[id],Дети[team_id]) -> 5 | C104: =LOOKUP([team_id],Команды[id],Команды[Коротко]) -> Краснодар | D104: =LOOKUP([id],Дети[id],Дети[ФИО]) -> Сметанин Алекс Эдуардович | E104: =LOOKUP([id],Дети[id],Дети[пол]) -> м | F104: =LOOKUP([id],Дети[id],Дети[Дата рождения]) -> 1997-02-13 | G104: пистолет | H104: 11 | I104: 23
A105: 220 | B105: =LOOKUP([id],Дети[id],Дети[team_id]) -> 11 | C105: =LOOKUP([team_id],Команды[id],Команды[Коротко]) -> Москва | D105: =LOOKUP([id],Дети[id],Дети[ФИО]) -> Шутков Алексей | E105: =LOOKUP([id],Дети[id],Дети[пол]) -> м | F105: =LOOKUP([id],Дети[id],Дети[Дата рождения]) -> 1998-06-16 | G105: пистолет | H105: 4 | I105: 24
A106: 524 | B106: =LOOKUP([id],Дети[id],Дети[team_id]) -> 27 | C106: =LOOKUP([team_id],Команды[id],Команды[Коротко]) -> ОМСН | D106: =LOOKUP([id],Дети[id],Дети[ФИО]) -> Тимашков Максим Михайлович | E106: =LOOKUP([id],Дети[id],Дети[пол]) -> м | F106: =LOOKUP([id],Дети[id],Дети[Дата рождения]) -> 1998-04-23 | G106: пистолет | H106: 4 | I106: 25
A107: 145 | B107: =LOOKUP([id],Дети[id],Дети[team_id]) -> 8 | C107: =LOOKUP([team_id],Команды[id],Команды[Коротко]) -> Руза | D107: =LOOKUP([id],Дети[id],Дети[ФИО]) -> Сорокин Алексей | E107: =LOOKUP([id],Дети[id],Дети[пол]) -> м | F107: =LOOKUP([id],Дети[id],Дети[Дата рождения]) -> 1998-01-28 | G107: пистолет | H107: 1 | I107: 26
C110: Председатель оргкомитета /Громов А.Г./

Sheet стрельба-АК
C1: Протокол №5 (стрельба-АК)
G2: 5 июня 2011, 15:43
A3: id | B3: team_id | C3: Команда | D3: ФИО | E3: Дата рождения | F3: Результат | G3: Место
A4: 540 | B4: =LOOKUP([id],Дети[id],Дети[team_id]) -> 27 | C4: =LOOKUP([team_id],Команды[id],Команды[Коротко]) -> ОМСН | D4: =LOOKUP([id],Дети[id],Дети[ФИО]) -> Целкова Валерия Дмитриевна | E4: =LOOKUP([id],Дети[id],Дети[Дата рождения]) -> 1997-01-06 | F4: 78 | G4: 1
A5: 421 | B5: =LOOKUP([id],Дети[id],Дети[team_id]) -> 22 | C5: =LOOKUP([team_id],Команды[id],Команды[Коротко]) -> Киров | D5: =LOOKUP([id],Дети[id],Дети[ФИО]) -> Безродных Елизавета | E5: =LOOKUP([id],Дети[id],Дети[Дата рождения]) -> 1997-05-03 | F5: 77 | G5: 2
A6: 220 | B6: =LOOKUP([id],Дети[id],Дети[team_id]) -> 11 | C6: =LOOKUP([team_id],Команды[id],Команды[Коротко]) -> Москва | D6: =LOOKUP([id],Дети[id],Дети[ФИО]) -> Шутков Алексей | E6: =LOOKUP([id],Дети[id],Дети[Дата рождения]) -> 1998-06-16 | F6: 77 | G6: 3
A7: 407 | B7: =LOOKUP([id],Дети[id],Дети[team_id]) -> 21 | C7: =LOOKUP([team_id],Команды[id],Команды[Коротко]) -> Ступино | D7: =LOOKUP([id],Дети[id],Дети[ФИО]) -> Куклин Александр Николаевич | E7: =LOOKUP([id],Дети[id],Дети[Дата рождения]) -> 1997-12-02 | F7: 74 | G7: 4
A8: 105 | B8: =LOOKUP([id],Дети[id],Дети[team_id]) -> 6 | C8: =LOOKUP([team_id],Команды[id],Команды[Коротко]) -> Энергия, Шатура | D8: =LOOKUP([id],Дети[id],Дети[ФИО]) -> Щепкин Валерий Витальевич | E8: =LOOKUP([id],Дети[id],Дети[Дата рождения]) -> 1997-04-18 | F8: 70 | G8: 5
A9: 41 | B9: =LOOKUP([id],Дети[id],Дети[team_id]) -> 3 | C9: =LOOKUP([team_id],Команды[id],Команды[Коротко]) -> Дмитров | D9: =LOOKUP([id],Дети[id],Дети[ФИО]) -> Тагасов Семен Павлович | E9: =LOOKUP([id],Дети[id],Дети[Дата рождения]) -> 1997-04-17 | F9: 68 | G9: 6
A10: 319 | B10: =LOOKUP([id],Дети[id],Дети[team_id]) -> 16 | C10: =LOOKUP([team_id],Команды[id],Команды[Коротко]) -> Тверь | D10: =LOOKUP([id],Дети[id],Дети[ФИО]) -> Ханина Валерия Дмитриевна | E10: =LOOKUP([id],Дети[id],Дети[Дата рождения]) -> 1998-03-26 | F10: 67 | G10: 7
A11: 347 | B11: =LOOKUP([id],Дети[id],Дети[team_id]) -> 18 | C11: =LOOKUP([team_id],Команды[id],Команды[Коротко]) -> Одинцово | D11: =LOOKUP([id],Дети[id],Дети[ФИО]) -> Тюряков Андрей Александрович | E11: =LOOKUP([id],Дети[id],Дети[Дата рождения]) -> 1997-12-05 | F11: 66 | G11: 8
A12: 514 | B12: =LOOKUP([id],Дети[id],Дети[team_id]) -> 26 | C12: =LOOKUP([team_id],Команды[id],Команды[Коротко]) -> Олимп, Шатура | D12: =LOOKUP([id],Дети[id],Дети[ФИО]) -> Филиппов Матвей Сергеевич | E12: =LOOKUP([id],Дети[id],Дети[Дата рождения]) -> 2000-01-06 | F12: 64 | G12: 9
A13: 151 | B13: =LOOKUP([id],Дети[id],Дети[team_id]) -> 8 | C13: =LOOKUP([team_id],Команды[id],Команды[Коротко]) -> Руза | D13: =LOOKUP([id],Дети[id],Дети[ФИО]) -> Ковач Валерия | E13: =LOOKUP([id],Дети[id],Дети[Дата рождения]) -> 1998-04-05 | F13: 64 | G13: 10
A14: 82 | B14: =LOOKUP([id],Дети[id],Дети[team_id]) -> 5 | C14: =LOOKUP([team_id],Команды[id],Команды[Коротко]) -> Краснодар | D14: =LOOKUP([id],Дети[id],Дети[ФИО]) -> Сметанин Алекс Эдуардович | E14: =LOOKUP([id],Дети[id],Дети[Дата рождения]) -> 1997-02-13 | F14: 59 | G14: 11
A15: 127 | B15: =LOOKUP([id],Дети[id],Дети[team_id]) -> 7 | C15: =LOOKUP([team_id],Команды[id],Команды[Коротко]) -> Клин | D15: =LOOKUP([id],Дети[id],Дети[ФИО]) -> Козлов Федор Дмитриевич | E15: =LOOKUP([id],Дети[id],Дети[Дата рождения]) -> 1998-05-15 | F15: 57 | G15: 12
A16: 374 | B16: =LOOKUP([id],Дети[id],Дети[team_id]) -> 19 | C16: =LOOKUP([team_id],Команды[id],Команды[Коротко]) -> Тамбов | D16: =LOOKUP([id],Дети[id],Дети[ФИО]) -> Рябов Антон | E16: =LOOKUP([id],Дети[id],Дети[Дата рождения]) -> 1997-01-28 | F16: 49 | G16: 13
A17: 161 | B17: =LOOKUP([id],Дети[id],Дети[team_id]) -> 9 | C17: =LOOKUP([team_id],Команды[id],Команды[Коротко]) -> Курск | D17: =LOOKUP([id],Дети[id],Дети[ФИО]) -> Власов Денис | E17: =LOOKUP([id],Дети[id],Дети[Дата рождения]) -> 1997-10-03 | F17: 31 | G17: 14
A18: 392 | B18: =LOOKUP([id],Дети[id],Дети[team_id]) -> 20 | C18: =LOOKUP([team_id],Команды[id],Команды[Коротко]) -> Татарстан | D18: =LOOKUP([id],Дети[id],Дети[ФИО]) -> Чалая Наталия Валерьевна | E18: =LOOKUP([id],Дети[id],Дети[Дата рождения]) -> 1997-06-13 | F18: 25 | G18: 15
A19: 232 | B19: =LOOKUP([id],Дети[id],Дети[team_id]) -> 12 | C19: =LOOKUP([team_id],Команды[id],Команды[Коротко]) -> Истра | D19: =LOOKUP([id],Дети[id],Дети[ФИО]) -> Трофимов Иван Александрович | E19: =LOOKUP([id],Дети[id],Дети[Дата рождения]) -> 1998-10-15 | F19: 24 | G19: 16
A20: 5 | B20: =LOOKUP([id],Дети[id],Дети[team_id]) -> 1 | C20: =LOOKUP([team_id],Команды[id],Команды[Коротко]) -> ОМОН | D20: =LOOKUP([id],Дети[id],Дети[ФИО]) -> Заварихин Семен Александрович | E20: =LOOKUP([id],Дети[id],Дети[Дата рождения]) -> 1997-12-16 | F20: 21 | G20: 17
A21: 489 | B21: =LOOKUP([id],Дети[id],Дети[team_id]) -> 25 | C21: =LOOKUP([team_id],Команды[id],Команды[Коротко]) -> Ярославль | D21: =LOOKUP([id],Дети[id],Дети[ФИО]) -> Вьюшин Евгений Вячеславович | E21: =LOOKUP([id],Дети[id],Дети[Дата рождения]) -> 1997-12-16 | F21: 19 | G21: 18
A22: 322 | B22: =LOOKUP([id],Дети[id],Дети[team_id]) -> 17 | C22: =LOOKUP([team_id],Команды[id],Команды[Коротко]) -> Смоленск | D22: =LOOKUP([id],Дети[id],Дети[ФИО]) -> Путилин Захар Алексеевич | E22: =LOOKUP([id],Дети[id],Дети[Дата рождения]) -> 1997-04-02 | F22: 15 | G22: 19
A23: 253 | B23: =LOOKUP([id],Дети[id],Дети[team_id]) -> 13 | C23: =LOOKUP([team_id],Команды[id],Команды[Коротко]) -> Владимир | D23: =LOOKUP([id],Дети[id],Дети[ФИО]) -> Сухарников Александр Александрович | E23: =LOOKUP([id],Дети[id],Дети[Дата рождения]) -> 1998-01-04 | F23: 14 | G23: 20
A24: 463 | B24: =LOOKUP([id],Дети[id],Дети[team_id]) -> 24 | C24: =LOOKUP([team_id],Команды[id],Команды[Коротко]) -> Пушкино | D24: =LOOKUP([id],Дети[id],Дети[ФИО]) -> Жуков Вячеслав Викторович | E24: =LOOKUP([id],Дети[id],Дети[Дата рождения]) -> 1997-07-16 | F24: 14 | G24: 21
A25: 447 | B25: =LOOKUP([id],Дети[id],Дети[team_id]) -> 23 | C25: =LOOKUP([team_id],Команды[id],Команды[Коротко]) -> Иваново | D25: =LOOKUP([id],Дети[id],Дети[ФИО]) -> Данько Артем Александрович | E25: =LOOKUP([id],Дети[id],Дети[Дата рождения]) -> 1997-09-27 | F25: 8 | G25: 22
A26: 292 | B26: =LOOKUP([id],Дети[id],Дети[team_id]) -> 15 | C26: =LOOKUP([team_id],Команды[id],Команды[Коротко]) -> Воронеж | D26: =LOOKUP([id],Дети[id],Дети[ФИО]) -> Кальченко Никита Сергеевич | E26: =LOOKUP([id],Дети[id],Дети[Дата рождения]) -> 1997-06-26 | F26: 7 | G26: 23
A27: 186 | B27: =LOOKUP([id],Дети[id],Дети[team_id]) -> 10 | C27: =LOOKUP([team_id],Команды[id],Команды[Коротко]) -> Кашира | D27: =LOOKUP([id],Дети[id],Дети[ФИО]) -> Кузина Лидия Эдуардовна | E27: =LOOKUP([id],Дети[id],Дети[Дата рождения]) -> 1998-11-21 | F27: 0 | G27: 24
A28: 269 | B28: =LOOKUP([id],Дети[id],Дети[team_id]) -> 14 | C28: =LOOKUP([team_id],Команды[id],Команды[Коротко]) -> Воскресенск | D28: =LOOKUP([id],Дети[id],Дети[ФИО]) -> Мурашов Максим Александрович | E28: =LOOKUP([id],Дети[id],Дети[Дата рождения]) -> 1999-02-23 | F28: 0 | G28: 25
A29: 24 | B29: =LOOKUP([id],Дети[id],Дети[team_id]) -> 2 | C29: =LOOKUP([team_id],Команды[id],Команды[Коротко]) -> Липецк | D29: =LOOKUP([id],Дети[id],Дети[ФИО]) -> Матвиенко Даниил Николаевич | E29: =LOOKUP([id],Дети[id],Дети[Дата рождения]) -> 1999-07-30 | F29: 0 | G29: 26
C32: Председатель оргкомитета /Громов А.Г./

Sheet подтягивание
C1: Протокол №6 (подтягивание)
G2: 5 июня 2011, 13:59
A3: id | B3: team_id | C3: Команда | D3: ФИО | E3: Дата рождения | F3: результат | G3: Место
A4: 399 | B4: =LOOKUP([id],Дети[id],Дети[team_id]) -> 20 | C4: =LOOKUP([team_id],Команды[id],Команды[Коротко]) -> Татарстан | D4: =LOOKUP([id],Дети[id],Дети[ФИО]) -> Идрисов Амир Рустамович | E4: =LOOKUP([id],Дети[id],Дети[Дата рождения]) -> 1999-05-06 | F4: 44 | G4: 1
A5: 388 | B5: =LOOKUP([id],Дети[id],Дети[team_id]) -> 20 | C5: =LOOKUP([team_id],Команды[id],Команды[Коротко]) -> Татарстан | D5: =LOOKUP([id],Дети[id],Дети[ФИО]) -> Паранин Николай Александрович | E5: =LOOKUP([id],Дети[id],Дети[Дата рождения]) -> 2000-11-18 | F5: 38 | G5: 2
A6: 361 | B6: =LOOKUP([id],Дети[id],Дети[team_id]) -> 19 | C6: =LOOKUP([team_id],Команды[id],Команды[Коротко]) -> Тамбов | D6: =LOOKUP([id],Дети[id],Дети[ФИО]) -> Михалев Константин | E6: =LOOKUP([id],Дети[id],Дети[Дата рождения]) -> 1997-10-29 | F6: 25 | G6: 3
A7: 317 | B7: =LOOKUP([id],Дети[id],Дети[team_id]) -> 16 | C7: =LOOKUP([team_id],Команды[id],Команды[Коротко]) -> Тверь | D7: =LOOKUP([id],Дети[id],Дети[ФИО]) -> Иванов Максим Сергеевич | E7: =LOOKUP([id],Дети[id],Дети[Дата рождения]) -> 1997-08-14 | F7: 25 | G7: 4
A8: 518 | B8: =LOOKUP([id],Дети[id],Дети[team_id]) -> 26 | C8: =LOOKUP([team_id],Команды[id],Команды[Коротко]) -> Олимп, Шатура | D8: =LOOKUP([id],Дети[id],Дети[ФИО]) -> Краснов Владислав Александрович | E8: =LOOKUP([id],Дети[id],Дети[Дата рождения]) -> 1997-08-09 | F8: 25 | G8: 5
A9: 512 | B9: =LOOKUP([id],Дети[id],Дети[team_id]) -> 26 | C9: =LOOKUP([team_id],Команды[id],Команды[Коротко]) -> Олимп, Шатура | D9: =LOOKUP([id],Дети[id],Дети[ФИО]) -> Шорин Илья павлович | E9: =LOOKUP([id],Дети[id],Дети[Дата рождения]) -> 1997-07-11 | F9: 25 | G9: 6
A10: 328 | B10: =LOOKUP([id],Дети[id],Дети[team_id]) -> 17 | C10: =LOOKUP([team_id],Команды[id],Команды[Коротко]) -> Смоленск | D10: =LOOKUP([id],Дети[id],Дети[ФИО]) -> Молокоедов Дмитрий Владимирович | E10: =LOOKUP([id],Дети[id],Дети[Дата рождения]) -> 1998-07-11 | F10: 24 | G10: 7
A11: 43 | B11: =LOOKUP([id],Дети[id],Дети[team_id]) -> 3 | C11: =LOOKUP([team_id],Команды[id],Команды[Коротко]) -> Дмитров | D11: =LOOKUP([id],Дети[id],Дети[ФИО]) -> Сарафанов Михаил Алекссевич | E11: =LOOKUP([id],Дети[id],Дети[Дата рождения]) -> 1997-11-12 | F11: 24 | G11: 8
A12: 81 | B12: =LOOKUP([id],Дети[id],Дети[team_id]) -> 5 | C12: =LOOKUP([team_id],Команды[id],Команды[Коротко]) -> Краснодар | D12: =LOOKUP([id],Дети[id],Дети[ФИО]) -> Ханануев Аким Дмитриевич | E12: =LOOKUP([id],Дети[id],Дети[Дата рождения]) -> 1997-06-13 | F12: 23 | G12: 9
A13: 302 | B13: =LOOKUP([id],Дети[id],Дети[team_id]) -> 16 | C13: =LOOKUP([team_id],Команды[id],Команды[Коротко]) -> Тверь | D13: =LOOKUP([id],Дети[id],Дети[ФИО]) -> Нестерович Станислав Константинович | E13: =LOOKUP([id],Дети[id],Дети[Дата рождения]) -> 1997-05-18 | F13: 23 | G13: 10
A14: 415 | B14: =LOOKUP([id],Дети[id],Дети[team_id]) -> 21 | C14: =LOOKUP([team_id],Команды[id],Команды[Коротко]) -> Ступино | D14: =LOOKUP([id],Дети[id],Дети[ФИО]) -> Валуев Кирилл Вячеславович | E14: =LOOKUP([id],Дети[id],Дети[Дата рождения]) -> 1997-02-17 | F14: 23 | G14: 11
A15: 375 | B15: =LOOKUP([id],Дети[id],Дети[team_id]) -> 19 | C15: =LOOKUP([team_id],Команды[id],Команды[Коротко]) -> Тамбов | D15: =LOOKUP([id],Дети[id],Дети[ФИО]) -> Пустограев Григорий | E15: =LOOKUP([id],Дети[id],Дети[Дата рождения]) -> 1997-10-21 | F15: 22 | G15: 12
A16: 103 | B16: =LOOKUP([id],Дети[id],Дети[team_id]) -> 6 | C16: =LOOKUP([team_id],Команды[id],Команды[Коротко]) -> Энергия, Шатура | D16: =LOOKUP([id],Дети[id],Дети[ФИО]) -> Забабуркин Константин Юрьевич | E16: =LOOKUP([id],Дети[id],Дети[Дата рождения]) -> 1997-09-28 | F16: 21 | G16: 13
A17: 241 | B17: =LOOKUP([id],Дети[id],Дети[team_id]) -> 13 | C17: =LOOKUP([team_id],Команды[id],Команды[Коротко]) -> Владимир | D17: =LOOKUP([id],Дети[id],Дети[ФИО]) -> Садаков Анатолий Сергеевич | E17: =LOOKUP([id],Дети[id],Дети[Дата рождения]) -> 1999-05-19 | F17: 20 | G17: 14
A18: 250 | B18: =LOOKUP([id],Дети[id],Дети[team_id]) -> 13 | C18: =LOOKUP([team_id],Команды[id],Команды[Коротко]) -> Владимир | D18: =LOOKUP([id],Дети[id],Дети[ФИО]) -> Моисеев Артем Владимирович | E18: =LOOKUP([id],Дети[id],Дети[Дата рождения]) -> 1998-04-03 | F18: 20 | G18: 15
A19: 497 | B19: =LOOKUP([id],Дети[id],Дети[team_id]) -> 25 | C19: =LOOKUP([team_id],Команды[id],Команды[Коротко]) -> Ярославль | D19: =LOOKUP([id],Дети[id],Дети[ФИО]) -> Салтыков Владимир | E19: =LOOKUP([id],Дети[id],Дети[Дата рождения]) -> 1997-12-10 | F19: 20 | G19: 16
A20: 323 | B20: =LOOKUP([id],Дети[id],Дети[team_id]) -> 17 | C20: =LOOKUP([team_id],Команды[id],Команды[Коротко]) -> Смоленск | D20: =LOOKUP([id],Дети[id],Дети[ФИО]) -> Останков Артем Александрович | E20: =LOOKUP([id],Дети[id],Дети[Дата рождения]) -> 1997-11-27 | F20: 20 | G20: 17
A21: 199 | B21: =LOOKUP([id],Дети[id],Дети[team_id]) -> 10 | C21: =LOOKUP([team_id],Команды[id],Команды[Коротко]) -> Кашира | D21: =LOOKUP([id],Дети[id],Дети[ФИО]) -> Комаров Дмитрий Александрович | E21: =LOOKUP([id],Дети[id],Дети[Дата рождения]) -> 1998-11-15 | F21: 18 | G21: 18
A22: 438 | B22: =LOOKUP([id],Дети[id],Дети[team_id]) -> 22 | C22: =LOOKUP([team_id],Команды[id],Команды[Коротко]) -> Киров | D22: =LOOKUP([id],Дети[id],Дети[ФИО]) -> Мовсесян Рофаэл | E22: =LOOKUP([id],Дети[id],Дети[Дата рождения]) -> 1997-05-04 | F22: 18 | G22: 19
A23: 239 | B23: =LOOKUP([id],Дети[id],Дети[team_id]) -> 12 | C23: =LOOKUP([team_id],Команды[id],Команды[Коротко]) -> Истра | D23: =LOOKUP([id],Дети[id],Дети[ФИО]) -> Пылаев Дмитрий Евгеньевич | E23: =LOOKUP([id],Дети[id],Дети[Дата рождения]) -> 1999-06-16 | F23: 17 | G23: 20
A24: 179 | B24: =LOOKUP([id],Дети[id],Дети[team_id]) -> 9 | C24: =LOOKUP([team_id],Команды[id],Команды[Коротко]) -> Курск | D24: =LOOKUP([id],Дети[id],Дети[ФИО]) -> Исаев Ахмед | E24: =LOOKUP([id],Дети[id],Дети[Дата рождения]) -> 1997-01-22 | F24: 17 | G24: 21
A25: 522 | B25: =LOOKUP([id],Дети[id],Дети[team_id]) -> 27 | C25: =LOOKUP([team_id],Команды[id],Команды[Коротко]) -> ОМСН | D25: =LOOKUP([id],Дети[id],Дети[ФИО]) -> Леваков Илья Владимирович | E25: =LOOKUP([id],Дети[id],Дети[Дата рождения]) -> 1997-01-07 | F25: 17 | G25: 22
A26: 42 | B26: =LOOKUP([id],Дети[id],Дети[team_id]) -> 3 | C26: =LOOKUP([team_id],Команды[id],Команды[Коротко]) -> Дмитров | D26: =LOOKUP([id],Дети[id],Дети[ФИО]) -> Севрюков Валерий Юрьевич | E26: =LOOKUP([id],Дети[id],Дети[Дата рождения]) -> 1999-09-29 | F26: 16 | G26: 23
A27: 88 | B27: =LOOKUP([id],Дети[id],Дети[team_id]) -> 5 | C27: =LOOKUP([team_id],Команды[id],Команды[Коротко]) -> Краснодар | D27: =LOOKUP([id],Дети[id],Дети[ФИО]) -> Черников Александр Владимирович | E27: =LOOKUP([id],Дети[id],Дети[Дата рождения]) -> 1998-03-22 | F27: 16 | G27: 24
A28: 435 | B28: =LOOKUP([id],Дети[id],Дети[team_id]) -> 22 | C28: =LOOKUP([team_id],Команды[id],Команды[Коротко]) -> Киров | D28: =LOOKUP([id],Дети[id],Дети[ФИО]) -> Медведев Никита | E28: =LOOKUP([id],Дети[id],Дети[Дата рождения]) -> 1997-10-24 | F28: 16 | G28: 25
A29: 141 | B29: =LOOKUP([id],Дети[id],Дети[team_id]) -> 8 | C29: =LOOKUP([team_id],Команды[id],Команды[Коротко]) -> Руза | D29: =LOOKUP([id],Дети[id],Дети[ФИО]) -> Кузьмин Максим | E29: =LOOKUP([id],Дети[id],Дети[Дата рождения]) -> 1997-09-12 | F29: 16 | G29: 26
A30: 19 | B30: =LOOKUP([id],Дети[id],Дети[team_id]) -> 1 | C30: =LOOKUP([team_id],Команды[id],Команды[Коротко]) -> ОМОН | D30: =LOOKUP([id],Дети[id],Дети[ФИО]) -> Амплеев Кирилл Олегович | E30: =LOOKUP([id],Дети[id],Дети[Дата рождения]) -> 1998-06-05 | F30: 15 | G30: 27
A31: 28 | B31: =LOOKUP([id],Дети[id],Дети[team_id]) -> 2 | C31: =LOOKUP([team_id],Команды[id],Команды[Коротко]) -> Липецк | D31: =LOOKUP([id],Дети[id],Дети[ФИО]) -> Шмыгалев Евгений Геннадьевич | E31: =LOOKUP([id],Дети[id],Дети[Дата рождения]) -> 1998-05-03 | F31: 15 | G31: 28
A32: 489 | B32: =LOOKUP([id],Дети[id],Дети[team_id]) -> 25 | C32: =LOOKUP([team_id],Команды[id],Команды[Коротко]) -> Ярославль | D32: =LOOKUP([id],Дети[id],Дети[ФИО]) -> Вьюшин Евгений Вячеславович | E32: =LOOKUP([id],Дети[id],Дети[Дата рождения]) -> 1997-12-16 | F32: 15 | G32: 29
A33: 283 | B33: =LOOKUP([id],Дети[id],Дети[team_id]) -> 15 | C33: =LOOKUP([team_id],Команды[id],Команды[Коротко]) -> Воронеж | D33: =LOOKUP([id],Дети[id],Дети[ФИО]) -> Долгалев Владислав Сергеевич | E33: =LOOKUP([id],Дети[id],Дети[Дата рождения]) -> 1997-07-07 | F33: 15 | G33: 30
A34: 476 | B34: =LOOKUP([id],Дети[id],Дети[team_id]) -> 24 | C34: =LOOKUP([team_id],Команды[id],Команды[Коротко]) -> Пушкино | D34: =LOOKUP([id],Дети[id],Дети[ФИО]) -> Вакарин Сергей Сергеевич | E34: =LOOKUP([id],Дети[id],Дети[Дата рождения]) -> 1997-02-12 | F34: 15 | G34: 31
A35: 30 | B35: =LOOKUP([id],Дети[id],Дети[team_id]) -> 2 | C35: =LOOKUP([team_id],Команды[id],Команды[Коротко]) -> Липецк | D35: =LOOKUP([id],Дети[id],Дети[ФИО]) -> Феклин Алексей Юрьевич | E35: =LOOKUP([id],Дети[id],Дети[Дата рождения]) -> 1998-06-30 | F35: 14 | G35: 32
A36: 357 | B36: =LOOKUP([id],Дети[id],Дети[team_id]) -> 18 | C36: =LOOKUP([team_id],Команды[id],Команды[Коротко]) -> Одинцово | D36: =LOOKUP([id],Дети[id],Дети[ФИО]) -> Суворкин Илья Константинович | E36: =LOOKUP([id],Дети[id],Дети[Дата рождения]) -> 1997-06-07 | F36: 14 | G36: 33
A37: 195 | B37: =LOOKUP([id],Дети[id],Дети[team_id]) -> 10 | C37: =LOOKUP([team_id],Команды[id],Команды[Коротко]) -> Кашира | D37: =LOOKUP([id],Дети[id],Дети[ФИО]) -> Пахомов Ярослав Николаевич | E37: =LOOKUP([id],Дети[id],Дети[Дата рождения]) -> 1997-05-06 | F37: 14 | G37: 34
A38: 236 | B38: =LOOKUP([id],Дети[id],Дети[team_id]) -> 12 | C38: =LOOKUP([team_id],Команды[id],Команды[Коротко]) -> Истра | D38: =LOOKUP([id],Дети[id],Дети[ФИО]) -> Талыбов Орхан | E38: =LOOKUP([id],Дети[id],Дети[Дата рождения]) -> 1998-03-24 | F38: 13 | G38: 35
A39: 205 | B39: =LOOKUP([id],Дети[id],Дети[team_id]) -> 11 | C39: =LOOKUP([team_id],Команды[id],Команды[Коротко]) -> Москва | D39: =LOOKUP([id],Дети[id],Дети[ФИО]) -> Гусев Даниил | E39: =LOOKUP([id],Дети[id],Дети[Дата рождения]) -> 1998-01-08 | F39: 13 | G39: 36
A40: 143 | B40: =LOOKUP([id],Дети[id],Дети[team_id]) -> 8 | C40: =LOOKUP([team_id],Команды[id],Команды[Коротко]) -> Руза | D40: =LOOKUP([id],Дети[id],Дети[ФИО]) -> Филимонов Александр | E40: =LOOKUP([id],Дети[id],Дети[Дата рождения]) -> 1997-08-24 | F40: 13 | G40: 37
A41: 177 | B41: =LOOKUP([id],Дети[id],Дети[team_id]) -> 9 | C41: =LOOKUP([team_id],Команды[id],Команды[Коротко]) -> Курск | D41: =LOOKUP([id],Дети[id],Дети[ФИО]) -> Дюкарев Игорь | E41: =LOOKUP([id],Дети[id],Дети[Дата рождения]) -> 1997-06-25 | F41: 13 | G41: 38
A42: 267 | B42: =LOOKUP([id],Дети[id],Дети[team_id]) -> 14 | C42: =LOOKUP([team_id],Команды[id],Команды[Коротко]) -> Воскресенск | D42: =LOOKUP([id],Дети[id],Дети[ФИО]) -> Бортников Александр Олегович | E42: =LOOKUP([id],Дети[id],Дети[Дата рождения]) -> 1998-12-25 | F42: 12 | G42: 39
A43: 265 | B43: =LOOKUP([id],Дети[id],Дети[team_id]) -> 14 | C43: =LOOKUP([team_id],Команды[id],Команды[Коротко]) -> Воскресенск | D43: =LOOKUP([id],Дети[id],Дети[ФИО]) -> Андреянченко Иван Александрович | E43: =LOOKUP([id],Дети[id],Дети[Дата рождения]) -> 1998-07-03 | F43: 12 | G43: 40
A44: 521 | B44: =LOOKUP([id],Дети[id],Дети[team_id]) -> 27 | C44: =LOOKUP([team_id],Команды[id],Команды[Коротко]) -> ОМСН | D44: =LOOKUP([id],Дети[id],Дети[ФИО]) -> Рожнов Степан Александрович | E44: =LOOKUP([id],Дети[id],Дети[Дата рождения]) -> 1997-11-17 | F44: 12 | G44: 41
A45: 214 | B45: =LOOKUP([id],Дети[id],Дети[team_id]) -> 11 | C45: =LOOKUP([team_id],Команды[id],Команды[Коротко]) -> Москва | D45: =LOOKUP([id],Дети[id],Дети[ФИО]) -> Огородников Богдан | E45: =LOOKUP([id],Дети[id],Дети[Дата рождения]) -> 1997-07-12 | F45: 12 | G45: 42
A46: 299 | B46: =LOOKUP([id],Дети[id],Дети[team_id]) -> 15 | C46: =LOOKUP([team_id],Команды[id],Команды[Коротко]) -> Воронеж | D46: =LOOKUP([id],Дети[id],Дети[ФИО]) -> Чумаков Евгений Андреевич | E46: =LOOKUP([id],Дети[id],Дети[Дата рождения]) -> 2000-10-10 | F46: 11 | G46: 43
A47: 455 | B47: =LOOKUP([id],Дети[id],Дети[team_id]) -> 23 | C47: =LOOKUP([team_id],Команды[id],Команды[Коротко]) -> Иваново | D47: =LOOKUP([id],Дети[id],Дети[ФИО]) -> Демичев Сергей Владимирович | E47: =LOOKUP([id],Дети[id],Дети[Дата рождения]) -> 1997-09-01 | F47: 11 | G47: 44
A48: 418 | B48: =LOOKUP([id],Дети[id],Дети[team_id]) -> 21 | C48: =LOOKUP([team_id],Команды[id],Команды[Коротко]) -> Ступино | D48: =LOOKUP([id],Дети[id],Дети[ФИО]) -> Добычин Антон Владиславович | E48: =LOOKUP([id],Дети[id],Дети[Дата рождения]) -> 1997-07-10 | F48: 11 | G48: 45
A49: 121 | B49: =LOOKUP([id],Дети[id],Дети[team_id]) -> 7 | C49: =LOOKUP([team_id],Команды[id],Команды[Коротко]) -> Клин | D49: =LOOKUP([id],Дети[id],Дети[ФИО]) -> Сергеев Павел Вячеславович | E49: =LOOKUP([id],Дети[id],Дети[Дата рождения]) -> 1998-01-17 | F49: 10 | G49: 46
A50: 105 | B50: =LOOKUP([id],Дети[id],Дети[team_id]) -> 6 | C50: =LOOKUP([team_id],Команды[id],Команды[Коротко]) -> Энергия, Шатура | D50: =LOOKUP([id],Дети[id],Дети[ФИО]) -> Щепкин Валерий Витальевич | E50: =LOOKUP([id],Дети[id],Дети[Дата рождения]) -> 1997-04-18 | F50: 10 | G50: 47
A51: 453 | B51: =LOOKUP([id],Дети[id],Дети[team_id]) -> 23 | C51: =LOOKUP([team_id],Команды[id],Команды[Коротко]) -> Иваново | D51: =LOOKUP([id],Дети[id],Дети[ФИО]) -> Муратов Владислав Александрович | E51: =LOOKUP([id],Дети[id],Дети[Дата рождения]) -> 1997-09-02 | F51: 9 | G51: 48
A52: 342 | B52: =LOOKUP([id],Дети[id],Дети[team_id]) -> 18 | C52: =LOOKUP([team_id],Команды[id],Команды[Коротко]) -> Одинцово | D52: =LOOKUP([id],Дети[id],Дети[ФИО]) -> Граб Федор Васильевич | E52: =LOOKUP([id],Дети[id],Дети[Дата рождения]) -> 1997-03-04 | F52: 8 | G52: 49
A53: 5 | B53: =LOOKUP([id],Дети[id],Дети[team_id]) -> 1 | C53: =LOOKUP([team_id],Команды[id],Команды[Коротко]) -> ОМОН | D53: =LOOKUP([id],Дети[id],Дети[ФИО]) -> Заварихин Семен Александрович | E53: =LOOKUP([id],Дети[id],Дети[Дата рождения]) -> 1997-12-16 | F53: 4 | G53: 50
A54: 468 | B54: =LOOKUP([id],Дети[id],Дети[team_id]) -> 24 | C54: =LOOKUP([team_id],Команды[id],Команды[Коротко]) -> Пушкино | D54: =LOOKUP([id],Дети[id],Дети[ФИО]) -> Афанасьев Александр Борисович | E54: =LOOKUP([id],Дети[id],Дети[Дата рождения]) -> 1997-06-11 | F54: 3 | G54: 51
A55: 129 | B55: =LOOKUP([id],Дети[id],Дети[team_id]) -> 7 | C55: =LOOKUP([team_id],Команды[id],Команды[Коротко]) -> Клин | D55: =LOOKUP([id],Дети[id],Дети[ФИО]) -> Быков Дмитрий Игорьевич | E55: =LOOKUP([id],Дети[id],Дети[Дата рождения]) -> 1997-01-26 | F55: 3 | G55: 52
C58: Председатель оргкомитета /Громов А.Г./

Sheet сборка разборка АК
C1: Протокол №7 (сборка/разборка АК)
L2: 4 июня 2011, 17:25
A3: id | B3: team_id | C3: Команда | D3: ФИО | E3: Пол | F3: Дата рождения | G3: время разб | H3: штраф разб | I3: время сб | J3: штраф сб | K3: Сумма | L3: Место
A4: 316 | B4: =LOOKUP([id],Дети[id],Дети[team_id]) -> 16 | C4: =LOOKUP([team_id],Команды[id],Команды[Коротко]) -> Тверь | D4: =LOOKUP([id],Дети[id],Дети[ФИО]) -> Пустынникова Ирина Евгеньевна | E4: =LOOKUP([id],Дети[id],Дети[пол]) -> д | F4: =LOOKUP([id],Дети[id],Дети[Дата рождения]) -> 1997-05-27 | G4: 00:00:10.280 | I4: 00:00:19.500 | K4: =сборка_разборка_АК[[#This Row],[время разб]]+сборка_разборка_АК[[#This Row],[штраф разб]]+сборка_разборка_АК[[#This Row],[время сб]]+сборка_разборка_АК[[#This Row],[штраф сб]] -> 00:00:29.780 | L4: 1
A5: 403 | B5: =LOOKUP([id],Дети[id],Дети[team_id]) -> 21 | C5: =LOOKUP([team_id],Команды[id],Команды[Коротко]) -> Ступино | D5: =LOOKUP([id],Дети[id],Дети[ФИО]) -> Беляева Мария Михайловна | E5: =LOOKUP([id],Дети[id],Дети[пол]) -> д | F5: =LOOKUP([id],Дети[id],Дети[Дата рождения]) -> 1997-02-18 | G5: 00:00:12.610 | I5: 00:00:23.510 | K5: =сборка_разборка_АК[[#This Row],[время разб]]+сборка_разборка_АК[[#This Row],[штраф разб]]+сборка_разборка_АК[[#This Row],[время сб]]+сборка_разборка_АК[[#This Row],[штраф сб]] -> 00:00:36.120 | L5: 2
A6: 286 | B6: =LOOKUP([id],Дети[id],Дети[team_id]) -> 15 | C6: =LOOKUP([team_id],Команды[id],Команды[Коротко]) -> Воронеж | D6: =LOOKUP([id],Дети[id],Дети[ФИО]) -> Величко Мария Александровна | E6: =LOOKUP([id],Дети[id],Дети[пол]) -> д | F6: =LOOKUP([id],Дети[id],Дети[Дата рождения]) -> 1997-06-04 | G6: 00:00:12.490 | I6: 00:00:24.300 | K6: =сборка_разборка_АК[[#This Row],[время разб]]+сборка_разборка_АК[[#This Row],[штраф разб]]+сборка_разборка_АК[[#This Row],[время сб]]+сборка_разборка_АК[[#This Row],[штраф сб]] -> 00:00:36.790 | L6: 3
A7: 336 | B7: =LOOKUP([id],Дети[id],Дети[team_id]) -> 17 | C7: =LOOKUP([team_id],Команды[id],Команды[Коротко]) -> Смоленск | D7: =LOOKUP([id],Дети[id],Дети[ФИО]) -> Петроченкова Марина Евгеньевна | E7: =LOOKUP([id],Дети[id],Дети[пол]) -> д | F7: =LOOKUP([id],Дети[id],Дети[Дата рождения]) -> 1997-05-08 | G7: 00:00:12.160 | I7: 00:00:34.150 | K7: =сборка_разборка_АК[[#This Row],[время разб]]+сборка_разборка_АК[[#This Row],[штраф разб]]+сборка_разборка_АК[[#This Row],[время сб]]+сборка_разборка_АК[[#This Row],[штраф сб]] -> 00:00:46.310 | L7: 4
A8: 442 | B8: =LOOKUP([id],Дети[id],Дети[team_id]) -> 23 | C8: =LOOKUP([team_id],Команды[id],Команды[Коротко]) -> Иваново | D8: =LOOKUP([id],Дети[id],Дети[ФИО]) -> Киселева Анастасия Андреевна | E8: =LOOKUP([id],Дети[id],Дети[пол]) -> д | F8: =LOOKUP([id],Дети[id],Дети[Дата рождения]) -> 1997-03-14 | G8: 00:00:15.960 | I8: 00:00:35.910 | K8: =сборка_разборка_АК[[#This Row],[время разб]]+сборка_разборка_АК[[#This Row],[штраф разб]]+сборка_разборка_АК[[#This Row],[время сб]]+сборка_разборка_АК[[#This Row],[штраф сб]] -> 00:00:51.870 | L8: 5
A9: 421 | B9: =LOOKUP([id],Дети[id],Дети[team_id]) -> 22 | C9: =LOOKUP([team_id],Команды[id],Команды[Коротко]) -> Киров | D9: =LOOKUP([id],Дети[id],Дети[ФИО]) -> Безродных Елизавета | E9: =LOOKUP([id],Дети[id],Дети[пол]) -> д | F9: =LOOKUP([id],Дети[id],Дети[Дата рождения]) -> 1997-05-03 | G9: 00:00:11.360 | I9: 00:00:40.540 | K9: =сборка_разборка_АК[[#This Row],[время разб]]+сборка_разборка_АК[[#This Row],[штраф разб]]+сборка_разборка_АК[[#This Row],[время сб]]+сборка_разборка_АК[[#This Row],[штраф сб]] -> 00:00:51.900 | L9: 6
A10: 493 | B10: =LOOKUP([id],Дети[id],Дети[team_id]) -> 25 | C10: =LOOKUP([team_id],Команды[id],Команды[Коротко]) -> Ярославль | D10: =LOOKUP([id],Дети[id],Дети[ФИО]) -> Аббуталипова Яна Исмаиловна | E10: =LOOKUP([id],Дети[id],Дети[пол]) -> д | F10: =LOOKUP([id],Дети[id],Дети[Дата рождения]) -> 1999-01-27 | G10: 00:00:13.670 | I10: 00:00:38.970 | K10: =сборка_разборка_АК[[#This Row],[время разб]]+сборка_разборка_АК[[#This Row],[штраф разб]]+сборка_разборка_АК[[#This Row],[время сб]]+сборка_разборка_АК[[#This Row],[штраф сб]] -> 00:00:52.640 | L10: 7
A11: 540 | B11: =LOOKUP([id],Дети[id],Дети[team_id]) -> 27 | C11: =LOOKUP([team_id],Команды[id],Команды[Коротко]) -> ОМСН | D11: =LOOKUP([id],Дети[id],Дети[ФИО]) -> Целкова Валерия Дмитриевна | E11: =LOOKUP([id],Дети[id],Дети[пол]) -> д | F11: =LOOKUP([id],Дети[id],Дети[Дата рождения]) -> 1997-01-06 | G11: 00:00:15.160 | H11: 00:00:10 | I11: 00:00:33.470 | K11: =сборка_разборка_АК[[#This Row],[время разб]]+сборка_разборка_АК[[#This Row],[штраф разб]]+сборка_разборка_АК[[#This Row],[время сб]]+сборка_разборка_АК[[#This Row],[штраф сб]] -> 00:00:58.630 | L11: 8
A12: 51 | B12: =LOOKUP([id],Дети[id],Дети[team_id]) -> 3 | C12: =LOOKUP([team_id],Команды[id],Команды[Коротко]) -> Дмитров | D12: =LOOKUP([id],Дети[id],Дети[ФИО]) -> Кулакова Милена Германовна | E12: =LOOKUP([id],Дети[id],Дети[пол]) -> д | F12: =LOOKUP([id],Дети[id],Дети[Дата рождения]) -> 1998-10-19 | G12: 00:00:31.430 | I12: 00:00:28.580 | K12: =сборка_разборка_АК[[#This Row],[время разб]]+сборка_разборка_АК[[#This Row],[штраф разб]]+сборка_разборка_АК[[#This Row],[время сб]]+сборка_разборка_АК[[#This Row],[штраф сб]] -> 00:01:00.010 | L12: 9
A13: 226 | B13: =LOOKUP([id],Дети[id],Дети[team_id]) -> 12 | C13: =LOOKUP([team_id],Команды[id],Команды[Коротко]) -> Истра | D13: =LOOKUP([id],Дети[id],Дети[ФИО]) -> Емельянова Алена Михайловна | E13: =LOOKUP([id],Дети[id],Дети[пол]) -> д | F13: =LOOKUP([id],Дети[id],Дети[Дата рождения]) -> 1998-07-15 | G13: 00:00:18.160 | I13: 00:00:42.120 | K13: =сборка_разборка_АК[[#This Row],[время разб]]+сборка_разборка_АК[[#This Row],[штраф разб]]+сборка_разборка_АК[[#This Row],[время сб]]+сборка_разборка_АК[[#This Row],[штраф сб]] -> 00:01:00.280 | L13: 10
A14: 216 | B14: =LOOKUP([id],Дети[id],Дети[team_id]) -> 11 | C14: =LOOKUP([team_id],Команды[id],Команды[Коротко]) -> Москва | D14: =LOOKUP([id],Дети[id],Дети[ФИО]) -> Сысоева Александра | E14: =LOOKUP([id],Дети[id],Дети[пол]) -> д | F14: =LOOKUP([id],Дети[id],Дети[Дата рождения]) -> 1999-03-07 | G14: 00:00:23.470 | I14: 00:00:27.670 | J14: 00:00:10 | K14: =сборка_разборка_АК[[#This Row],[время разб]]+сборка_разборка_АК[[#This Row],[штраф разб]]+сборка_разборка_АК[[#This Row],[время сб]]+сборка_разборка_АК[[#This Row],[штраф сб]] -> 00:01:01.140 | L14: 11
A15: 247 | B15: =LOOKUP([id],Дети[id],Дети[team_id]) -> 13 | C15: =LOOKUP([team_id],Команды[id],Команды[Коротко]) -> Владимир | D15: =LOOKUP([id],Дети[id],Дети[ФИО]) -> Бисерова Елизавета Ивановна | E15: =LOOKUP([id],Дети[id],Дети[пол]) -> д | F15: =LOOKUP([id],Дети[id],Дети[Дата рождения]) -> 1997-05-24 | G15: 00:00:20.020 | I15: 00:00:41.940 | K15: =сборка_разборка_АК[[#This Row],[время разб]]+сборка_разборка_АК[[#This Row],[штраф разб]]+сборка_разборка_АК[[#This Row],[время сб]]+сборка_разборка_АК[[#This Row],[штраф сб]] -> 00:01:01.960 | L15: 12
A16: 167 | B16: =LOOKUP([id],Дети[id],Дети[team_id]) -> 9 | C16: =LOOKUP([team_id],Команды[id],Команды[Коротко]) -> Курск | D16: =LOOKUP([id],Дети[id],Дети[ФИО]) -> Сташевская Татьяна | E16: =LOOKUP([id],Дети[id],Дети[пол]) -> д | F16: =LOOKUP([id],Дети[id],Дети[Дата рождения]) -> 1997-05-06 | G16: 00:00:16.280 | I16: 00:00:49.880 | K16: =сборка_разборка_АК[[#This Row],[время разб]]+сборка_разборка_АК[[#This Row],[штраф разб]]+сборка_разборка_АК[[#This Row],[время сб]]+сборка_разборка_АК[[#This Row],[штраф сб]] -> 00:01:06.160 | L16: 13
A17: 274 | B17: =LOOKUP([id],Дети[id],Дети[team_id]) -> 14 | C17: =LOOKUP([team_id],Команды[id],Команды[Коротко]) -> Воскресенск | D17: =LOOKUP([id],Дети[id],Дети[ФИО]) -> Волкова Мария Александровна | E17: =LOOKUP([id],Дети[id],Дети[пол]) -> д | F17: =LOOKUP([id],Дети[id],Дети[Дата рождения]) -> 1998-08-07 | G17: 00:00:18.450 | I17: 00:00:38.470 | J17: 00:00:10 | K17: =сборка_разборка_АК[[#This Row],[время разб]]+сборка_разборка_АК[[#This Row],[штраф разб]]+сборка_разборка_АК[[#This Row],[время сб]]+сборка_разборка_АК[[#This Row],[штраф сб]] -> 00:01:06.920 | L17: 14
A18: 151 | B18: =LOOKUP([id],Дети[id],Дети[team_id]) -> 8 | C18: =LOOKUP([team_id],Команды[id],Команды[Коротко]) -> Руза | D18: =LOOKUP([id],Дети[id],Дети[ФИО]) -> Ковач Валерия | E18: =LOOKUP([id],Дети[id],Дети[пол]) -> д | F18: =LOOKUP([id],Дети[id],Дети[Дата рождения]) -> 1998-04-05 | G18: 00:00:22.600 | I18: 00:00:49.520 | K18: =сборка_разборка_АК[[#This Row],[время разб]]+сборка_разборка_АК[[#This Row],[штраф разб]]+сборка_разборка_АК[[#This Row],[время сб]]+сборка_разборка_АК[[#This Row],[штраф сб]] -> 00:01:12.120 | L18: 15
A19: 29 | B19: =LOOKUP([id],Дети[id],Дети[team_id]) -> 2 | C19: =LOOKUP([team_id],Команды[id],Команды[Коротко]) -> Липецк | D19: =LOOKUP([id],Дети[id],Дети[ФИО]) -> Ерохина Евгения Андреевна | E19: =LOOKUP([id],Дети[id],Дети[пол]) -> д | F19: =LOOKUP([id],Дети[id],Дети[Дата рождения]) -> 1997-01-15 | G19: 00:00:17.160 | H19: 00:00:10 | I19: 00:00:35.360 | J19: 00:00:10 | K19: =сборка_разборка_АК[[#This Row],[время разб]]+сборка_разборка_АК[[#This Row],[штраф разб]]+сборка_разборка_АК[[#This Row],[время сб]]+сборка_разборка_АК[[#This Row],[штраф сб]] -> 00:01:12.520 | L19: 16
A20: 188 | B20: =LOOKUP([id],Дети[id],Дети[team_id]) -> 10 | C20: =LOOKUP([team_id],Команды[id],Команды[Коротко]) -> Кашира | D20: =LOOKUP([id],Дети[id],Дети[ФИО]) -> Афанасьева Ольга Александровна | E20: =LOOKUP([id],Дети[id],Дети[пол]) -> д | F20: =LOOKUP([id],Дети[id],Дети[Дата рождения]) -> 1997-02-08 | G20: 00:00:31.290 | I20: 00:00:47.110 | K20: =сборка_разборка_АК[[#This Row],[время разб]]+сборка_разборка_АК[[#This Row],[штраф разб]]+сборка_разборка_АК[[#This Row],[время сб]]+сборка_разборка_АК[[#This Row],[штраф сб]] -> 00:01:18.400 | L20: 17
A21: 132 | B21: =LOOKUP([id],Дети[id],Дети[team_id]) -> 7 | C21: =LOOKUP([team_id],Команды[id],Команды[Коротко]) -> Клин | D21: =LOOKUP([id],Дети[id],Дети[ФИО]) -> Волкова Анна Сергеевна | E21: =LOOKUP([id],Дети[id],Дети[пол]) -> д | F21: =LOOKUP([id],Дети[id],Дети[Дата рождения]) -> 1997-04-21 | G21: 00:00:30.220 | I21: 00:00:48.790 | K21: =сборка_разборка_АК[[#This Row],[время разб]]+сборка_разборка_АК[[#This Row],[штраф разб]]+сборка_разборка_АК[[#This Row],[время сб]]+сборка_разборка_АК[[#This Row],[штраф сб]] -> 00:01:19.010 | L21: 18
A22: 393 | B22: =LOOKUP([id],Дети[id],Дети[team_id]) -> 20 | C22: =LOOKUP([team_id],Команды[id],Команды[Коротко]) -> Татарстан | D22: =LOOKUP([id],Дети[id],Дети[ФИО]) -> Паранина Александра Владимировна | E22: =LOOKUP([id],Дети[id],Дети[пол]) -> д | F22: =LOOKUP([id],Дети[id],Дети[Дата рождения]) -> 1997-11-02 | G22: 00:00:14.100 | H22: 00:00:10 | I22: 00:00:56.300 | K22: =сборка_разборка_АК[[#This Row],[время разб]]+сборка_разборка_АК[[#This Row],[штраф разб]]+сборка_разборка_АК[[#This Row],[время сб]]+сборка_разборка_АК[[#This Row],[штраф сб]] -> 00:01:20.400 | L22: 19
A23: 348 | B23: =LOOKUP([id],Дети[id],Дети[team_id]) -> 18 | C23: =LOOKUP([team_id],Команды[id],Команды[Коротко]) -> Одинцово | D23: =LOOKUP([id],Дети[id],Дети[ФИО]) -> Еремичева Мирия Руслановна | E23: =LOOKUP([id],Дети[id],Дети[пол]) -> д | F23: =LOOKUP([id],Дети[id],Дети[Дата рождения]) -> 1998-08-10 | G23: 00:00:49.850 | I23: 00:00:43.220 | K23: =сборка_разборка_АК[[#This Row],[время разб]]+сборка_разборка_АК[[#This Row],[штраф разб]]+сборка_разборка_АК[[#This Row],[время сб]]+сборка_разборка_АК[[#This Row],[штраф сб]] -> 00:01:33.070 | L23: 20
A24: 508 | B24: =LOOKUP([id],Дети[id],Дети[team_id]) -> 26 | C24: =LOOKUP([team_id],Команды[id],Команды[Коротко]) -> Олимп, Шатура | D24: =LOOKUP([id],Дети[id],Дети[ФИО]) -> Чабанова Кристина Васильевна | E24: =LOOKUP([id],Дети[id],Дети[пол]) -> д | F24: =LOOKUP([id],Дети[id],Дети[Дата рождения]) -> 1998-01-15 | G24: 00:00:23.880 | I24: 00:01:10.740 | J24: 00:00:10 | K24: =сборка_разборка_АК[[#This Row],[время разб]]+сборка_разборка_АК[[#This Row],[штраф разб]]+сборка_разборка_АК[[#This Row],[время сб]]+сборка_разборка_АК[[#This Row],[штраф сб]] -> 00:01:44.620 | L24: 21
A25: 377 | B25: =LOOKUP([id],Дети[id],Дети[team_id]) -> 19 | C25: =LOOKUP([team_id],Команды[id],Команды[Коротко]) -> Тамбов | D25: =LOOKUP([id],Дети[id],Дети[ФИО]) -> Черемисина Ксения | E25: =LOOKUP([id],Дети[id],Дети[пол]) -> д | F25: =LOOKUP([id],Дети[id],Дети[Дата рождения]) -> 1997-09-29 | G25: 00:00:11.580 | H25: 00:00:20 | I25: 00:01:20.470 | J25: 00:00:10 | K25: =сборка_разборка_АК[[#This Row],[время разб]]+сборка_разборка_АК[[#This Row],[штраф разб]]+сборка_разборка_АК[[#This Row],[время сб]]+сборка_разборка_АК[[#This Row],[штраф сб]] -> 00:02:02.050 | L25: 22
A26: 116 | B26: =LOOKUP([id],Дети[id],Дети[team_id]) -> 6 | C26: =LOOKUP([team_id],Команды[id],Команды[Коротко]) -> Энергия, Шатура | D26: =LOOKUP([id],Дети[id],Дети[ФИО]) -> Ионова Светлана Олеговна | E26: =LOOKUP([id],Дети[id],Дети[пол]) -> д | F26: =LOOKUP([id],Дети[id],Дети[Дата рождения]) -> 1997-09-23 | G26: 00:00:19.400 | I26: 00:01:46.040 | J26: 00:00:20 | K26: =сборка_разборка_АК[[#This Row],[время разб]]+сборка_разборка_АК[[#This Row],[штраф разб]]+сборка_разборка_АК[[#This Row],[время сб]]+сборка_разборка_АК[[#This Row],[штраф сб]] -> 00:02:25.440 | L26: 23
A27: 16 | B27: =LOOKUP([id],Дети[id],Дети[team_id]) -> 1 | C27: =LOOKUP([team_id],Команды[id],Команды[Коротко]) -> ОМОН | D27: =LOOKUP([id],Дети[id],Дети[ФИО]) -> Копытова Варвара Андреевна | E27: =LOOKUP([id],Дети[id],Дети[пол]) -> д | F27: =LOOKUP([id],Дети[id],Дети[Дата рождения]) -> 2000-08-30 | G27: 00:00:54.460 | H27: 00:00:10 | I27: 00:01:14.730 | J27: 00:00:10 | K27: =сборка_разборка_АК[[#This Row],[время разб]]+сборка_разборка_АК[[#This Row],[штраф разб]]+сборка_разборка_АК[[#This Row],[время сб]]+сборка_разборка_АК[[#This Row],[штраф сб]] -> 00:02:29.190 | L27: 24
A28: 91 | B28: =LOOKUP([id],Дети[id],Дети[team_id]) -> 5 | C28: =LOOKUP([team_id],Команды[id],Команды[Коротко]) -> Краснодар | D28: =LOOKUP([id],Дети[id],Дети[ФИО]) -> Григорьева Вероника Александровна | E28: =LOOKUP([id],Дети[id],Дети[пол]) -> д | F28: =LOOKUP([id],Дети[id],Дети[Дата рождения]) -> 1998-04-13 | G28: 00:01:08.120 | I28: 00:02:32.180 | J28: 00:00:10 | K28: =сборка_разборка_АК[[#This Row],[время разб]]+сборка_разборка_АК[[#This Row],[штраф разб]]+сборка_разборка_АК[[#This Row],[время сб]]+сборка_разборка_АК[[#This Row],[штраф сб]] -> 00:03:50.300 | L28: 25
A29: 471 | B29: =LOOKUP([id],Дети[id],Дети[team_id]) -> 24 | C29: =LOOKUP([team_id],Команды[id],Команды[Коротко]) -> Пушкино | D29: =LOOKUP([id],Дети[id],Дети[ФИО]) -> Юшкова Алина Александровна | E29: =LOOKUP([id],Дети[id],Дети[пол]) -> д | F29: =LOOKUP([id],Дети[id],Дети[Дата рождения]) -> 1997-02-26 | G29: 00:00:48.400 | H29: 00:00:10 | I29: 00:03:25.860 | J29: 00:00:10 | K29: =сборка_разборка_АК[[#This Row],[время разб]]+сборка_разборка_АК[[#This Row],[штраф разб]]+сборка_разборка_АК[[#This Row],[время сб]]+сборка_разборка_АК[[#This Row],[штраф сб]] -> 00:04:34.260 | L29: 26
A30: 253 | B30: =LOOKUP([id],Дети[id],Дети[team_id]) -> 13 | C30: =LOOKUP([team_id],Команды[id],Команды[Коротко]) -> Владимир | D30: =LOOKUP([id],Дети[id],Дети[ФИО]) -> Сухарников Александр Александрович | E30: =LOOKUP([id],Дети[id],Дети[пол]) -> м | F30: =LOOKUP([id],Дети[id],Дети[Дата рождения]) -> 1998-01-04 | G30: 00:00:13.700 | I30: 00:00:21.280 | K30: =сборка_разборка_АК[[#This Row],[время разб]]+сборка_разборка_АК[[#This Row],[штраф разб]]+сборка_разборка_АК[[#This Row],[время сб]]+сборка_разборка_АК[[#This Row],[штраф сб]] -> 00:00:34.980 | L30: 1
A31: 220 | B31: =LOOKUP([id],Дети[id],Дети[team_id]) -> 11 | C31: =LOOKUP([team_id],Команды[id],Команды[Коротко]) -> Москва | D31: =LOOKUP([id],Дети[id],Дети[ФИО]) -> Шутков Алексей | E31: =LOOKUP([id],Дети[id],Дети[пол]) -> м | F31: =LOOKUP([id],Дети[id],Дети[Дата рождения]) -> 1998-06-16 | G31: 00:00:14.710 | I31: 00:00:20.610 | K31: =сборка_разборка_АК[[#This Row],[время разб]]+сборка_разборка_АК[[#This Row],[штраф разб]]+сборка_разборка_АК[[#This Row],[время сб]]+сборка_разборка_АК[[#This Row],[штраф сб]] -> 00:00:35.320 | L31: 2
A32: 313 | B32: =LOOKUP([id],Дети[id],Дети[team_id]) -> 16 | C32: =LOOKUP([team_id],Команды[id],Команды[Коротко]) -> Тверь | D32: =LOOKUP([id],Дети[id],Дети[ФИО]) -> Лаврентьев Олег Вадимович | E32: =LOOKUP([id],Дети[id],Дети[пол]) -> м | F32: =LOOKUP([id],Дети[id],Дети[Дата рождения]) -> 1997-09-17 | G32: 00:00:13.370 | I32: 00:00:22.150 | K32: =сборка_разборка_АК[[#This Row],[время разб]]+сборка_разборка_АК[[#This Row],[штраф разб]]+сборка_разборка_АК[[#This Row],[время сб]]+сборка_разборка_АК[[#This Row],[штраф сб]] -> 00:00:35.520 | L32: 3
A33: 228 | B33: =LOOKUP([id],Дети[id],Дети[team_id]) -> 12 | C33: =LOOKUP([team_id],Команды[id],Команды[Коротко]) -> Истра | D33: =LOOKUP([id],Дети[id],Дети[ФИО]) -> Арчаков Николай Владимирович | E33: =LOOKUP([id],Дети[id],Дети[пол]) -> м | F33: =LOOKUP([id],Дети[id],Дети[Дата рождения]) -> 1997-05-25 | G33: 00:00:09.100 | I33: 00:00:23.050 | J33: 00:00:10 | K33: =сборка_разборка_АК[[#This Row],[время разб]]+сборка_разборка_АК[[#This Row],[штраф разб]]+сборка_разборка_АК[[#This Row],[время сб]]+сборка_разборка_АК[[#This Row],[штраф сб]] -> 00:00:42.150 | L33: 4
A34: 291 | B34: =LOOKUP([id],Дети[id],Дети[team_id]) -> 15 | C34: =LOOKUP([team_id],Команды[id],Команды[Коротко]) -> Воронеж | D34: =LOOKUP([id],Дети[id],Дети[ФИО]) -> Самхорадзе Коба Кабаевич | E34: =LOOKUP([id],Дети[id],Дети[пол]) -> м | F34: =LOOKUP([id],Дети[id],Дети[Дата рождения]) -> 1997-03-19 | G34: 00:00:09.960 | H34: 00:00:10 | I34: 00:00:12.500 | J34: 00:00:10 | K34: =сборка_разборка_АК[[#This Row],[время разб]]+сборка_разборка_АК[[#This Row],[штраф разб]]+сборка_разборка_АК[[#This Row],[время сб]]+сборка_разборка_АК[[#This Row],[штраф сб]] -> 00:00:42.460 | L34: 5
A35: 520 | B35: =LOOKUP([id],Дети[id],Дети[team_id]) -> 26 | C35: =LOOKUP([team_id],Команды[id],Команды[Коротко]) -> Олимп, Шатура | D35: =LOOKUP([id],Дети[id],Дети[ФИО]) -> Дубенец Евгений Эдуардович | E35: =LOOKUP([id],Дети[id],Дети[пол]) -> м | F35: =LOOKUP([id],Дети[id],Дети[Дата рождения]) -> 1997-10-09 | G35: 00:00:18.110 | I35: 00:00:25.990 | K35: =сборка_разборка_АК[[#This Row],[время разб]]+сборка_разборка_АК[[#This Row],[штраф разб]]+сборка_разборка_АК[[#This Row],[время сб]]+сборка_разборка_АК[[#This Row],[штраф сб]] -> 00:00:44.100 | L35: 6
A36: 445 | B36: =LOOKUP([id],Дети[id],Дети[team_id]) -> 23 | C36: =LOOKUP([team_id],Команды[id],Команды[Коротко]) -> Иваново | D36: =LOOKUP([id],Дети[id],Дети[ФИО]) -> Исаков Ярослав Олегович | E36: =LOOKUP([id],Дети[id],Дети[пол]) -> м | F36: =LOOKUP([id],Дети[id],Дети[Дата рождения]) -> 1997-10-29 | G36: 00:00:15.060 | I36: 00:00:29.240 | K36: =сборка_разборка_АК[[#This Row],[время разб]]+сборка_разборка_АК[[#This Row],[штраф разб]]+сборка_разборка_АК[[#This Row],[время сб]]+сборка_разборка_АК[[#This Row],[штраф сб]] -> 00:00:44.300 | L36: 7
A37: 331 | B37: =LOOKUP([id],Дети[id],Дети[team_id]) -> 17 | C37: =LOOKUP([team_id],Команды[id],Команды[Коротко]) -> Смоленск | D37: =LOOKUP([id],Дети[id],Дети[ФИО]) -> Трущенков Кирилл Геннадьевич | E37: =LOOKUP([id],Дети[id],Дети[пол]) -> м | F37: =LOOKUP([id],Дети[id],Дети[Дата рождения]) -> 1997-01-31 | G37: 00:00:11.440 | I37: 00:00:24.640 | J37: 00:00:10 | K37: =сборка_разборка_АК[[#This Row],[время разб]]+сборка_разборка_АК[[#This Row],[штраф разб]]+сборка_разборка_АК[[#This Row],[время сб]]+сборка_разборка_АК[[#This Row],[штраф сб]] -> 00:00:46.080 | L37: 8
A38: 411 | B38: =LOOKUP([id],Дети[id],Дети[team_id]) -> 21 | C38: =LOOKUP([team_id],Команды[id],Команды[Коротко]) -> Ступино | D38: =LOOKUP([id],Дети[id],Дети[ФИО]) -> Конаков Денис Олегович | E38: =LOOKUP([id],Дети[id],Дети[пол]) -> м | F38: =LOOKUP([id],Дети[id],Дети[Дата рождения]) -> 1997-02-17 | G38: 00:00:16.730 | I38: 00:00:21.520 | J38: 00:00:10 | K38: =сборка_разборка_АК[[#This Row],[время разб]]+сборка_разборка_АК[[#This Row],[штраф разб]]+сборка_разборка_АК[[#This Row],[время сб]]+сборка_разборка_АК[[#This Row],[штраф сб]] -> 00:00:48.250 | L38: 9
A39: 146 | B39: =LOOKUP([id],Дети[id],Дети[team_id]) -> 8 | C39: =LOOKUP([team_id],Команды[id],Команды[Коротко]) -> Руза | D39: =LOOKUP([id],Дети[id],Дети[ФИО]) -> Ганичев Николай | E39: =LOOKUP([id],Дети[id],Дети[пол]) -> м | F39: =LOOKUP([id],Дети[id],Дети[Дата рождения]) -> 1997-12-19 | G39: 00:00:19.330 | I39: 00:00:31.410 | K39: =сборка_разборка_АК[[#This Row],[время разб]]+сборка_разборка_АК[[#This Row],[штраф разб]]+сборка_разборка_АК[[#This Row],[время сб]]+сборка_разборка_АК[[#This Row],[штраф сб]] -> 00:00:50.740 | L39: 10
A40: 41 | B40: =LOOKUP([id],Дети[id],Дети[team_id]) -> 3 | C40: =LOOKUP([team_id],Команды[id],Команды[Коротко]) -> Дмитров | D40: =LOOKUP([id],Дети[id],Дети[ФИО]) -> Тагасов Семен Павлович | E40: =LOOKUP([id],Дети[id],Дети[пол]) -> м | F40: =LOOKUP([id],Дети[id],Дети[Дата рождения]) -> 1997-04-17 | G40: 00:00:15.570 | I40: 00:00:28.330 | J40: 00:00:10 | K40: =сборка_разборка_АК[[#This Row],[время разб]]+сборка_разборка_АК[[#This Row],[штраф разб]]+сборка_разборка_АК[[#This Row],[время сб]]+сборка_разборка_АК[[#This Row],[штраф сб]] -> 00:00:53.900 | L40: 11
A41: 104 | B41: =LOOKUP([id],Дети[id],Дети[team_id]) -> 6 | C41: =LOOKUP([team_id],Команды[id],Команды[Коротко]) -> Энергия, Шатура | D41: =LOOKUP([id],Дети[id],Дети[ФИО]) -> Аристархов Георгий Алексеевич | E41: =LOOKUP([id],Дети[id],Дети[пол]) -> м | F41: =LOOKUP([id],Дети[id],Дети[Дата рождения]) -> 1997-04-14 | G41: 00:00:17.890 | I41: 00:00:26.480 | J41: 00:00:10 | K41: =сборка_разборка_АК[[#This Row],[время разб]]+сборка_разборка_АК[[#This Row],[штраф разб]]+сборка_разборка_АК[[#This Row],[время сб]]+сборка_разборка_АК[[#This Row],[штраф сб]] -> 00:00:54.370 | L41: 12
A42: 193 | B42: =LOOKUP([id],Дети[id],Дети[team_id]) -> 10 | C42: =LOOKUP([team_id],Команды[id],Команды[Коротко]) -> Кашира | D42: =LOOKUP([id],Дети[id],Дети[ФИО]) -> Фомичёв Виктор Андреевич | E42: =LOOKUP([id],Дети[id],Дети[пол]) -> м | F42: =LOOKUP([id],Дети[id],Дети[Дата рождения]) -> 1997-10-11 | G42: 00:00:19.350 | I42: 00:00:26.150 | J42: 00:00:10 | K42: =сборка_разборка_АК[[#This Row],[время разб]]+сборка_разборка_АК[[#This Row],[штраф разб]]+сборка_разборка_АК[[#This Row],[время сб]]+сборка_разборка_АК[[#This Row],[штраф сб]] -> 00:00:55.500 | L42: 13
A43: 376 | B43: =LOOKUP([id],Дети[id],Дети[team_id]) -> 19 | C43: =LOOKUP([team_id],Команды[id],Команды[Коротко]) -> Тамбов | D43: =LOOKUP([id],Дети[id],Дети[ФИО]) -> Крюченков Никита | E43: =LOOKUP([id],Дети[id],Дети[пол]) -> м | F43: =LOOKUP([id],Дети[id],Дети[Дата рождения]) -> 1997-09-29 | G43: 00:00:20.480 | I43: 00:00:41.620 | K43: =сборка_разборка_АК[[#This Row],[время разб]]+сборка_разборка_АК[[#This Row],[штраф разб]]+сборка_разборка_АК[[#This Row],[время сб]]+сборка_разборка_АК[[#This Row],[штраф сб]] -> 00:01:02.100 | L43: 14
A44: 82 | B44: =LOOKUP([id],Дети[id],Дети[team_id]) -> 5 | C44: =LOOKUP([team_id],Команды[id],Команды[Коротко]) -> Краснодар | D44: =LOOKUP([id],Дети[id],Дети[ФИО]) -> Сметанин Алекс Эдуардович | E44: =LOOKUP([id],Дети[id],Дети[пол]) -> м | F44: =LOOKUP([id],Дети[id],Дети[Дата рождения]) -> 1997-02-13 | G44: 00:00:15.030 | H44: 00:00:10 | I44: 00:00:27.910 | J44: 00:00:10 | K44: =сборка_разборка_АК[[#This Row],[время разб]]+сборка_разборка_АК[[#This Row],[штраф разб]]+сборка_разборка_АК[[#This Row],[время сб]]+сборка_разборка_АК[[#This Row],[штраф сб]] -> 00:01:02.940 | L44: 15
A45: 481 | B45: =LOOKUP([id],Дети[id],Дети[team_id]) -> 25 | C45: =LOOKUP([team_id],Команды[id],Команды[Коротко]) -> Ярославль | D45: =LOOKUP([id],Дети[id],Дети[ФИО]) -> Румянцев Артем Николаевич | E45: =LOOKUP([id],Дети[id],Дети[пол]) -> м | F45: =LOOKUP([id],Дети[id],Дети[Дата рождения]) -> 1997-01-20 | G45: 00:00:14.880 | H45: 00:00:10 | I45: 00:00:34.910 | J45: 00:00:10 | K45: =сборка_разборка_АК[[#This Row],[время разб]]+сборка_разборка_АК[[#This Row],[штраф разб]]+сборка_разборка_АК[[#This Row],[время сб]]+сборка_разборка_АК[[#This Row],[штраф сб]] -> 00:01:09.790 | L45: 16
A46: 5 | B46: =LOOKUP([id],Дети[id],Дети[team_id]) -> 1 | C46: =LOOKUP([team_id],Команды[id],Команды[Коротко]) -> ОМОН | D46: =LOOKUP([id],Дети[id],Дети[ФИО]) -> Заварихин Семен Александрович | E46: =LOOKUP([id],Дети[id],Дети[пол]) -> м | F46: =LOOKUP([id],Дети[id],Дети[Дата рождения]) -> 1997-12-16 | G46: 00:00:21.880 | I46: 00:00:48.390 | K46: =сборка_разборка_АК[[#This Row],[время разб]]+сборка_разборка_АК[[#This Row],[штраф разб]]+сборка_разборка_АК[[#This Row],[время сб]]+сборка_разборка_АК[[#This Row],[штраф сб]] -> 00:01:10.270 | L46: 17
A47: 27 | B47: =LOOKUP([id],Дети[id],Дети[team_id]) -> 2 | C47: =LOOKUP([team_id],Команды[id],Команды[Коротко]) -> Липецк | D47: =LOOKUP([id],Дети[id],Дети[ФИО]) -> Филатов Павел Юрьевич | E47: =LOOKUP([id],Дети[id],Дети[пол]) -> м | F47: =LOOKUP([id],Дети[id],Дети[Дата рождения]) -> 1998-06-21 | G47: 00:00:38.840 | I47: 00:00:35.780 | K47: =сборка_разборка_АК[[#This Row],[время разб]]+сборка_разборка_АК[[#This Row],[штраф разб]]+сборка_разборка_АК[[#This Row],[время сб]]+сборка_разборка_АК[[#This Row],[штраф сб]] -> 00:01:14.620 | L47: 18
A48: 522 | B48: =LOOKUP([id],Дети[id],Дети[team_id]) -> 27 | C48: =LOOKUP([team_id],Команды[id],Команды[Коротко]) -> ОМСН | D48: =LOOKUP([id],Дети[id],Дети[ФИО]) -> Леваков Илья Владимирович | E48: =LOOKUP([id],Дети[id],Дети[пол]) -> м | F48: =LOOKUP([id],Дети[id],Дети[Дата рождения]) -> 1997-01-07 | G48: 00:00:14.070 | H48: 00:00:10 | I48: 00:00:35.470 | J48: 00:00:20 | K48: =сборка_разборка_АК[[#This Row],[время разб]]+сборка_разборка_АК[[#This Row],[штраф разб]]+сборка_разборка_АК[[#This Row],[время сб]]+сборка_разборка_АК[[#This Row],[штраф сб]] -> 00:01:19.540 | L48: 19
A49: 129 | B49: =LOOKUP([id],Дети[id],Дети[team_id]) -> 7 | C49: =LOOKUP([team_id],Команды[id],Команды[Коротко]) -> Клин | D49: =LOOKUP([id],Дети[id],Дети[ФИО]) -> Быков Дмитрий Игорьевич | E49: =LOOKUP([id],Дети[id],Дети[пол]) -> м | F49: =LOOKUP([id],Дети[id],Дети[Дата рождения]) -> 1997-01-26 | G49: 00:00:18.730 | I49: 00:00:55.420 | J49: 00:00:10 | K49: =сборка_разборка_АК[[#This Row],[время разб]]+сборка_разборка_АК[[#This Row],[штраф разб]]+сборка_разборка_АК[[#This Row],[время сб]]+сборка_разборка_АК[[#This Row],[штраф сб]] -> 00:01:24.150 | L49: 20
A50: 389 | B50: =LOOKUP([id],Дети[id],Дети[team_id]) -> 20 | C50: =LOOKUP([team_id],Команды[id],Команды[Коротко]) -> Татарстан | D50: =LOOKUP([id],Дети[id],Дети[ФИО]) -> Шакиров Наиль Алмазович | E50: =LOOKUP([id],Дети[id],Дети[пол]) -> м | F50: =LOOKUP([id],Дети[id],Дети[Дата рождения]) -> 1997-07-30 | G50: 00:00:19.850 | H50: 00:00:10 | I50: 00:00:40.700 | J50: 00:00:20 | K50: =сборка_разборка_АК[[#This Row],[время разб]]+сборка_разборка_АК[[#This Row],[штраф разб]]+сборка_разборка_АК[[#This Row],[время сб]]+сборка_разборка_АК[[#This Row],[штраф сб]] -> 00:01:30.550 | L50: 21
A51: 434 | B51: =LOOKUP([id],Дети[id],Дети[team_id]) -> 22 | C51: =LOOKUP([team_id],Команды[id],Команды[Коротко]) -> Киров | D51: =LOOKUP([id],Дети[id],Дети[ФИО]) -> Дорофеев Александр | E51: =LOOKUP([id],Дети[id],Дети[пол]) -> м | F51: =LOOKUP([id],Дети[id],Дети[Дата рождения]) -> 1997-11-17 | G51: 00:00:33.320 | H51: 00:00:10 | I51: 00:00:37.810 | J51: 00:00:10 | K51: =сборка_разборка_АК[[#This Row],[время разб]]+сборка_разборка_АК[[#This Row],[штраф разб]]+сборка_разборка_АК[[#This Row],[время сб]]+сборка_разборка_АК[[#This Row],[штраф сб]] -> 00:01:31.130 | L51: 22
A52: 271 | B52: =LOOKUP([id],Дети[id],Дети[team_id]) -> 14 | C52: =LOOKUP([team_id],Команды[id],Команды[Коротко]) -> Воскресенск | D52: =LOOKUP([id],Дети[id],Дети[ФИО]) -> Титков Алексей Михайлович | E52: =LOOKUP([id],Дети[id],Дети[пол]) -> м | F52: =LOOKUP([id],Дети[id],Дети[Дата рождения]) -> 1998-11-29 | G52: 00:00:30.300 | I52: 00:01:45.300 | J52: 00:00:10 | K52: =сборка_разборка_АК[[#This Row],[время разб]]+сборка_разборка_АК[[#This Row],[штраф разб]]+сборка_разборка_АК[[#This Row],[время сб]]+сборка_разборка_АК[[#This Row],[штраф сб]] -> 00:02:25.600 | L52: 23
A53: 341 | B53: =LOOKUP([id],Дети[id],Дети[team_id]) -> 18 | C53: =LOOKUP([team_id],Команды[id],Команды[Коротко]) -> Одинцово | D53: =LOOKUP([id],Дети[id],Дети[ФИО]) -> Акимов Олег Денисович | E53: =LOOKUP([id],Дети[id],Дети[пол]) -> м | F53: =LOOKUP([id],Дети[id],Дети[Дата рождения]) -> 1999-07-21 | G53: 00:00:41.290 | H53: 00:00:10 | I53: 00:01:36.580 | J53: 00:00:10 | K53: =сборка_разборка_АК[[#This Row],[время разб]]+сборка_разборка_АК[[#This Row],[штраф разб]]+сборка_разборка_АК[[#This Row],[время сб]]+сборка_разборка_АК[[#This Row],[штраф сб]] -> 00:02:37.870 | L53: 24
A54: 174 | B54: =LOOKUP([id],Дети[id],Дети[team_id]) -> 9 | C54: =LOOKUP([team_id],Команды[id],Команды[Коротко]) -> Курск | D54: =LOOKUP([id],Дети[id],Дети[ФИО]) -> Агафонов Алексей | E54: =LOOKUP([id],Дети[id],Дети[пол]) -> м | F54: =LOOKUP([id],Дети[id],Дети[Дата рождения]) -> 1997-08-04 | G54: 00:00:59.980 | H54: 00:00:10 | I54: 00:01:23.900 | J54: 00:00:20 | K54: =сборка_разборка_АК[[#This Row],[время разб]]+сборка_разборка_АК[[#This Row],[штраф разб]]+сборка_разборка_АК[[#This Row],[время сб]]+сборка_разборка_АК[[#This Row],[штраф сб]] -> 00:02:53.880 | L54: 25
A55: 467 | B55: =LOOKUP([id],Дети[id],Дети[team_id]) -> 24 | C55: =LOOKUP([team_id],Команды[id],Команды[Коротко]) -> Пушкино | D55: =LOOKUP([id],Дети[id],Дети[ФИО]) -> Рябчиков Владислав Игоревич | E55: =LOOKUP([id],Дети[id],Дети[пол]) -> м | F55: =LOOKUP([id],Дети[id],Дети[Дата рождения]) -> 1997-03-21 | G55: 00:02:06.010 | H55: 00:00:10 | I55: 00:00:47.090 | J55: 00:00:20 | K55: =сборка_разборка_АК[[#This Row],[время разб]]+сборка_разборка_АК[[#This Row],[штраф разб]]+сборка_разборка_АК[[#This Row],[время сб]]+сборка_разборка_АК[[#This Row],[штраф сб]] -> 00:03:23.100 | L55: 26
C58: Председатель оргкомитета /Громов А.Г./

Sheet полоса воен
C1: Протокол №8 (военизированая полоса )
H2: 4 июня 2011, 15:03
A3: id | B3: team_id | C3: Команда | D3: ФИО | E3: Дата рождения | F3: Пол | G3: Время | H3: Место
A4: 214 | B4: =LOOKUP([id],Дети[id],Дети[team_id]) -> 11 | C4: =LOOKUP([team_id],Команды[id],Команды[Коротко]) -> Москва | D4: =LOOKUP([id],Дети[id],Дети[ФИО]) -> Огородников Богдан | E4: =LOOKUP([id],Дети[id],Дети[Дата рождения]) -> 1997-07-12 | F4: =LOOKUP([id],Дети[id],Дети[пол]) -> м | G4: 00:00:35.030 | H4: 1
A5: 97 | B5: =LOOKUP([id],Дети[id],Дети[team_id]) -> 5 | C5: =LOOKUP([team_id],Команды[id],Команды[Коротко]) -> Краснодар | D5: =LOOKUP([id],Дети[id],Дети[ФИО]) -> Адлер Александр Владимирович | E5: =LOOKUP([id],Дети[id],Дети[Дата рождения]) -> 1997-04-04 | F5: =LOOKUP([id],Дети[id],Дети[пол]) -> м | G5: 00:00:35.330 | H5: 2
A6: 81 | B6: =LOOKUP([id],Дети[id],Дети[team_id]) -> 5 | C6: =LOOKUP([team_id],Команды[id],Команды[Коротко]) -> Краснодар | D6: =LOOKUP([id],Дети[id],Дети[ФИО]) -> Ханануев Аким Дмитриевич | E6: =LOOKUP([id],Дети[id],Дети[Дата рождения]) -> 1997-06-13 | F6: =LOOKUP([id],Дети[id],Дети[пол]) -> м | G6: 00:00:36.040 | H6: 3
A7: 205 | B7: =LOOKUP([id],Дети[id],Дети[team_id]) -> 11 | C7: =LOOKUP([team_id],Команды[id],Команды[Коротко]) -> Москва | D7: =LOOKUP([id],Дети[id],Дети[ФИО]) -> Гусев Даниил | E7: =LOOKUP([id],Дети[id],Дети[Дата рождения]) -> 1998-01-08 | F7: =LOOKUP([id],Дети[id],Дети[пол]) -> м | G7: 00:00:36.080 | H7: 4
A8: 144 | B8: =LOOKUP([id],Дети[id],Дети[team_id]) -> 8 | C8: =LOOKUP([team_id],Команды[id],Команды[Коротко]) -> Руза | D8: =LOOKUP([id],Дети[id],Дети[ФИО]) -> Волнистов Сергей | E8: =LOOKUP([id],Дети[id],Дети[Дата рождения]) -> 1997-03-20 | F8: =LOOKUP([id],Дети[id],Дети[пол]) -> м | G8: 00:00:36.860 | H8: 5
A9: 476 | B9: =LOOKUP([id],Дети[id],Дети[team_id]) -> 24 | C9: =LOOKUP([team_id],Команды[id],Команды[Коротко]) -> Пушкино | D9: =LOOKUP([id],Дети[id],Дети[ФИО]) -> Вакарин Сергей Сергеевич | E9: =LOOKUP([id],Дети[id],Дети[Дата рождения]) -> 1997-02-12 | F9: =LOOKUP([id],Дети[id],Дети[пол]) -> м | G9: 00:00:37.160 | H9: 6
A10: 283 | B10: =LOOKUP([id],Дети[id],Дети[team_id]) -> 15 | C10: =LOOKUP([team_id],Команды[id],Команды[Коротко]) -> Воронеж | D10: =LOOKUP([id],Дети[id],Дети[ФИО]) -> Долгалев Владислав Сергеевич | E10: =LOOKUP([id],Дети[id],Дети[Дата рождения]) -> 1997-07-07 | F10: =LOOKUP([id],Дети[id],Дети[пол]) -> м | G10: 00:00:37.230 | H10: 7
A11: 438 | B11: =LOOKUP([id],Дети[id],Дети[team_id]) -> 22 | C11: =LOOKUP([team_id],Команды[id],Команды[Коротко]) -> Киров | D11: =LOOKUP([id],Дети[id],Дети[ФИО]) -> Мовсесян Рофаэл | E11: =LOOKUP([id],Дети[id],Дети[Дата рождения]) -> 1997-05-04 | F11: =LOOKUP([id],Дети[id],Дети[пол]) -> м | G11: 00:00:37.300 | H11: 8
A12: 245 | B12: =LOOKUP([id],Дети[id],Дети[team_id]) -> 13 | C12: =LOOKUP([team_id],Команды[id],Команды[Коротко]) -> Владимир | D12: =LOOKUP([id],Дети[id],Дети[ФИО]) -> Петров Арслан Михайлович | E12: =LOOKUP([id],Дети[id],Дети[Дата рождения]) -> 1997-01-05 | F12: =LOOKUP([id],Дети[id],Дети[пол]) -> м | G12: 00:00:37.310 | H12: 9
A13: 436 | B13: =LOOKUP([id],Дети[id],Дети[team_id]) -> 22 | C13: =LOOKUP([team_id],Команды[id],Команды[Коротко]) -> Киров | D13: =LOOKUP([id],Дети[id],Дети[ФИО]) -> Филип Никита | E13: =LOOKUP([id],Дети[id],Дети[Дата рождения]) -> 1998-02-14 | F13: =LOOKUP([id],Дети[id],Дети[пол]) -> м | G13: 00:00:37.320 | H13: 10
A14: 381 | B14: =LOOKUP([id],Дети[id],Дети[team_id]) -> 20 | C14: =LOOKUP([team_id],Команды[id],Команды[Коротко]) -> Татарстан | D14: =LOOKUP([id],Дети[id],Дети[ФИО]) -> Петров Евгений Александрович | E14: =LOOKUP([id],Дети[id],Дети[Дата рождения]) -> 1997-02-14 | F14: =LOOKUP([id],Дети[id],Дети[пол]) -> м | G14: 00:00:37.370 | H14: 11
A15: 253 | B15: =LOOKUP([id],Дети[id],Дети[team_id]) -> 13 | C15: =LOOKUP([team_id],Команды[id],Команды[Коротко]) -> Владимир | D15: =LOOKUP([id],Дети[id],Дети[ФИО]) -> Сухарников Александр Александрович | E15: =LOOKUP([id],Дети[id],Дети[Дата рождения]) -> 1998-01-04 | F15: =LOOKUP([id],Дети[id],Дети[пол]) -> м | G15: 00:00:37.390 | H15: 12
A16: 364 | B16: =LOOKUP([id],Дети[id],Дети[team_id]) -> 19 | C16: =LOOKUP([team_id],Команды[id],Команды[Коротко]) -> Тамбов | D16: =LOOKUP([id],Дети[id],Дети[ФИО]) -> Чербаев Денис | E16: =LOOKUP([id],Дети[id],Дети[Дата рождения]) -> 1997-05-22 | F16: =LOOKUP([id],Дети[id],Дети[пол]) -> м | G16: 00:00:37.960 | H16: 13
A17: 321 | B17: =LOOKUP([id],Дети[id],Дети[team_id]) -> 17 | C17: =LOOKUP([team_id],Команды[id],Команды[Коротко]) -> Смоленск | D17: =LOOKUP([id],Дети[id],Дети[ФИО]) -> Гультяев Илья Алексеевич | E17: =LOOKUP([id],Дети[id],Дети[Дата рождения]) -> 1997-10-29 | F17: =LOOKUP([id],Дети[id],Дети[пол]) -> м | G17: 00:00:38.010 | H17: 14
A18: 267 | B18: =LOOKUP([id],Дети[id],Дети[team_id]) -> 14 | C18: =LOOKUP([team_id],Команды[id],Команды[Коротко]) -> Воскресенск | D18: =LOOKUP([id],Дети[id],Дети[ФИО]) -> Бортников Александр Олегович | E18: =LOOKUP([id],Дети[id],Дети[Дата рождения]) -> 1998-12-25 | F18: =LOOKUP([id],Дети[id],Дети[пол]) -> м | G18: 00:00:38.080 | H18: 15
A19: 486 | B19: =LOOKUP([id],Дети[id],Дети[team_id]) -> 25 | C19: =LOOKUP([team_id],Команды[id],Команды[Коротко]) -> Ярославль | D19: =LOOKUP([id],Дети[id],Дети[ФИО]) -> Никитин Данил Сергеевич | E19: =LOOKUP([id],Дети[id],Дети[Дата рождения]) -> 1999-05-08 | F19: =LOOKUP([id],Дети[id],Дети[пол]) -> м | G19: 00:00:38.390 | H19: 16
A20: 511 | B20: =LOOKUP([id],Дети[id],Дети[team_id]) -> 26 | C20: =LOOKUP([team_id],Команды[id],Команды[Коротко]) -> Олимп, Шатура | D20: =LOOKUP([id],Дети[id],Дети[ФИО]) -> Рогачев Виктор Вадимович | E20: =LOOKUP([id],Дети[id],Дети[Дата рождения]) -> 1998-02-09 | F20: =LOOKUP([id],Дети[id],Дети[пол]) -> м | G20: 00:00:38.420 | H20: 17
A21: 180 | B21: =LOOKUP([id],Дети[id],Дети[team_id]) -> 9 | C21: =LOOKUP([team_id],Команды[id],Команды[Коротко]) -> Курск | D21: =LOOKUP([id],Дети[id],Дети[ФИО]) -> Силенин Александр | E21: =LOOKUP([id],Дети[id],Дети[Дата рождения]) -> 1997-04-22 | F21: =LOOKUP([id],Дети[id],Дети[пол]) -> м | G21: 00:00:38.460 | H21: 18
A22: 374 | B22: =LOOKUP([id],Дети[id],Дети[team_id]) -> 19 | C22: =LOOKUP([team_id],Команды[id],Команды[Коротко]) -> Тамбов | D22: =LOOKUP([id],Дети[id],Дети[ФИО]) -> Рябов Антон | E22: =LOOKUP([id],Дети[id],Дети[Дата рождения]) -> 1997-01-28 | F22: =LOOKUP([id],Дети[id],Дети[пол]) -> м | G22: 00:00:38.870 | H22: 19
A23: 317 | B23: =LOOKUP([id],Дети[id],Дети[team_id]) -> 16 | C23: =LOOKUP([team_id],Команды[id],Команды[Коротко]) -> Тверь | D23: =LOOKUP([id],Дети[id],Дети[ФИО]) -> Иванов Максим Сергеевич | E23: =LOOKUP([id],Дети[id],Дети[Дата рождения]) -> 1997-08-14 | F23: =LOOKUP([id],Дети[id],Дети[пол]) -> м | G23: 00:00:38.890 | H23: 20
A24: 383 | B24: =LOOKUP([id],Дети[id],Дети[team_id]) -> 20 | C24: =LOOKUP([team_id],Команды[id],Команды[Коротко]) -> Татарстан | D24: =LOOKUP([id],Дети[id],Дети[ФИО]) -> Хасанов Руслан Рамилевич | E24: =LOOKUP([id],Дети[id],Дети[Дата рождения]) -> 1997-02-23 | F24: =LOOKUP([id],Дети[id],Дети[пол]) -> м | G24: 00:00:38.900 | H24: 21
A25: 105 | B25: =LOOKUP([id],Дети[id],Дети[team_id]) -> 6 | C25: =LOOKUP([team_id],Команды[id],Команды[Коротко]) -> Энергия, Шатура | D25: =LOOKUP([id],Дети[id],Дети[ФИО]) -> Щепкин Валерий Витальевич | E25: =LOOKUP([id],Дети[id],Дети[Дата рождения]) -> 1997-04-18 | F25: =LOOKUP([id],Дети[id],Дети[пол]) -> м | G25: 00:00:38.910 | H25: 22
A26: 320 | B26: =LOOKUP([id],Дети[id],Дети[team_id]) -> 16 | C26: =LOOKUP([team_id],Команды[id],Команды[Коротко]) -> Тверь | D26: =LOOKUP([id],Дети[id],Дети[ФИО]) -> Гамоюн Даниил Сергеевич | E26: =LOOKUP([id],Дети[id],Дети[Дата рождения]) -> 1999-02-09 | F26: =LOOKUP([id],Дети[id],Дети[пол]) -> м | G26: 00:00:39.060 | H26: 23
A27: 322 | B27: =LOOKUP([id],Дети[id],Дети[team_id]) -> 17 | C27: =LOOKUP([team_id],Команды[id],Команды[Коротко]) -> Смоленск | D27: =LOOKUP([id],Дети[id],Дети[ФИО]) -> Путилин Захар Алексеевич | E27: =LOOKUP([id],Дети[id],Дети[Дата рождения]) -> 1997-04-02 | F27: =LOOKUP([id],Дети[id],Дети[пол]) -> м | G27: 00:00:39.330 | H27: 24
A28: 103 | B28: =LOOKUP([id],Дети[id],Дети[team_id]) -> 6 | C28: =LOOKUP([team_id],Команды[id],Команды[Коротко]) -> Энергия, Шатура | D28: =LOOKUP([id],Дети[id],Дети[ФИО]) -> Забабуркин Константин Юрьевич | E28: =LOOKUP([id],Дети[id],Дети[Дата рождения]) -> 1997-09-28 | F28: =LOOKUP([id],Дети[id],Дети[пол]) -> м | G28: 00:00:39.480 | H28: 25
A29: 484 | B29: =LOOKUP([id],Дети[id],Дети[team_id]) -> 25 | C29: =LOOKUP([team_id],Команды[id],Команды[Коротко]) -> Ярославль | D29: =LOOKUP([id],Дети[id],Дети[ФИО]) -> Заварухин Алексей | E29: =LOOKUP([id],Дети[id],Дети[Дата рождения]) -> 1997-11-28 | F29: =LOOKUP([id],Дети[id],Дети[пол]) -> м | G29: 00:00:39.590 | H29: 26
A30: 411 | B30: =LOOKUP([id],Дети[id],Дети[team_id]) -> 21 | C30: =LOOKUP([team_id],Команды[id],Команды[Коротко]) -> Ступино | D30: =LOOKUP([id],Дети[id],Дети[ФИО]) -> Конаков Денис Олегович | E30: =LOOKUP([id],Дети[id],Дети[Дата рождения]) -> 1997-02-17 | F30: =LOOKUP([id],Дети[id],Дети[пол]) -> м | G30: 00:00:39.660 | H30: 27
A31: 507 | B31: =LOOKUP([id],Дети[id],Дети[team_id]) -> 26 | C31: =LOOKUP([team_id],Команды[id],Команды[Коротко]) -> Олимп, Шатура | D31: =LOOKUP([id],Дети[id],Дети[ФИО]) -> Майорский Владислав Альбертович | E31: =LOOKUP([id],Дети[id],Дети[Дата рождения]) -> 1997-09-01 | F31: =LOOKUP([id],Дети[id],Дети[пол]) -> м | G31: 00:00:40.010 | H31: 28
A32: 161 | B32: =LOOKUP([id],Дети[id],Дети[team_id]) -> 9 | C32: =LOOKUP([team_id],Команды[id],Команды[Коротко]) -> Курск | D32: =LOOKUP([id],Дети[id],Дети[ФИО]) -> Власов Денис | E32: =LOOKUP([id],Дети[id],Дети[Дата рождения]) -> 1997-10-03 | F32: =LOOKUP([id],Дети[id],Дети[пол]) -> м | G32: 00:00:40.350 | H32: 29
A33: 42 | B33: =LOOKUP([id],Дети[id],Дети[team_id]) -> 3 | C33: =LOOKUP([team_id],Команды[id],Команды[Коротко]) -> Дмитров | D33: =LOOKUP([id],Дети[id],Дети[ФИО]) -> Севрюков Валерий Юрьевич | E33: =LOOKUP([id],Дети[id],Дети[Дата рождения]) -> 1999-09-29 | F33: =LOOKUP([id],Дети[id],Дети[пол]) -> м | G33: 00:00:41.180 | H33: 30
A34: 418 | B34: =LOOKUP([id],Дети[id],Дети[team_id]) -> 21 | C34: =LOOKUP([team_id],Команды[id],Команды[Коротко]) -> Ступино | D34: =LOOKUP([id],Дети[id],Дети[ФИО]) -> Добычин Антон Владиславович | E34: =LOOKUP([id],Дети[id],Дети[Дата рождения]) -> 1997-07-10 | F34: =LOOKUP([id],Дети[id],Дети[пол]) -> м | G34: 00:00:41.390 | H34: 31
A35: 445 | B35: =LOOKUP([id],Дети[id],Дети[team_id]) -> 23 | C35: =LOOKUP([team_id],Команды[id],Команды[Коротко]) -> Иваново | D35: =LOOKUP([id],Дети[id],Дети[ФИО]) -> Исаков Ярослав Олегович | E35: =LOOKUP([id],Дети[id],Дети[Дата рождения]) -> 1997-10-29 | F35: =LOOKUP([id],Дети[id],Дети[пол]) -> м | G35: 00:00:41.450 | H35: 32
A36: 143 | B36: =LOOKUP([id],Дети[id],Дети[team_id]) -> 8 | C36: =LOOKUP([team_id],Команды[id],Команды[Коротко]) -> Руза | D36: =LOOKUP([id],Дети[id],Дети[ФИО]) -> Филимонов Александр | E36: =LOOKUP([id],Дети[id],Дети[Дата рождения]) -> 1997-08-24 | F36: =LOOKUP([id],Дети[id],Дети[пол]) -> м | G36: 00:00:41.670 | H36: 33
A37: 28 | B37: =LOOKUP([id],Дети[id],Дети[team_id]) -> 2 | C37: =LOOKUP([team_id],Команды[id],Команды[Коротко]) -> Липецк | D37: =LOOKUP([id],Дети[id],Дети[ФИО]) -> Шмыгалев Евгений Геннадьевич | E37: =LOOKUP([id],Дети[id],Дети[Дата рождения]) -> 1998-05-03 | F37: =LOOKUP([id],Дети[id],Дети[пол]) -> м | G37: 00:00:42.890 | H37: 34
A38: 121 | B38: =LOOKUP([id],Дети[id],Дети[team_id]) -> 7 | C38: =LOOKUP([team_id],Команды[id],Команды[Коротко]) -> Клин | D38: =LOOKUP([id],Дети[id],Дети[ФИО]) -> Сергеев Павел Вячеславович | E38: =LOOKUP([id],Дети[id],Дети[Дата рождения]) -> 1998-01-17 | F38: =LOOKUP([id],Дети[id],Дети[пол]) -> м | G38: 00:00:42.970 | H38: 35
A39: 194 | B39: =LOOKUP([id],Дети[id],Дети[team_id]) -> 10 | C39: =LOOKUP([team_id],Команды[id],Команды[Коротко]) -> Кашира | D39: =LOOKUP([id],Дети[id],Дети[ФИО]) -> Толкачёв Сергей Алексеевич | E39: =LOOKUP([id],Дети[id],Дети[Дата рождения]) -> 1998-07-17 | F39: =LOOKUP([id],Дети[id],Дети[пол]) -> м | G39: 00:00:43.250 | H39: 36
A40: 454 | B40: =LOOKUP([id],Дети[id],Дети[team_id]) -> 23 | C40: =LOOKUP([team_id],Команды[id],Команды[Коротко]) -> Иваново | D40: =LOOKUP([id],Дети[id],Дети[ФИО]) -> Ликин Максим Сергеевич | E40: =LOOKUP([id],Дети[id],Дети[Дата рождения]) -> 1999-12-07 | F40: =LOOKUP([id],Дети[id],Дети[пол]) -> м | G40: 00:00:43.470 | H40: 37
A41: 470 | B41: =LOOKUP([id],Дети[id],Дети[team_id]) -> 24 | C41: =LOOKUP([team_id],Команды[id],Команды[Коротко]) -> Пушкино | D41: =LOOKUP([id],Дети[id],Дети[ФИО]) -> Айнутдинов Камиль Борисович | E41: =LOOKUP([id],Дети[id],Дети[Дата рождения]) -> 1997-02-22 | F41: =LOOKUP([id],Дети[id],Дети[пол]) -> м | G41: 00:00:43.870 | H41: 38
A42: 11 | B42: =LOOKUP([id],Дети[id],Дети[team_id]) -> 1 | C42: =LOOKUP([team_id],Команды[id],Команды[Коротко]) -> ОМОН | D42: =LOOKUP([id],Дети[id],Дети[ФИО]) -> Архипов Сергей Алексеевич | E42: =LOOKUP([id],Дети[id],Дети[Дата рождения]) -> 1999-06-17 | F42: =LOOKUP([id],Дети[id],Дети[пол]) -> м | G42: 00:00:44.260 | H42: 39
A43: 357 | B43: =LOOKUP([id],Дети[id],Дети[team_id]) -> 18 | C43: =LOOKUP([team_id],Команды[id],Команды[Коротко]) -> Одинцово | D43: =LOOKUP([id],Дети[id],Дети[ФИО]) -> Суворкин Илья Константинович | E43: =LOOKUP([id],Дети[id],Дети[Дата рождения]) -> 1997-06-07 | F43: =LOOKUP([id],Дети[id],Дети[пол]) -> м | G43: 00:00:44.360 | H43: 40
A44: 345 | B44: =LOOKUP([id],Дети[id],Дети[team_id]) -> 18 | C44: =LOOKUP([team_id],Команды[id],Команды[Коротко]) -> Одинцово | D44: =LOOKUP([id],Дети[id],Дети[ФИО]) -> Шабалин Артем Филиппович | E44: =LOOKUP([id],Дети[id],Дети[Дата рождения]) -> 1997-08-04 | F44: =LOOKUP([id],Дети[id],Дети[пол]) -> м | G44: 00:00:44.370 | H44: 41
A45: 522 | B45: =LOOKUP([id],Дети[id],Дети[team_id]) -> 27 | C45: =LOOKUP([team_id],Команды[id],Команды[Коротко]) -> ОМСН | D45: =LOOKUP([id],Дети[id],Дети[ФИО]) -> Леваков Илья Владимирович | E45: =LOOKUP([id],Дети[id],Дети[Дата рождения]) -> 1997-01-07 | F45: =LOOKUP([id],Дети[id],Дети[пол]) -> м | G45: 00:00:44.510 | H45: 42
A46: 200 | B46: =LOOKUP([id],Дети[id],Дети[team_id]) -> 10 | C46: =LOOKUP([team_id],Команды[id],Команды[Коротко]) -> Кашира | D46: =LOOKUP([id],Дети[id],Дети[ФИО]) -> Леонов Михаил Михайлович | E46: =LOOKUP([id],Дети[id],Дети[Дата рождения]) -> 1997-06-03 | F46: =LOOKUP([id],Дети[id],Дети[пол]) -> м | G46: 00:00:44.660 | H46: 43
A47: 266 | B47: =LOOKUP([id],Дети[id],Дети[team_id]) -> 14 | C47: =LOOKUP([team_id],Команды[id],Команды[Коротко]) -> Воскресенск | D47: =LOOKUP([id],Дети[id],Дети[ФИО]) -> Бондалетов Николай Алексеевич | E47: =LOOKUP([id],Дети[id],Дети[Дата рождения]) -> 1999-02-17 | F47: =LOOKUP([id],Дети[id],Дети[пол]) -> м | G47: 00:00:44.810 | H47: 44
A48: 521 | B48: =LOOKUP([id],Дети[id],Дети[team_id]) -> 27 | C48: =LOOKUP([team_id],Команды[id],Команды[Коротко]) -> ОМСН | D48: =LOOKUP([id],Дети[id],Дети[ФИО]) -> Рожнов Степан Александрович | E48: =LOOKUP([id],Дети[id],Дети[Дата рождения]) -> 1997-11-17 | F48: =LOOKUP([id],Дети[id],Дети[пол]) -> м | G48: 00:00:44.950 | H48: 45
A49: 230 | B49: =LOOKUP([id],Дети[id],Дети[team_id]) -> 12 | C49: =LOOKUP([team_id],Команды[id],Команды[Коротко]) -> Истра | D49: =LOOKUP([id],Дети[id],Дети[ФИО]) -> Трушин Алексей Дмитриевич | E49: =LOOKUP([id],Дети[id],Дети[Дата рождения]) -> 1997-08-22 | F49: =LOOKUP([id],Дети[id],Дети[пол]) -> м | G49: 00:00:45.060 | H49: 46
A50: 50 | B50: =LOOKUP([id],Дети[id],Дети[team_id]) -> 3 | C50: =LOOKUP([team_id],Команды[id],Команды[Коротко]) -> Дмитров | D50: =LOOKUP([id],Дети[id],Дети[ФИО]) -> Сехниашвили Василий Георгиевич | E50: =LOOKUP([id],Дети[id],Дети[Дата рождения]) -> 1999-09-09 | F50: =LOOKUP([id],Дети[id],Дети[пол]) -> м | G50: 00:00:45.600 | H50: 47
A51: 292 | B51: =LOOKUP([id],Дети[id],Дети[team_id]) -> 15 | C51: =LOOKUP([team_id],Команды[id],Команды[Коротко]) -> Воронеж | D51: =LOOKUP([id],Дети[id],Дети[ФИО]) -> Кальченко Никита Сергеевич | E51: =LOOKUP([id],Дети[id],Дети[Дата рождения]) -> 1997-06-26 | F51: =LOOKUP([id],Дети[id],Дети[пол]) -> м | G51: 00:00:45.760 | H51: 48
A52: 6 | B52: =LOOKUP([id],Дети[id],Дети[team_id]) -> 1 | C52: =LOOKUP([team_id],Команды[id],Команды[Коротко]) -> ОМОН | D52: =LOOKUP([id],Дети[id],Дети[ФИО]) -> Платонов Александр Александрович | E52: =LOOKUP([id],Дети[id],Дети[Дата рождения]) -> 1999-01-05 | F52: =LOOKUP([id],Дети[id],Дети[пол]) -> м | G52: 00:00:45.890 | H52: 49
A53: 30 | B53: =LOOKUP([id],Дети[id],Дети[team_id]) -> 2 | C53: =LOOKUP([team_id],Команды[id],Команды[Коротко]) -> Липецк | D53: =LOOKUP([id],Дети[id],Дети[ФИО]) -> Феклин Алексей Юрьевич | E53: =LOOKUP([id],Дети[id],Дети[Дата рождения]) -> 1998-06-30 | F53: =LOOKUP([id],Дети[id],Дети[пол]) -> м | G53: 00:00:48.430 | H53: 50
A54: 123 | B54: =LOOKUP([id],Дети[id],Дети[team_id]) -> 7 | C54: =LOOKUP([team_id],Команды[id],Команды[Коротко]) -> Клин | D54: =LOOKUP([id],Дети[id],Дети[ФИО]) -> Соколов Никита Сергеевич | E54: =LOOKUP([id],Дети[id],Дети[Дата рождения]) -> 1998-10-10 | F54: =LOOKUP([id],Дети[id],Дети[пол]) -> м | G54: 00:00:49.240 | H54: 51
A55: 227 | B55: =LOOKUP([id],Дети[id],Дети[team_id]) -> 12 | C55: =LOOKUP([team_id],Команды[id],Команды[Коротко]) -> Истра | D55: =LOOKUP([id],Дети[id],Дети[ФИО]) -> Бунаев Александр Денисович | E55: =LOOKUP([id],Дети[id],Дети[Дата рождения]) -> 1997-09-13 | F55: =LOOKUP([id],Дети[id],Дети[пол]) -> м | G55: 00:00:49.450 | H55: 52
C58: Председатель оргкомитета /Громов А.Г./

Sheet полоса Штурм
C1: Протокол №9 (полоса Штурм)
H2: 5 июня 2011, 13:02
A3: id | B3: team_id | C3: Команда | D3: ФИО | E3: Дата рождения | F3: Пол | G3: Время | H3: Место
A4: 399 | B4: =LOOKUP([id],Дети[id],Дети[team_id]) -> 20 | C4: =LOOKUP([team_id],Команды[id],Команды[Коротко]) -> Татарстан | D4: =LOOKUP([id],Дети[id],Дети[ФИО]) -> Идрисов Амир Рустамович | E4: =LOOKUP([id],Дети[id],Дети[Дата рождения]) -> 1999-05-06 | F4: =LOOKUP([id],Дети[id],Дети[пол]) -> м | G4: 00:00:15.560 | H4: 1
A5: 518 | B5: =LOOKUP([id],Дети[id],Дети[team_id]) -> 26 | C5: =LOOKUP([team_id],Команды[id],Команды[Коротко]) -> Олимп, Шатура | D5: =LOOKUP([id],Дети[id],Дети[ФИО]) -> Краснов Владислав Александрович | E5: =LOOKUP([id],Дети[id],Дети[Дата рождения]) -> 1997-08-09 | F5: =LOOKUP([id],Дети[id],Дети[пол]) -> м | G5: 00:00:15.700 | H5: 2
A6: 325 | B6: =LOOKUP([id],Дети[id],Дети[team_id]) -> 17 | C6: =LOOKUP([team_id],Команды[id],Команды[Коротко]) -> Смоленск | D6: =LOOKUP([id],Дети[id],Дети[ФИО]) -> Сухинин Артур Алексеевич | E6: =LOOKUP([id],Дети[id],Дети[Дата рождения]) -> 1997-04-28 | F6: =LOOKUP([id],Дети[id],Дети[пол]) -> м | G6: 00:00:15.960 | H6: 3
A7: 267 | B7: =LOOKUP([id],Дети[id],Дети[team_id]) -> 14 | C7: =LOOKUP([team_id],Команды[id],Команды[Коротко]) -> Воскресенск | D7: =LOOKUP([id],Дети[id],Дети[ФИО]) -> Бортников Александр Олегович | E7: =LOOKUP([id],Дети[id],Дети[Дата рождения]) -> 1998-12-25 | F7: =LOOKUP([id],Дети[id],Дети[пол]) -> м | G7: 00:00:16.030 | H7: 4
A8: 43 | B8: =LOOKUP([id],Дети[id],Дети[team_id]) -> 3 | C8: =LOOKUP([team_id],Команды[id],Команды[Коротко]) -> Дмитров | D8: =LOOKUP([id],Дети[id],Дети[ФИО]) -> Сарафанов Михаил Алекссевич | E8: =LOOKUP([id],Дети[id],Дети[Дата рождения]) -> 1997-11-12 | F8: =LOOKUP([id],Дети[id],Дети[пол]) -> м | G8: 00:00:16.080 | H8: 5
A9: 81 | B9: =LOOKUP([id],Дети[id],Дети[team_id]) -> 5 | C9: =LOOKUP([team_id],Команды[id],Команды[Коротко]) -> Краснодар | D9: =LOOKUP([id],Дети[id],Дети[ФИО]) -> Ханануев Аким Дмитриевич | E9: =LOOKUP([id],Дети[id],Дети[Дата рождения]) -> 1997-06-13 | F9: =LOOKUP([id],Дети[id],Дети[пол]) -> м | G9: 00:00:16.600 | H9: 6
A10: 143 | B10: =LOOKUP([id],Дети[id],Дети[team_id]) -> 8 | C10: =LOOKUP([team_id],Команды[id],Команды[Коротко]) -> Руза | D10: =LOOKUP([id],Дети[id],Дети[ФИО]) -> Филимонов Александр | E10: =LOOKUP([id],Дети[id],Дети[Дата рождения]) -> 1997-08-24 | F10: =LOOKUP([id],Дети[id],Дети[пол]) -> м | G10: 00:00:16.650 | H10: 7
A11: 438 | B11: =LOOKUP([id],Дети[id],Дети[team_id]) -> 22 | C11: =LOOKUP([team_id],Команды[id],Команды[Коротко]) -> Киров | D11: =LOOKUP([id],Дети[id],Дети[ФИО]) -> Мовсесян Рофаэл | E11: =LOOKUP([id],Дети[id],Дети[Дата рождения]) -> 1997-05-04 | F11: =LOOKUP([id],Дети[id],Дети[пол]) -> м | G11: 00:00:16.910 | H11: 8
A12: 176 | B12: =LOOKUP([id],Дети[id],Дети[team_id]) -> 9 | C12: =LOOKUP([team_id],Команды[id],Команды[Коротко]) -> Курск | D12: =LOOKUP([id],Дети[id],Дети[ФИО]) -> Старосельцев Александр | E12: =LOOKUP([id],Дети[id],Дети[Дата рождения]) -> 1997-11-03 | F12: =LOOKUP([id],Дети[id],Дети[пол]) -> м | G12: 00:00:17.070 | H12: 9
A13: 175 | B13: =LOOKUP([id],Дети[id],Дети[team_id]) -> 9 | C13: =LOOKUP([team_id],Команды[id],Команды[Коротко]) -> Курск | D13: =LOOKUP([id],Дети[id],Дети[ФИО]) -> Безугольников Михаил | E13: =LOOKUP([id],Дети[id],Дети[Дата рождения]) -> 1997-04-07 | F13: =LOOKUP([id],Дети[id],Дети[пол]) -> м | G13: 00:00:18.040 | H13: 10
A14: 486 | B14: =LOOKUP([id],Дети[id],Дети[team_id]) -> 25 | C14: =LOOKUP([team_id],Команды[id],Команды[Коротко]) -> Ярославль | D14: =LOOKUP([id],Дети[id],Дети[ФИО]) -> Никитин Данил Сергеевич | E14: =LOOKUP([id],Дети[id],Дети[Дата рождения]) -> 1999-05-08 | F14: =LOOKUP([id],Дети[id],Дети[пол]) -> м | G14: 00:00:18.190 | H14: 11
A15: 388 | B15: =LOOKUP([id],Дети[id],Дети[team_id]) -> 20 | C15: =LOOKUP([team_id],Команды[id],Команды[Коротко]) -> Татарстан | D15: =LOOKUP([id],Дети[id],Дети[ФИО]) -> Паранин Николай Александрович | E15: =LOOKUP([id],Дети[id],Дети[Дата рождения]) -> 2000-11-18 | F15: =LOOKUP([id],Дети[id],Дети[пол]) -> м | G15: 00:00:18.300 | H15: 12
A16: 369 | B16: =LOOKUP([id],Дети[id],Дети[team_id]) -> 19 | C16: =LOOKUP([team_id],Команды[id],Команды[Коротко]) -> Тамбов | D16: =LOOKUP([id],Дети[id],Дети[ФИО]) -> Кобрин Александр | E16: =LOOKUP([id],Дети[id],Дети[Дата рождения]) -> 1997-05-28 | F16: =LOOKUP([id],Дети[id],Дети[пол]) -> м | G16: 00:00:18.580 | H16: 13
A17: 241 | B17: =LOOKUP([id],Дети[id],Дети[team_id]) -> 13 | C17: =LOOKUP([team_id],Команды[id],Команды[Коротко]) -> Владимир | D17: =LOOKUP([id],Дети[id],Дети[ФИО]) -> Садаков Анатолий Сергеевич | E17: =LOOKUP([id],Дети[id],Дети[Дата рождения]) -> 1999-05-19 | F17: =LOOKUP([id],Дети[id],Дети[пол]) -> м | G17: 00:00:18.710 | H17: 14
A18: 263 | B18: =LOOKUP([id],Дети[id],Дети[team_id]) -> 14 | C18: =LOOKUP([team_id],Команды[id],Команды[Коротко]) -> Воскресенск | D18: =LOOKUP([id],Дети[id],Дети[ФИО]) -> Степанов Евгений Александрович | E18: =LOOKUP([id],Дети[id],Дети[Дата рождения]) -> 1997-04-17 | F18: =LOOKUP([id],Дети[id],Дети[пол]) -> м | G18: 00:00:18.850 | H18: 15
A19: 330 | B19: =LOOKUP([id],Дети[id],Дети[team_id]) -> 17 | C19: =LOOKUP([team_id],Команды[id],Команды[Коротко]) -> Смоленск | D19: =LOOKUP([id],Дети[id],Дети[ФИО]) -> Колесник Николай Александрович | E19: =LOOKUP([id],Дети[id],Дети[Дата рождения]) -> 1998-04-08 | F19: =LOOKUP([id],Дети[id],Дети[пол]) -> м | G19: 00:00:18.870 | H19: 16
A20: 243 | B20: =LOOKUP([id],Дети[id],Дети[team_id]) -> 13 | C20: =LOOKUP([team_id],Команды[id],Команды[Коротко]) -> Владимир | D20: =LOOKUP([id],Дети[id],Дети[ФИО]) -> Седов Владимир Алексеевич | E20: =LOOKUP([id],Дети[id],Дети[Дата рождения]) -> 1997-02-05 | F20: =LOOKUP([id],Дети[id],Дети[пол]) -> м | G20: 00:00:19.130 | H20: 17
A21: 217 | B21: =LOOKUP([id],Дети[id],Дети[team_id]) -> 11 | C21: =LOOKUP([team_id],Команды[id],Команды[Коротко]) -> Москва | D21: =LOOKUP([id],Дети[id],Дети[ФИО]) -> Щербенко Олег | E21: =LOOKUP([id],Дети[id],Дети[Дата рождения]) -> 1998-11-11 | F21: =LOOKUP([id],Дети[id],Дети[пол]) -> м | G21: 00:00:19.140 | H21: 18
A22: 152 | B22: =LOOKUP([id],Дети[id],Дети[team_id]) -> 8 | C22: =LOOKUP([team_id],Команды[id],Команды[Коротко]) -> Руза | D22: =LOOKUP([id],Дети[id],Дети[ФИО]) -> Сребный Андрей | E22: =LOOKUP([id],Дети[id],Дети[Дата рождения]) -> 1998-11-27 | F22: =LOOKUP([id],Дети[id],Дети[пол]) -> м | G22: 00:00:19.320 | H22: 19
A23: 283 | B23: =LOOKUP([id],Дети[id],Дети[team_id]) -> 15 | C23: =LOOKUP([team_id],Команды[id],Команды[Коротко]) -> Воронеж | D23: =LOOKUP([id],Дети[id],Дети[ФИО]) -> Долгалев Владислав Сергеевич | E23: =LOOKUP([id],Дети[id],Дети[Дата рождения]) -> 1997-07-07 | F23: =LOOKUP([id],Дети[id],Дети[пол]) -> м | G23: 00:00:19.760 | H23: 20
A24: 320 | B24: =LOOKUP([id],Дети[id],Дети[team_id]) -> 16 | C24: =LOOKUP([team_id],Команды[id],Команды[Коротко]) -> Тверь | D24: =LOOKUP([id],Дети[id],Дети[ФИО]) -> Гамоюн Даниил Сергеевич | E24: =LOOKUP([id],Дети[id],Дети[Дата рождения]) -> 1999-02-09 | F24: =LOOKUP([id],Дети[id],Дети[пол]) -> м | G24: 00:00:19.870 | H24: 21
A25: 292 | B25: =LOOKUP([id],Дети[id],Дети[team_id]) -> 15 | C25: =LOOKUP([team_id],Команды[id],Команды[Коротко]) -> Воронеж | D25: =LOOKUP([id],Дети[id],Дети[ФИО]) -> Кальченко Никита Сергеевич | E25: =LOOKUP([id],Дети[id],Дети[Дата рождения]) -> 1997-06-26 | F25: =LOOKUP([id],Дети[id],Дети[пол]) -> м | G25: 00:00:20.200 | H25: 22
A26: 517 | B26: =LOOKUP([id],Дети[id],Дети[team_id]) -> 26 | C26: =LOOKUP([team_id],Команды[id],Команды[Коротко]) -> Олимп, Шатура | D26: =LOOKUP([id],Дети[id],Дети[ФИО]) -> Кузнецов Алексей Алексеевич | E26: =LOOKUP([id],Дети[id],Дети[Дата рождения]) -> 1998-03-18 | F26: =LOOKUP([id],Дети[id],Дети[пол]) -> м | G26: 00:00:20.560 | H26: 23
A27: 363 | B27: =LOOKUP([id],Дети[id],Дети[team_id]) -> 19 | C27: =LOOKUP([team_id],Команды[id],Команды[Коротко]) -> Тамбов | D27: =LOOKUP([id],Дети[id],Дети[ФИО]) -> Винник Павел | E27: =LOOKUP([id],Дети[id],Дети[Дата рождения]) -> 1997-07-28 | F27: =LOOKUP([id],Дети[id],Дети[пол]) -> м | G27: 00:00:20.630 | H27: 24
A28: 412 | B28: =LOOKUP([id],Дети[id],Дети[team_id]) -> 21 | C28: =LOOKUP([team_id],Команды[id],Команды[Коротко]) -> Ступино | D28: =LOOKUP([id],Дети[id],Дети[ФИО]) -> Волков Иван Федорович | E28: =LOOKUP([id],Дети[id],Дети[Дата рождения]) -> 1997-04-04 | F28: =LOOKUP([id],Дети[id],Дети[пол]) -> м | G28: 00:00:20.910 | H28: 25
A29: 317 | B29: =LOOKUP([id],Дети[id],Дети[team_id]) -> 16 | C29: =LOOKUP([team_id],Команды[id],Команды[Коротко]) -> Тверь | D29: =LOOKUP([id],Дети[id],Дети[ФИО]) -> Иванов Максим Сергеевич | E29: =LOOKUP([id],Дети[id],Дети[Дата рождения]) -> 1997-08-14 | F29: =LOOKUP([id],Дети[id],Дети[пол]) -> м | G29: 00:00:22.010 | H29: 26
A30: 25 | B30: =LOOKUP([id],Дети[id],Дети[team_id]) -> 2 | C30: =LOOKUP([team_id],Команды[id],Команды[Коротко]) -> Липецк | D30: =LOOKUP([id],Дети[id],Дети[ФИО]) -> Кузин Александр Владимирович | E30: =LOOKUP([id],Дети[id],Дети[Дата рождения]) -> 1998-06-21 | F30: =LOOKUP([id],Дети[id],Дети[пол]) -> м | G30: 00:00:22.440 | H30: 27
A31: 47 | B31: =LOOKUP([id],Дети[id],Дети[team_id]) -> 3 | C31: =LOOKUP([team_id],Команды[id],Команды[Коротко]) -> Дмитров | D31: =LOOKUP([id],Дети[id],Дети[ФИО]) -> Цигану Денис Николаевич | E31: =LOOKUP([id],Дети[id],Дети[Дата рождения]) -> 1998-08-29 | F31: =LOOKUP([id],Дети[id],Дети[пол]) -> м | G31: 00:00:22.640 | H31: 28
A32: 107 | B32: =LOOKUP([id],Дети[id],Дети[team_id]) -> 6 | C32: =LOOKUP([team_id],Команды[id],Команды[Коротко]) -> Энергия, Шатура | D32: =LOOKUP([id],Дети[id],Дети[ФИО]) -> Чадаев Дмитрий Вадимович | E32: =LOOKUP([id],Дети[id],Дети[Дата рождения]) -> 1997-08-21 | F32: =LOOKUP([id],Дети[id],Дети[пол]) -> м | G32: 00:00:22.900 | H32: 29
A33: 97 | B33: =LOOKUP([id],Дети[id],Дети[team_id]) -> 5 | C33: =LOOKUP([team_id],Команды[id],Команды[Коротко]) -> Краснодар | D33: =LOOKUP([id],Дети[id],Дети[ФИО]) -> Адлер Александр Владимирович | E33: =LOOKUP([id],Дети[id],Дети[Дата рождения]) -> 1997-04-04 | F33: =LOOKUP([id],Дети[id],Дети[пол]) -> м | G33: 00:00:23.070 | H33: 30
A34: 105 | B34: =LOOKUP([id],Дети[id],Дети[team_id]) -> 6 | C34: =LOOKUP([team_id],Команды[id],Команды[Коротко]) -> Энергия, Шатура | D34: =LOOKUP([id],Дети[id],Дети[ФИО]) -> Щепкин Валерий Витальевич | E34: =LOOKUP([id],Дети[id],Дети[Дата рождения]) -> 1997-04-18 | F34: =LOOKUP([id],Дети[id],Дети[пол]) -> м | G34: 00:00:23.210 | H34: 31
A35: 539 | B35: =LOOKUP([id],Дети[id],Дети[team_id]) -> 27 | C35: =LOOKUP([team_id],Команды[id],Команды[Коротко]) -> ОМСН | D35: =LOOKUP([id],Дети[id],Дети[ФИО]) -> Власенко Григорий Юрьевич | E35: =LOOKUP([id],Дети[id],Дети[Дата рождения]) -> 1997-02-12 | F35: =LOOKUP([id],Дети[id],Дети[пол]) -> м | G35: 00:00:23.330 | H35: 32
A36: 225 | B36: =LOOKUP([id],Дети[id],Дети[team_id]) -> 12 | C36: =LOOKUP([team_id],Команды[id],Команды[Коротко]) -> Истра | D36: =LOOKUP([id],Дети[id],Дети[ФИО]) -> Горичев Илья Максимович | E36: =LOOKUP([id],Дети[id],Дети[Дата рождения]) -> 2000-06-19 | F36: =LOOKUP([id],Дети[id],Дети[пол]) -> м | G36: 00:00:23.430 | H36: 33
A37: 470 | B37: =LOOKUP([id],Дети[id],Дети[team_id]) -> 24 | C37: =LOOKUP([team_id],Команды[id],Команды[Коротко]) -> Пушкино | D37: =LOOKUP([id],Дети[id],Дети[ФИО]) -> Айнутдинов Камиль Борисович | E37: =LOOKUP([id],Дети[id],Дети[Дата рождения]) -> 1997-02-22 | F37: =LOOKUP([id],Дети[id],Дети[пол]) -> м | G37: 00:00:23.510 | H37: 34
A38: 436 | B38: =LOOKUP([id],Дети[id],Дети[team_id]) -> 22 | C38: =LOOKUP([team_id],Команды[id],Команды[Коротко]) -> Киров | D38: =LOOKUP([id],Дети[id],Дети[ФИО]) -> Филип Никита | E38: =LOOKUP([id],Дети[id],Дети[Дата рождения]) -> 1998-02-14 | F38: =LOOKUP([id],Дети[id],Дети[пол]) -> м | G38: 00:00:23.800 | H38: 35
A39: 453 | B39: =LOOKUP([id],Дети[id],Дети[team_id]) -> 23 | C39: =LOOKUP([team_id],Команды[id],Команды[Коротко]) -> Иваново | D39: =LOOKUP([id],Дети[id],Дети[ФИО]) -> Муратов Владислав Александрович | E39: =LOOKUP([id],Дети[id],Дети[Дата рождения]) -> 1997-09-02 | F39: =LOOKUP([id],Дети[id],Дети[пол]) -> м | G39: 00:00:24.350 | H39: 36
A40: 197 | B40: =LOOKUP([id],Дети[id],Дети[team_id]) -> 10 | C40: =LOOKUP([team_id],Команды[id],Команды[Коротко]) -> Кашира | D40: =LOOKUP([id],Дети[id],Дети[ФИО]) -> Денисов Илья Игоревич | E40: =LOOKUP([id],Дети[id],Дети[Дата рождения]) -> 1998-12-03 | F40: =LOOKUP([id],Дети[id],Дети[пол]) -> м | G40: 00:00:24.430 | H40: 37
A41: 487 | B41: =LOOKUP([id],Дети[id],Дети[team_id]) -> 25 | C41: =LOOKUP([team_id],Команды[id],Команды[Коротко]) -> Ярославль | D41: =LOOKUP([id],Дети[id],Дети[ФИО]) -> Моторнов Денис Алексеевич | E41: =LOOKUP([id],Дети[id],Дети[Дата рождения]) -> 1999-03-24 | F41: =LOOKUP([id],Дети[id],Дети[пол]) -> м | G41: 00:00:26.170 | H41: 38
A42: 239 | B42: =LOOKUP([id],Дети[id],Дети[team_id]) -> 12 | C42: =LOOKUP([team_id],Команды[id],Команды[Коротко]) -> Истра | D42: =LOOKUP([id],Дети[id],Дети[ФИО]) -> Пылаев Дмитрий Евгеньевич | E42: =LOOKUP([id],Дети[id],Дети[Дата рождения]) -> 1999-06-16 | F42: =LOOKUP([id],Дети[id],Дети[пол]) -> м | G42: 00:00:26.470 | H42: 39
A43: 2 | B43: =LOOKUP([id],Дети[id],Дети[team_id]) -> 1 | C43: =LOOKUP([team_id],Команды[id],Команды[Коротко]) -> ОМОН | D43: =LOOKUP([id],Дети[id],Дети[ФИО]) -> Шеин Сергей Дмитриевич | E43: =LOOKUP([id],Дети[id],Дети[Дата рождения]) -> 2000-05-29 | F43: =LOOKUP([id],Дети[id],Дети[пол]) -> м | G43: 00:00:26.800 | H43: 40
A44: 522 | B44: =LOOKUP([id],Дети[id],Дети[team_id]) -> 27 | C44: =LOOKUP([team_id],Команды[id],Команды[Коротко]) -> ОМСН | D44: =LOOKUP([id],Дети[id],Дети[ФИО]) -> Леваков Илья Владимирович | E44: =LOOKUP([id],Дети[id],Дети[Дата рождения]) -> 1997-01-07 | F44: =LOOKUP([id],Дети[id],Дети[пол]) -> м | G44: 00:00:27.090 | H44: 41
A45: 212 | B45: =LOOKUP([id],Дети[id],Дети[team_id]) -> 11 | C45: =LOOKUP([team_id],Команды[id],Команды[Коротко]) -> Москва | D45: =LOOKUP([id],Дети[id],Дети[ФИО]) -> Оганисян Гайк | E45: =LOOKUP([id],Дети[id],Дети[Дата рождения]) -> 1997-10-04 | F45: =LOOKUP([id],Дети[id],Дети[пол]) -> м | G45: 00:00:28.460 | H45: 42
A46: 125 | B46: =LOOKUP([id],Дети[id],Дети[team_id]) -> 7 | C46: =LOOKUP([team_id],Команды[id],Команды[Коротко]) -> Клин | D46: =LOOKUP([id],Дети[id],Дети[ФИО]) -> Данков Алексей Сергеевич | E46: =LOOKUP([id],Дети[id],Дети[Дата рождения]) -> 1998-03-27 | F46: =LOOKUP([id],Дети[id],Дети[пол]) -> м | G46: 00:00:29.740 | H46: 43
A47: 27 | B47: =LOOKUP([id],Дети[id],Дети[team_id]) -> 2 | C47: =LOOKUP([team_id],Команды[id],Команды[Коротко]) -> Липецк | D47: =LOOKUP([id],Дети[id],Дети[ФИО]) -> Филатов Павел Юрьевич | E47: =LOOKUP([id],Дети[id],Дети[Дата рождения]) -> 1998-06-21 | F47: =LOOKUP([id],Дети[id],Дети[пол]) -> м | G47: 00:00:29.750 | H47: 44
A48: 447 | B48: =LOOKUP([id],Дети[id],Дети[team_id]) -> 23 | C48: =LOOKUP([team_id],Команды[id],Команды[Коротко]) -> Иваново | D48: =LOOKUP([id],Дети[id],Дети[ФИО]) -> Данько Артем Александрович | E48: =LOOKUP([id],Дети[id],Дети[Дата рождения]) -> 1997-09-27 | F48: =LOOKUP([id],Дети[id],Дети[пол]) -> м | G48: 00:00:30.920 | H48: 45
A49: 404 | B49: =LOOKUP([id],Дети[id],Дети[team_id]) -> 21 | C49: =LOOKUP([team_id],Команды[id],Команды[Коротко]) -> Ступино | D49: =LOOKUP([id],Дети[id],Дети[ФИО]) -> Ненашев Виктор Сергеевич | E49: =LOOKUP([id],Дети[id],Дети[Дата рождения]) -> 1997-01-06 | F49: =LOOKUP([id],Дети[id],Дети[пол]) -> м | G49: 00:00:31.990 | H49: 46
A50: 353 | B50: =LOOKUP([id],Дети[id],Дети[team_id]) -> 18 | C50: =LOOKUP([team_id],Команды[id],Команды[Коротко]) -> Одинцово | D50: =LOOKUP([id],Дети[id],Дети[ФИО]) -> Горьков Егор Сергеевич | E50: =LOOKUP([id],Дети[id],Дети[Дата рождения]) -> 1999-10-06 | F50: =LOOKUP([id],Дети[id],Дети[пол]) -> м | G50: 00:00:35.040 | H50: 47
A51: 352 | B51: =LOOKUP([id],Дети[id],Дети[team_id]) -> 18 | C51: =LOOKUP([team_id],Команды[id],Команды[Коротко]) -> Одинцово | D51: =LOOKUP([id],Дети[id],Дети[ФИО]) -> Алексеенко Андрей Юрьевич | E51: =LOOKUP([id],Дети[id],Дети[Дата рождения]) -> 1998-06-23 | F51: =LOOKUP([id],Дети[id],Дети[пол]) -> м | G51: 00:00:35.440 | H51: 48
A52: 4 | B52: =LOOKUP([id],Дети[id],Дети[team_id]) -> 1 | C52: =LOOKUP([team_id],Команды[id],Команды[Коротко]) -> ОМОН | D52: =LOOKUP([id],Дети[id],Дети[ФИО]) -> Юрасов Николай Сергеевич | E52: =LOOKUP([id],Дети[id],Дети[Дата рождения]) -> 2000-05-29 | F52: =LOOKUP([id],Дети[id],Дети[пол]) -> м | G52: 00:00:37.300 | H52: 49
A53: 196 | B53: =LOOKUP([id],Дети[id],Дети[team_id]) -> 10 | C53: =LOOKUP([team_id],Команды[id],Команды[Коротко]) -> Кашира | D53: =LOOKUP([id],Дети[id],Дети[ФИО]) -> Гусев Сергей Евгеньевич | E53: =LOOKUP([id],Дети[id],Дети[Дата рождения]) -> 1998-08-09 | F53: =LOOKUP([id],Дети[id],Дети[пол]) -> м | G53: 00:00:37.600 | H53: 50
A54: 474 | B54: =LOOKUP([id],Дети[id],Дети[team_id]) -> 24 | C54: =LOOKUP([team_id],Команды[id],Команды[Коротко]) -> Пушкино | D54: =LOOKUP([id],Дети[id],Дети[ФИО]) -> Козицкий Сергей Сергеевич | E54: =LOOKUP([id],Дети[id],Дети[Дата рождения]) -> 1997-11-23 | F54: =LOOKUP([id],Дети[id],Дети[пол]) -> м | G54: 00:00:48.490 | H54: 51
A55: 128 | B55: =LOOKUP([id],Дети[id],Дети[team_id]) -> 7 | C55: =LOOKUP([team_id],Команды[id],Команды[Коротко]) -> Клин | D55: =LOOKUP([id],Дети[id],Дети[ФИО]) -> Долбиков Дмитрий Михайлович | E55: =LOOKUP([id],Дети[id],Дети[Дата рождения]) -> 1997-08-22 | F55: =LOOKUP([id],Дети[id],Дети[пол]) -> м | G55: 00:00:56.820 | H55: 52
A56: 237 | B56: =LOOKUP([id],Дети[id],Дети[team_id]) -> 12 | C56: =LOOKUP([team_id],Команды[id],Команды[Коротко]) -> Истра | D56: =LOOKUP([id],Дети[id],Дети[ФИО]) -> Петровская Евгения Владимирона | E56: =LOOKUP([id],Дети[id],Дети[Дата рождения]) -> 1998-03-01 | F56: =LOOKUP([id],Дети[id],Дети[пол]) -> д | G56: 00:00:17.030 | H56: 1
A57: 324 | B57: =LOOKUP([id],Дети[id],Дети[team_id]) -> 17 | C57: =LOOKUP([team_id],Команды[id],Команды[Коротко]) -> Смоленск | D57: =LOOKUP([id],Дети[id],Дети[ФИО]) -> Дедова Дарья Юрьевна | E57: =LOOKUP([id],Дети[id],Дети[Дата рождения]) -> 1997-06-08 | F57: =LOOKUP([id],Дети[id],Дети[пол]) -> д | G57: 00:00:17.180 | H57: 2
A58: 312 | B58: =LOOKUP([id],Дети[id],Дети[team_id]) -> 16 | C58: =LOOKUP([team_id],Команды[id],Команды[Коротко]) -> Тверь | D58: =LOOKUP([id],Дети[id],Дети[ФИО]) -> Ли Оливия | E58: =LOOKUP([id],Дети[id],Дети[Дата рождения]) -> 1998-09-10 | F58: =LOOKUP([id],Дети[id],Дети[пол]) -> д | G58: 00:00:19.100 | H58: 3
A59: 340 | B59: =LOOKUP([id],Дети[id],Дети[team_id]) -> 17 | C59: =LOOKUP([team_id],Команды[id],Команды[Коротко]) -> Смоленск | D59: =LOOKUP([id],Дети[id],Дети[ФИО]) -> Курсакова Дарья Сергеевна | E59: =LOOKUP([id],Дети[id],Дети[Дата рождения]) -> 1999-04-01 | F59: =LOOKUP([id],Дети[id],Дети[пол]) -> д | G59: 00:00:19.200 | H59: 4
A60: 26 | B60: =LOOKUP([id],Дети[id],Дети[team_id]) -> 2 | C60: =LOOKUP([team_id],Команды[id],Команды[Коротко]) -> Липецк | D60: =LOOKUP([id],Дети[id],Дети[ФИО]) -> Бабкина Людмила Алексеевна | E60: =LOOKUP([id],Дети[id],Дети[Дата рождения]) -> 1997-10-27 | F60: =LOOKUP([id],Дети[id],Дети[пол]) -> д | G60: 00:00:19.250 | H60: 5
A61: 362 | B61: =LOOKUP([id],Дети[id],Дети[team_id]) -> 19 | C61: =LOOKUP([team_id],Команды[id],Команды[Коротко]) -> Тамбов | D61: =LOOKUP([id],Дети[id],Дети[ФИО]) -> Шишкина Дарья | E61: =LOOKUP([id],Дети[id],Дети[Дата рождения]) -> 1997-11-11 | F61: =LOOKUP([id],Дети[id],Дети[пол]) -> д | G61: 00:00:19.260 | H61: 6
A62: 133 | B62: =LOOKUP([id],Дети[id],Дети[team_id]) -> 7 | C62: =LOOKUP([team_id],Команды[id],Команды[Коротко]) -> Клин | D62: =LOOKUP([id],Дети[id],Дети[ФИО]) -> Черникова Дарья Андреевна | E62: =LOOKUP([id],Дети[id],Дети[Дата рождения]) -> 1997-07-28 | F62: =LOOKUP([id],Дети[id],Дети[пол]) -> д | G62: 00:00:19.420 | H62: 7
A63: 491 | B63: =LOOKUP([id],Дети[id],Дети[team_id]) -> 25 | C63: =LOOKUP([team_id],Команды[id],Команды[Коротко]) -> Ярославль | D63: =LOOKUP([id],Дети[id],Дети[ФИО]) -> Зыкова Ирина Андреевна | E63: =LOOKUP([id],Дети[id],Дети[Дата рождения]) -> 1998-10-05 | F63: =LOOKUP([id],Дети[id],Дети[пол]) -> д | G63: 00:00:20.430 | H63: 8
A64: 509 | B64: =LOOKUP([id],Дети[id],Дети[team_id]) -> 26 | C64: =LOOKUP([team_id],Команды[id],Команды[Коротко]) -> Олимп, Шатура | D64: =LOOKUP([id],Дети[id],Дети[ФИО]) -> Кожина Светлана Викторовна | E64: =LOOKUP([id],Дети[id],Дети[Дата рождения]) -> 1998-01-03 | F64: =LOOKUP([id],Дети[id],Дети[пол]) -> д | G64: 00:00:21.170 | H64: 9
A65: 282 | B65: =LOOKUP([id],Дети[id],Дети[team_id]) -> 15 | C65: =LOOKUP([team_id],Команды[id],Команды[Коротко]) -> Воронеж | D65: =LOOKUP([id],Дети[id],Дети[ФИО]) -> Богданова Кристина Сергеевна | E65: =LOOKUP([id],Дети[id],Дети[Дата рождения]) -> 1997-01-16 | F65: =LOOKUP([id],Дети[id],Дети[пол]) -> д | G65: 00:00:21.330 | H65: 10
A66: 167 | B66: =LOOKUP([id],Дети[id],Дети[team_id]) -> 9 | C66: =LOOKUP([team_id],Команды[id],Команды[Коротко]) -> Курск | D66: =LOOKUP([id],Дети[id],Дети[ФИО]) -> Сташевская Татьяна | E66: =LOOKUP([id],Дети[id],Дети[Дата рождения]) -> 1997-05-06 | F66: =LOOKUP([id],Дети[id],Дети[пол]) -> д | G66: 00:00:21.400 | H66: 11
A67: 395 | B67: =LOOKUP([id],Дети[id],Дети[team_id]) -> 20 | C67: =LOOKUP([team_id],Команды[id],Команды[Коротко]) -> Татарстан | D67: =LOOKUP([id],Дети[id],Дети[ФИО]) -> Гимадеева Алина Фаридовна | E67: =LOOKUP([id],Дети[id],Дети[Дата рождения]) -> 1997-02-27 | F67: =LOOKUP([id],Дети[id],Дети[пол]) -> д | G67: 00:00:21.710 | H67: 12
A68: 209 | B68: =LOOKUP([id],Дети[id],Дети[team_id]) -> 11 | C68: =LOOKUP([team_id],Команды[id],Команды[Коротко]) -> Москва | D68: =LOOKUP([id],Дети[id],Дети[ФИО]) -> Кохраидзе Алина | E68: =LOOKUP([id],Дети[id],Дети[Дата рождения]) -> 2000-06-20 | F68: =LOOKUP([id],Дети[id],Дети[пол]) -> д | G68: 00:00:22.270 | H68: 13
A69: 309 | B69: =LOOKUP([id],Дети[id],Дети[team_id]) -> 16 | C69: =LOOKUP([team_id],Команды[id],Команды[Коротко]) -> Тверь | D69: =LOOKUP([id],Дети[id],Дети[ФИО]) -> Прусова Анастасия Андреевна | E69: =LOOKUP([id],Дети[id],Дети[Дата рождения]) -> 1997-12-19 | F69: =LOOKUP([id],Дети[id],Дети[пол]) -> д | G69: 00:00:22.340 | H69: 14
A70: 164 | B70: =LOOKUP([id],Дети[id],Дети[team_id]) -> 9 | C70: =LOOKUP([team_id],Команды[id],Команды[Коротко]) -> Курск | D70: =LOOKUP([id],Дети[id],Дети[ФИО]) -> Башкатова Татьяна | E70: =LOOKUP([id],Дети[id],Дети[Дата рождения]) -> 1997-09-20 | F70: =LOOKUP([id],Дети[id],Дети[пол]) -> д | G70: 00:00:23.040 | H70: 15
A71: 53 | B71: =LOOKUP([id],Дети[id],Дети[team_id]) -> 3 | C71: =LOOKUP([team_id],Команды[id],Команды[Коротко]) -> Дмитров | D71: =LOOKUP([id],Дети[id],Дети[ФИО]) -> Коровайко Марита Дмитриевна | E71: =LOOKUP([id],Дети[id],Дети[Дата рождения]) -> 1998-07-22 | F71: =LOOKUP([id],Дети[id],Дети[пол]) -> д | G71: 00:00:24.410 | H71: 16
A72: 396 | B72: =LOOKUP([id],Дети[id],Дети[team_id]) -> 20 | C72: =LOOKUP([team_id],Команды[id],Команды[Коротко]) -> Татарстан | D72: =LOOKUP([id],Дети[id],Дети[ФИО]) -> Бешенцева Анастасия Юрьевна | E72: =LOOKUP([id],Дети[id],Дети[Дата рождения]) -> 1997-02-04 | F72: =LOOKUP([id],Дети[id],Дети[пол]) -> д | G72: 00:00:25.060 | H72: 17
A73: 99 | B73: =LOOKUP([id],Дети[id],Дети[team_id]) -> 5 | C73: =LOOKUP([team_id],Команды[id],Команды[Коротко]) -> Краснодар | D73: =LOOKUP([id],Дети[id],Дети[ФИО]) -> Чернышева Алена Анатольевна | E73: =LOOKUP([id],Дети[id],Дети[Дата рождения]) -> 1997-07-15 | F73: =LOOKUP([id],Дети[id],Дети[пол]) -> д | G73: 00:00:25.070 | H73: 18
A74: 423 | B74: =LOOKUP([id],Дети[id],Дети[team_id]) -> 22 | C74: =LOOKUP([team_id],Команды[id],Команды[Коротко]) -> Киров | D74: =LOOKUP([id],Дети[id],Дети[ФИО]) -> Бырканова Яна | E74: =LOOKUP([id],Дети[id],Дети[Дата рождения]) -> 1997-07-24 | F74: =LOOKUP([id],Дети[id],Дети[пол]) -> д | G74: 00:00:25.150 | H74: 19
A75: 256 | B75: =LOOKUP([id],Дети[id],Дети[team_id]) -> 13 | C75: =LOOKUP([team_id],Команды[id],Команды[Коротко]) -> Владимир | D75: =LOOKUP([id],Дети[id],Дети[ФИО]) -> Орлова Ирина Андреевна | E75: =LOOKUP([id],Дети[id],Дети[Дата рождения]) -> 1997-01-17 | F75: =LOOKUP([id],Дети[id],Дети[пол]) -> д | G75: 00:00:25.150 | H75: 20
A76: 460 | B76: =LOOKUP([id],Дети[id],Дети[team_id]) -> 23 | C76: =LOOKUP([team_id],Команды[id],Команды[Коротко]) -> Иваново | D76: =LOOKUP([id],Дети[id],Дети[ФИО]) -> Колпакова Надежда Михайловна | E76: =LOOKUP([id],Дети[id],Дети[Дата рождения]) -> 2000-01-25 | F76: =LOOKUP([id],Дети[id],Дети[пол]) -> д | G76: 00:00:25.300 | H76: 21
A77: 234 | B77: =LOOKUP([id],Дети[id],Дети[team_id]) -> 12 | C77: =LOOKUP([team_id],Команды[id],Команды[Коротко]) -> Истра | D77: =LOOKUP([id],Дети[id],Дети[ФИО]) -> Копцева Анна Сергеевна | E77: =LOOKUP([id],Дети[id],Дети[Дата рождения]) -> 1998-07-08 | F77: =LOOKUP([id],Дети[id],Дети[пол]) -> д | G77: 00:00:25.800 | H77: 22
A78: 471 | B78: =LOOKUP([id],Дети[id],Дети[team_id]) -> 24 | C78: =LOOKUP([team_id],Команды[id],Команды[Коротко]) -> Пушкино | D78: =LOOKUP([id],Дети[id],Дети[ФИО]) -> Юшкова Алина Александровна | E78: =LOOKUP([id],Дети[id],Дети[Дата рождения]) -> 1997-02-26 | F78: =LOOKUP([id],Дети[id],Дети[пол]) -> д | G78: 00:00:26.010 | H78: 23
A79: 462 | B79: =LOOKUP([id],Дети[id],Дети[team_id]) -> 24 | C79: =LOOKUP([team_id],Команды[id],Команды[Коротко]) -> Пушкино | D79: =LOOKUP([id],Дети[id],Дети[ФИО]) -> Бобожанова Кумринисо Солоховна | E79: =LOOKUP([id],Дети[id],Дети[Дата рождения]) -> 1997-10-24 | F79: =LOOKUP([id],Дети[id],Дети[пол]) -> д | G79: 00:00:26.060 | H79: 24
A80: 284 | B80: =LOOKUP([id],Дети[id],Дети[team_id]) -> 15 | C80: =LOOKUP([team_id],Команды[id],Команды[Коротко]) -> Воронеж | D80: =LOOKUP([id],Дети[id],Дети[ФИО]) -> Бубликова Марина Александровна | E80: =LOOKUP([id],Дети[id],Дети[Дата рождения]) -> 1997-11-20 | F80: =LOOKUP([id],Дети[id],Дети[пол]) -> д | G80: 00:00:26.360 | H80: 25
A81: 358 | B81: =LOOKUP([id],Дети[id],Дети[team_id]) -> 18 | C81: =LOOKUP([team_id],Команды[id],Команды[Коротко]) -> Одинцово | D81: =LOOKUP([id],Дети[id],Дети[ФИО]) -> Гутынина Надежда Сергеевна | E81: =LOOKUP([id],Дети[id],Дети[Дата рождения]) -> 1999-10-06 | F81: =LOOKUP([id],Дети[id],Дети[пол]) -> д | G81: 00:00:26.500 | H81: 26
A82: 184 | B82: =LOOKUP([id],Дети[id],Дети[team_id]) -> 10 | C82: =LOOKUP([team_id],Команды[id],Команды[Коротко]) -> Кашира | D82: =LOOKUP([id],Дети[id],Дети[ФИО]) -> Леонгард Анна Анатольевна | E82: =LOOKUP([id],Дети[id],Дети[Дата рождения]) -> 1998-08-13 | F82: =LOOKUP([id],Дети[id],Дети[пол]) -> д | G82: 00:00:26.710 | H82: 27
A83: 346 | B83: =LOOKUP([id],Дети[id],Дети[team_id]) -> 18 | C83: =LOOKUP([team_id],Команды[id],Команды[Коротко]) -> Одинцово | D83: =LOOKUP([id],Дети[id],Дети[ФИО]) -> Жильцова Виктория Константиновна | E83: =LOOKUP([id],Дети[id],Дети[Дата рождения]) -> 1999-07-06 | F83: =LOOKUP([id],Дети[id],Дети[пол]) -> д | G83: 00:00:27.360 | H83: 28
A84: 52 | B84: =LOOKUP([id],Дети[id],Дети[team_id]) -> 3 | C84: =LOOKUP([team_id],Команды[id],Команды[Коротко]) -> Дмитров | D84: =LOOKUP([id],Дети[id],Дети[ФИО]) -> Руженцева Дарья Дмитриевна | E84: =LOOKUP([id],Дети[id],Дети[Дата рождения]) -> 1999-01-11 | F84: =LOOKUP([id],Дети[id],Дети[пол]) -> д | G84: 00:00:27.420 | H84: 29
A85: 14 | B85: =LOOKUP([id],Дети[id],Дети[team_id]) -> 1 | C85: =LOOKUP([team_id],Команды[id],Команды[Коротко]) -> ОМОН | D85: =LOOKUP([id],Дети[id],Дети[ФИО]) -> Крашенинникова Анна Андреевна | E85: =LOOKUP([id],Дети[id],Дети[Дата рождения]) -> 1997-11-03 | F85: =LOOKUP([id],Дети[id],Дети[пол]) -> д | G85: 00:00:27.860 | H85: 30
A86: 510 | B86: =LOOKUP([id],Дети[id],Дети[team_id]) -> 26 | C86: =LOOKUP([team_id],Команды[id],Команды[Коротко]) -> Олимп, Шатура | D86: =LOOKUP([id],Дети[id],Дети[ФИО]) -> Фролова Юлия Васильевна | E86: =LOOKUP([id],Дети[id],Дети[Дата рождения]) -> 1997-05-19 | F86: =LOOKUP([id],Дети[id],Дети[пол]) -> д | G86: 00:00:28.900 | H86: 31
A87: 111 | B87: =LOOKUP([id],Дети[id],Дети[team_id]) -> 6 | C87: =LOOKUP([team_id],Команды[id],Команды[Коротко]) -> Энергия, Шатура | D87: =LOOKUP([id],Дети[id],Дети[ФИО]) -> Нестерова Валерия Евгеньевна | E87: =LOOKUP([id],Дети[id],Дети[Дата рождения]) -> 1997-07-11 | F87: =LOOKUP([id],Дети[id],Дети[пол]) -> д | G87: 00:00:29.380 | H87: 32
A88: 15 | B88: =LOOKUP([id],Дети[id],Дети[team_id]) -> 1 | C88: =LOOKUP([team_id],Команды[id],Команды[Коротко]) -> ОМОН | D88: =LOOKUP([id],Дети[id],Дети[ФИО]) -> Уварова Екатерина Андреевна | E88: =LOOKUP([id],Дети[id],Дети[Дата рождения]) -> 1997-04-30 | F88: =LOOKUP([id],Дети[id],Дети[пол]) -> д | G88: 00:00:29.400 | H88: 33
A89: 277 | B89: =LOOKUP([id],Дети[id],Дети[team_id]) -> 14 | C89: =LOOKUP([team_id],Команды[id],Команды[Коротко]) -> Воскресенск | D89: =LOOKUP([id],Дети[id],Дети[ФИО]) -> Николаева Юлия Вячеславовна | E89: =LOOKUP([id],Дети[id],Дети[Дата рождения]) -> 1998-10-08 | F89: =LOOKUP([id],Дети[id],Дети[пол]) -> д | G89: 00:00:29.530 | H89: 34
A90: 211 | B90: =LOOKUP([id],Дети[id],Дети[team_id]) -> 11 | C90: =LOOKUP([team_id],Команды[id],Команды[Коротко]) -> Москва | D90: =LOOKUP([id],Дети[id],Дети[ФИО]) -> Кожаева Екатерина | E90: =LOOKUP([id],Дети[id],Дети[Дата рождения]) -> 1997-12-03 | F90: =LOOKUP([id],Дети[id],Дети[пол]) -> д | G90: 00:00:29.750 | H90: 35
A91: 429 | B91: =LOOKUP([id],Дети[id],Дети[team_id]) -> 22 | C91: =LOOKUP([team_id],Команды[id],Команды[Коротко]) -> Киров | D91: =LOOKUP([id],Дети[id],Дети[ФИО]) -> Корманова Валерия | E91: =LOOKUP([id],Дети[id],Дети[Дата рождения]) -> 1998-12-23 | F91: =LOOKUP([id],Дети[id],Дети[пол]) -> д | G91: 00:00:30.060 | H91: 36
A92: 280 | B92: =LOOKUP([id],Дети[id],Дети[team_id]) -> 14 | C92: =LOOKUP([team_id],Команды[id],Команды[Коротко]) -> Воскресенск | D92: =LOOKUP([id],Дети[id],Дети[ФИО]) -> Прокопишина Любовь Григорьевна | E92: =LOOKUP([id],Дети[id],Дети[Дата рождения]) -> 1998-06-17 | F92: =LOOKUP([id],Дети[id],Дети[пол]) -> д | G92: 00:00:30.180 | H92: 37
A93: 116 | B93: =LOOKUP([id],Дети[id],Дети[team_id]) -> 6 | C93: =LOOKUP([team_id],Команды[id],Команды[Коротко]) -> Энергия, Шатура | D93: =LOOKUP([id],Дети[id],Дети[ФИО]) -> Ионова Светлана Олеговна | E93: =LOOKUP([id],Дети[id],Дети[Дата рождения]) -> 1997-09-23 | F93: =LOOKUP([id],Дети[id],Дети[пол]) -> д | G93: 00:00:31.990 | H93: 38
A94: 131 | B94: =LOOKUP([id],Дети[id],Дети[team_id]) -> 7 | C94: =LOOKUP([team_id],Команды[id],Команды[Коротко]) -> Клин | D94: =LOOKUP([id],Дети[id],Дети[ФИО]) -> Мешкова Виктория Алексеевна | E94: =LOOKUP([id],Дети[id],Дети[Дата рождения]) -> 1998-02-02 | F94: =LOOKUP([id],Дети[id],Дети[пол]) -> д | G94: 00:00:32.240 | H94: 39
A95: 156 | B95: =LOOKUP([id],Дети[id],Дети[team_id]) -> 8 | C95: =LOOKUP([team_id],Команды[id],Команды[Коротко]) -> Руза | D95: =LOOKUP([id],Дети[id],Дети[ФИО]) -> Дмитроченко Светлана | E95: =LOOKUP([id],Дети[id],Дети[Дата рождения]) -> 1997-05-07 | F95: =LOOKUP([id],Дети[id],Дети[пол]) -> д | G95: 00:00:33.140 | H95: 40
A96: 448 | B96: =LOOKUP([id],Дети[id],Дети[team_id]) -> 23 | C96: =LOOKUP([team_id],Команды[id],Команды[Коротко]) -> Иваново | D96: =LOOKUP([id],Дети[id],Дети[ФИО]) -> Орлова Виктория Андреевна | E96: =LOOKUP([id],Дети[id],Дети[Дата рождения]) -> 1997-09-01 | F96: =LOOKUP([id],Дети[id],Дети[пол]) -> д | G96: 00:00:33.180 | H96: 41
A97: 91 | B97: =LOOKUP([id],Дети[id],Дети[team_id]) -> 5 | C97: =LOOKUP([team_id],Команды[id],Команды[Коротко]) -> Краснодар | D97: =LOOKUP([id],Дети[id],Дети[ФИО]) -> Григорьева Вероника Александровна | E97: =LOOKUP([id],Дети[id],Дети[Дата рождения]) -> 1998-04-13 | F97: =LOOKUP([id],Дети[id],Дети[пол]) -> д | G97: 00:00:33.280 | H97: 42
A98: 35 | B98: =LOOKUP([id],Дети[id],Дети[team_id]) -> 2 | C98: =LOOKUP([team_id],Команды[id],Команды[Коротко]) -> Липецк | D98: =LOOKUP([id],Дети[id],Дети[ФИО]) -> Пашенцева Екатерина Сергеевна | E98: =LOOKUP([id],Дети[id],Дети[Дата рождения]) -> 1998-01-30 | F98: =LOOKUP([id],Дети[id],Дети[пол]) -> д | G98: 00:00:33.780 | H98: 43
A99: 403 | B99: =LOOKUP([id],Дети[id],Дети[team_id]) -> 21 | C99: =LOOKUP([team_id],Команды[id],Команды[Коротко]) -> Ступино | D99: =LOOKUP([id],Дети[id],Дети[ФИО]) -> Беляева Мария Михайловна | E99: =LOOKUP([id],Дети[id],Дети[Дата рождения]) -> 1997-02-18 | F99: =LOOKUP([id],Дети[id],Дети[пол]) -> д | G99: 00:00:34.160 | H99: 44
A100: 368 | B100: =LOOKUP([id],Дети[id],Дети[team_id]) -> 19 | C100: =LOOKUP([team_id],Команды[id],Команды[Коротко]) -> Тамбов | D100: =LOOKUP([id],Дети[id],Дети[ФИО]) -> Сафронова Дарья | E100: =LOOKUP([id],Дети[id],Дети[Дата рождения]) -> 1997-11-27 | F100: =LOOKUP([id],Дети[id],Дети[пол]) -> д | G100: 00:00:35.980 | H100: 45
A101: 499 | B101: =LOOKUP([id],Дети[id],Дети[team_id]) -> 25 | C101: =LOOKUP([team_id],Команды[id],Команды[Коротко]) -> Ярославль | D101: =LOOKUP([id],Дети[id],Дети[ФИО]) -> Курбатова Татьяна Андреевна | E101: =LOOKUP([id],Дети[id],Дети[Дата рождения]) -> 1998-01-27 | F101: =LOOKUP([id],Дети[id],Дети[пол]) -> д | G101: 00:00:36.660 | H101: 46
A102: 187 | B102: =LOOKUP([id],Дети[id],Дети[team_id]) -> 10 | C102: =LOOKUP([team_id],Команды[id],Команды[Коротко]) -> Кашира | D102: =LOOKUP([id],Дети[id],Дети[ФИО]) -> Куликова Александра Сергеевна | E102: =LOOKUP([id],Дети[id],Дети[Дата рождения]) -> 1998-07-14 | F102: =LOOKUP([id],Дети[id],Дети[пол]) -> д | G102: 00:00:37.470 | H102: 47
A103: 405 | B103: =LOOKUP([id],Дети[id],Дети[team_id]) -> 21 | C103: =LOOKUP([team_id],Команды[id],Команды[Коротко]) -> Ступино | D103: =LOOKUP([id],Дети[id],Дети[ФИО]) -> Карпова Дарья Алексеевна | E103: =LOOKUP([id],Дети[id],Дети[Дата рождения]) -> 1999-01-09 | F103: =LOOKUP([id],Дети[id],Дети[пол]) -> д | G103: 00:00:38.600 | H103: 48
A104: 532 | B104: =LOOKUP([id],Дети[id],Дети[team_id]) -> 27 | C104: =LOOKUP([team_id],Команды[id],Команды[Коротко]) -> ОМСН | D104: =LOOKUP([id],Дети[id],Дети[ФИО]) -> Малькова Анастасия Витальевна | E104: =LOOKUP([id],Дети[id],Дети[Дата рождения]) -> 1997-04-24 | F104: =LOOKUP([id],Дети[id],Дети[пол]) -> д | G104: 00:00:39.210 | H104: 49
A105: 151 | B105: =LOOKUP([id],Дети[id],Дети[team_id]) -> 8 | C105: =LOOKUP([team_id],Команды[id],Команды[Коротко]) -> Руза | D105: =LOOKUP([id],Дети[id],Дети[ФИО]) -> Ковач Валерия | E105: =LOOKUP([id],Дети[id],Дети[Дата рождения]) -> 1998-04-05 | F105: =LOOKUP([id],Дети[id],Дети[пол]) -> д | G105: 00:00:39.430 | H105: 50
A106: 252 | B106: =LOOKUP([id],Дети[id],Дети[team_id]) -> 13 | C106: =LOOKUP([team_id],Команды[id],Команды[Коротко]) -> Владимир | D106: =LOOKUP([id],Дети[id],Дети[ФИО]) -> Мамбетова Бахте Гул Уразбаевна | E106: =LOOKUP([id],Дети[id],Дети[Дата рождения]) -> 1998-07-20 | F106: =LOOKUP([id],Дети[id],Дети[пол]) -> д | G106: 00:00:49.570 | H106: 51
A107: 535 | B107: =LOOKUP([id],Дети[id],Дети[team_id]) -> 27 | C107: =LOOKUP([team_id],Команды[id],Команды[Коротко]) -> ОМСН | D107: =LOOKUP([id],Дети[id],Дети[ФИО]) -> Преснякова Карина Александровна | E107: =LOOKUP([id],Дети[id],Дети[Дата рождения]) -> 1997-06-03 | F107: =LOOKUP([id],Дети[id],Дети[пол]) -> д | G107: 00:01:07 | H107: 52
C110: Председатель оргкомитета /Громов А.Г./

Sheet ролики
C1: Протокол №10 (ролики)
I2: 4 июня 2011, 15:28
A3: id | B3: team_id | C3: Команда | D3: ФИО | E3: Дата рождения | F3: время | G3: штраф | H3: Сумма | I3: Место
A4: 185 | B4: =LOOKUP([id],Дети[id],Дети[team_id]) -> 10 | C4: =LOOKUP([team_id],Команды[id],Команды[Коротко]) -> Кашира | D4: =LOOKUP([id],Дети[id],Дети[ФИО]) -> Кочкина Ольга Вячеславовна | E4: =LOOKUP([id],Дети[id],Дети[Дата рождения]) -> 1999-08-17 | F4: 00:00:24.300 | H4: =ролики[[#This Row],[время]]+ролики[[#This Row],[штраф]] -> 00:00:24.300 | I4: 1
A5: 312 | B5: =LOOKUP([id],Дети[id],Дети[team_id]) -> 16 | C5: =LOOKUP([team_id],Команды[id],Команды[Коротко]) -> Тверь | D5: =LOOKUP([id],Дети[id],Дети[ФИО]) -> Ли Оливия | E5: =LOOKUP([id],Дети[id],Дети[Дата рождения]) -> 1998-09-10 | F5: 00:00:25.100 | H5: =ролики[[#This Row],[время]]+ролики[[#This Row],[штраф]] -> 00:00:25.100 | I5: 2
A6: 176 | B6: =LOOKUP([id],Дети[id],Дети[team_id]) -> 9 | C6: =LOOKUP([team_id],Команды[id],Команды[Коротко]) -> Курск | D6: =LOOKUP([id],Дети[id],Дети[ФИО]) -> Старосельцев Александр | E6: =LOOKUP([id],Дети[id],Дети[Дата рождения]) -> 1997-11-03 | F6: 00:00:29.890 | H6: =ролики[[#This Row],[время]]+ролики[[#This Row],[штраф]] -> 00:00:29.890 | I6: 3
A7: 229 | B7: =LOOKUP([id],Дети[id],Дети[team_id]) -> 12 | C7: =LOOKUP([team_id],Команды[id],Команды[Коротко]) -> Истра | D7: =LOOKUP([id],Дети[id],Дети[ФИО]) -> Мазов Алексей Дмитриевич | E7: =LOOKUP([id],Дети[id],Дети[Дата рождения]) -> 1997-05-30 | F7: 00:00:30.070 | H7: =ролики[[#This Row],[время]]+ролики[[#This Row],[штраф]] -> 00:00:30.070 | I7: 4
A8: 521 | B8: =LOOKUP([id],Дети[id],Дети[team_id]) -> 27 | C8: =LOOKUP([team_id],Команды[id],Команды[Коротко]) -> ОМСН | D8: =LOOKUP([id],Дети[id],Дети[ФИО]) -> Рожнов Степан Александрович | E8: =LOOKUP([id],Дети[id],Дети[Дата рождения]) -> 1997-11-17 | F8: 00:00:31.690 | H8: =ролики[[#This Row],[время]]+ролики[[#This Row],[штраф]] -> 00:00:31.690 | I8: 5
A9: 433 | B9: =LOOKUP([id],Дети[id],Дети[team_id]) -> 22 | C9: =LOOKUP([team_id],Команды[id],Команды[Коротко]) -> Киров | D9: =LOOKUP([id],Дети[id],Дети[ФИО]) -> Созин Станислав | E9: =LOOKUP([id],Дети[id],Дети[Дата рождения]) -> 1997-11-03 | F9: 00:00:32.930 | H9: =ролики[[#This Row],[время]]+ролики[[#This Row],[штраф]] -> 00:00:32.930 | I9: 6
A10: 51 | B10: =LOOKUP([id],Дети[id],Дети[team_id]) -> 3 | C10: =LOOKUP([team_id],Команды[id],Команды[Коротко]) -> Дмитров | D10: =LOOKUP([id],Дети[id],Дети[ФИО]) -> Кулакова Милена Германовна | E10: =LOOKUP([id],Дети[id],Дети[Дата рождения]) -> 1998-10-19 | F10: 00:00:33.910 | H10: =ролики[[#This Row],[время]]+ролики[[#This Row],[штраф]] -> 00:00:33.910 | I10: 7
A11: 205 | B11: =LOOKUP([id],Дети[id],Дети[team_id]) -> 11 | C11: =LOOKUP([team_id],Команды[id],Команды[Коротко]) -> Москва | D11: =LOOKUP([id],Дети[id],Дети[ФИО]) -> Гусев Даниил | E11: =LOOKUP([id],Дети[id],Дети[Дата рождения]) -> 1998-01-08 | F11: 00:00:28.960 | G11: 00:00:05 | H11: =ролики[[#This Row],[время]]+ролики[[#This Row],[штраф]] -> 00:00:33.960 | I11: 8
A12: 83 | B12: =LOOKUP([id],Дети[id],Дети[team_id]) -> 5 | C12: =LOOKUP([team_id],Команды[id],Команды[Коротко]) -> Краснодар | D12: =LOOKUP([id],Дети[id],Дети[ФИО]) -> Кисляков Александр Александрович | E12: =LOOKUP([id],Дети[id],Дети[Дата рождения]) -> 1997-11-06 | F12: 00:00:36.020 | H12: =ролики[[#This Row],[время]]+ролики[[#This Row],[штраф]] -> 00:00:36.020 | I12: 9
A13: 354 | B13: =LOOKUP([id],Дети[id],Дети[team_id]) -> 18 | C13: =LOOKUP([team_id],Команды[id],Команды[Коротко]) -> Одинцово | D13: =LOOKUP([id],Дети[id],Дети[ФИО]) -> Игнатов Никита Владиславович | E13: =LOOKUP([id],Дети[id],Дети[Дата рождения]) -> 1997-04-17 | F13: 00:00:32.430 | G13: 00:00:05 | H13: =ролики[[#This Row],[время]]+ролики[[#This Row],[штраф]] -> 00:00:37.430 | I13: 10
A14: 245 | B14: =LOOKUP([id],Дети[id],Дети[team_id]) -> 13 | C14: =LOOKUP([team_id],Команды[id],Команды[Коротко]) -> Владимир | D14: =LOOKUP([id],Дети[id],Дети[ФИО]) -> Петров Арслан Михайлович | E14: =LOOKUP([id],Дети[id],Дети[Дата рождения]) -> 1997-01-05 | F14: 00:00:33.140 | G14: 00:00:05 | H14: =ролики[[#This Row],[время]]+ролики[[#This Row],[штраф]] -> 00:00:38.140 | I14: 11
A15: 156 | B15: =LOOKUP([id],Дети[id],Дети[team_id]) -> 8 | C15: =LOOKUP([team_id],Команды[id],Команды[Коротко]) -> Руза | D15: =LOOKUP([id],Дети[id],Дети[ФИО]) -> Дмитроченко Светлана | E15: =LOOKUP([id],Дети[id],Дети[Дата рождения]) -> 1997-05-07 | F15: 00:00:38.940 | H15: =ролики[[#This Row],[время]]+ролики[[#This Row],[штраф]] -> 00:00:38.940 | I15: 12
A16: 294 | B16: =LOOKUP([id],Дети[id],Дети[team_id]) -> 15 | C16: =LOOKUP([team_id],Команды[id],Команды[Коротко]) -> Воронеж | D16: =LOOKUP([id],Дети[id],Дети[ФИО]) -> Шегунова Наталия | E16: =LOOKUP([id],Дети[id],Дети[Дата рождения]) -> 1998-05-12 | F16: 00:00:38.950 | H16: =ролики[[#This Row],[время]]+ролики[[#This Row],[штраф]] -> 00:00:38.950 | I16: 13
A17: 463 | B17: =LOOKUP([id],Дети[id],Дети[team_id]) -> 24 | C17: =LOOKUP([team_id],Команды[id],Команды[Коротко]) -> Пушкино | D17: =LOOKUP([id],Дети[id],Дети[ФИО]) -> Жуков Вячеслав Викторович | E17: =LOOKUP([id],Дети[id],Дети[Дата рождения]) -> 1997-07-16 | F17: 00:00:34.240 | G17: 00:00:05 | H17: =ролики[[#This Row],[время]]+ролики[[#This Row],[штраф]] -> 00:00:39.240 | I17: 14
A18: 127 | B18: =LOOKUP([id],Дети[id],Дети[team_id]) -> 7 | C18: =LOOKUP([team_id],Команды[id],Команды[Коротко]) -> Клин | D18: =LOOKUP([id],Дети[id],Дети[ФИО]) -> Козлов Федор Дмитриевич | E18: =LOOKUP([id],Дети[id],Дети[Дата рождения]) -> 1998-05-15 | F18: 00:00:34.300 | G18: 00:00:05 | H18: =ролики[[#This Row],[время]]+ролики[[#This Row],[штраф]] -> 00:00:39.300 | I18: 15
A19: 324 | B19: =LOOKUP([id],Дети[id],Дети[team_id]) -> 17 | C19: =LOOKUP([team_id],Команды[id],Команды[Коротко]) -> Смоленск | D19: =LOOKUP([id],Дети[id],Дети[ФИО]) -> Дедова Дарья Юрьевна | E19: =LOOKUP([id],Дети[id],Дети[Дата рождения]) -> 1997-06-08 | F19: 00:00:35.610 | G19: 00:00:05 | H19: =ролики[[#This Row],[время]]+ролики[[#This Row],[штраф]] -> 00:00:40.610 | I19: 16
A20: 40 | B20: =LOOKUP([id],Дети[id],Дети[team_id]) -> 2 | C20: =LOOKUP([team_id],Команды[id],Команды[Коротко]) -> Липецк | D20: =LOOKUP([id],Дети[id],Дети[ФИО]) -> Руднева Софья Дмитриевна | E20: =LOOKUP([id],Дети[id],Дети[Дата рождения]) -> 1998-12-30 | F20: 00:00:41.160 | H20: =ролики[[#This Row],[время]]+ролики[[#This Row],[штраф]] -> 00:00:41.160 | I20: 17
A21: 384 | B21: =LOOKUP([id],Дети[id],Дети[team_id]) -> 20 | C21: =LOOKUP([team_id],Команды[id],Команды[Коротко]) -> Татарстан | D21: =LOOKUP([id],Дети[id],Дети[ФИО]) -> Кварталов Евгений Евгеньевич | E21: =LOOKUP([id],Дети[id],Дети[Дата рождения]) -> 1997-08-30 | F21: 00:00:32.960 | G21: 00:00:10 | H21: =ролики[[#This Row],[время]]+ролики[[#This Row],[штраф]] -> 00:00:42.960 | I21: 18
A22: 495 | B22: =LOOKUP([id],Дети[id],Дети[team_id]) -> 25 | C22: =LOOKUP([team_id],Команды[id],Команды[Коротко]) -> Ярославль | D22: =LOOKUP([id],Дети[id],Дети[ФИО]) -> Веселов Влад | E22: =LOOKUP([id],Дети[id],Дети[Дата рождения]) -> 1998-04-08 | F22: 00:00:38.030 | G22: 00:00:05 | H22: =ролики[[#This Row],[время]]+ролики[[#This Row],[штраф]] -> 00:00:43.030 | I22: 19
A23: 509 | B23: =LOOKUP([id],Дети[id],Дети[team_id]) -> 26 | C23: =LOOKUP([team_id],Команды[id],Команды[Коротко]) -> Олимп, Шатура | D23: =LOOKUP([id],Дети[id],Дети[ФИО]) -> Кожина Светлана Викторовна | E23: =LOOKUP([id],Дети[id],Дети[Дата рождения]) -> 1998-01-03 | F23: 00:00:38.350 | G23: 00:00:05 | H23: =ролики[[#This Row],[время]]+ролики[[#This Row],[штраф]] -> 00:00:43.350 | I23: 20
A24: 410 | B24: =LOOKUP([id],Дети[id],Дети[team_id]) -> 21 | C24: =LOOKUP([team_id],Команды[id],Команды[Коротко]) -> Ступино | D24: =LOOKUP([id],Дети[id],Дети[ФИО]) -> Ерыгин Виталий Сергеевич | E24: =LOOKUP([id],Дети[id],Дети[Дата рождения]) -> 1997-05-25 | F24: 00:00:33.860 | G24: 00:00:10 | H24: =ролики[[#This Row],[время]]+ролики[[#This Row],[штраф]] -> 00:00:43.860 | I24: 21
A25: 11 | B25: =LOOKUP([id],Дети[id],Дети[team_id]) -> 1 | C25: =LOOKUP([team_id],Команды[id],Команды[Коротко]) -> ОМОН | D25: =LOOKUP([id],Дети[id],Дети[ФИО]) -> Архипов Сергей Алексеевич | E25: =LOOKUP([id],Дети[id],Дети[Дата рождения]) -> 1999-06-17 | F25: 00:00:43.980 | H25: =ролики[[#This Row],[время]]+ролики[[#This Row],[штраф]] -> 00:00:43.980 | I25: 22
A26: 273 | B26: =LOOKUP([id],Дети[id],Дети[team_id]) -> 14 | C26: =LOOKUP([team_id],Команды[id],Команды[Коротко]) -> Воскресенск | D26: =LOOKUP([id],Дети[id],Дети[ФИО]) -> Борисова Кристина Алексеевна | E26: =LOOKUP([id],Дети[id],Дети[Дата рождения]) -> 1998-03-18 | F26: 00:00:34.820 | G26: 00:00:10 | H26: =ролики[[#This Row],[время]]+ролики[[#This Row],[штраф]] -> 00:00:44.820 | I26: 23
A27: 104 | B27: =LOOKUP([id],Дети[id],Дети[team_id]) -> 6 | C27: =LOOKUP([team_id],Команды[id],Команды[Коротко]) -> Энергия, Шатура | D27: =LOOKUP([id],Дети[id],Дети[ФИО]) -> Аристархов Георгий Алексеевич | E27: =LOOKUP([id],Дети[id],Дети[Дата рождения]) -> 1997-04-14 | F27: 00:00:41.920 | G27: 00:00:05 | H27: =ролики[[#This Row],[время]]+ролики[[#This Row],[штраф]] -> 00:00:46.920 | I27: 24
A28: 368 | B28: =LOOKUP([id],Дети[id],Дети[team_id]) -> 19 | C28: =LOOKUP([team_id],Команды[id],Команды[Коротко]) -> Тамбов | D28: =LOOKUP([id],Дети[id],Дети[ФИО]) -> Сафронова Дарья | E28: =LOOKUP([id],Дети[id],Дети[Дата рождения]) -> 1997-11-27 | F28: 00:00:42.100 | G28: 00:00:10 | H28: =ролики[[#This Row],[время]]+ролики[[#This Row],[штраф]] -> 00:00:52.100 | I28: 25
A29: 443 | B29: =LOOKUP([id],Дети[id],Дети[team_id]) -> 23 | C29: =LOOKUP([team_id],Команды[id],Команды[Коротко]) -> Иваново | D29: =LOOKUP([id],Дети[id],Дети[ФИО]) -> Среднев Егор Васильевич | E29: =LOOKUP([id],Дети[id],Дети[Дата рождения]) -> 1999-04-27 | F29: 00:00:47.550 | G29: 00:00:05 | H29: =ролики[[#This Row],[время]]+ролики[[#This Row],[штраф]] -> 00:00:52.550 | I29: 26
C32: Председатель оргкомитета /Громов А.Г./

Sheet стрельба-лук
C1: Протокол №11 (стрельба-лук)
H2: 4 июня 2011, 15:57
A3: id | B3: team_id | C3: Команда | D3: ФИО | E3: Пол | F3: Дата рождения | G3: результат | H3: Место
A4: 394 | B4: =LOOKUP([id],Дети[id],Дети[team_id]) -> 20 | C4: =LOOKUP([team_id],Команды[id],Команды[Коротко]) -> Татарстан | D4: =LOOKUP([id],Дети[id],Дети[ФИО]) -> Орешникова Дарья Андреевна | E4: =LOOKUP([id],Дети[id],Дети[пол]) -> д | F4: =LOOKUP([id],Дети[id],Дети[Дата рождения]) -> 1999-07-27 | G4: 45 | H4: 1
A5: 346 | B5: =LOOKUP([id],Дети[id],Дети[team_id]) -> 18 | C5: =LOOKUP([team_id],Команды[id],Команды[Коротко]) -> Одинцово | D5: =LOOKUP([id],Дети[id],Дети[ФИО]) -> Жильцова Виктория Константиновна | E5: =LOOKUP([id],Дети[id],Дети[пол]) -> д | F5: =LOOKUP([id],Дети[id],Дети[Дата рождения]) -> 1999-07-06 | G5: 34 | H5: 2
A6: 286 | B6: =LOOKUP([id],Дети[id],Дети[team_id]) -> 15 | C6: =LOOKUP([team_id],Команды[id],Команды[Коротко]) -> Воронеж | D6: =LOOKUP([id],Дети[id],Дети[ФИО]) -> Величко Мария Александровна | E6: =LOOKUP([id],Дети[id],Дети[пол]) -> д | F6: =LOOKUP([id],Дети[id],Дети[Дата рождения]) -> 1997-06-04 | G6: 33 | H6: 3
A7: 305 | B7: =LOOKUP([id],Дети[id],Дети[team_id]) -> 16 | C7: =LOOKUP([team_id],Команды[id],Команды[Коротко]) -> Тверь | D7: =LOOKUP([id],Дети[id],Дети[ФИО]) -> Лебедева Анастасия Юрьевна | E7: =LOOKUP([id],Дети[id],Дети[пол]) -> д | F7: =LOOKUP([id],Дети[id],Дети[Дата рождения]) -> 1997-03-19 | G7: 32 | H7: 4
A8: 335 | B8: =LOOKUP([id],Дети[id],Дети[team_id]) -> 17 | C8: =LOOKUP([team_id],Команды[id],Команды[Коротко]) -> Смоленск | D8: =LOOKUP([id],Дети[id],Дети[ФИО]) -> Боданогова Ирина Анастасовна | E8: =LOOKUP([id],Дети[id],Дети[пол]) -> д | F8: =LOOKUP([id],Дети[id],Дети[Дата рождения]) -> 1998-07-25 | G8: 29 | H8: 5
A9: 254 | B9: =LOOKUP([id],Дети[id],Дети[team_id]) -> 13 | C9: =LOOKUP([team_id],Команды[id],Команды[Коротко]) -> Владимир | D9: =LOOKUP([id],Дети[id],Дети[ФИО]) -> Орлова Татьяна Сергеевна | E9: =LOOKUP([id],Дети[id],Дети[пол]) -> д | F9: =LOOKUP([id],Дети[id],Дети[Дата рождения]) -> 1997-12-09 | G9: 25 | H9: 6
A10: 148 | B10: =LOOKUP([id],Дети[id],Дети[team_id]) -> 8 | C10: =LOOKUP([team_id],Команды[id],Команды[Коротко]) -> Руза | D10: =LOOKUP([id],Дети[id],Дети[ФИО]) -> Мирошниченко Юлия | E10: =LOOKUP([id],Дети[id],Дети[пол]) -> д | F10: =LOOKUP([id],Дети[id],Дети[Дата рождения]) -> 1998-08-28 | G10: 24 | H10: 7
A11: 540 | B11: =LOOKUP([id],Дети[id],Дети[team_id]) -> 27 | C11: =LOOKUP([team_id],Команды[id],Команды[Коротко]) -> ОМСН | D11: =LOOKUP([id],Дети[id],Дети[ФИО]) -> Целкова Валерия Дмитриевна | E11: =LOOKUP([id],Дети[id],Дети[пол]) -> д | F11: =LOOKUP([id],Дети[id],Дети[Дата рождения]) -> 1997-01-06 | G11: 20 | H11: 8
A12: 224 | B12: =LOOKUP([id],Дети[id],Дети[team_id]) -> 12 | C12: =LOOKUP([team_id],Команды[id],Команды[Коротко]) -> Истра | D12: =LOOKUP([id],Дети[id],Дети[ФИО]) -> Кузнецова Татьяна Алексеевна | E12: =LOOKUP([id],Дети[id],Дети[пол]) -> д | F12: =LOOKUP([id],Дети[id],Дети[Дата рождения]) -> 1997-02-16 | G12: 18 | H12: 9
A13: 421 | B13: =LOOKUP([id],Дети[id],Дети[team_id]) -> 22 | C13: =LOOKUP([team_id],Команды[id],Команды[Коротко]) -> Киров | D13: =LOOKUP([id],Дети[id],Дети[ФИО]) -> Безродных Елизавета | E13: =LOOKUP([id],Дети[id],Дети[пол]) -> д | F13: =LOOKUP([id],Дети[id],Дети[Дата рождения]) -> 1997-05-03 | G13: 17 | H13: 10
A14: 114 | B14: =LOOKUP([id],Дети[id],Дети[team_id]) -> 6 | C14: =LOOKUP([team_id],Команды[id],Команды[Коротко]) -> Энергия, Шатура | D14: =LOOKUP([id],Дети[id],Дети[ФИО]) -> Бурканова Юлия Владимировна | E14: =LOOKUP([id],Дети[id],Дети[пол]) -> д | F14: =LOOKUP([id],Дети[id],Дети[Дата рождения]) -> 1997-03-21 | G14: 14 | H14: 11
A15: 39 | B15: =LOOKUP([id],Дети[id],Дети[team_id]) -> 2 | C15: =LOOKUP([team_id],Команды[id],Команды[Коротко]) -> Липецк | D15: =LOOKUP([id],Дети[id],Дети[ФИО]) -> Королькова Валерия Викторовна | E15: =LOOKUP([id],Дети[id],Дети[пол]) -> д | F15: =LOOKUP([id],Дети[id],Дети[Дата рождения]) -> 1998-05-23 | G15: 11 | H15: 12
A16: 201 | B16: =LOOKUP([id],Дети[id],Дети[team_id]) -> 11 | C16: =LOOKUP([team_id],Команды[id],Команды[Коротко]) -> Москва | D16: =LOOKUP([id],Дети[id],Дети[ФИО]) -> Алипова Мария | E16: =LOOKUP([id],Дети[id],Дети[пол]) -> д | F16: =LOOKUP([id],Дети[id],Дети[Дата рождения]) -> 1997-12-21 | G16: 11 | H16: 13
A17: 165 | B17: =LOOKUP([id],Дети[id],Дети[team_id]) -> 9 | C17: =LOOKUP([team_id],Команды[id],Команды[Коротко]) -> Курск | D17: =LOOKUP([id],Дети[id],Дети[ФИО]) -> Гильмутдинова Диана | E17: =LOOKUP([id],Дети[id],Дети[пол]) -> д | F17: =LOOKUP([id],Дети[id],Дети[Дата рождения]) -> 1998-10-11 | G17: 10 | H17: 14
A18: 18 | B18: =LOOKUP([id],Дети[id],Дети[team_id]) -> 1 | C18: =LOOKUP([team_id],Команды[id],Команды[Коротко]) -> ОМОН | D18: =LOOKUP([id],Дети[id],Дети[ФИО]) -> Евтюхова Анастасия Евгеньевна | E18: =LOOKUP([id],Дети[id],Дети[пол]) -> д | F18: =LOOKUP([id],Дети[id],Дети[Дата рождения]) -> 1998-02-26 | G18: 10 | H18: 15
A19: 448 | B19: =LOOKUP([id],Дети[id],Дети[team_id]) -> 23 | C19: =LOOKUP([team_id],Команды[id],Команды[Коротко]) -> Иваново | D19: =LOOKUP([id],Дети[id],Дети[ФИО]) -> Орлова Виктория Андреевна | E19: =LOOKUP([id],Дети[id],Дети[пол]) -> д | F19: =LOOKUP([id],Дети[id],Дети[Дата рождения]) -> 1997-09-01 | G19: 10 | H19: 16
A20: 492 | B20: =LOOKUP([id],Дети[id],Дети[team_id]) -> 25 | C20: =LOOKUP([team_id],Команды[id],Команды[Коротко]) -> Ярославль | D20: =LOOKUP([id],Дети[id],Дети[ФИО]) -> Грушина Ирина Валерьевна | E20: =LOOKUP([id],Дети[id],Дети[пол]) -> д | F20: =LOOKUP([id],Дети[id],Дети[Дата рождения]) -> 1998-06-11 | G20: 9 | H20: 17
A21: 461 | B21: =LOOKUP([id],Дети[id],Дети[team_id]) -> 24 | C21: =LOOKUP([team_id],Команды[id],Команды[Коротко]) -> Пушкино | D21: =LOOKUP([id],Дети[id],Дети[ФИО]) -> Боталова Валерия Алексеевна | E21: =LOOKUP([id],Дети[id],Дети[пол]) -> д | F21: =LOOKUP([id],Дети[id],Дети[Дата рождения]) -> 1997-08-07 | G21: 9 | H21: 18
A22: 367 | B22: =LOOKUP([id],Дети[id],Дети[team_id]) -> 19 | C22: =LOOKUP([team_id],Команды[id],Команды[Коротко]) -> Тамбов | D22: =LOOKUP([id],Дети[id],Дети[ФИО]) -> Трушкина Наталия | E22: =LOOKUP([id],Дети[id],Дети[пол]) -> д | F22: =LOOKUP([id],Дети[id],Дети[Дата рождения]) -> 1998-01-10 | G22: 7 | H22: 19
A23: 139 | B23: =LOOKUP([id],Дети[id],Дети[team_id]) -> 7 | C23: =LOOKUP([team_id],Команды[id],Команды[Коротко]) -> Клин | D23: =LOOKUP([id],Дети[id],Дети[ФИО]) -> Дрегалина Алина Сергеевна | E23: =LOOKUP([id],Дети[id],Дети[пол]) -> д | F23: =LOOKUP([id],Дети[id],Дети[Дата рождения]) -> 1998-02-20 | G23: 6 | H23: 20
A24: 510 | B24: =LOOKUP([id],Дети[id],Дети[team_id]) -> 26 | C24: =LOOKUP([team_id],Команды[id],Команды[Коротко]) -> Олимп, Шатура | D24: =LOOKUP([id],Дети[id],Дети[ФИО]) -> Фролова Юлия Васильевна | E24: =LOOKUP([id],Дети[id],Дети[пол]) -> д | F24: =LOOKUP([id],Дети[id],Дети[Дата рождения]) -> 1997-05-19 | G24: 6 | H24: 21
A25: 52 | B25: =LOOKUP([id],Дети[id],Дети[team_id]) -> 3 | C25: =LOOKUP([team_id],Команды[id],Команды[Коротко]) -> Дмитров | D25: =LOOKUP([id],Дети[id],Дети[ФИО]) -> Руженцева Дарья Дмитриевна | E25: =LOOKUP([id],Дети[id],Дети[пол]) -> д | F25: =LOOKUP([id],Дети[id],Дети[Дата рождения]) -> 1999-01-11 | G25: 5 | H25: 22
A26: 276 | B26: =LOOKUP([id],Дети[id],Дети[team_id]) -> 14 | C26: =LOOKUP([team_id],Команды[id],Команды[Коротко]) -> Воскресенск | D26: =LOOKUP([id],Дети[id],Дети[ФИО]) -> Кудряшова Анна Александровна | E26: =LOOKUP([id],Дети[id],Дети[пол]) -> д | F26: =LOOKUP([id],Дети[id],Дети[Дата рождения]) -> 1998-08-07 | G26: 3 | H26: 23
A27: 91 | B27: =LOOKUP([id],Дети[id],Дети[team_id]) -> 5 | C27: =LOOKUP([team_id],Команды[id],Команды[Коротко]) -> Краснодар | D27: =LOOKUP([id],Дети[id],Дети[ФИО]) -> Григорьева Вероника Александровна | E27: =LOOKUP([id],Дети[id],Дети[пол]) -> д | F27: =LOOKUP([id],Дети[id],Дети[Дата рождения]) -> 1998-04-13 | G27: 2 | H27: 24
A28: 182 | B28: =LOOKUP([id],Дети[id],Дети[team_id]) -> 10 | C28: =LOOKUP([team_id],Команды[id],Команды[Коротко]) -> Кашира | D28: =LOOKUP([id],Дети[id],Дети[ФИО]) -> Белянина Виктория Игоревна | E28: =LOOKUP([id],Дети[id],Дети[пол]) -> д | F28: =LOOKUP([id],Дети[id],Дети[Дата рождения]) -> 1998-05-26 | G28: 1 | H28: 25
A29: 414 | B29: =LOOKUP([id],Дети[id],Дети[team_id]) -> 21 | C29: =LOOKUP([team_id],Команды[id],Команды[Коротко]) -> Ступино | D29: =LOOKUP([id],Дети[id],Дети[ФИО]) -> Чебуракова Анастасия Олеговна | E29: =LOOKUP([id],Дети[id],Дети[пол]) -> д | F29: =LOOKUP([id],Дети[id],Дети[Дата рождения]) -> 1997-02-22 | G29: 0 | H29: 26
A30: 385 | B30: =LOOKUP([id],Дети[id],Дети[team_id]) -> 20 | C30: =LOOKUP([team_id],Команды[id],Команды[Коротко]) -> Татарстан | D30: =LOOKUP([id],Дети[id],Дети[ФИО]) -> Хамидуллин Тимур Маратович | E30: =LOOKUP([id],Дети[id],Дети[пол]) -> м | F30: =LOOKUP([id],Дети[id],Дети[Дата рождения]) -> 1997-12-11 | G30: 59 | H30: 1
A31: 175 | B31: =LOOKUP([id],Дети[id],Дети[team_id]) -> 9 | C31: =LOOKUP([team_id],Команды[id],Команды[Коротко]) -> Курск | D31: =LOOKUP([id],Дети[id],Дети[ФИО]) -> Безугольников Михаил | E31: =LOOKUP([id],Дети[id],Дети[пол]) -> м | F31: =LOOKUP([id],Дети[id],Дети[Дата рождения]) -> 1997-04-07 | G31: 48 | H31: 2
A32: 431 | B32: =LOOKUP([id],Дети[id],Дети[team_id]) -> 22 | C32: =LOOKUP([team_id],Команды[id],Команды[Коротко]) -> Киров | D32: =LOOKUP([id],Дети[id],Дети[ФИО]) -> Бледных Виталий | E32: =LOOKUP([id],Дети[id],Дети[пол]) -> м | F32: =LOOKUP([id],Дети[id],Дети[Дата рождения]) -> 1997-06-23 | G32: 43 | H32: 3
A33: 57 | B33: =LOOKUP([id],Дети[id],Дети[team_id]) -> 3 | C33: =LOOKUP([team_id],Команды[id],Команды[Коротко]) -> Дмитров | D33: =LOOKUP([id],Дети[id],Дети[ФИО]) -> Мозалев Никита Павлович | E33: =LOOKUP([id],Дети[id],Дети[пол]) -> м | F33: =LOOKUP([id],Дети[id],Дети[Дата рождения]) -> 1998-08-18 | G33: 38 | H33: 4
A34: 253 | B34: =LOOKUP([id],Дети[id],Дети[team_id]) -> 13 | C34: =LOOKUP([team_id],Команды[id],Команды[Коротко]) -> Владимир | D34: =LOOKUP([id],Дети[id],Дети[ФИО]) -> Сухарников Александр Александрович | E34: =LOOKUP([id],Дети[id],Дети[пол]) -> м | F34: =LOOKUP([id],Дети[id],Дети[Дата рождения]) -> 1998-01-04 | G34: 37 | H34: 5
A35: 289 | B35: =LOOKUP([id],Дети[id],Дети[team_id]) -> 15 | C35: =LOOKUP([team_id],Команды[id],Команды[Коротко]) -> Воронеж | D35: =LOOKUP([id],Дети[id],Дети[ФИО]) -> Гончаров Александр Сергеевич | E35: =LOOKUP([id],Дети[id],Дети[пол]) -> м | F35: =LOOKUP([id],Дети[id],Дети[Дата рождения]) -> 1997-12-03 | G35: 37 | H35: 6
A36: 482 | B36: =LOOKUP([id],Дети[id],Дети[team_id]) -> 25 | C36: =LOOKUP([team_id],Команды[id],Команды[Коротко]) -> Ярославль | D36: =LOOKUP([id],Дети[id],Дети[ФИО]) -> Соболев Сергей Олегович | E36: =LOOKUP([id],Дети[id],Дети[пол]) -> м | F36: =LOOKUP([id],Дети[id],Дети[Дата рождения]) -> 1997-06-25 | G36: 35 | H36: 7
A37: 521 | B37: =LOOKUP([id],Дети[id],Дети[team_id]) -> 27 | C37: =LOOKUP([team_id],Команды[id],Команды[Коротко]) -> ОМСН | D37: =LOOKUP([id],Дети[id],Дети[ФИО]) -> Рожнов Степан Александрович | E37: =LOOKUP([id],Дети[id],Дети[пол]) -> м | F37: =LOOKUP([id],Дети[id],Дети[Дата рождения]) -> 1997-11-17 | G37: 31 | H37: 8
A38: 191 | B38: =LOOKUP([id],Дети[id],Дети[team_id]) -> 10 | C38: =LOOKUP([team_id],Команды[id],Команды[Коротко]) -> Кашира | D38: =LOOKUP([id],Дети[id],Дети[ФИО]) -> Федотов Александр Юрьевич | E38: =LOOKUP([id],Дети[id],Дети[пол]) -> м | F38: =LOOKUP([id],Дети[id],Дети[Дата рождения]) -> 1998-06-27 | G38: 25 | H38: 9
A39: 97 | B39: =LOOKUP([id],Дети[id],Дети[team_id]) -> 5 | C39: =LOOKUP([team_id],Команды[id],Команды[Коротко]) -> Краснодар | D39: =LOOKUP([id],Дети[id],Дети[ФИО]) -> Адлер Александр Владимирович | E39: =LOOKUP([id],Дети[id],Дети[пол]) -> м | F39: =LOOKUP([id],Дети[id],Дети[Дата рождения]) -> 1997-04-04 | G39: 25 | H39: 10
A40: 380 | B40: =LOOKUP([id],Дети[id],Дети[team_id]) -> 19 | C40: =LOOKUP([team_id],Команды[id],Команды[Коротко]) -> Тамбов | D40: =LOOKUP([id],Дети[id],Дети[ФИО]) -> Буданцев Артем | E40: =LOOKUP([id],Дети[id],Дети[пол]) -> м | F40: =LOOKUP([id],Дети[id],Дети[Дата рождения]) -> 1997-03-03 | G40: 24 | H40: 11
A41: 34 | B41: =LOOKUP([id],Дети[id],Дети[team_id]) -> 2 | C41: =LOOKUP([team_id],Команды[id],Команды[Коротко]) -> Липецк | D41: =LOOKUP([id],Дети[id],Дети[ФИО]) -> Фролов Александр Евгеньевич | E41: =LOOKUP([id],Дети[id],Дети[пол]) -> м | F41: =LOOKUP([id],Дети[id],Дети[Дата рождения]) -> 2000-06-11 | G41: 21 | H41: 12
A42: 344 | B42: =LOOKUP([id],Дети[id],Дети[team_id]) -> 18 | C42: =LOOKUP([team_id],Команды[id],Команды[Коротко]) -> Одинцово | D42: =LOOKUP([id],Дети[id],Дети[ФИО]) -> Гынилов Базыр Баирович | E42: =LOOKUP([id],Дети[id],Дети[пол]) -> м | F42: =LOOKUP([id],Дети[id],Дети[Дата рождения]) -> 1998-02-07 | G42: 21 | H42: 13
A43: 125 | B43: =LOOKUP([id],Дети[id],Дети[team_id]) -> 7 | C43: =LOOKUP([team_id],Команды[id],Команды[Коротко]) -> Клин | D43: =LOOKUP([id],Дети[id],Дети[ФИО]) -> Данков Алексей Сергеевич | E43: =LOOKUP([id],Дети[id],Дети[пол]) -> м | F43: =LOOKUP([id],Дети[id],Дети[Дата рождения]) -> 1998-03-27 | G43: 20 | H43: 14
A44: 321 | B44: =LOOKUP([id],Дети[id],Дети[team_id]) -> 17 | C44: =LOOKUP([team_id],Команды[id],Команды[Коротко]) -> Смоленск | D44: =LOOKUP([id],Дети[id],Дети[ФИО]) -> Гультяев Илья Алексеевич | E44: =LOOKUP([id],Дети[id],Дети[пол]) -> м | F44: =LOOKUP([id],Дети[id],Дети[Дата рождения]) -> 1997-10-29 | G44: 20 | H44: 15
A45: 270 | B45: =LOOKUP([id],Дети[id],Дети[team_id]) -> 14 | C45: =LOOKUP([team_id],Команды[id],Команды[Коротко]) -> Воскресенск | D45: =LOOKUP([id],Дети[id],Дети[ФИО]) -> Проскуряков Михаил Алексеевич | E45: =LOOKUP([id],Дети[id],Дети[пол]) -> м | F45: =LOOKUP([id],Дети[id],Дети[Дата рождения]) -> 1998-04-24 | G45: 17 | H45: 16
A46: 419 | B46: =LOOKUP([id],Дети[id],Дети[team_id]) -> 21 | C46: =LOOKUP([team_id],Команды[id],Команды[Коротко]) -> Ступино | D46: =LOOKUP([id],Дети[id],Дети[ФИО]) -> Локтионов Даниил Евгеньевич | E46: =LOOKUP([id],Дети[id],Дети[пол]) -> м | F46: =LOOKUP([id],Дети[id],Дети[Дата рождения]) -> 1997-01-08 | G46: 17 | H46: 17
A47: 7 | B47: =LOOKUP([id],Дети[id],Дети[team_id]) -> 1 | C47: =LOOKUP([team_id],Команды[id],Команды[Коротко]) -> ОМОН | D47: =LOOKUP([id],Дети[id],Дети[ФИО]) -> Великанов Александр Сергеевич | E47: =LOOKUP([id],Дети[id],Дети[пол]) -> м | F47: =LOOKUP([id],Дети[id],Дети[Дата рождения]) -> 1997-08-20 | G47: 15 | H47: 18
A48: 444 | B48: =LOOKUP([id],Дети[id],Дети[team_id]) -> 23 | C48: =LOOKUP([team_id],Команды[id],Команды[Коротко]) -> Иваново | D48: =LOOKUP([id],Дети[id],Дети[ФИО]) -> Назаров Антон Владимирович | E48: =LOOKUP([id],Дети[id],Дети[пол]) -> м | F48: =LOOKUP([id],Дети[id],Дети[Дата рождения]) -> 1998-07-20 | G48: 13 | H48: 19
A49: 106 | B49: =LOOKUP([id],Дети[id],Дети[team_id]) -> 6 | C49: =LOOKUP([team_id],Команды[id],Команды[Коротко]) -> Энергия, Шатура | D49: =LOOKUP([id],Дети[id],Дети[ФИО]) -> Давыдов Георгий Витальевич | E49: =LOOKUP([id],Дети[id],Дети[пол]) -> м | F49: =LOOKUP([id],Дети[id],Дети[Дата рождения]) -> 1997-10-12 | G49: 13 | H49: 20
A50: 507 | B50: =LOOKUP([id],Дети[id],Дети[team_id]) -> 26 | C50: =LOOKUP([team_id],Команды[id],Команды[Коротко]) -> Олимп, Шатура | D50: =LOOKUP([id],Дети[id],Дети[ФИО]) -> Майорский Владислав Альбертович | E50: =LOOKUP([id],Дети[id],Дети[пол]) -> м | F50: =LOOKUP([id],Дети[id],Дети[Дата рождения]) -> 1997-09-01 | G50: 13 | H50: 21
A51: 147 | B51: =LOOKUP([id],Дети[id],Дети[team_id]) -> 8 | C51: =LOOKUP([team_id],Команды[id],Команды[Коротко]) -> Руза | D51: =LOOKUP([id],Дети[id],Дети[ФИО]) -> Ченкивский Андрей | E51: =LOOKUP([id],Дети[id],Дети[пол]) -> м | F51: =LOOKUP([id],Дети[id],Дети[Дата рождения]) -> 1997-11-06 | G51: 9 | H51: 22
A52: 225 | B52: =LOOKUP([id],Дети[id],Дети[team_id]) -> 12 | C52: =LOOKUP([team_id],Команды[id],Команды[Коротко]) -> Истра | D52: =LOOKUP([id],Дети[id],Дети[ФИО]) -> Горичев Илья Максимович | E52: =LOOKUP([id],Дети[id],Дети[пол]) -> м | F52: =LOOKUP([id],Дети[id],Дети[Дата рождения]) -> 2000-06-19 | G52: 5 | H52: 23
A53: 314 | B53: =LOOKUP([id],Дети[id],Дети[team_id]) -> 16 | C53: =LOOKUP([team_id],Команды[id],Команды[Коротко]) -> Тверь | D53: =LOOKUP([id],Дети[id],Дети[ФИО]) -> Помозов Алексей Александрович | E53: =LOOKUP([id],Дети[id],Дети[пол]) -> м | F53: =LOOKUP([id],Дети[id],Дети[Дата рождения]) -> 1999-12-30 | G53: 5 | H53: 24
A54: 467 | B54: =LOOKUP([id],Дети[id],Дети[team_id]) -> 24 | C54: =LOOKUP([team_id],Команды[id],Команды[Коротко]) -> Пушкино | D54: =LOOKUP([id],Дети[id],Дети[ФИО]) -> Рябчиков Владислав Игоревич | E54: =LOOKUP([id],Дети[id],Дети[пол]) -> м | F54: =LOOKUP([id],Дети[id],Дети[Дата рождения]) -> 1997-03-21 | G54: 4 | H54: 25
A55: 218 | B55: =LOOKUP([id],Дети[id],Дети[team_id]) -> 11 | C55: =LOOKUP([team_id],Команды[id],Команды[Коротко]) -> Москва | D55: =LOOKUP([id],Дети[id],Дети[ФИО]) -> Сыч Глеб | E55: =LOOKUP([id],Дети[id],Дети[пол]) -> м | F55: =LOOKUP([id],Дети[id],Дети[Дата рождения]) -> 1999-09-13 | G55: 3 | H55: 26
C58: Председатель оргкомитета /Громов А.Г./

Sheet ПДД
C1: Протокол №12 (ПДД)
K2: 5 июня 2011, 12:09
A3: id | B3: team_id | C3: Команда | D3: ФИО | E3: пол | F3: Дата рождения | G3: время | H3: штраф | I3: неверн. Отв. | J3: Сумма | K3: Место
A4: 31 | B4: =LOOKUP([id],Дети[id],Дети[team_id]) -> 2 | C4: =LOOKUP([team_id],Команды[id],Команды[Коротко]) -> Липецк | D4: =LOOKUP([id],Дети[id],Дети[ФИО]) -> Савин Иван Александрович | E4: =LOOKUP([id],Дети[id],Дети[пол]) -> м | F4: =LOOKUP([id],Дети[id],Дети[Дата рождения]) -> 1997-01-11 | G4: 00:03:58 | H4: =[неверн. Отв.]*TIMEVALUE("0:00:30") -> 00:01:00 | I4: 2 | J4: =[время]+[штраф] -> 00:04:58 | K4: 1
A5: 454 | B5: =LOOKUP([id],Дети[id],Дети[team_id]) -> 23 | C5: =LOOKUP([team_id],Команды[id],Команды[Коротко]) -> Иваново | D5: =LOOKUP([id],Дети[id],Дети[ФИО]) -> Ликин Максим Сергеевич | E5: =LOOKUP([id],Дети[id],Дети[пол]) -> м | F5: =LOOKUP([id],Дети[id],Дети[Дата рождения]) -> 1999-12-07 | G5: 00:04:36 | H5: =[неверн. Отв.]*TIMEVALUE("0:00:30") -> 00:01:00 | I5: 2 | J5: =[время]+[штраф] -> 00:05:36 | K5: 2
A6: 289 | B6: =LOOKUP([id],Дети[id],Дети[team_id]) -> 15 | C6: =LOOKUP([team_id],Команды[id],Команды[Коротко]) -> Воронеж | D6: =LOOKUP([id],Дети[id],Дети[ФИО]) -> Гончаров Александр Сергеевич | E6: =LOOKUP([id],Дети[id],Дети[пол]) -> м | F6: =LOOKUP([id],Дети[id],Дети[Дата рождения]) -> 1997-12-03 | G6: 00:05:21 | H6: =[неверн. Отв.]*TIMEVALUE("0:00:30") -> 00:01:30 | I6: 3 | J6: =[время]+[штраф] -> 00:06:51 | K6: 3
A7: 167 | B7: =LOOKUP([id],Дети[id],Дети[team_id]) -> 9 | C7: =LOOKUP([team_id],Команды[id],Команды[Коротко]) -> Курск | D7: =LOOKUP([id],Дети[id],Дети[ФИО]) -> Сташевская Татьяна | E7: =LOOKUP([id],Дети[id],Дети[пол]) -> д | F7: =LOOKUP([id],Дети[id],Дети[Дата рождения]) -> 1997-05-06 | G7: 00:08:47 | H7: =[неверн. Отв.]*TIMEVALUE("0:00:30") -> 00:01:30 | I7: 3 | J7: =[время]+[штраф] -> 00:10:17 | K7: 4
A8: 494 | B8: =LOOKUP([id],Дети[id],Дети[team_id]) -> 25 | C8: =LOOKUP([team_id],Команды[id],Команды[Коротко]) -> Ярославль | D8: =LOOKUP([id],Дети[id],Дети[ФИО]) -> Муратова Любовь Сергеевна | E8: =LOOKUP([id],Дети[id],Дети[пол]) -> д | F8: =LOOKUP([id],Дети[id],Дети[Дата рождения]) -> 1998-08-24 | G8: 00:07:52 | H8: =[неверн. Отв.]*TIMEVALUE("0:00:30") -> 00:02:30 | I8: 5 | J8: =[время]+[штраф] -> 00:10:22 | K8: 5
A9: 398 | B9: =LOOKUP([id],Дети[id],Дети[team_id]) -> 20 | C9: =LOOKUP([team_id],Команды[id],Команды[Коротко]) -> Татарстан | D9: =LOOKUP([id],Дети[id],Дети[ФИО]) -> Галиуллина Лиана Рафисовна | E9: =LOOKUP([id],Дети[id],Дети[пол]) -> д | F9: =LOOKUP([id],Дети[id],Дети[Дата рождения]) -> 1998-07-07 | G9: 00:05:05 | H9: =[неверн. Отв.]*TIMEVALUE("0:00:30") -> 00:03:00 | I9: 6 | J9: =[время]+[штраф] -> 00:08:05 | K9: 11
A10: 353 | B10: =LOOKUP([id],Дети[id],Дети[team_id]) -> 18 | C10: =LOOKUP([team_id],Команды[id],Команды[Коротко]) -> Одинцово | D10: =LOOKUP([id],Дети[id],Дети[ФИО]) -> Горьков Егор Сергеевич | E10: =LOOKUP([id],Дети[id],Дети[пол]) -> м | F10: =LOOKUP([id],Дети[id],Дети[Дата рождения]) -> 1999-10-06 | G10: 00:05:42 | H10: =[неверн. Отв.]*TIMEVALUE("0:00:30") -> 00:03:30 | I10: 7 | J10: =[время]+[штраф] -> 00:09:12 | K10: 11
A11: 192 | B11: =LOOKUP([id],Дети[id],Дети[team_id]) -> 10 | C11: =LOOKUP([team_id],Команды[id],Команды[Коротко]) -> Кашира | D11: =LOOKUP([id],Дети[id],Дети[ФИО]) -> Жариков Евгений Михайлович | E11: =LOOKUP([id],Дети[id],Дети[пол]) -> м | F11: =LOOKUP([id],Дети[id],Дети[Дата рождения]) -> 1998-01-16 | G11: 00:06:28 | H11: =[неверн. Отв.]*TIMEVALUE("0:00:30") -> 00:03:00 | I11: 6 | J11: =[время]+[штраф] -> 00:09:28 | K11: 11
A12: 540 | B12: =LOOKUP([id],Дети[id],Дети[team_id]) -> 27 | C12: =LOOKUP([team_id],Команды[id],Команды[Коротко]) -> ОМСН | D12: =LOOKUP([id],Дети[id],Дети[ФИО]) -> Целкова Валерия Дмитриевна | E12: =LOOKUP([id],Дети[id],Дети[пол]) -> д | F12: =LOOKUP([id],Дети[id],Дети[Дата рождения]) -> 1997-01-06 | G12: 00:05:33 | H12: =[неверн. Отв.]*TIMEVALUE("0:00:30") -> 00:04:00 | I12: 8 | J12: =[время]+[штраф] -> 00:09:33 | K12: 11
A13: 145 | B13: =LOOKUP([id],Дети[id],Дети[team_id]) -> 8 | C13: =LOOKUP([team_id],Команды[id],Команды[Коротко]) -> Руза | D13: =LOOKUP([id],Дети[id],Дети[ФИО]) -> Сорокин Алексей | E13: =LOOKUP([id],Дети[id],Дети[пол]) -> м | F13: =LOOKUP([id],Дети[id],Дети[Дата рождения]) -> 1998-01-28 | G13: 00:07:21 | H13: =[неверн. Отв.]*TIMEVALUE("0:00:30") -> 00:03:30 | I13: 7 | J13: =[время]+[штраф] -> 00:10:51 | K13: 11
A14: 479 | B14: =LOOKUP([id],Дети[id],Дети[team_id]) -> 24 | C14: =LOOKUP([team_id],Команды[id],Команды[Коротко]) -> Пушкино | D14: =LOOKUP([id],Дети[id],Дети[ФИО]) -> Сабенина Светлана Вячеславовна | E14: =LOOKUP([id],Дети[id],Дети[пол]) -> д | F14: =LOOKUP([id],Дети[id],Дети[Дата рождения]) -> 1997-02-08 | G14: 00:08:48 | H14: =[неверн. Отв.]*TIMEVALUE("0:00:30") -> 00:04:00 | I14: 8 | J14: =[время]+[штраф] -> 00:12:48 | K14: 11
A15: 264 | B15: =LOOKUP([id],Дети[id],Дети[team_id]) -> 14 | C15: =LOOKUP([team_id],Команды[id],Команды[Коротко]) -> Воскресенск | D15: =LOOKUP([id],Дети[id],Дети[ФИО]) -> Портная Дарья Сергеевна | E15: =LOOKUP([id],Дети[id],Дети[пол]) -> д | F15: =LOOKUP([id],Дети[id],Дети[Дата рождения]) -> 1998-08-17 | G15: 00:09:17 | H15: =[неверн. Отв.]*TIMEVALUE("0:00:30") -> 00:04:00 | I15: 8 | J15: =[время]+[штраф] -> 00:13:17 | K15: 11
A16: 220 | B16: =LOOKUP([id],Дети[id],Дети[team_id]) -> 11 | C16: =LOOKUP([team_id],Команды[id],Команды[Коротко]) -> Москва | D16: =LOOKUP([id],Дети[id],Дети[ФИО]) -> Шутков Алексей | E16: =LOOKUP([id],Дети[id],Дети[пол]) -> м | F16: =LOOKUP([id],Дети[id],Дети[Дата рождения]) -> 1998-06-16 | G16: 00:09:22 | H16: =[неверн. Отв.]*TIMEVALUE("0:00:30") -> 00:04:00 | I16: 8 | J16: =[время]+[штраф] -> 00:13:22 | K16: 11
A17: 419 | B17: =LOOKUP([id],Дети[id],Дети[team_id]) -> 21 | C17: =LOOKUP([team_id],Команды[id],Команды[Коротко]) -> Ступино | D17: =LOOKUP([id],Дети[id],Дети[ФИО]) -> Локтионов Даниил Евгеньевич | E17: =LOOKUP([id],Дети[id],Дети[пол]) -> м | F17: =LOOKUP([id],Дети[id],Дети[Дата рождения]) -> 1997-01-08 | G17: 00:07:28 | H17: =[неверн. Отв.]*TIMEVALUE("0:00:30") -> 00:06:00 | I17: 12 | J17: =[время]+[штраф] -> 00:13:28 | K17: 11
A18: 437 | B18: =LOOKUP([id],Дети[id],Дети[team_id]) -> 22 | C18: =LOOKUP([team_id],Команды[id],Команды[Коротко]) -> Киров | D18: =LOOKUP([id],Дети[id],Дети[ФИО]) -> Сидоров Даниил | E18: =LOOKUP([id],Дети[id],Дети[пол]) -> м | F18: =LOOKUP([id],Дети[id],Дети[Дата рождения]) -> 1999-04-06 | G18: 00:09:43 | H18: =[неверн. Отв.]*TIMEVALUE("0:00:30") -> 00:04:00 | I18: 8 | J18: =[время]+[штраф] -> 00:13:43 | K18: 11
A19: 92 | B19: =LOOKUP([id],Дети[id],Дети[team_id]) -> 5 | C19: =LOOKUP([team_id],Команды[id],Команды[Коротко]) -> Краснодар | D19: =LOOKUP([id],Дети[id],Дети[ФИО]) -> Якименко Инна Юрьевна | E19: =LOOKUP([id],Дети[id],Дети[пол]) -> д | F19: =LOOKUP([id],Дети[id],Дети[Дата рождения]) -> 1997-06-22 | G19: 00:07:22 | H19: =[неверн. Отв.]*TIMEVALUE("0:00:30") -> 00:06:30 | I19: 13 | J19: =[время]+[штраф] -> 00:13:52 | K19: 11
A20: 329 | B20: =LOOKUP([id],Дети[id],Дети[team_id]) -> 17 | C20: =LOOKUP([team_id],Команды[id],Команды[Коротко]) -> Смоленск | D20: =LOOKUP([id],Дети[id],Дети[ФИО]) -> Васильев Виталий Сергеевич | E20: =LOOKUP([id],Дети[id],Дети[пол]) -> м | F20: =LOOKUP([id],Дети[id],Дети[Дата рождения]) -> 1998-03-10 | G20: 00:07:15 | H20: =[неверн. Отв.]*TIMEVALUE("0:00:30") -> 00:08:00 | I20: 16 | J20: =[время]+[штраф] -> 00:15:15 | K20: 11
A21: 244 | B21: =LOOKUP([id],Дети[id],Дети[team_id]) -> 13 | C21: =LOOKUP([team_id],Команды[id],Команды[Коротко]) -> Владимир | D21: =LOOKUP([id],Дети[id],Дети[ФИО]) -> Слепов Денис Игоревич | E21: =LOOKUP([id],Дети[id],Дети[пол]) -> м | F21: =LOOKUP([id],Дети[id],Дети[Дата рождения]) -> 1997-01-31 | G21: 00:11:21 | H21: =[неверн. Отв.]*TIMEVALUE("0:00:30") -> 00:05:00 | I21: 10 | J21: =[время]+[штраф] -> 00:16:21 | K21: 11
A22: 224 | B22: =LOOKUP([id],Дети[id],Дети[team_id]) -> 12 | C22: =LOOKUP([team_id],Команды[id],Команды[Коротко]) -> Истра | D22: =LOOKUP([id],Дети[id],Дети[ФИО]) -> Кузнецова Татьяна Алексеевна | E22: =LOOKUP([id],Дети[id],Дети[пол]) -> д | F22: =LOOKUP([id],Дети[id],Дети[Дата рождения]) -> 1997-02-16 | G22: 00:10:51 | H22: =[неверн. Отв.]*TIMEVALUE("0:00:30") -> 00:07:00 | I22: 14 | J22: =[время]+[штраф] -> 00:17:51 | K22: 11
A23: 378 | B23: =LOOKUP([id],Дети[id],Дети[team_id]) -> 19 | C23: =LOOKUP([team_id],Команды[id],Команды[Коротко]) -> Тамбов | D23: =LOOKUP([id],Дети[id],Дети[ФИО]) -> Шарапов Станислав | E23: =LOOKUP([id],Дети[id],Дети[пол]) -> м | F23: =LOOKUP([id],Дети[id],Дети[Дата рождения]) -> 1999-03-14 | G23: 00:15:08 | H23: =[неверн. Отв.]*TIMEVALUE("0:00:30") -> 00:03:00 | I23: 6 | J23: =[время]+[штраф] -> 00:18:08 | K23: 11
A24: 303 | B24: =LOOKUP([id],Дети[id],Дети[team_id]) -> 16 | C24: =LOOKUP([team_id],Команды[id],Команды[Коротко]) -> Тверь | D24: =LOOKUP([id],Дети[id],Дети[ФИО]) -> Телешев Алексей Игоревич | E24: =LOOKUP([id],Дети[id],Дети[пол]) -> м | F24: =LOOKUP([id],Дети[id],Дети[Дата рождения]) -> 1999-01-13 | G24: 00:13:23 | H24: =[неверн. Отв.]*TIMEVALUE("0:00:30") -> 00:05:00 | I24: 10 | J24: =[время]+[штраф] -> 00:18:23 | K24: 11
A25: 106 | B25: =LOOKUP([id],Дети[id],Дети[team_id]) -> 6 | C25: =LOOKUP([team_id],Команды[id],Команды[Коротко]) -> Энергия, Шатура | D25: =LOOKUP([id],Дети[id],Дети[ФИО]) -> Давыдов Георгий Витальевич | E25: =LOOKUP([id],Дети[id],Дети[пол]) -> м | F25: =LOOKUP([id],Дети[id],Дети[Дата рождения]) -> 1997-10-12 | G25: 00:10:48 | H25: =[неверн. Отв.]*TIMEVALUE("0:00:30") -> 00:08:30 | I25: 17 | J25: =[время]+[штраф] -> 00:19:18 | K25: 11
A26: 514 | B26: =LOOKUP([id],Дети[id],Дети[team_id]) -> 26 | C26: =LOOKUP([team_id],Команды[id],Команды[Коротко]) -> Олимп, Шатура | D26: =LOOKUP([id],Дети[id],Дети[ФИО]) -> Филиппов Матвей Сергеевич | E26: =LOOKUP([id],Дети[id],Дети[пол]) -> м | F26: =LOOKUP([id],Дети[id],Дети[Дата рождения]) -> 2000-01-06 | G26: 00:16:15 | H26: =[неверн. Отв.]*TIMEVALUE("0:00:30") -> 00:04:30 | I26: 9 | J26: =[время]+[штраф] -> 00:20:45 | K26: 11
A27: 139 | B27: =LOOKUP([id],Дети[id],Дети[team_id]) -> 7 | C27: =LOOKUP([team_id],Команды[id],Команды[Коротко]) -> Клин | D27: =LOOKUP([id],Дети[id],Дети[ФИО]) -> Дрегалина Алина Сергеевна | E27: =LOOKUP([id],Дети[id],Дети[пол]) -> д | F27: =LOOKUP([id],Дети[id],Дети[Дата рождения]) -> 1998-02-20 | G27: 00:14:21 | H27: =[неверн. Отв.]*TIMEVALUE("0:00:30") -> 00:06:30 | I27: 13 | J27: =[время]+[штраф] -> 00:20:51 | K27: 11
A28: 51 | B28: =LOOKUP([id],Дети[id],Дети[team_id]) -> 3 | C28: =LOOKUP([team_id],Команды[id],Команды[Коротко]) -> Дмитров | D28: =LOOKUP([id],Дети[id],Дети[ФИО]) -> Кулакова Милена Германовна | E28: =LOOKUP([id],Дети[id],Дети[пол]) -> д | F28: =LOOKUP([id],Дети[id],Дети[Дата рождения]) -> 1998-10-19 | G28: 00:17:46 | H28: =[неверн. Отв.]*TIMEVALUE("0:00:30") -> 00:04:30 | I28: 9 | J28: =[время]+[штраф] -> 00:22:16 | K28: 11
A29: 14 | B29: =LOOKUP([id],Дети[id],Дети[team_id]) -> 1 | C29: =LOOKUP([team_id],Команды[id],Команды[Коротко]) -> ОМОН | D29: =LOOKUP([id],Дети[id],Дети[ФИО]) -> Крашенинникова Анна Андреевна | E29: =LOOKUP([id],Дети[id],Дети[пол]) -> д | F29: =LOOKUP([id],Дети[id],Дети[Дата рождения]) -> 1997-11-03 | G29: 00:16:11 | H29: =[неверн. Отв.]*TIMEVALUE("0:00:30") -> 00:07:00 | I29: 14 | J29: =[время]+[штраф] -> 00:23:11 | K29: 11
C32: Председатель оргкомитета /Громов А.Г./

Sheet рисунок
C1: Протокол №13 (Рисунок)
F2: 5 июня 2011, 15:41
A3: id | B3: team_id | C3: Команда | D3: ФИО | E3: Дата рождения | F3: Место
A4: 203 | B4: =LOOKUP([id],Дети[id],Дети[team_id]) -> 11 | C4: =LOOKUP([team_id],Команды[id],Команды[Коротко]) -> Москва | D4: =LOOKUP([id],Дети[id],Дети[ФИО]) -> Васюченко Елизавета | E4: =LOOKUP([id],Дети[id],Дети[Дата рождения]) -> 1997-04-16 | F4: 1
A5: 33 | B5: =LOOKUP([id],Дети[id],Дети[team_id]) -> 2 | C5: =LOOKUP([team_id],Команды[id],Команды[Коротко]) -> Липецк | D5: =LOOKUP([id],Дети[id],Дети[ФИО]) -> Исаев Максим Михайлович | E5: =LOOKUP([id],Дети[id],Дети[Дата рождения]) -> 1997-07-20 | F5: 2
A6: 114 | B6: =LOOKUP([id],Дети[id],Дети[team_id]) -> 6 | C6: =LOOKUP([team_id],Команды[id],Команды[Коротко]) -> Энергия, Шатура | D6: =LOOKUP([id],Дети[id],Дети[ФИО]) -> Бурканова Юлия Владимировна | E6: =LOOKUP([id],Дети[id],Дети[Дата рождения]) -> 1997-03-21 | F6: 3
C9: Председатель оргкомитета /Громов А.Г./

Sheet плавание
C1: Протокол №14 (плавание)
J2: 4 июня 2011, 14:29
A3: id | B3: team_id | C3: Команда | D3: ФИО | E3: Пол | F3: Дата рождения | G3: штраф | H3: тип | I3: Время | J3: Место
A4: 150 | B4: =LOOKUP([id],Дети[id],Дети[team_id]) -> 8 | C4: =LOOKUP([team_id],Команды[id],Команды[Коротко]) -> Руза | D4: =LOOKUP([id],Дети[id],Дети[ФИО]) -> Кузнецов Виталий | E4: =LOOKUP([id],Дети[id],Дети[пол]) -> м | F4: =LOOKUP([id],Дети[id],Дети[Дата рождения]) -> 1998-02-05 | H4: 100в/с | I4: 00:01:03.220 | J4: 1
A5: 386 | B5: =LOOKUP([id],Дети[id],Дети[team_id]) -> 20 | C5: =LOOKUP([team_id],Команды[id],Команды[Коротко]) -> Татарстан | D5: =LOOKUP([id],Дети[id],Дети[ФИО]) -> Волков Данил Дмитриевич | E5: =LOOKUP([id],Дети[id],Дети[пол]) -> м | F5: =LOOKUP([id],Дети[id],Дети[Дата рождения]) -> 1997-04-28 | H5: 100в/с | I5: 00:01:03.230 | J5: 2
A6: 178 | B6: =LOOKUP([id],Дети[id],Дети[team_id]) -> 9 | C6: =LOOKUP([team_id],Команды[id],Команды[Коротко]) -> Курск | D6: =LOOKUP([id],Дети[id],Дети[ФИО]) -> Стебленко Владислав | E6: =LOOKUP([id],Дети[id],Дети[пол]) -> м | F6: =LOOKUP([id],Дети[id],Дети[Дата рождения]) -> 1997-04-01 | H6: 100в/с | I6: 00:01:03.860 | J6: 3
A7: 439 | B7: =LOOKUP([id],Дети[id],Дети[team_id]) -> 22 | C7: =LOOKUP([team_id],Команды[id],Команды[Коротко]) -> Киров | D7: =LOOKUP([id],Дети[id],Дети[ФИО]) -> Калетин Никита | E7: =LOOKUP([id],Дети[id],Дети[пол]) -> м | F7: =LOOKUP([id],Дети[id],Дети[Дата рождения]) -> 1997-07-26 | H7: 100в/с | I7: 00:01:06.360 | J7: 4
A8: 366 | B8: =LOOKUP([id],Дети[id],Дети[team_id]) -> 19 | C8: =LOOKUP([team_id],Команды[id],Команды[Коротко]) -> Тамбов | D8: =LOOKUP([id],Дети[id],Дети[ФИО]) -> Самородов Владислав | E8: =LOOKUP([id],Дети[id],Дети[пол]) -> м | F8: =LOOKUP([id],Дети[id],Дети[Дата рождения]) -> 1997-01-05 | H8: 100в/с | I8: 00:01:07.170 | J8: 5
A9: 415 | B9: =LOOKUP([id],Дети[id],Дети[team_id]) -> 21 | C9: =LOOKUP([team_id],Команды[id],Команды[Коротко]) -> Ступино | D9: =LOOKUP([id],Дети[id],Дети[ФИО]) -> Валуев Кирилл Вячеславович | E9: =LOOKUP([id],Дети[id],Дети[пол]) -> м | F9: =LOOKUP([id],Дети[id],Дети[Дата рождения]) -> 1997-02-17 | H9: 100в/с | I9: 00:01:07.550 | J9: 6
A10: 295 | B10: =LOOKUP([id],Дети[id],Дети[team_id]) -> 15 | C10: =LOOKUP([team_id],Команды[id],Команды[Коротко]) -> Воронеж | D10: =LOOKUP([id],Дети[id],Дети[ФИО]) -> Пехов Виталий Дмитриевич | E10: =LOOKUP([id],Дети[id],Дети[пол]) -> м | F10: =LOOKUP([id],Дети[id],Дети[Дата рождения]) -> 1998-02-02 | H10: 100в/с | I10: 00:01:08.850 | J10: 7
A11: 214 | B11: =LOOKUP([id],Дети[id],Дети[team_id]) -> 11 | C11: =LOOKUP([team_id],Команды[id],Команды[Коротко]) -> Москва | D11: =LOOKUP([id],Дети[id],Дети[ФИО]) -> Огородников Богдан | E11: =LOOKUP([id],Дети[id],Дети[пол]) -> м | F11: =LOOKUP([id],Дети[id],Дети[Дата рождения]) -> 1997-07-12 | H11: 100в/с | I11: 00:01:09.130 | J11: 8
B12: 5 | C12: =LOOKUP([team_id],Команды[id],Команды[Коротко]) -> Краснодар | D12: Гедминас Николай | E12: м | F12: 2000-05-22 | H12: 100в/с | I12: 00:01:13.920 | J12: 9
C13: лично | D13: Рыженков Женя | E13: м | F13: 2001-05-05 | H13: 100в/с | I13: 00:01:15.670 | J13: в/з
A14: 104 | B14: =LOOKUP([id],Дети[id],Дети[team_id]) -> 6 | C14: =LOOKUP([team_id],Команды[id],Команды[Коротко]) -> Энергия, Шатура | D14: =LOOKUP([id],Дети[id],Дети[ФИО]) -> Аристархов Георгий Алексеевич | E14: =LOOKUP([id],Дети[id],Дети[пол]) -> м | F14: =LOOKUP([id],Дети[id],Дети[Дата рождения]) -> 1997-04-14 | H14: 100в/с | I14: 00:01:16.790 | J14: 10
A15: 44 | B15: =LOOKUP([id],Дети[id],Дети[team_id]) -> 3 | C15: =LOOKUP([team_id],Команды[id],Команды[Коротко]) -> Дмитров | D15: =LOOKUP([id],Дети[id],Дети[ФИО]) -> Платонов Александр Сергеевич | E15: =LOOKUP([id],Дети[id],Дети[пол]) -> м | F15: =LOOKUP([id],Дети[id],Дети[Дата рождения]) -> 2000-05-15 | H15: 100в/с | I15: 00:01:18.640 | J15: 11
A16: 21 | B16: =LOOKUP([id],Дети[id],Дети[team_id]) -> 2 | C16: =LOOKUP([team_id],Команды[id],Команды[Коротко]) -> Липецк | D16: =LOOKUP([id],Дети[id],Дети[ФИО]) -> Бибиков Вадим Викторович | E16: =LOOKUP([id],Дети[id],Дети[пол]) -> м | F16: =LOOKUP([id],Дети[id],Дети[Дата рождения]) -> 1997-05-20 | H16: 100в/с | I16: 00:01:21.850 | J16: 12
A17: 327 | B17: =LOOKUP([id],Дети[id],Дети[team_id]) -> 17 | C17: =LOOKUP([team_id],Команды[id],Команды[Коротко]) -> Смоленск | D17: =LOOKUP([id],Дети[id],Дети[ФИО]) -> Мозальков Олег Михайлович | E17: =LOOKUP([id],Дети[id],Дети[пол]) -> м | F17: =LOOKUP([id],Дети[id],Дети[Дата рождения]) -> 1998-12-28 | H17: 100в/с | I17: 00:01:22.810 | J17: 13
A18: 313 | B18: =LOOKUP([id],Дети[id],Дети[team_id]) -> 16 | C18: =LOOKUP([team_id],Команды[id],Команды[Коротко]) -> Тверь | D18: =LOOKUP([id],Дети[id],Дети[ФИО]) -> Лаврентьев Олег Вадимович | E18: =LOOKUP([id],Дети[id],Дети[пол]) -> м | F18: =LOOKUP([id],Дети[id],Дети[Дата рождения]) -> 1997-09-17 | H18: 100в/с | I18: 00:01:22.820 | J18: 14
A19: 121 | B19: =LOOKUP([id],Дети[id],Дети[team_id]) -> 7 | C19: =LOOKUP([team_id],Команды[id],Команды[Коротко]) -> Клин | D19: =LOOKUP([id],Дети[id],Дети[ФИО]) -> Сергеев Павел Вячеславович | E19: =LOOKUP([id],Дети[id],Дети[пол]) -> м | F19: =LOOKUP([id],Дети[id],Дети[Дата рождения]) -> 1998-01-17 | H19: 100в/с | I19: 00:01:45.660 | J19: 15
A20: 483 | B20: =LOOKUP([id],Дети[id],Дети[team_id]) -> 25 | C20: =LOOKUP([team_id],Команды[id],Команды[Коротко]) -> Ярославль | D20: =LOOKUP([id],Дети[id],Дети[ФИО]) -> Фомичев Родион | E20: =LOOKUP([id],Дети[id],Дети[пол]) -> м | F20: =LOOKUP([id],Дети[id],Дети[Дата рождения]) -> 1997-12-01 | H20: 100в/с | I20: 00:01:53.480 | J20: 16
A21: 512 | B21: =LOOKUP([id],Дети[id],Дети[team_id]) -> 26 | C21: =LOOKUP([team_id],Команды[id],Команды[Коротко]) -> Олимп, Шатура | D21: =LOOKUP([id],Дети[id],Дети[ФИО]) -> Шорин Илья павлович | E21: =LOOKUP([id],Дети[id],Дети[пол]) -> м | F21: =LOOKUP([id],Дети[id],Дети[Дата рождения]) -> 1997-07-11 | H21: 100в/с | I21: 00:01:55.100 | J21: 17
A22: 521 | B22: =LOOKUP([id],Дети[id],Дети[team_id]) -> 27 | C22: =LOOKUP([team_id],Команды[id],Команды[Коротко]) -> ОМСН | D22: =LOOKUP([id],Дети[id],Дети[ФИО]) -> Рожнов Степан Александрович | E22: =LOOKUP([id],Дети[id],Дети[пол]) -> м | F22: =LOOKUP([id],Дети[id],Дети[Дата рождения]) -> 1997-11-17 | H22: 100в/с | I22: 00:01:55.450 | J22: 18
A23: 265 | B23: =LOOKUP([id],Дети[id],Дети[team_id]) -> 14 | C23: =LOOKUP([team_id],Команды[id],Команды[Коротко]) -> Воскресенск | D23: =LOOKUP([id],Дети[id],Дети[ФИО]) -> Андреянченко Иван Александрович | E23: =LOOKUP([id],Дети[id],Дети[пол]) -> м | F23: =LOOKUP([id],Дети[id],Дети[Дата рождения]) -> 1998-07-03 | H23: 100в/с | I23: 00:01:59.820 | J23: 19
A24: 463 | B24: =LOOKUP([id],Дети[id],Дети[team_id]) -> 24 | C24: =LOOKUP([team_id],Команды[id],Команды[Коротко]) -> Пушкино | D24: =LOOKUP([id],Дети[id],Дети[ФИО]) -> Жуков Вячеслав Викторович | E24: =LOOKUP([id],Дети[id],Дети[пол]) -> м | F24: =LOOKUP([id],Дети[id],Дети[Дата рождения]) -> 1997-07-16 | H24: 100в/с | I24: 00:02:03.230 | J24: 20
A25: 342 | B25: =LOOKUP([id],Дети[id],Дети[team_id]) -> 18 | C25: =LOOKUP([team_id],Команды[id],Команды[Коротко]) -> Одинцово | D25: =LOOKUP([id],Дети[id],Дети[ФИО]) -> Граб Федор Васильевич | E25: =LOOKUP([id],Дети[id],Дети[пол]) -> м | F25: =LOOKUP([id],Дети[id],Дети[Дата рождения]) -> 1997-03-04 | H25: 100в/с | I25: 00:02:06.230 | J25: 21
C26: лично | D26: Аукин Саша | E26: м | H26: 100в/с | I26: 00:02:11.760 | J26: в/з
A27: 249 | B27: =LOOKUP([id],Дети[id],Дети[team_id]) -> 13 | C27: =LOOKUP([team_id],Команды[id],Команды[Коротко]) -> Владимир | D27: =LOOKUP([id],Дети[id],Дети[ФИО]) -> Феофанов Петр Игоревич | E27: =LOOKUP([id],Дети[id],Дети[пол]) -> м | F27: =LOOKUP([id],Дети[id],Дети[Дата рождения]) -> 1997-03-31 | H27: 100в/с | I27: 00:02:15.230 | J27: 22
A28: 3 | B28: =LOOKUP([id],Дети[id],Дети[team_id]) -> 1 | C28: =LOOKUP([team_id],Команды[id],Команды[Коротко]) -> ОМОН | D28: =LOOKUP([id],Дети[id],Дети[ФИО]) -> Дугин Федор Васильевич | E28: =LOOKUP([id],Дети[id],Дети[пол]) -> м | F28: =LOOKUP([id],Дети[id],Дети[Дата рождения]) -> 1998-02-18 | H28: 100в/с | I28: 00:02:17.020 | J28: 23
A29: 198 | B29: =LOOKUP([id],Дети[id],Дети[team_id]) -> 10 | C29: =LOOKUP([team_id],Команды[id],Команды[Коротко]) -> Кашира | D29: =LOOKUP([id],Дети[id],Дети[ФИО]) -> Белехов Виталий Дмитриевич | E29: =LOOKUP([id],Дети[id],Дети[пол]) -> м | F29: =LOOKUP([id],Дети[id],Дети[Дата рождения]) -> 1997-09-20 | H29: 100в/с | I29: 00:02:29.610 | J29: 24
A30: 457 | B30: =LOOKUP([id],Дети[id],Дети[team_id]) -> 23 | C30: =LOOKUP([team_id],Команды[id],Команды[Коротко]) -> Иваново | D30: =LOOKUP([id],Дети[id],Дети[ФИО]) -> Кушинский Алексей Викторович | E30: =LOOKUP([id],Дети[id],Дети[пол]) -> м | F30: =LOOKUP([id],Дети[id],Дети[Дата рождения]) -> 2000-03-03 | H30: 100в/с | I30: 00:03:04.360 | J30: 25
A31: 236 | B31: =LOOKUP([id],Дети[id],Дети[team_id]) -> 12 | C31: =LOOKUP([team_id],Команды[id],Команды[Коротко]) -> Истра | D31: =LOOKUP([id],Дети[id],Дети[ФИО]) -> Талыбов Орхан | E31: =LOOKUP([id],Дети[id],Дети[пол]) -> м | F31: =LOOKUP([id],Дети[id],Дети[Дата рождения]) -> 1998-03-24 | H31: 100в/с | I31: 00:10:00 | J31: 26
B32: 8 | C32: =LOOKUP([team_id],Команды[id],Команды[Коротко]) -> Руза | H32: 2х50в/с | I32: 00:00:58.260 | J32: 1
B33: 20 | C33: =LOOKUP([team_id],Команды[id],Команды[Коротко]) -> Татарстан | H33: 2х50в/с | I33: 00:00:58.890 | J33: 2
B34: 22 | C34: =LOOKUP([team_id],Команды[id],Команды[Коротко]) -> Киров | H34: 2х50в/с | I34: 00:01:02.400 | J34: 3
B35: 9 | C35: =LOOKUP([team_id],Команды[id],Команды[Коротко]) -> Курск | H35: 2х50в/с | I35: 00:01:06.520 | J35: 4
B36: 19 | C36: =LOOKUP([team_id],Команды[id],Команды[Коротко]) -> Тамбов | H36: 2х50в/с | I36: 00:01:07.170 | J36: 5
B37: 21 | C37: =LOOKUP([team_id],Команды[id],Команды[Коротко]) -> Ступино | H37: 2х50в/с | I37: 00:01:08.050 | J37: 6
B38: 15 | C38: =LOOKUP([team_id],Команды[id],Команды[Коротко]) -> Воронеж | H38: 2х50в/с | I38: 00:01:09.720 | J38: 7
B39: 11 | C39: =LOOKUP([team_id],Команды[id],Команды[Коротко]) -> Москва | H39: 2х50в/с | I39: 00:01:10.990 | J39: 8
B40: 6 | C40: =LOOKUP([team_id],Команды[id],Команды[Коротко]) -> Энергия, Шатура | H40: 2х50в/с | I40: 00:01:11.830 | J40: 9
B41: 2 | C41: =LOOKUP([team_id],Команды[id],Команды[Коротко]) -> Липецк | H41: 2х50в/с | I41: 00:01:12.090 | J41: 10
B42: 17 | C42: =LOOKUP([team_id],Команды[id],Команды[Коротко]) -> Смоленск | H42: 2х50в/с | I42: 00:01:15.860 | J42: 11
B43: 16 | C43: =LOOKUP([team_id],Команды[id],Команды[Коротко]) -> Тверь | H43: 2х50в/с | I43: 00:01:16.770 | J43: 12
C44: лично | D44: Рыженков Женя | E44: м | F44: 2001-05-05 | H44: 2х50в/с | I44: 00:01:18.040 | J44: в/з
B45: 3 | C45: =LOOKUP([team_id],Команды[id],Команды[Коротко]) -> Дмитров | H45: 2х50в/с | I45: 00:01:21.940 | J45: 13
B46: 26 | C46: =LOOKUP([team_id],Команды[id],Команды[Коротко]) -> Олимп, Шатура | H46: 2х50в/с | I46: 00:01:35.230 | J46: 14
B47: 13 | C47: =LOOKUP([team_id],Команды[id],Команды[Коротко]) -> Владимир | H47: 2х50в/с | I47: 00:01:37.870 | J47: 15
B48: 10 | C48: =LOOKUP([team_id],Команды[id],Команды[Коротко]) -> Кашира | H48: 2х50в/с | I48: 00:01:38.770 | J48: 16
B49: 1 | C49: =LOOKUP([team_id],Команды[id],Команды[Коротко]) -> ОМОН | H49: 2х50в/с | I49: 00:01:46.070 | J49: 17
B50: 27 | C50: =LOOKUP([team_id],Команды[id],Команды[Коротко]) -> ОМСН | H50: 2х50в/с | I50: 00:01:55.160 | J50: 18
B51: 25 | C51: =LOOKUP([team_id],Команды[id],Команды[Коротко]) -> Ярославль | H51: 2х50в/с | I51: 00:01:57.570 | J51: 19
B52: 14 | C52: =LOOKUP([team_id],Команды[id],Команды[Коротко]) -> Воскресенск | H52: 2х50в/с | I52: 00:01:59.810 | J52: 20
B53: 23 | C53: =LOOKUP([team_id],Команды[id],Команды[Коротко]) -> Иваново | H53: 2х50в/с | I53: 00:02:06.340 | J53: 21
B54: 5 | C54: =LOOKUP([team_id],Команды[id],Команды[Коротко]) -> Краснодар | H54: 2х50в/с | I54: 00:02:09.810 | J54: 22
B55: 7 | C55: =LOOKUP([team_id],Команды[id],Команды[Коротко]) -> Клин | H55: 2х50в/с | I55: 00:02:11.720 | J55: 23
B56: 24 | C56: =LOOKUP([team_id],Команды[id],Команды[Коротко]) -> Пушкино | H56: 2х50в/с | I56: 00:02:21.320 | J56: 24
B57: 18 | C57: =LOOKUP([team_id],Команды[id],Команды[Коротко]) -> Одинцово | H57: 2х50в/с | I57: 00:02:22.690 | J57: 25
B58: 12 | C58: =LOOKUP([team_id],Команды[id],Команды[Коротко]) -> Истра | H58: 2х50в/с | I58: 00:10:00 | J58: 26
A59: 160 | B59: =LOOKUP([id],Дети[id],Дети[team_id]) -> 8 | C59: =LOOKUP([team_id],Команды[id],Команды[Коротко]) -> Руза | D59: =LOOKUP([id],Дети[id],Дети[ФИО]) -> Безбородова Дарья | E59: =LOOKUP([id],Дети[id],Дети[пол]) -> д | F59: =LOOKUP([id],Дети[id],Дети[Дата рождения]) -> 1997-09-18 | H59: 50в/с | I59: 00:00:29.040 | J59: 1
A60: 395 | B60: =LOOKUP([id],Дети[id],Дети[team_id]) -> 20 | C60: =LOOKUP([team_id],Команды[id],Команды[Коротко]) -> Татарстан | D60: =LOOKUP([id],Дети[id],Дети[ФИО]) -> Гимадеева Алина Фаридовна | E60: =LOOKUP([id],Дети[id],Дети[пол]) -> д | F60: =LOOKUP([id],Дети[id],Дети[Дата рождения]) -> 1997-02-27 | H60: 50в/с | I60: 00:00:29.510 | J60: 2
A61: 426 | B61: =LOOKUP([id],Дети[id],Дети[team_id]) -> 22 | C61: =LOOKUP([team_id],Команды[id],Команды[Коротко]) -> Киров | D61: =LOOKUP([id],Дети[id],Дети[ФИО]) -> Елгешина Елизавета | E61: =LOOKUP([id],Дети[id],Дети[пол]) -> д | F61: =LOOKUP([id],Дети[id],Дети[Дата рождения]) -> 1997-05-07 | H61: 50в/с | I61: 00:00:30.660 | J61: 3
A62: 370 | B62: =LOOKUP([id],Дети[id],Дети[team_id]) -> 19 | C62: =LOOKUP([team_id],Команды[id],Команды[Коротко]) -> Тамбов | D62: =LOOKUP([id],Дети[id],Дети[ФИО]) -> Захарова Наталия | E62: =LOOKUP([id],Дети[id],Дети[пол]) -> д | F62: =LOOKUP([id],Дети[id],Дети[Дата рождения]) -> 1998-05-19 | H62: 50в/с | I62: 00:00:34.120 | J62: 4
A63: 114 | B63: =LOOKUP([id],Дети[id],Дети[team_id]) -> 6 | C63: =LOOKUP([team_id],Команды[id],Команды[Коротко]) -> Энергия, Шатура | D63: =LOOKUP([id],Дети[id],Дети[ФИО]) -> Бурканова Юлия Владимировна | E63: =LOOKUP([id],Дети[id],Дети[пол]) -> д | F63: =LOOKUP([id],Дети[id],Дети[Дата рождения]) -> 1997-03-21 | H63: 50в/с | I63: 00:00:34.710 | J63: 5
A64: 172 | B64: =LOOKUP([id],Дети[id],Дети[team_id]) -> 9 | C64: =LOOKUP([team_id],Команды[id],Команды[Коротко]) -> Курск | D64: =LOOKUP([id],Дети[id],Дети[ФИО]) -> Вертакова Анастасия | E64: =LOOKUP([id],Дети[id],Дети[пол]) -> д | F64: =LOOKUP([id],Дети[id],Дети[Дата рождения]) -> 1997-03-28 | H64: 50в/с | I64: 00:00:35.210 | J64: 6
A65: 26 | B65: =LOOKUP([id],Дети[id],Дети[team_id]) -> 2 | C65: =LOOKUP([team_id],Команды[id],Команды[Коротко]) -> Липецк | D65: =LOOKUP([id],Дети[id],Дети[ФИО]) -> Бабкина Людмила Алексеевна | E65: =LOOKUP([id],Дети[id],Дети[пол]) -> д | F65: =LOOKUP([id],Дети[id],Дети[Дата рождения]) -> 1997-10-27 | H65: 50в/с | I65: 00:00:35.540 | J65: 7
A66: 416 | B66: =LOOKUP([id],Дети[id],Дети[team_id]) -> 21 | C66: =LOOKUP([team_id],Команды[id],Команды[Коротко]) -> Ступино | D66: =LOOKUP([id],Дети[id],Дети[ФИО]) -> Китова Екатерина Владимировна | E66: =LOOKUP([id],Дети[id],Дети[пол]) -> д | F66: =LOOKUP([id],Дети[id],Дети[Дата рождения]) -> 1997-01-29 | H66: 50в/с | I66: 00:00:36.150 | J66: 8
A67: 332 | B67: =LOOKUP([id],Дети[id],Дети[team_id]) -> 17 | C67: =LOOKUP([team_id],Команды[id],Команды[Коротко]) -> Смоленск | D67: =LOOKUP([id],Дети[id],Дети[ФИО]) -> Горбунова Анастасия Николаевна | E67: =LOOKUP([id],Дети[id],Дети[пол]) -> д | F67: =LOOKUP([id],Дети[id],Дети[Дата рождения]) -> 2000-04-08 | H67: 50в/с | I67: 00:00:36.840 | J67: 9
A68: 288 | B68: =LOOKUP([id],Дети[id],Дети[team_id]) -> 15 | C68: =LOOKUP([team_id],Команды[id],Команды[Коротко]) -> Воронеж | D68: =LOOKUP([id],Дети[id],Дети[ФИО]) -> Якшина Евгения Валерьевна | E68: =LOOKUP([id],Дети[id],Дети[пол]) -> д | F68: =LOOKUP([id],Дети[id],Дети[Дата рождения]) -> 1998-07-29 | H68: 50в/с | I68: 00:00:37.790 | J68: 10
A69: 211 | B69: =LOOKUP([id],Дети[id],Дети[team_id]) -> 11 | C69: =LOOKUP([team_id],Команды[id],Команды[Коротко]) -> Москва | D69: =LOOKUP([id],Дети[id],Дети[ФИО]) -> Кожаева Екатерина | E69: =LOOKUP([id],Дети[id],Дети[пол]) -> д | F69: =LOOKUP([id],Дети[id],Дети[Дата рождения]) -> 1997-12-03 | H69: 50в/с | I69: 00:00:38.190 | J69: 11
A70: 460 | B70: =LOOKUP([id],Дети[id],Дети[team_id]) -> 23 | C70: =LOOKUP([team_id],Команды[id],Команды[Коротко]) -> Иваново | D70: =LOOKUP([id],Дети[id],Дети[ФИО]) -> Колпакова Надежда Михайловна | E70: =LOOKUP([id],Дети[id],Дети[пол]) -> д | F70: =LOOKUP([id],Дети[id],Дети[Дата рождения]) -> 2000-01-25 | H70: 50в/с | I70: 00:00:40.330 | J70: 12
A71: 59 | B71: =LOOKUP([id],Дети[id],Дети[team_id]) -> 3 | C71: =LOOKUP([team_id],Команды[id],Команды[Коротко]) -> Дмитров | D71: =LOOKUP([id],Дети[id],Дети[ФИО]) -> Коныжева Софья Константиновна | E71: =LOOKUP([id],Дети[id],Дети[пол]) -> д | F71: =LOOKUP([id],Дети[id],Дети[Дата рождения]) -> 1998-01-03 | H71: 50в/с | I71: 00:00:41.200 | J71: 13
A72: 312 | B72: =LOOKUP([id],Дети[id],Дети[team_id]) -> 16 | C72: =LOOKUP([team_id],Команды[id],Команды[Коротко]) -> Тверь | D72: =LOOKUP([id],Дети[id],Дети[ФИО]) -> Ли Оливия | E72: =LOOKUP([id],Дети[id],Дети[пол]) -> д | F72: =LOOKUP([id],Дети[id],Дети[Дата рождения]) -> 1998-09-10 | H72: 50в/с | I72: 00:00:41.850 | J72: 14
A73: 189 | B73: =LOOKUP([id],Дети[id],Дети[team_id]) -> 10 | C73: =LOOKUP([team_id],Команды[id],Команды[Коротко]) -> Кашира | D73: =LOOKUP([id],Дети[id],Дети[ФИО]) -> Ильина Александра Сергеевна | E73: =LOOKUP([id],Дети[id],Дети[пол]) -> д | F73: =LOOKUP([id],Дети[id],Дети[Дата рождения]) -> 1997-07-29 | H73: 50в/с | I73: 00:00:42.070 | J73: 15
A74: 505 | B74: =LOOKUP([id],Дети[id],Дети[team_id]) -> 26 | C74: =LOOKUP([team_id],Команды[id],Команды[Коротко]) -> Олимп, Шатура | D74: =LOOKUP([id],Дети[id],Дети[ФИО]) -> Давыдова Анастасия Сергеевна | E74: =LOOKUP([id],Дети[id],Дети[пол]) -> д | F74: =LOOKUP([id],Дети[id],Дети[Дата рождения]) -> 1998-06-24 | H74: 50в/с | I74: 00:00:42.860 | J74: 16
A75: 256 | B75: =LOOKUP([id],Дети[id],Дети[team_id]) -> 13 | C75: =LOOKUP([team_id],Команды[id],Команды[Коротко]) -> Владимир | D75: =LOOKUP([id],Дети[id],Дети[ФИО]) -> Орлова Ирина Андреевна | E75: =LOOKUP([id],Дети[id],Дети[пол]) -> д | F75: =LOOKUP([id],Дети[id],Дети[Дата рождения]) -> 1997-01-17 | H75: 50в/с | I75: 00:00:45.510 | J75: 17
A76: 17 | B76: =LOOKUP([id],Дети[id],Дети[team_id]) -> 1 | C76: =LOOKUP([team_id],Команды[id],Команды[Коротко]) -> ОМОН | D76: =LOOKUP([id],Дети[id],Дети[ФИО]) -> Зарх Елизавета Дмитриевна | E76: =LOOKUP([id],Дети[id],Дети[пол]) -> д | F76: =LOOKUP([id],Дети[id],Дети[Дата рождения]) -> 1997-11-08 | H76: 50в/с | I76: 00:00:51.290 | J76: 18
A77: 240 | B77: =LOOKUP([id],Дети[id],Дети[team_id]) -> 12 | C77: =LOOKUP([team_id],Команды[id],Команды[Коротко]) -> Истра | D77: =LOOKUP([id],Дети[id],Дети[ФИО]) -> Туровская Анна Владимирона | E77: =LOOKUP([id],Дети[id],Дети[пол]) -> д | F77: =LOOKUP([id],Дети[id],Дети[Дата рождения]) -> 1997-08-22 | H77: 50в/с | I77: 00:00:57.260 | J77: 19
A78: 530 | B78: =LOOKUP([id],Дети[id],Дети[team_id]) -> 27 | C78: =LOOKUP([team_id],Команды[id],Команды[Коротко]) -> ОМСН | D78: =LOOKUP([id],Дети[id],Дети[ФИО]) -> Новикова Елизавета Владимировна | E78: =LOOKUP([id],Дети[id],Дети[пол]) -> д | F78: =LOOKUP([id],Дети[id],Дети[Дата рождения]) -> 1998-03-04 | H78: 50в/с | I78: 00:01:04.450 | J78: 20
A79: 278 | B79: =LOOKUP([id],Дети[id],Дети[team_id]) -> 14 | C79: =LOOKUP([team_id],Команды[id],Команды[Коротко]) -> Воскресенск | D79: =LOOKUP([id],Дети[id],Дети[ФИО]) -> Пищухина Маргарита Сергеевна | E79: =LOOKUP([id],Дети[id],Дети[пол]) -> д | F79: =LOOKUP([id],Дети[id],Дети[Дата рождения]) -> 1998-09-02 | H79: 50в/с | I79: 00:01:07.160 | J79: 21
A80: 498 | B80: =LOOKUP([id],Дети[id],Дети[team_id]) -> 25 | C80: =LOOKUP([team_id],Команды[id],Команды[Коротко]) -> Ярославль | D80: =LOOKUP([id],Дети[id],Дети[ФИО]) -> Фирсова Алина Сергеевна | E80: =LOOKUP([id],Дети[id],Дети[пол]) -> д | F80: =LOOKUP([id],Дети[id],Дети[Дата рождения]) -> 1997-12-24 | H80: 50в/с | I80: 00:01:11.100 | J80: 22
A81: 464 | B81: =LOOKUP([id],Дети[id],Дети[team_id]) -> 24 | C81: =LOOKUP([team_id],Команды[id],Команды[Коротко]) -> Пушкино | D81: =LOOKUP([id],Дети[id],Дети[ФИО]) -> Соколова Оксана Анатольевна | E81: =LOOKUP([id],Дети[id],Дети[пол]) -> д | F81: =LOOKUP([id],Дети[id],Дети[Дата рождения]) -> 1997-09-18 | H81: 50в/с | I81: 00:01:21.220 | J81: 23
A82: 95 | B82: =LOOKUP([id],Дети[id],Дети[team_id]) -> 5 | C82: =LOOKUP([team_id],Команды[id],Команды[Коротко]) -> Краснодар | D82: =LOOKUP([id],Дети[id],Дети[ФИО]) -> Мельникова Екатерина Викторовна | E82: =LOOKUP([id],Дети[id],Дети[пол]) -> д | F82: =LOOKUP([id],Дети[id],Дети[Дата рождения]) -> 2001-01-30 | H82: 50в/с | I82: 00:01:22.240 | J82: 24
A83: 351 | B83: =LOOKUP([id],Дети[id],Дети[team_id]) -> 18 | C83: =LOOKUP([team_id],Команды[id],Команды[Коротко]) -> Одинцово | D83: =LOOKUP([id],Дети[id],Дети[ФИО]) -> Грек София Павловна | E83: =LOOKUP([id],Дети[id],Дети[пол]) -> д | F83: =LOOKUP([id],Дети[id],Дети[Дата рождения]) -> 1998-10-05 | H83: 50в/с | I83: 00:01:24.440 | J83: 25
A84: 132 | B84: =LOOKUP([id],Дети[id],Дети[team_id]) -> 7 | C84: =LOOKUP([team_id],Команды[id],Команды[Коротко]) -> Клин | D84: =LOOKUP([id],Дети[id],Дети[ФИО]) -> Волкова Анна Сергеевна | E84: =LOOKUP([id],Дети[id],Дети[пол]) -> д | F84: =LOOKUP([id],Дети[id],Дети[Дата рождения]) -> 1997-04-21 | H84: 50в/с | I84: 00:01:26.770 | J84: 26
C87: Председатель оргкомитета /Громов А.Г./

Sheet ориентирование
C1: Протокол №15 (ориентирование)
J2: 5 июня 2011, 14:27
A3: id | B3: team_id | C3: Команда | D3: ФИО | E3: пол | F3: Дата рождения | G3: время | H3: штраф | I3: Сумма | J3: Место
A4: 315 | B4: =LOOKUP([id],Дети[id],Дети[team_id]) -> 16 | C4: =LOOKUP([team_id],Команды[id],Команды[Коротко]) -> Тверь | D4: =LOOKUP([id],Дети[id],Дети[ФИО]) -> Кулаченко Ярослав Евгеньевич | E4: =LOOKUP([id],Дети[id],Дети[пол]) -> м | F4: =LOOKUP([id],Дети[id],Дети[Дата рождения]) -> 1997-04-06 | G4: 0.01150462963 | H4: 0 | I4: =ориентирование[[#This Row],[время]]+ориентирование[[#This Row],[штраф]] -> 0.01150462963 | J4: 1
A5: 365 | B5: =LOOKUP([id],Дети[id],Дети[team_id]) -> 19 | C5: =LOOKUP([team_id],Команды[id],Команды[Коротко]) -> Тамбов | D5: =LOOKUP([id],Дети[id],Дети[ФИО]) -> Рюмин Илья | E5: =LOOKUP([id],Дети[id],Дети[пол]) -> м | F5: =LOOKUP([id],Дети[id],Дети[Дата рождения]) -> 1997-07-25 | G5: 0.01194444444 | H5: 0 | I5: =ориентирование[[#This Row],[время]]+ориентирование[[#This Row],[штраф]] -> 0.01194444444 | J5: 2
A6: 84 | B6: =LOOKUP([id],Дети[id],Дети[team_id]) -> 5 | C6: =LOOKUP([team_id],Команды[id],Команды[Коротко]) -> Краснодар | D6: =LOOKUP([id],Дети[id],Дети[ФИО]) -> Галимов Юрий Андреевич | E6: =LOOKUP([id],Дети[id],Дети[пол]) -> м | F6: =LOOKUP([id],Дети[id],Дети[Дата рождения]) -> 1997-08-20 | G6: 0.01234953704 | H6: 0 | I6: =ориентирование[[#This Row],[время]]+ориентирование[[#This Row],[штраф]] -> 0.01234953704 | J6: 3
A7: 390 | B7: =LOOKUP([id],Дети[id],Дети[team_id]) -> 20 | C7: =LOOKUP([team_id],Команды[id],Команды[Коротко]) -> Татарстан | D7: =LOOKUP([id],Дети[id],Дети[ФИО]) -> Мищенко Елизавета Владимировна | E7: =LOOKUP([id],Дети[id],Дети[пол]) -> д | F7: =LOOKUP([id],Дети[id],Дети[Дата рождения]) -> 1997-01-21 | G7: 0.01284722222 | H7: 0 | I7: =ориентирование[[#This Row],[время]]+ориентирование[[#This Row],[штраф]] -> 0.01284722222 | J7: 4
A8: 228 | B8: =LOOKUP([id],Дети[id],Дети[team_id]) -> 12 | C8: =LOOKUP([team_id],Команды[id],Команды[Коротко]) -> Истра | D8: =LOOKUP([id],Дети[id],Дети[ФИО]) -> Арчаков Николай Владимирович | E8: =LOOKUP([id],Дети[id],Дети[пол]) -> м | F8: =LOOKUP([id],Дети[id],Дети[Дата рождения]) -> 1997-05-25 | G8: 0.01319444444 | H8: 0 | I8: =ориентирование[[#This Row],[время]]+ориентирование[[#This Row],[штраф]] -> 0.01319444444 | J8: 5
A9: 326 | B9: =LOOKUP([id],Дети[id],Дети[team_id]) -> 17 | C9: =LOOKUP([team_id],Команды[id],Команды[Коротко]) -> Смоленск | D9: =LOOKUP([id],Дети[id],Дети[ФИО]) -> Белов Алексей Александрович | E9: =LOOKUP([id],Дети[id],Дети[пол]) -> м | F9: =LOOKUP([id],Дети[id],Дети[Дата рождения]) -> 1998-12-27 | G9: 0.01378472222 | H9: 0 | I9: =ориентирование[[#This Row],[время]]+ориентирование[[#This Row],[штраф]] -> 0.01378472222 | J9: 6
A10: 418 | B10: =LOOKUP([id],Дети[id],Дети[team_id]) -> 21 | C10: =LOOKUP([team_id],Команды[id],Команды[Коротко]) -> Ступино | D10: =LOOKUP([id],Дети[id],Дети[ФИО]) -> Добычин Антон Владиславович | E10: =LOOKUP([id],Дети[id],Дети[пол]) -> м | F10: =LOOKUP([id],Дети[id],Дети[Дата рождения]) -> 1997-07-10 | G10: 0.01388888889 | H10: 0 | I10: =ориентирование[[#This Row],[время]]+ориентирование[[#This Row],[штраф]] -> 0.01388888889 | J10: 7
A11: 129 | B11: =LOOKUP([id],Дети[id],Дети[team_id]) -> 7 | C11: =LOOKUP([team_id],Команды[id],Команды[Коротко]) -> Клин | D11: =LOOKUP([id],Дети[id],Дети[ФИО]) -> Быков Дмитрий Игорьевич | E11: =LOOKUP([id],Дети[id],Дети[пол]) -> м | F11: =LOOKUP([id],Дети[id],Дети[Дата рождения]) -> 1997-01-26 | G11: 0.01403935185 | H11: 0 | I11: =ориентирование[[#This Row],[время]]+ориентирование[[#This Row],[штраф]] -> 0.01403935185 | J11: 8
A12: 427 | B12: =LOOKUP([id],Дети[id],Дети[team_id]) -> 22 | C12: =LOOKUP([team_id],Команды[id],Команды[Коротко]) -> Киров | D12: =LOOKUP([id],Дети[id],Дети[ФИО]) -> Бельтюков Кирилл | E12: =LOOKUP([id],Дети[id],Дети[пол]) -> м | F12: =LOOKUP([id],Дети[id],Дети[Дата рождения]) -> 1997-12-05 | G12: 0.01423611111 | H12: 0 | I12: =ориентирование[[#This Row],[время]]+ориентирование[[#This Row],[штраф]] -> 0.01423611111 | J12: 9
A13: 187 | B13: =LOOKUP([id],Дети[id],Дети[team_id]) -> 10 | C13: =LOOKUP([team_id],Команды[id],Команды[Коротко]) -> Кашира | D13: =LOOKUP([id],Дети[id],Дети[ФИО]) -> Куликова Александра Сергеевна | E13: =LOOKUP([id],Дети[id],Дети[пол]) -> д | F13: =LOOKUP([id],Дети[id],Дети[Дата рождения]) -> 1998-07-14 | G13: 0.0143287037 | H13: 0 | I13: =ориентирование[[#This Row],[время]]+ориентирование[[#This Row],[штраф]] -> 0.0143287037 | J13: 10
A14: 445 | B14: =LOOKUP([id],Дети[id],Дети[team_id]) -> 23 | C14: =LOOKUP([team_id],Команды[id],Команды[Коротко]) -> Иваново | D14: =LOOKUP([id],Дети[id],Дети[ФИО]) -> Исаков Ярослав Олегович | E14: =LOOKUP([id],Дети[id],Дети[пол]) -> м | F14: =LOOKUP([id],Дети[id],Дети[Дата рождения]) -> 1997-10-29 | G14: 0.01434027778 | H14: 0 | I14: =ориентирование[[#This Row],[время]]+ориентирование[[#This Row],[штраф]] -> 0.01434027778 | J14: 11
A15: 5 | B15: =LOOKUP([id],Дети[id],Дети[team_id]) -> 1 | C15: =LOOKUP([team_id],Команды[id],Команды[Коротко]) -> ОМОН | D15: =LOOKUP([id],Дети[id],Дети[ФИО]) -> Заварихин Семен Александрович | E15: =LOOKUP([id],Дети[id],Дети[пол]) -> м | F15: =LOOKUP([id],Дети[id],Дети[Дата рождения]) -> 1997-12-16 | G15: 0.01466435185 | H15: 0 | I15: =ориентирование[[#This Row],[время]]+ориентирование[[#This Row],[штраф]] -> 0.01466435185 | J15: 12
A16: 106 | B16: =LOOKUP([id],Дети[id],Дети[team_id]) -> 6 | C16: =LOOKUP([team_id],Команды[id],Команды[Коротко]) -> Энергия, Шатура | D16: =LOOKUP([id],Дети[id],Дети[ФИО]) -> Давыдов Георгий Витальевич | E16: =LOOKUP([id],Дети[id],Дети[пол]) -> м | F16: =LOOKUP([id],Дети[id],Дети[Дата рождения]) -> 1997-10-12 | G16: 0.01501157407 | H16: 0 | I16: =ориентирование[[#This Row],[время]]+ориентирование[[#This Row],[штраф]] -> 0.01501157407 | J16: 13
A17: 539 | B17: =LOOKUP([id],Дети[id],Дети[team_id]) -> 27 | C17: =LOOKUP([team_id],Команды[id],Команды[Коротко]) -> ОМСН | D17: =LOOKUP([id],Дети[id],Дети[ФИО]) -> Власенко Григорий Юрьевич | E17: =LOOKUP([id],Дети[id],Дети[пол]) -> м | F17: =LOOKUP([id],Дети[id],Дети[Дата рождения]) -> 1997-02-12 | G17: 0.01516203704 | H17: 0 | I17: =ориентирование[[#This Row],[время]]+ориентирование[[#This Row],[штраф]] -> 0.01516203704 | J17: 14
A18: 274 | B18: =LOOKUP([id],Дети[id],Дети[team_id]) -> 14 | C18: =LOOKUP([team_id],Команды[id],Команды[Коротко]) -> Воскресенск | D18: =LOOKUP([id],Дети[id],Дети[ФИО]) -> Волкова Мария Александровна | E18: =LOOKUP([id],Дети[id],Дети[пол]) -> д | F18: =LOOKUP([id],Дети[id],Дети[Дата рождения]) -> 1998-08-07 | G18: 0.01586805556 | H18: 0 | I18: =ориентирование[[#This Row],[время]]+ориентирование[[#This Row],[штраф]] -> 0.01586805556 | J18: 15
A19: 144 | B19: =LOOKUP([id],Дети[id],Дети[team_id]) -> 8 | C19: =LOOKUP([team_id],Команды[id],Команды[Коротко]) -> Руза | D19: =LOOKUP([id],Дети[id],Дети[ФИО]) -> Волнистов Сергей | E19: =LOOKUP([id],Дети[id],Дети[пол]) -> м | F19: =LOOKUP([id],Дети[id],Дети[Дата рождения]) -> 1997-03-20 | G19: 0.01706018519 | H19: 0 | I19: =ориентирование[[#This Row],[время]]+ориентирование[[#This Row],[штраф]] -> 0.01706018519 | J19: 16
A20: 467 | B20: =LOOKUP([id],Дети[id],Дети[team_id]) -> 24 | C20: =LOOKUP([team_id],Команды[id],Команды[Коротко]) -> Пушкино | D20: =LOOKUP([id],Дети[id],Дети[ФИО]) -> Рябчиков Владислав Игоревич | E20: =LOOKUP([id],Дети[id],Дети[пол]) -> м | F20: =LOOKUP([id],Дети[id],Дети[Дата рождения]) -> 1997-03-21 | G20: 0.01604166667 | H20: 0.001388888889 | I20: =ориентирование[[#This Row],[время]]+ориентирование[[#This Row],[штраф]] -> 0.01743055556 | J20: 17
A21: 22 | B21: =LOOKUP([id],Дети[id],Дети[team_id]) -> 2 | C21: =LOOKUP([team_id],Команды[id],Команды[Коротко]) -> Липецк | D21: =LOOKUP([id],Дети[id],Дети[ФИО]) -> Боганова Анастасия Александровна | E21: =LOOKUP([id],Дети[id],Дети[пол]) -> д | F21: =LOOKUP([id],Дети[id],Дети[Дата рождения]) -> 1998-05-21 | G21: 0.01809027778 | H21: 0 | I21: =ориентирование[[#This Row],[время]]+ориентирование[[#This Row],[штраф]] -> 0.01809027778 | J21: 18
